Workbook

Sheet Liste
A1: Résid.LA JOIE
A2: 120 rue de l' Espérance | D2: Lieu A.G. | E2: 15 rue du Bois d'Amour 75016 PARIS | G2: SYNDIC | AB2: 3
A3: 75016 | B3: PARIS | D3: Date A.G. | E3: 2022-11-05 | G3: Cabinet LEBON
D4: Heures | E4: 10 Heures | G4: 120 rue du Devoir
D5: Date limite réceptionForm,VPC | E5: 1 Novemvbre 2022 | G5: 75016 Paris
A6: LISTE DES COPROPRIETAIRES
G7: Total Tantièmes | H7: =SUM($H$10:$H$159) -> 10000
A9: N° | B9: Civ, | C9: Civilité | D9: NOMS | E9: Adresse | F9: Code Postal | G9: Ville | H9: Tantièmes | I9: N° lot | J9: Nature | K9: Tant, | L9: N° lot | M9: Nature | N9: Tant, | O9: N° lot | P9: Nature | Q9: Tant, | R9: N° lot | S9: Nature | T9: Tant, | U9: N° lot | V9: Nature | W9: Tant, | X9: N° | Y9: Nom | Z9: Messagerie
A10: 1 | B10: M | C10: Monsieur | D10: ALEXANDRINI André | E10: 15 rue du Trou Perdu | F10: 33700 | G10: Mérignac | H10: =IF(K10+N10+Q10+W10>0,K10+N10+Q10+T10+W10,"") -> 58 | I10: 1 | J10: cave | K10: 29 | L10: 151 | M10: Cave | N10: 29 | X10: =A10 -> 1 | Y10: =D10 -> ALEXANDRINI André | Z10: Alex,A@free,fr
A11: 2 | B11: Mme | C11: Madame | D11: ANNINOS Henri | E11: 5 rue de la Tour | F11: 75016 | G11: Paris | H11: =IF(K11+N11+Q11+W11>0,K11+N11+Q11+T11+W11,"") -> 290 | I11: 2 | J11: Appart, | K11: 261 | L11: 152 | M11: Cave | N11: 29 | X11: =A11 -> 2 | Y11: =D11 -> ANNINOS Henri
A12: 3 | B12: M,Mme | C12: Mr et Mme | D12: BALDACCHINO Laurence | E12: 13 rue de l' espoir | F12: 75016 | G12: Paris | H12: =IF(K12+N12+Q12+W12>0,K12+N12+Q12+T12+W12,"") -> 319 | I12: 3 | J12: Appart, | K12: 290 | L12: 153 | M12: Cave | N12: 29 | X12: 3 | Y12: BALDACCHINO Laurence | Z12: BALDAC@Outlook
A13: 4 | B13: M. | C13: Monsieur | D13: BANCHET Joseph | E13: 14 rue de l' espoir | F13: 75016 | G13: Paris | H13: =IF(K13+N13+Q13+W13>0,K13+N13+Q13+T13+W13,"") -> 294 | I13: 4 | J13: Appart, | K13: 265 | L13: 154 | M13: Cave | N13: 29 | X13: 4 | Y13: BANCHET Joseph
A14: 5 | B14: M. | C14: Madame | D14: BARDIN Andrée | E14: 12 rue de Caen | F14: 75016 | G14: Paris | H14: =IF(K14+N14+Q18+W18>0,K14+N14+Q18+T18+W18,"") -> 287 | I14: 5 | J14: Appart, | K14: 258 | L14: 155 | M14: Cave | N14: 29 | X14: 5 | Y14: BARDIN Andrée
A15: 6 | B15: M,Mme | C15: Mr et Mme | D15: BARDIN-BENARD Louis | E15: 16 rue de l' espoir | F15: 75016 | G15: Paris | H15: =IF(K15+N15+Q19+W19>0,K15+N15+Q19+T19+W19,"") -> 257 | I15: 6 | J15: Appart, | K15: 228 | L15: 156 | M15: Cave | N15: 29 | X15: 6 | Y15: BARDIN-BENARD Louis
A16: 7 | B16: M,Mme | C16: Mr et Mme | D16: BARDOUILLE Hermine | E16: 25 rue du Puit | F16: 75016 | G16: Paris | H16: =IF(K16+N16+Q16+W16>0,K16+N16+Q16+T16+W16,"") -> 371 | I16: 7 | J16: Appart, | K16: 342 | L16: 157 | M16: Cave | N16: 29 | X16: 7 | Y16: BARDOUILLE Hermine
A17: 8 | B17: M,Mme | C17: Mr et Mme | D17: BARDOUILLE Jean Yves | E17: 13 rue de l' espoir | F17: 75016 | G17: Paris | H17: 569 | I17: 8 | J17: Appart, | K17: 540 | L17: 158 | M17: Cave | N17: 29 | X17: 8 | Y17: BARDOUILLE Jean Yves
A18: 9 | B18: M,Mme | C18: Mr et Mme | D18: BAUDINO | E18: 13 rue de l' espoir | F18: 75016 | G18: Paris | H18: 431 | I18: 9 | J18: Appart, | K18: 402 | L18: 159 | M18: Cave | N18: 29 | X18: 9 | Y18: BAUDINO
A19: 10 | B19: M,Mme | C19: Mr et Mme | D19: BAUGUIL André | E19: 13 rue de l' espoir | F19: 75016 | G19: Paris | H19: 360 | I19: 10 | J19: Appart, | K19: 331 | L19: 160 | M19: Cave | N19: 29 | X19: 10 | Y19: BAUGUIL André
A20: 11 | B20: M,Mme | C20: Mr et Mme | D20: BAUMGARTNER Peter | E20: 13 rue de l' espoir | F20: 75016 | G20: Paris | H20: 380 | I20: 11 | J20: Appart, | K20: 351 | L20: 161 | M20: Cave | N20: 29 | X20: 11 | Y20: BAUMGARTNER Peter
A21: 12 | B21: M,Mme | C21: Mr et Mme | D21: BECH Monique | E21: 22 Rue des Amoureux | F21: 33200 | G21: Bordeaux | H21: 519 | I21: 12 | J21: Appart, | K21: 490 | L21: 162 | M21: Cave | N21: 29 | X21: 12 | Y21: BECH Monique
A22: 13 | B22: M. | C22: Monsieur | D22: BERGET Jean François | E22: 13 rue de l' espoir | F22: 75016 | G22: Paris | H22: 381 | I22: 13 | J22: Appart, | K22: 352 | L22: 163 | M22: Cave | N22: 29 | X22: 13 | Y22: BERGET Jean François
A23: 14 | B23: M. | C23: Monsieur | D23: BERLIER David | E23: 13 rue de l' espoir | F23: 75016 | G23: Paris | H23: 391 | I23: 14 | J23: Appart, | K23: 362 | L23: 164 | M23: Cave | N23: 29 | X23: 14 | Y23: BERLIER David
A24: 15 | B24: M. | C24: Mmadame | D24: BESSON Gabriel | E24: 13 rue de l' espoir | F24: 75016 | G24: Paris | H24: 380 | I24: 15 | J24: Appart, | K24: 351 | L24: 165 | M24: Cave | N24: 29 | X24: 15 | Y24: BESSON Gabriel
A25: 16 | B25: M | C25: Monieur | D25: DENIS Jacques | E25: 13 rue de l' espoir | F25: 75016 | G25: Paris | H25: =IF(K25+N25+Q25+W25>0,K25+N25+Q25+T25+W25,"") -> 315 | I25: 46 | J25: Appart, | K25: 286 | L25: 196 | M25: Cave | N25: 29 | X25: =A25 -> 16 | Y25: =D25 -> DENIS Jacques
A26: 17 | B26: Me | C26: Madame | D26: DI JORIO Brigitte | E26: 13 rue de l' espoir | F26: 75016 | G26: Paris | H26: =IF(K26+N26+Q26+W26>0,K26+N26+Q26+T26+W26,"") -> 244 | I26: 47 | J26: Appart, | K26: 215 | L26: 197 | M26: Cave | N26: 29 | X26: 17 | Y26: DI JORIO Brigitte
A27: 18 | B27: M | C27: Monieur | D27: DI JORIO Marcel | E27: 10 Rue Dumont | F27: 57000 | G27: Metz | H27: =IF(K27+N27+Q27+W27>0,K27+N27+Q27+T27+W27,"") -> 289 | I27: 48 | J27: Appart, | K27: 260 | L27: 198 | M27: Cave | N27: 29 | X27: 18 | Y27: DI JORIO Marcel
A28: 19 | B28: M | C28: Monieur | D28: DI MEGLIO Laurent | E28: 13 rue de l' espoir | F28: 75016 | G28: Paris | H28: =IF(K28+N28+Q28+W28>0,K28+N28+Q28+T28+W28,"") -> 237 | I28: 49 | J28: Appart, | K28: 208 | L28: 199 | M28: Cave | N28: 29 | X28: 19 | Y28: DI MEGLIO Laurent
A29: 20 | B29: M | C29: Monieur | D29: DRAGOTTA Michel | E29: 13 rue de l' espoir | F29: 75016 | G29: Paris | H29: =IF(K29+N29+Q29+W29>0,K29+N29+Q29+T29+W29,"") -> 286 | I29: 50 | J29: Appart, | K29: 257 | L29: 200 | M29: Cave | N29: 29 | X29: 20 | Y29: DRAGOTTA Michel
A30: 21 | B30: M. | C30: Monsieur | D30: DUBOURG Pierre | E30: 14 rue de l' espoir | F30: 75016 | G30: Paris | H30: =IF(K30+N30+Q34+W34>0,K30+N30+Q34+T34+W34,"") -> 323 | I30: 51 | J30: Appart, | K30: 294 | L30: 201 | M30: Cave | N30: 29 | X30: 21 | Y30: DUBOURG Pierre
A31: 22 | B31: Mme | C31: Madame | D31: FIGUERAS Annie | E31: 15 rue de l' espoir | F31: 75016 | G31: Paris | H31: =IF(K31+N31+Q35+W35>0,K31+N31+Q35+T35+W35,"") -> 300 | I31: 52 | J31: Appart, | K31: 271 | L31: 202 | M31: Cave | N31: 29 | X31: 22 | Y31: FIGUERAS Annie
A32: 23 | B32: M | C32: Monieur | D32: FONTANA Georges | E32: 21 rue de lz Caserne Foch | F32: 51000 | G32: Reims | H32: =IF(K32+N32+Q32+W32>0,K32+N32+Q32+T32+W32,"") -> 323 | I32: 53 | J32: Appart, | K32: 294 | L32: 203 | M32: Cave | N32: 29 | X32: 23 | Y32: FONTANA Georges
A33: 24 | B33: M | C33: Monieur | D33: FORGET Valéry | E33: 13 rue de l' espoir | F33: 75016 | G33: Paris | H33: =IF(K33+N33+Q33+W33>0,K33+N33+Q33+T33+W33,"") -> 270 | I33: 54 | J33: Appart, | K33: 241 | L33: 204 | M33: Cave | N33: 29 | X33: 24 | Y33: FORGET Valéry
A34: 25 | B34: Me | C34: Madame | D34: FOURNIER Nicole | E34: 13 rue de l' espoir | F34: 75016 | G34: Paris | H34: =IF(K34+N34+Q34+W34>0,K34+N34+Q34+T34+W34,"") -> 290 | I34: 55 | J34: Appart, | K34: 261 | L34: 205 | M34: Cave | N34: 29 | X34: 25 | Y34: FOURNIER Nicole
A35: 26 | B35: M | C35: Monieur | D35: GARCIA Christophe | E35: 13 rue de l' espoir | F35: 75016 | G35: Paris | H35: =IF(K35+N35+Q35+W35>0,K35+N35+Q35+T35+W35,"") -> 286 | I35: 56 | J35: Appart, | K35: 257 | L35: 206 | M35: Cave | N35: 29 | X35: 26 | Y35: GARCIA Christophe
A36: 27 | B36: M | C36: Monieur | D36: GARRELON Jacques | E36: Rue de Koufra | F36: 92100 | G36: Boulogne-Billancourrt | H36: =IF(K36+N36+Q36+W36>0,K36+N36+Q36+T36+W36,"") -> 280 | I36: 57 | J36: Appart, | K36: 251 | L36: 207 | M36: Cave | N36: 29 | X36: 27 | Y36: GARRELON Jacques
A37: 28 | B37: M | C37: Monsieur | D37: HENRI Paul | E37: 14 rue de l' espoir | F37: 75016 | G37: Paris | H37: 210 | I37: 58 | J37: Appart, | K37: 210 | X37: 28 | Y37: HENRI Paul
A38: 29 | B38: Mme | C38: Madame | D38: ISIDORE Lucienne | E38: 15 rue de l' espoir | F38: 75016 | G38: Paris | H38: 110 | I38: 59 | J38: Appart, | K38: 110 | X38: 29 | Y38: ISIDORE Lucienne
A39: 30 | B39: M | C39: Monsieur | D39: JARGON Emile | E39: 16 rue de l' espoir | F39: 75016 | G39: Paris | H39: =IF(K39+N39+Q39+W39>0,K39+N39+Q39+T39+W39,"") -> 130 | I39: 60 | J39: Appart, | K39: 130 | X39: 30 | Y39: JARGON Emile
A40: 31 | B40: M | C40: Monsieur | D40: LOUISON Albert | E40: 17 rue de l' espoir | F40: 75016 | G40: Paris | H40: 220 | I40: 70 | J40: Apart, | K40: 220 | X40: 31 | Y40: LOUISON Albert
A41: 32 | B41: Mme | C41: Madame | D41: MARTIN Nicole | E41: 30 rue Pasteur | F41: 33200 | G41: Bordeaux | H41: 100 | I41: 71 | J41: Appart, | K41: 100 | X41: 32 | Y41: MARTIN Nicole
A42: 33 | B42: M | C42: Monsieur | D42: ANDUN | E42: 30 rue Pasteur | F42: 33200 | G42: Bordeaux | H42: 180 | I42: 208 | J42: Appart, | K42: 150 | L42: 209 | M42: Cave | N42: 30 | X42: 33 | Y42: ANDUN
A43: 34 | B43: Mme | C43: Madame | D43: AUDIARD | E43: 30 rue Pasteur | F43: 33200 | G43: Bordeaux | H43: 210 | I43: 210 | J43: Appart, | K43: 180 | L43: 211 | M43: Cave | N43: 30 | X43: 34 | Y43: AUDIARD
A44: 35 | B44: M | C44: Monsieur | D44: AVATARD | E44: 3 rue Pasteur | F44: 75016 | G44: Paris | H44: 110 | I44: 212 | J44: Appart, | K44: 80 | L44: 213 | M44: Cave | N44: 30 | X44: 35 | Y44: AVATARD
H101: =IF(K101+N101+Q101+W101>0,K101+N101+Q101+T101+W101,"") -> 
H164: =SUM(H10:H159) -> 10000 | J164: =IF(H164-K164-N164-Q164-T164-W164=0,"","ERREUR") ->  | K164: =SUM(K10:K159) -> 9127 | N164: =SUM(N10:N159) -> 873 | Q164: =SUM(Q10:Q159) -> 0 | T164: =SUM(T10:T159) -> 0 | W164: =SUM(W10:W159) -> 0
B179: 1 | C179: Charges générales
B180: 2 | C180: Charges Bat,A
B181: 3 | C181: Chardes Bât,B
B182: 4 | C182: Ch,4
B183: 5 | C183: Ch,5
B184: 6 | C184: Ch,6
B185: 7 | C185: Ch,7
B186: 8 | C186: Ch,8
B187: 9 | C187: Ch9
B188: 10 | C188: Ch,10
B189: 11 | C189: Ch,11

Sheet F.P.8
D2: A S S E M B L E E G E N E R A L E | K2: Page | L2: 1
F3: du | G3: =IF(A6>0,Liste!C1,"") -> 00:00:00
D4: Résidence Le Paradis; Rue de l' espoir 75016 PARIS
A6: 1 | G6: Par correspondance reçu le
A7: =IF($A6<>0,VLOOKUP($A6,Liste!$A$10:$W$459,3,FALSE),"") -> Monsieur | B7: =IF($A6<>0,VLOOKUP($A6,Liste!$A$10:$W$459,4,FALSE),"") -> ALEXANDRINI André | E7: =IF($A6<>0,VLOOKUP($A6,Liste!$A$10:$W$459,8,FALSE),"") -> 58 | G7: Par visio, audio conférence,,,,
A8: =IF($A6<>0,VLOOKUP($A6,Liste!$A$10:$W$459,5,FALSE),"") -> 15 rue du Trou Perdu | G8: Signature/ Mandataire :
A9: =IF($A6<>0,VLOOKUP($A6,Liste!$A$10:$W$459,6,FALSE),"") -> 33700 | B9: =IF($A6<>0,VLOOKUP($A6,Liste!$A$10:$W$459,7,FALSE),"") -> Mérignac
A10: =IF($A6<>0, "Lot " & VLOOKUP($A6,Liste!$A$10:$W$459,9,FALSE),"") -> Lot 1 | B10: =IF($A6<>0,VLOOKUP($A6,Liste!$A$10:$W$459,10,FALSE),"") -> cave | C10: =IF($A6<>0,VLOOKUP($A6,Liste!$A$10:$W$459,11,FALSE),"") -> 29
A11: =IF($A6<>0,"Lot " & VLOOKUP($A6,Liste!$A$10:$W$459,12,FALSE),"") -> Lot 151 | B11: =IF($A6<>0,VLOOKUP($A6,Liste!$A$10:$W$459,13,FALSE),"") -> Cave | C11: =IF($A6<>0,VLOOKUP($A6,Liste!$A$10:$W$459,14,FALSE),"") -> 29
A12: =IF($A6<>0,"Lot " & VLOOKUP($A6,Liste!$A$10:$W$459,15,FALSE),"") -> Lot | B12: =IF($A6<>0,VLOOKUP($A6,Liste!$A$10:$W$459,16,FALSE),"") -> 0 | C12: =IF($A6<>0,VLOOKUP($A6,Liste!$A$10:$W$459,17,FALSE),"") -> 0 | G12: Arrivé à | H12: après vote de la Résolution N°
A13: =IF($A6<>0,"Lot " & VLOOKUP($A6,Liste!$A$10:$W$459,18,FALSE),"") -> Lot | B13: 0 | C13: =IF($A6<>0,VLOOKUP($A6,Liste!$A$10:$W$459,19,FALSE),"") -> 0 | G13: Départ à | H13: après vote de la Résolution N°
A14: =IF($A6<>0,"Lot " & VLOOKUP($A6,Liste!$A$10:$W$459,21,FALSE),"") -> Lot | B14: =IF($A6<>0,VLOOKUP($A6,Liste!$A$10:$W$459,22,FALSE),"") -> 0 | C14: =IF($A6<>0,VLOOKUP($A6,Liste!$A$10:$W$459,23,FALSE),"") -> 0 | G14: =IF(OR(B7=0,VLOOKUP(A6,Liste!$A$10:'Liste'!$Z$459,26)<>""),"", "Voir autorisation messages électroniques") -> 
A15: =A6+1 -> 2 | G15: Par correspondance reçu le
A16: =IF($A15<>0,VLOOKUP($A15,Liste!$A$10:$W$459,3,FALSE),"") -> Madame | B16: =IF($A15<>0,VLOOKUP($A15,Liste!$A$10:$W$459,4,FALSE),"") -> ANNINOS Henri | E16: =IF($A15<>0,VLOOKUP($A15,Liste!$A$10:$W$459,8,FALSE),"") -> 290 | G16: Par visio, audio conférence,,,,
A17: =IF($A15<>0,VLOOKUP($A15,Liste!$A$10:$W$459,5,FALSE),"") -> 5 rue de la Tour | G17: Signature/ Mandataire :
A18: =IF($A15<>0,VLOOKUP($A15,Liste!$A$10:$W$459,6,FALSE),"") -> 75016 | B18: =IF($A15<>0,VLOOKUP($A15,Liste!$A$10:$W$459,7,FALSE),"") -> Paris
A19: =IF($A15<>0, "Lot " & VLOOKUP($A15,Liste!$A$10:$W$459,9,FALSE),"") -> Lot 2 | B19: =IF($A15<>0,VLOOKUP($A15,Liste!$A$10:$W$459,10,FALSE),"") -> Appart, | C19: =IF($A15<>0,VLOOKUP($A15,Liste!$A$10:$W$459,11,FALSE),"") -> 261
A20: =IF($A15<>0,"Lot " & VLOOKUP($A15,Liste!$A$10:$W$459,12,FALSE),"") -> Lot 152 | B20: =IF($A15<>0,VLOOKUP($A15,Liste!$A$10:$W$459,13,FALSE),"") -> Cave | C20: =IF($A15<>0,VLOOKUP($A15,Liste!$A$10:$W$459,14,FALSE),"") -> 29
A21: =IF($A15<>0,"Lot " & VLOOKUP($A15,Liste!$A$10:$W$459,15,FALSE),"") -> Lot | B21: =IF($A15<>0,VLOOKUP($A15,Liste!$A$10:$W$459,16,FALSE),"") -> 0 | C21: =IF($A15<>0,VLOOKUP($A15,Liste!$A$10:$W$459,17,FALSE),"") -> 0 | G21: Arrivé à | H21: après vote de la Résolution N°
A22: =IF($A15<>0,"Lot " & VLOOKUP($A15,Liste!$A$10:$W$459,18,FALSE),"") -> Lot | B22: 0 | C22: =IF($A15<>0,VLOOKUP($A15,Liste!$A$10:$W$459,19,FALSE),"") -> 0 | G22: Départ à | H22: après vote de la Résolution N°
A23: =IF($A15<>0,"Lot " & VLOOKUP($A15,Liste!$A$10:$W$459,21,FALSE),"") -> Lot | B23: =IF($A15<>0,VLOOKUP($A15,Liste!$A$10:$W$459,22,FALSE),"") -> 0 | C23: =IF($A15<>0,VLOOKUP($A15,Liste!$A$10:$W$459,23,FALSE),"") -> 0 | G23: =IF(OR(B16=0,VLOOKUP(A15,Liste!$A$10:'Liste'!$Z$459,26)<>""),"", "Voir autorisation messages électroniques") -> Voir autorisation messages électroniques
A24: =A15+1 -> 3 | G24: Par correspondance reçu le
A25: =IF($A24<>0,VLOOKUP($A24,Liste!$A$10:$W$459,3,FALSE),"") -> Mr et Mme | B25: =IF($A24<>0,VLOOKUP($A24,Liste!$A$10:$W$459,4,FALSE),"") -> BALDACCHINO Laurence | E25: =IF($A24<>0,VLOOKUP($A24,Liste!$A$10:$W$459,8,FALSE),"") -> 319 | G25: Par visio, audio conférence,,,,
A26: =IF($A24<>0,VLOOKUP($A24,Liste!$A$10:$W$459,5,FALSE),"") -> 13 rue de l' espoir | G26: Signature/ Mandataire :
A27: =IF($A24<>0,VLOOKUP($A24,Liste!$A$10:$W$459,6,FALSE),"") -> 75016 | B27: =IF($A24<>0,VLOOKUP($A24,Liste!$A$10:$W$459,7,FALSE),"") -> Paris
A28: =IF($A24<>0, "Lot " & VLOOKUP($A24,Liste!$A$10:$W$459,9,FALSE),"") -> Lot 3 | B28: =IF($A24<>0,VLOOKUP($A24,Liste!$A$10:$W$459,10,FALSE),"") -> Appart, | C28: =IF($A24<>0,VLOOKUP($A24,Liste!$A$10:$W$459,11,FALSE),"") -> 290
A29: =IF($A24<>0,"Lot " & VLOOKUP($A24,Liste!$A$10:$W$459,12,FALSE),"") -> Lot 153 | B29: =IF($A24<>0,VLOOKUP($A24,Liste!$A$10:$W$459,13,FALSE),"") -> Cave | C29: =IF($A24<>0,VLOOKUP($A24,Liste!$A$10:$W$459,14,FALSE),"") -> 29
A30: =IF($A24<>0,"Lot " & VLOOKUP($A24,Liste!$A$10:$W$459,15,FALSE),"") -> Lot | B30: =IF($A24<>0,VLOOKUP($A24,Liste!$A$10:$W$459,16,FALSE),"") -> 0 | C30: =IF($A24<>0,VLOOKUP($A24,Liste!$A$10:$W$459,17,FALSE),"") -> 0 | G30: Arrivé à | H30: après vote de la Résolution N°
A31: =IF($A24<>0,"Lot " & VLOOKUP($A24,Liste!$A$10:$W$459,18,FALSE),"") -> Lot | B31: 0 | C31: =IF($A24<>0,VLOOKUP($A24,Liste!$A$10:$W$459,19,FALSE),"") -> 0 | G31: Départ à | H31: après vote de la Résolution N°
A32: =IF($A24<>0,"Lot " & VLOOKUP($A24,Liste!$A$10:$W$459,21,FALSE),"") -> Lot | B32: =IF($A24<>0,VLOOKUP($A24,Liste!$A$10:$W$459,22,FALSE),"") -> 0 | C32: =IF($A24<>0,VLOOKUP($A24,Liste!$A$10:$W$459,23,FALSE),"") -> 0 | G32: =IF(OR(B25=0,VLOOKUP(A24,Liste!$A$10:'Liste'!$Z$459,26)<>""),"", "Voir autorisation messages électroniques") -> 
A33: =A24+1 -> 4 | G33: Par correspondance reçu le
A34: =IF($A33<>0,VLOOKUP($A33,Liste!$A$10:$W$459,3,FALSE),"") -> Monsieur | B34: =IF($A33<>0,VLOOKUP($A33,Liste!$A$10:$W$459,4,FALSE),"") -> BANCHET Joseph | E34: =IF($A33<>0,VLOOKUP($A33,Liste!$A$10:$W$459,8,FALSE),"") -> 294 | G34: Par visio, audio conférence,,,,
A35: =IF($A33<>0,VLOOKUP($A33,Liste!$A$10:$W$459,5,FALSE),"") -> 14 rue de l' espoir | G35: Signature/ Mandataire :
A36: =IF($A33<>0,VLOOKUP($A33,Liste!$A$10:$W$459,6,FALSE),"") -> 75016 | B36: =IF($A33<>0,VLOOKUP($A33,Liste!$A$10:$W$459,7,FALSE),"") -> Paris
A37: =IF($A33<>0, "Lot " & VLOOKUP($A33,Liste!$A$10:$W$459,9,FALSE),"") -> Lot 4 | B37: =IF($A33<>0,VLOOKUP($A33,Liste!$A$10:$W$459,10,FALSE),"") -> Appart, | C37: =IF($A33<>0,VLOOKUP($A33,Liste!$A$10:$W$459,11,FALSE),"") -> 265
A38: =IF($A33<>0,"Lot " & VLOOKUP($A33,Liste!$A$10:$W$459,12,FALSE),"") -> Lot 154 | B38: =IF($A33<>0,VLOOKUP($A33,Liste!$A$10:$W$459,13,FALSE),"") -> Cave | C38: =IF($A33<>0,VLOOKUP($A33,Liste!$A$10:$W$459,14,FALSE),"") -> 29
A39: =IF($A33<>0,"Lot " & VLOOKUP($A33,Liste!$A$10:$W$459,15,FALSE),"") -> Lot | B39: =IF($A33<>0,VLOOKUP($A33,Liste!$A$10:$W$459,16,FALSE),"") -> 0 | C39: =IF($A33<>0,VLOOKUP($A33,Liste!$A$10:$W$459,17,FALSE),"") -> 0 | G39: Arrivé à | H39: après vote de la Résolution N°
A40: =IF($A33<>0,"Lot " & VLOOKUP($A33,Liste!$A$10:$W$459,18,FALSE),"") -> Lot | B40: 0 | C40: =IF($A33<>0,VLOOKUP($A33,Liste!$A$10:$W$459,19,FALSE),"") -> 0 | G40: Départ à | H40: après vote de la Résolution N°
A41: =IF($A33<>0,"Lot " & VLOOKUP($A33,Liste!$A$10:$W$459,21,FALSE),"") -> Lot | B41: =IF($A33<>0,VLOOKUP($A33,Liste!$A$10:$W$459,22,FALSE),"") -> 0 | C41: =IF($A33<>0,VLOOKUP($A33,Liste!$A$10:$W$459,23,FALSE),"") -> 0 | G41: =IF(OR(B34=0,VLOOKUP(A33,Liste!$A$10:'Liste'!$Z$459,26)<>""),"", "Voir autorisation messages électroniques") -> Voir autorisation messages électroniques
A42: =A33+1 -> 5 | G42: Par correspondance reçu le
A43: =IF($A42<>0,VLOOKUP($A42,Liste!$A$10:$W$459,3,FALSE),"") -> Madame | B43: =IF($A42<>0,VLOOKUP($A42,Liste!$A$10:$W$459,4,FALSE),"") -> BARDIN Andrée | E43: =IF($A42<>0,VLOOKUP($A42,Liste!$A$10:$W$459,8,FALSE),"") -> 287 | G43: Par visio, audio conférence,,,,
A44: =IF($A42<>0,VLOOKUP($A42,Liste!$A$10:$W$459,5,FALSE),"") -> 12 rue de Caen | G44: Signature/ Mandataire :
A45: =IF($A42<>0,VLOOKUP($A42,Liste!$A$10:$W$459,6,FALSE),"") -> 75016 | B45: =IF($A42<>0,VLOOKUP($A42,Liste!$A$10:$W$459,7,FALSE),"") -> Paris
A46: =IF($A42<>0, "Lot " & VLOOKUP($A42,Liste!$A$10:$W$459,9,FALSE),"") -> Lot 5 | B46: =IF($A42<>0,VLOOKUP($A42,Liste!$A$10:$W$459,10,FALSE),"") -> Appart, | C46: =IF($A42<>0,VLOOKUP($A42,Liste!$A$10:$W$459,11,FALSE),"") -> 258
A47: =IF($A42<>0,"Lot " & VLOOKUP($A42,Liste!$A$10:$W$459,12,FALSE),"") -> Lot 155 | B47: =IF($A42<>0,VLOOKUP($A42,Liste!$A$10:$W$459,13,FALSE),"") -> Cave | C47: =IF($A42<>0,VLOOKUP($A42,Liste!$A$10:$W$459,14,FALSE),"") -> 29
A48: =IF($A42<>0,"Lot " & VLOOKUP($A42,Liste!$A$10:$W$459,15,FALSE),"") -> Lot | B48: =IF($A42<>0,VLOOKUP($A42,Liste!$A$10:$W$459,16,FALSE),"") -> 0 | C48: =IF($A42<>0,VLOOKUP($A42,Liste!$A$10:$W$459,17,FALSE),"") -> 0 | G48: Arrivé à | H48: après vote de la Résolution N°
A49: =IF($A42<>0,"Lot " & VLOOKUP($A42,Liste!$A$10:$W$459,18,FALSE),"") -> Lot | B49: 0 | C49: =IF($A42<>0,VLOOKUP($A42,Liste!$A$10:$W$459,19,FALSE),"") -> 0 | G49: Départ à | H49: après vote de la Résolution N°
A50: =IF($A42<>0,"Lot " & VLOOKUP($A42,Liste!$A$10:$W$459,21,FALSE),"") -> Lot | B50: =IF($A42<>0,VLOOKUP($A42,Liste!$A$10:$W$459,22,FALSE),"") -> 0 | C50: =IF($A42<>0,VLOOKUP($A42,Liste!$A$10:$W$459,23,FALSE),"") -> 0 | G50: =IF(OR(B43=0,VLOOKUP(A42,Liste!$A$10:'Liste'!$Z$459,26)<>""),"", "Voir autorisation messages électroniques") -> Voir autorisation messages électroniques
A51: =A42+1 -> 6 | G51: Par correspondance reçu le
A52: =IF($A51<>0,VLOOKUP($A51,Liste!$A$10:$W$459,3,FALSE),"") -> Mr et Mme | B52: =IF($A51<>0,VLOOKUP($A51,Liste!$A$10:$W$459,4,FALSE),"") -> BARDIN-BENARD Louis | E52: =IF($A51<>0,VLOOKUP($A51,Liste!$A$10:$W$459,8,FALSE),"") -> 257 | G52: Par visio, audio conférence,,,,
A53: =IF($A51<>0,VLOOKUP($A51,Liste!$A$10:$W$459,5,FALSE),"") -> 16 rue de l' espoir | G53: Signature/ Mandataire :
A54: =IF($A51<>0,VLOOKUP($A51,Liste!$A$10:$W$459,6,FALSE),"") -> 75016 | B54: =IF($A51<>0,VLOOKUP($A51,Liste!$A$10:$W$459,7,FALSE),"") -> Paris
A55: =IF($A51<>0, "Lot " & VLOOKUP($A51,Liste!$A$10:$W$459,9,FALSE),"") -> Lot 6 | B55: =IF($A51<>0,VLOOKUP($A51,Liste!$A$10:$W$459,10,FALSE),"") -> Appart, | C55: =IF($A51<>0,VLOOKUP($A51,Liste!$A$10:$W$459,11,FALSE),"") -> 228
A56: =IF($A51<>0,"Lot " & VLOOKUP($A51,Liste!$A$10:$W$459,12,FALSE),"") -> Lot 156 | B56: =IF($A51<>0,VLOOKUP($A51,Liste!$A$10:$W$459,13,FALSE),"") -> Cave | C56: =IF($A51<>0,VLOOKUP($A51,Liste!$A$10:$W$459,14,FALSE),"") -> 29
A57: =IF($A51<>0,"Lot " & VLOOKUP($A51,Liste!$A$10:$W$459,15,FALSE),"") -> Lot | B57: =IF($A51<>0,VLOOKUP($A51,Liste!$A$10:$W$459,16,FALSE),"") -> 0 | C57: =IF($A51<>0,VLOOKUP($A51,Liste!$A$10:$W$459,17,FALSE),"") -> 0 | G57: Arrivé à | H57: après vote de la Résolution N°
A58: =IF($A51<>0,"Lot " & VLOOKUP($A51,Liste!$A$10:$W$459,18,FALSE),"") -> Lot | B58: 0 | C58: =IF($A51<>0,VLOOKUP($A51,Liste!$A$10:$W$459,19,FALSE),"") -> 0 | G58: Départ à | H58: après vote de la Résolution N°
A59: =IF($A51<>0,"Lot " & VLOOKUP($A51,Liste!$A$10:$W$459,21,FALSE),"") -> Lot | B59: =IF($A51<>0,VLOOKUP($A51,Liste!$A$10:$W$459,22,FALSE),"") -> 0 | C59: =IF($A51<>0,VLOOKUP($A51,Liste!$A$10:$W$459,23,FALSE),"") -> 0 | G59: =IF(OR(B52=0,VLOOKUP(A51,Liste!$A$10:'Liste'!$Z$459,26)<>""),"", "Voir autorisation messages électroniques") -> Voir autorisation messages électroniques
A60: =A51+1 -> 7 | G60: Par correspondance reçu le
A61: =IF($A60<>0,VLOOKUP($A60,Liste!$A$10:$W$459,3,FALSE),"") -> Mr et Mme | B61: =IF($A60<>0,VLOOKUP($A60,Liste!$A$10:$W$459,4,FALSE),"") -> BARDOUILLE Hermine | E61: =IF($A60<>0,VLOOKUP($A60,Liste!$A$10:$W$459,8,FALSE),"") -> 371 | G61: Par visio, audio conférence,,,,
A62: =IF($A60<>0,VLOOKUP($A60,Liste!$A$10:$W$459,5,FALSE),"") -> 25 rue du Puit | G62: Signature/ Mandataire :
A63: =IF($A60<>0,VLOOKUP($A60,Liste!$A$10:$W$459,6,FALSE),"") -> 75016 | B63: =IF($A60<>0,VLOOKUP($A60,Liste!$A$10:$W$459,7,FALSE),"") -> Paris
A64: =IF($A60<>0, "Lot " & VLOOKUP($A60,Liste!$A$10:$W$459,9,FALSE),"") -> Lot 7 | B64: =IF($A60<>0,VLOOKUP($A60,Liste!$A$10:$W$459,10,FALSE),"") -> Appart, | C64: =IF($A60<>0,VLOOKUP($A60,Liste!$A$10:$W$459,11,FALSE),"") -> 342
A65: =IF($A60<>0,"Lot " & VLOOKUP($A60,Liste!$A$10:$W$459,12,FALSE),"") -> Lot 157 | B65: =IF($A60<>0,VLOOKUP($A60,Liste!$A$10:$W$459,13,FALSE),"") -> Cave | C65: =IF($A60<>0,VLOOKUP($A60,Liste!$A$10:$W$459,14,FALSE),"") -> 29
A66: =IF($A60<>0,"Lot " & VLOOKUP($A60,Liste!$A$10:$W$459,15,FALSE),"") -> Lot | B66: =IF($A60<>0,VLOOKUP($A60,Liste!$A$10:$W$459,16,FALSE),"") -> 0 | C66: =IF($A60<>0,VLOOKUP($A60,Liste!$A$10:$W$459,17,FALSE),"") -> 0 | G66: Arrivé à | H66: après vote de la Résolution N°
A67: =IF($A60<>0,"Lot " & VLOOKUP($A60,Liste!$A$10:$W$459,18,FALSE),"") -> Lot | B67: 0 | C67: =IF($A60<>0,VLOOKUP($A60,Liste!$A$10:$W$459,19,FALSE),"") -> 0 | G67: Départ à | H67: après vote de la Résolution N°
A68: =IF($A60<>0,"Lot " & VLOOKUP($A60,Liste!$A$10:$W$459,21,FALSE),"") -> Lot | B68: =IF($A60<>0,VLOOKUP($A60,Liste!$A$10:$W$459,22,FALSE),"") -> 0 | C68: =IF($A60<>0,VLOOKUP($A60,Liste!$A$10:$W$459,23,FALSE),"") -> 0 | G68: =IF(OR(B61=0,VLOOKUP(A60,Liste!$A$10:'Liste'!$Z$459,26)<>""),"", "Voir autorisation messages électroniques") -> Voir autorisation messages électroniques
A69: =A60+1 -> 8 | G69: Par correspondance reçu le
A70: =IF($A69<>0,VLOOKUP($A69,Liste!$A$10:$W$459,3,FALSE),"") -> Mr et Mme | B70: =IF($A69<>0,VLOOKUP($A69,Liste!$A$10:$W$459,4,FALSE),"") -> BARDOUILLE Jean Yves | E70: =IF($A69<>0,VLOOKUP($A69,Liste!$A$10:$W$459,8,FALSE),"") -> 569 | G70: Par visio, audio conférence,,,,
A71: =IF($A69<>0,VLOOKUP($A69,Liste!$A$10:$W$459,5,FALSE),"") -> 13 rue de l' espoir | G71: Signature/ Mandataire :
A72: =IF($A69<>0,VLOOKUP($A69,Liste!$A$10:$W$459,6,FALSE),"") -> 75016 | B72: =IF($A69<>0,VLOOKUP($A69,Liste!$A$10:$W$459,7,FALSE),"") -> Paris
A73: =IF($A69<>0, "Lot " & VLOOKUP($A69,Liste!$A$10:$W$459,9,FALSE),"") -> Lot 8 | B73: =IF($A69<>0,VLOOKUP($A69,Liste!$A$10:$W$459,10,FALSE),"") -> Appart, | C73: =IF($A69<>0,VLOOKUP($A69,Liste!$A$10:$W$459,11,FALSE),"") -> 540
A74: =IF($A69<>0,"Lot " & VLOOKUP($A69,Liste!$A$10:$W$459,12,FALSE),"") -> Lot 158 | B74: =IF($A69<>0,VLOOKUP($A69,Liste!$A$10:$W$459,13,FALSE),"") -> Cave | C74: =IF($A69<>0,VLOOKUP($A69,Liste!$A$10:$W$459,14,FALSE),"") -> 29
A75: =IF($A69<>0,"Lot " & VLOOKUP($A69,Liste!$A$10:$W$459,15,FALSE),"") -> Lot | B75: =IF($A69<>0,VLOOKUP($A69,Liste!$A$10:$W$459,16,FALSE),"") -> 0 | C75: =IF($A69<>0,VLOOKUP($A69,Liste!$A$10:$W$459,17,FALSE),"") -> 0 | G75: Arrivé à | H75: après vote de la Résolution N°
A76: =IF($A69<>0,"Lot " & VLOOKUP($A69,Liste!$A$10:$W$459,18,FALSE),"") -> Lot | B76: 0 | C76: =IF($A69<>0,VLOOKUP($A69,Liste!$A$10:$W$459,19,FALSE),"") -> 0 | G76: Départ à | H76: après vote de la Résolution N°
A77: =IF($A69<>0,"Lot " & VLOOKUP($A69,Liste!$A$10:$W$459,21,FALSE),"") -> Lot | B77: =IF($A69<>0,VLOOKUP($A69,Liste!$A$10:$W$459,22,FALSE),"") -> 0 | C77: =IF($A69<>0,VLOOKUP($A69,Liste!$A$10:$W$459,23,FALSE),"") -> 0 | G77: =IF(OR(B70=0,VLOOKUP(A69,Liste!$A$10:'Liste'!$Z$459,26)<>""),"", "Voir autorisation messages électroniques") -> Voir autorisation messages électroniques
D79: A S S E M B L E E G E N E R A L E | K79: Page | L79: =L2+1 -> 2
F80: du | G80: 2019-12-20
D81: Résidence Le Paradis; Rue de l' espoir 75016 PARIS
A83: =A69+1 -> 9 | G83: Par correspondance reçu le
A84: =IF($A83<>0,VLOOKUP($A83,Liste!$A$10:$W$459,3,FALSE),"") -> Mr et Mme | B84: =IF($A83<>0,VLOOKUP($A83,Liste!$A$10:$W$459,4,FALSE),"") -> BAUDINO | E84: =IF($A83<>0,VLOOKUP($A83,Liste!$A$10:$W$459,8,FALSE),"") -> 431 | G84: Par visio, audio conférence,,,,
A85: =IF($A83<>0,VLOOKUP($A83,Liste!$A$10:$W$459,5,FALSE),"") -> 13 rue de l' espoir | G85: Signature/ Mandataire :
A86: =IF($A83<>0,VLOOKUP($A83,Liste!$A$10:$W$459,6,FALSE),"") -> 75016 | B86: =IF($A83<>0,VLOOKUP($A83,Liste!$A$10:$W$459,7,FALSE),"") -> Paris
A87: =IF($A83<>0, "Lot " & VLOOKUP($A83,Liste!$A$10:$W$459,9,FALSE),"") -> Lot 9 | B87: =IF($A83<>0,VLOOKUP($A83,Liste!$A$10:$W$459,10,FALSE),"") -> Appart, | C87: =IF($A83<>0,VLOOKUP($A83,Liste!$A$10:$W$459,11,FALSE),"") -> 402
A88: =IF($A83<>0,"Lot " & VLOOKUP($A83,Liste!$A$10:$W$459,12,FALSE),"") -> Lot 159 | B88: =IF($A83<>0,VLOOKUP($A83,Liste!$A$10:$W$459,13,FALSE),"") -> Cave | C88: =IF($A83<>0,VLOOKUP($A83,Liste!$A$10:$W$459,14,FALSE),"") -> 29
A89: =IF($A83<>0,"Lot " & VLOOKUP($A83,Liste!$A$10:$W$459,15,FALSE),"") -> Lot | B89: =IF($A83<>0,VLOOKUP($A83,Liste!$A$10:$W$459,16,FALSE),"") -> 0 | C89: =IF($A83<>0,VLOOKUP($A83,Liste!$A$10:$W$459,17,FALSE),"") -> 0 | G89: Arrivé à | H89: après vote de la Résolution N°
A90: =IF($A83<>0,"Lot " & VLOOKUP($A83,Liste!$A$10:$W$459,18,FALSE),"") -> Lot | B90: 0 | C90: =IF($A83<>0,VLOOKUP($A83,Liste!$A$10:$W$459,19,FALSE),"") -> 0 | G90: Départ à | H90: après vote de la Résolution N°
A91: =IF($A83<>0,"Lot " & VLOOKUP($A83,Liste!$A$10:$W$459,21,FALSE),"") -> Lot | B91: =IF($A83<>0,VLOOKUP($A83,Liste!$A$10:$W$459,22,FALSE),"") -> 0 | C91: =IF($A83<>0,VLOOKUP($A83,Liste!$A$10:$W$459,23,FALSE),"") -> 0 | G91: =IF(OR(B84=0,VLOOKUP(A83,Liste!$A$10:'Liste'!$Z$459,26)<>""),"", "Voir autorisation messages électroniques") -> Voir autorisation messages électroniques
A92: =A83+1 -> 10 | G92: Par correspondance reçu le
A93: =IF($A92<>0,VLOOKUP($A92,Liste!$A$10:$W$459,3,FALSE),"") -> Mr et Mme | B93: =IF($A92<>0,VLOOKUP($A92,Liste!$A$10:$W$459,4,FALSE),"") -> BAUGUIL André | E93: =IF($A92<>0,VLOOKUP($A92,Liste!$A$10:$W$459,8,FALSE),"") -> 360 | G93: Par visio, audio conférence,,,,
A94: =IF($A92<>0,VLOOKUP($A92,Liste!$A$10:$W$459,5,FALSE),"") -> 13 rue de l' espoir | G94: Signature/ Mandataire :
A95: =IF($A92<>0,VLOOKUP($A92,Liste!$A$10:$W$459,6,FALSE),"") -> 75016 | B95: =IF($A92<>0,VLOOKUP($A92,Liste!$A$10:$W$459,7,FALSE),"") -> Paris
A96: =IF($A92<>0, "Lot " & VLOOKUP($A92,Liste!$A$10:$W$459,9,FALSE),"") -> Lot 10 | B96: =IF($A92<>0,VLOOKUP($A92,Liste!$A$10:$W$459,10,FALSE),"") -> Appart, | C96: =IF($A92<>0,VLOOKUP($A92,Liste!$A$10:$W$459,11,FALSE),"") -> 331
A97: =IF($A92<>0,"Lot " & VLOOKUP($A92,Liste!$A$10:$W$459,12,FALSE),"") -> Lot 160 | B97: =IF($A92<>0,VLOOKUP($A92,Liste!$A$10:$W$459,13,FALSE),"") -> Cave | C97: =IF($A92<>0,VLOOKUP($A92,Liste!$A$10:$W$459,14,FALSE),"") -> 29
A98: =IF($A92<>0,"Lot " & VLOOKUP($A92,Liste!$A$10:$W$459,15,FALSE),"") -> Lot | B98: =IF($A92<>0,VLOOKUP($A92,Liste!$A$10:$W$459,16,FALSE),"") -> 0 | C98: =IF($A92<>0,VLOOKUP($A92,Liste!$A$10:$W$459,17,FALSE),"") -> 0 | G98: Arrivé à | H98: après vote de la Résolution N°
A99: =IF($A92<>0,"Lot " & VLOOKUP($A92,Liste!$A$10:$W$459,18,FALSE),"") -> Lot | B99: 0 | C99: =IF($A92<>0,VLOOKUP($A92,Liste!$A$10:$W$459,19,FALSE),"") -> 0 | G99: Départ à | H99: après vote de la Résolution N°
A100: =IF($A92<>0,"Lot " & VLOOKUP($A92,Liste!$A$10:$W$459,21,FALSE),"") -> Lot | B100: =IF($A92<>0,VLOOKUP($A92,Liste!$A$10:$W$459,22,FALSE),"") -> 0 | C100: =IF($A92<>0,VLOOKUP($A92,Liste!$A$10:$W$459,23,FALSE),"") -> 0 | G100: =IF(OR(B93=0,VLOOKUP(A92,Liste!$A$10:'Liste'!$Z$459,26)<>""),"", "Voir autorisation messages électroniques") -> Voir autorisation messages électroniques
A101: =A92+1 -> 11 | G101: Par correspondance reçu le
A102: =IF($A101<>0,VLOOKUP($A101,Liste!$A$10:$W$459,3,FALSE),"") -> Mr et Mme | B102: =IF($A101<>0,VLOOKUP($A101,Liste!$A$10:$W$459,4,FALSE),"") -> BAUMGARTNER Peter | E102: =IF($A101<>0,VLOOKUP($A101,Liste!$A$10:$W$459,8,FALSE),"") -> 380 | G102: Par visio, audio conférence,,,,
A103: =IF($A101<>0,VLOOKUP($A101,Liste!$A$10:$W$459,5,FALSE),"") -> 13 rue de l' espoir | G103: Signature/ Mandataire :
A104: =IF($A101<>0,VLOOKUP($A101,Liste!$A$10:$W$459,6,FALSE),"") -> 75016 | B104: =IF($A101<>0,VLOOKUP($A101,Liste!$A$10:$W$459,7,FALSE),"") -> Paris
A105: =IF($A101<>0, "Lot " & VLOOKUP($A101,Liste!$A$10:$W$459,9,FALSE),"") -> Lot 11 | B105: =IF($A101<>0,VLOOKUP($A101,Liste!$A$10:$W$459,10,FALSE),"") -> Appart, | C105: =IF($A101<>0,VLOOKUP($A101,Liste!$A$10:$W$459,11,FALSE),"") -> 351
A106: =IF($A101<>0,"Lot " & VLOOKUP($A101,Liste!$A$10:$W$459,12,FALSE),"") -> Lot 161 | B106: =IF($A101<>0,VLOOKUP($A101,Liste!$A$10:$W$459,13,FALSE),"") -> Cave | C106: =IF($A101<>0,VLOOKUP($A101,Liste!$A$10:$W$459,14,FALSE),"") -> 29
A107: =IF($A101<>0,"Lot " & VLOOKUP($A101,Liste!$A$10:$W$459,15,FALSE),"") -> Lot | B107: =IF($A101<>0,VLOOKUP($A101,Liste!$A$10:$W$459,16,FALSE),"") -> 0 | C107: =IF($A101<>0,VLOOKUP($A101,Liste!$A$10:$W$459,17,FALSE),"") -> 0 | G107: Arrivé à | H107: après vote de la Résolution N°
A108: =IF($A101<>0,"Lot " & VLOOKUP($A101,Liste!$A$10:$W$459,18,FALSE),"") -> Lot | B108: 0 | C108: =IF($A101<>0,VLOOKUP($A101,Liste!$A$10:$W$459,19,FALSE),"") -> 0 | G108: Départ à | H108: après vote de la Résolution N°
A109: =IF($A101<>0,"Lot " & VLOOKUP($A101,Liste!$A$10:$W$459,21,FALSE),"") -> Lot | B109: =IF($A101<>0,VLOOKUP($A101,Liste!$A$10:$W$459,22,FALSE),"") -> 0 | C109: =IF($A101<>0,VLOOKUP($A101,Liste!$A$10:$W$459,23,FALSE),"") -> 0 | G109: =IF(OR(B102=0,VLOOKUP(A101,Liste!$A$10:'Liste'!$Z$459,26)<>""),"", "Voir autorisation messages électroniques") -> Voir autorisation messages électroniques
A110: =A101+1 -> 12 | G110: Par correspondance reçu le
A111: =IF($A110<>0,VLOOKUP($A110,Liste!$A$10:$W$459,3,FALSE),"") -> Mr et Mme | B111: =IF($A110<>0,VLOOKUP($A110,Liste!$A$10:$W$459,4,FALSE),"") -> BECH Monique | E111: =IF($A110<>0,VLOOKUP($A110,Liste!$A$10:$W$459,8,FALSE),"") -> 519 | G111: Par visio, audio conférence,,,,
A112: =IF($A110<>0,VLOOKUP($A110,Liste!$A$10:$W$459,5,FALSE),"") -> 22 Rue des Amoureux | G112: Signature/ Mandataire :
A113: =IF($A110<>0,VLOOKUP($A110,Liste!$A$10:$W$459,6,FALSE),"") -> 33200 | B113: =IF($A110<>0,VLOOKUP($A110,Liste!$A$10:$W$459,7,FALSE),"") -> Bordeaux
A114: =IF($A110<>0, "Lot " & VLOOKUP($A110,Liste!$A$10:$W$459,9,FALSE),"") -> Lot 12 | B114: =IF($A110<>0,VLOOKUP($A110,Liste!$A$10:$W$459,10,FALSE),"") -> Appart, | C114: =IF($A110<>0,VLOOKUP($A110,Liste!$A$10:$W$459,11,FALSE),"") -> 490
A115: =IF($A110<>0,"Lot " & VLOOKUP($A110,Liste!$A$10:$W$459,12,FALSE),"") -> Lot 162 | B115: =IF($A110<>0,VLOOKUP($A110,Liste!$A$10:$W$459,13,FALSE),"") -> Cave | C115: =IF($A110<>0,VLOOKUP($A110,Liste!$A$10:$W$459,14,FALSE),"") -> 29
A116: =IF($A110<>0,"Lot " & VLOOKUP($A110,Liste!$A$10:$W$459,15,FALSE),"") -> Lot | B116: =IF($A110<>0,VLOOKUP($A110,Liste!$A$10:$W$459,16,FALSE),"") -> 0 | C116: =IF($A110<>0,VLOOKUP($A110,Liste!$A$10:$W$459,17,FALSE),"") -> 0 | G116: Arrivé à | H116: après vote de la Résolution N°
A117: =IF($A110<>0,"Lot " & VLOOKUP($A110,Liste!$A$10:$W$459,18,FALSE),"") -> Lot | B117: 0 | C117: =IF($A110<>0,VLOOKUP($A110,Liste!$A$10:$W$459,19,FALSE),"") -> 0 | G117: Départ à | H117: après vote de la Résolution N°
A118: =IF($A110<>0,"Lot " & VLOOKUP($A110,Liste!$A$10:$W$459,21,FALSE),"") -> Lot | B118: =IF($A110<>0,VLOOKUP($A110,Liste!$A$10:$W$459,22,FALSE),"") -> 0 | C118: =IF($A110<>0,VLOOKUP($A110,Liste!$A$10:$W$459,23,FALSE),"") -> 0 | G118: =IF(OR(B111=0,VLOOKUP(A110,Liste!$A$10:'Liste'!$Z$459,26)<>""),"", "Voir autorisation messages électroniques") -> Voir autorisation messages électroniques
A119: =A110+1 -> 13 | G119: Par correspondance reçu le
A120: =IF($A119<>0,VLOOKUP($A119,Liste!$A$10:$W$459,3,FALSE),"") -> Monsieur | B120: =IF($A119<>0,VLOOKUP($A119,Liste!$A$10:$W$459,4,FALSE),"") -> BERGET Jean François | E120: =IF($A119<>0,VLOOKUP($A119,Liste!$A$10:$W$459,8,FALSE),"") -> 381 | G120: Par visio, audio conférence,,,,
A121: =IF($A119<>0,VLOOKUP($A119,Liste!$A$10:$W$459,5,FALSE),"") -> 13 rue de l' espoir | G121: Signature/ Mandataire :
A122: =IF($A119<>0,VLOOKUP($A119,Liste!$A$10:$W$459,6,FALSE),"") -> 75016 | B122: =IF($A119<>0,VLOOKUP($A119,Liste!$A$10:$W$459,7,FALSE),"") -> Paris
A123: =IF($A119<>0, "Lot " & VLOOKUP($A119,Liste!$A$10:$W$459,9,FALSE),"") -> Lot 13 | B123: =IF($A119<>0,VLOOKUP($A119,Liste!$A$10:$W$459,10,FALSE),"") -> Appart, | C123: =IF($A119<>0,VLOOKUP($A119,Liste!$A$10:$W$459,11,FALSE),"") -> 352
A124: =IF($A119<>0,"Lot " & VLOOKUP($A119,Liste!$A$10:$W$459,12,FALSE),"") -> Lot 163 | B124: =IF($A119<>0,VLOOKUP($A119,Liste!$A$10:$W$459,13,FALSE),"") -> Cave | C124: =IF($A119<>0,VLOOKUP($A119,Liste!$A$10:$W$459,14,FALSE),"") -> 29
A125: =IF($A119<>0,"Lot " & VLOOKUP($A119,Liste!$A$10:$W$459,15,FALSE),"") -> Lot | B125: =IF($A119<>0,VLOOKUP($A119,Liste!$A$10:$W$459,16,FALSE),"") -> 0 | C125: =IF($A119<>0,VLOOKUP($A119,Liste!$A$10:$W$459,17,FALSE),"") -> 0 | G125: Arrivé à | H125: après vote de la Résolution N°
A126: =IF($A119<>0,"Lot " & VLOOKUP($A119,Liste!$A$10:$W$459,18,FALSE),"") -> Lot | B126: 0 | C126: =IF($A119<>0,VLOOKUP($A119,Liste!$A$10:$W$459,19,FALSE),"") -> 0 | G126: Départ à | H126: après vote de la Résolution N°
A127: =IF($A119<>0,"Lot " & VLOOKUP($A119,Liste!$A$10:$W$459,21,FALSE),"") -> Lot | B127: =IF($A119<>0,VLOOKUP($A119,Liste!$A$10:$W$459,22,FALSE),"") -> 0 | C127: =IF($A119<>0,VLOOKUP($A119,Liste!$A$10:$W$459,23,FALSE),"") -> 0 | G127: =IF(OR(B120=0,VLOOKUP(A119,Liste!$A$10:'Liste'!$Z$459,26)<>""),"", "Voir autorisation messages électroniques") -> Voir autorisation messages électroniques
A128: =A119+1 -> 14 | G128: Par correspondance reçu le
A129: =IF($A128<>0,VLOOKUP($A128,Liste!$A$10:$W$459,3,FALSE),"") -> Monsieur | B129: =IF($A128<>0,VLOOKUP($A128,Liste!$A$10:$W$459,4,FALSE),"") -> BERLIER David | E129: =IF($A128<>0,VLOOKUP($A128,Liste!$A$10:$W$459,8,FALSE),"") -> 391 | G129: Par visio, audio conférence,,,,
A130: =IF($A128<>0,VLOOKUP($A128,Liste!$A$10:$W$459,5,FALSE),"") -> 13 rue de l' espoir | G130: Signature/ Mandataire :
A131: =IF($A128<>0,VLOOKUP($A128,Liste!$A$10:$W$459,6,FALSE),"") -> 75016 | B131: =IF($A128<>0,VLOOKUP($A128,Liste!$A$10:$W$459,7,FALSE),"") -> Paris
A132: =IF($A128<>0, "Lot " & VLOOKUP($A128,Liste!$A$10:$W$459,9,FALSE),"") -> Lot 14 | B132: =IF($A128<>0,VLOOKUP($A128,Liste!$A$10:$W$459,10,FALSE),"") -> Appart, | C132: =IF($A128<>0,VLOOKUP($A128,Liste!$A$10:$W$459,11,FALSE),"") -> 362
A133: =IF($A128<>0,"Lot " & VLOOKUP($A128,Liste!$A$10:$W$459,12,FALSE),"") -> Lot 164 | B133: =IF($A128<>0,VLOOKUP($A128,Liste!$A$10:$W$459,13,FALSE),"") -> Cave | C133: =IF($A128<>0,VLOOKUP($A128,Liste!$A$10:$W$459,14,FALSE),"") -> 29
A134: =IF($A128<>0,"Lot " & VLOOKUP($A128,Liste!$A$10:$W$459,15,FALSE),"") -> Lot | B134: =IF($A128<>0,VLOOKUP($A128,Liste!$A$10:$W$459,16,FALSE),"") -> 0 | C134: =IF($A128<>0,VLOOKUP($A128,Liste!$A$10:$W$459,17,FALSE),"") -> 0 | G134: Arrivé à | H134: après vote de la Résolution N°
A135: =IF($A128<>0,"Lot " & VLOOKUP($A128,Liste!$A$10:$W$459,18,FALSE),"") -> Lot | B135: 0 | C135: =IF($A128<>0,VLOOKUP($A128,Liste!$A$10:$W$459,19,FALSE),"") -> 0 | G135: Départ à | H135: après vote de la Résolution N°
A136: =IF($A128<>0,"Lot " & VLOOKUP($A128,Liste!$A$10:$W$459,21,FALSE),"") -> Lot | B136: =IF($A128<>0,VLOOKUP($A128,Liste!$A$10:$W$459,22,FALSE),"") -> 0 | C136: =IF($A128<>0,VLOOKUP($A128,Liste!$A$10:$W$459,23,FALSE),"") -> 0 | G136: =IF(OR(B129=0,VLOOKUP(A128,Liste!$A$10:'Liste'!$Z$459,26)<>""),"", "Voir autorisation messages électroniques") -> Voir autorisation messages électroniques
A137: =A128+1 -> 15 | G137: Par correspondance reçu le
A138: =IF($A137<>0,VLOOKUP($A137,Liste!$A$10:$W$459,3,FALSE),"") -> Mmadame | B138: =IF($A137<>0,VLOOKUP($A137,Liste!$A$10:$W$459,4,FALSE),"") -> BESSON Gabriel | E138: =IF($A137<>0,VLOOKUP($A137,Liste!$A$10:$W$459,8,FALSE),"") -> 380 | G138: Par visio, audio conférence,,,,
A139: =IF($A137<>0,VLOOKUP($A137,Liste!$A$10:$W$459,5,FALSE),"") -> 13 rue de l' espoir | G139: Signature/ Mandataire :
A140: =IF($A137<>0,VLOOKUP($A137,Liste!$A$10:$W$459,6,FALSE),"") -> 75016 | B140: =IF($A137<>0,VLOOKUP($A137,Liste!$A$10:$W$459,7,FALSE),"") -> Paris
A141: =IF($A137<>0, "Lot " & VLOOKUP($A137,Liste!$A$10:$W$459,9,FALSE),"") -> Lot 15 | B141: =IF($A137<>0,VLOOKUP($A137,Liste!$A$10:$W$459,10,FALSE),"") -> Appart, | C141: =IF($A137<>0,VLOOKUP($A137,Liste!$A$10:$W$459,11,FALSE),"") -> 351
A142: =IF($A137<>0,"Lot " & VLOOKUP($A137,Liste!$A$10:$W$459,12,FALSE),"") -> Lot 165 | B142: =IF($A137<>0,VLOOKUP($A137,Liste!$A$10:$W$459,13,FALSE),"") -> Cave | C142: =IF($A137<>0,VLOOKUP($A137,Liste!$A$10:$W$459,14,FALSE),"") -> 29
A143: =IF($A137<>0,"Lot " & VLOOKUP($A137,Liste!$A$10:$W$459,15,FALSE),"") -> Lot | B143: =IF($A137<>0,VLOOKUP($A137,Liste!$A$10:$W$459,16,FALSE),"") -> 0 | C143: =IF($A137<>0,VLOOKUP($A137,Liste!$A$10:$W$459,17,FALSE),"") -> 0 | G143: Arrivé à | H143: après vote de la Résolution N°
A144: =IF($A137<>0,"Lot " & VLOOKUP($A137,Liste!$A$10:$W$459,18,FALSE),"") -> Lot | B144: 0 | C144: =IF($A137<>0,VLOOKUP($A137,Liste!$A$10:$W$459,19,FALSE),"") -> 0 | G144: Départ à | H144: après vote de la Résolution N°
A145: =IF($A137<>0,"Lot " & VLOOKUP($A137,Liste!$A$10:$W$459,21,FALSE),"") -> Lot | B145: =IF($A137<>0,VLOOKUP($A137,Liste!$A$10:$W$459,22,FALSE),"") -> 0 | C145: =IF($A137<>0,VLOOKUP($A137,Liste!$A$10:$W$459,23,FALSE),"") -> 0 | G145: =IF(OR(B138=0,VLOOKUP(A137,Liste!$A$10:'Liste'!$Z$459,26)<>""),"", "Voir autorisation messages électroniques") -> Voir autorisation messages électroniques
A146: =A137+1 -> 16 | G146: Par correspondance reçu le
A147: =IF($A146<>0,VLOOKUP($A146,Liste!$A$10:$W$459,3,FALSE),"") -> Monieur | B147: =IF($A146<>0,VLOOKUP($A146,Liste!$A$10:$W$459,4,FALSE),"") -> DENIS Jacques | E147: =IF($A146<>0,VLOOKUP($A146,Liste!$A$10:$W$459,8,FALSE),"") -> 315 | G147: Par visio, audio conférence,,,,
A148: =IF($A146<>0,VLOOKUP($A146,Liste!$A$10:$W$459,5,FALSE),"") -> 13 rue de l' espoir | G148: Signature/ Mandataire :
A149: =IF($A146<>0,VLOOKUP($A146,Liste!$A$10:$W$459,6,FALSE),"") -> 75016 | B149: =IF($A146<>0,VLOOKUP($A146,Liste!$A$10:$W$459,7,FALSE),"") -> Paris
A150: =IF($A146<>0, "Lot " & VLOOKUP($A146,Liste!$A$10:$W$459,9,FALSE),"") -> Lot 46 | B150: =IF($A146<>0,VLOOKUP($A146,Liste!$A$10:$W$459,10,FALSE),"") -> Appart, | C150: =IF($A146<>0,VLOOKUP($A146,Liste!$A$10:$W$459,11,FALSE),"") -> 286
A151: =IF($A146<>0,"Lot " & VLOOKUP($A146,Liste!$A$10:$W$459,12,FALSE),"") -> Lot 196 | B151: =IF($A146<>0,VLOOKUP($A146,Liste!$A$10:$W$459,13,FALSE),"") -> Cave | C151: =IF($A146<>0,VLOOKUP($A146,Liste!$A$10:$W$459,14,FALSE),"") -> 29
A152: =IF($A146<>0,"Lot " & VLOOKUP($A146,Liste!$A$10:$W$459,15,FALSE),"") -> Lot | B152: =IF($A146<>0,VLOOKUP($A146,Liste!$A$10:$W$459,16,FALSE),"") -> 0 | C152: =IF($A146<>0,VLOOKUP($A146,Liste!$A$10:$W$459,17,FALSE),"") -> 0 | G152: Arrivé à | H152: après vote de la Résolution N°
A153: =IF($A146<>0,"Lot " & VLOOKUP($A146,Liste!$A$10:$W$459,18,FALSE),"") -> Lot | B153: 0 | C153: =IF($A146<>0,VLOOKUP($A146,Liste!$A$10:$W$459,19,FALSE),"") -> 0 | G153: Départ à | H153: après vote de la Résolution N°
A154: =IF($A146<>0,"Lot " & VLOOKUP($A146,Liste!$A$10:$W$459,21,FALSE),"") -> Lot | B154: =IF($A146<>0,VLOOKUP($A146,Liste!$A$10:$W$459,22,FALSE),"") -> 0 | C154: =IF($A146<>0,VLOOKUP($A146,Liste!$A$10:$W$459,23,FALSE),"") -> 0 | G154: =IF(OR(B147=0,VLOOKUP(A146,Liste!$A$10:'Liste'!$Z$459,26)<>""),"", "Voir autorisation messages électroniques") -> Voir autorisation messages électroniques
D156: A S S E M B L E E G E N E R A L E | K156: Page | L156: =L79+1 -> 3
F157: du | G157: 2019-12-20
D158: Résidence Le Paradis; Rue de l' espoir 75016 PARIS
A160: =A146+1 -> 17 | G160: Par correspondance reçu le
A161: =IF($A160<>0,VLOOKUP($A160,Liste!$A$10:$W$459,3,FALSE),"") -> Madame | B161: =IF($A160<>0,VLOOKUP($A160,Liste!$A$10:$W$459,4,FALSE),"") -> DI JORIO Brigitte | E161: =IF($A160<>0,VLOOKUP($A160,Liste!$A$10:$W$459,8,FALSE),"") -> 244 | G161: Par visio, audio conférence,,,,
A162: =IF($A160<>0,VLOOKUP($A160,Liste!$A$10:$W$459,5,FALSE),"") -> 13 rue de l' espoir | G162: Signature/ Mandataire :
A163: =IF($A160<>0,VLOOKUP($A160,Liste!$A$10:$W$459,6,FALSE),"") -> 75016 | B163: =IF($A160<>0,VLOOKUP($A160,Liste!$A$10:$W$459,7,FALSE),"") -> Paris
A164: =IF($A160<>0, "Lot " & VLOOKUP($A160,Liste!$A$10:$W$459,9,FALSE),"") -> Lot 47 | B164: =IF($A160<>0,VLOOKUP($A160,Liste!$A$10:$W$459,10,FALSE),"") -> Appart, | C164: =IF($A160<>0,VLOOKUP($A160,Liste!$A$10:$W$459,11,FALSE),"") -> 215
A165: =IF($A160<>0,"Lot " & VLOOKUP($A160,Liste!$A$10:$W$459,12,FALSE),"") -> Lot 197 | B165: =IF($A160<>0,VLOOKUP($A160,Liste!$A$10:$W$459,13,FALSE),"") -> Cave | C165: =IF($A160<>0,VLOOKUP($A160,Liste!$A$10:$W$459,14,FALSE),"") -> 29
A166: =IF($A160<>0,"Lot " & VLOOKUP($A160,Liste!$A$10:$W$459,15,FALSE),"") -> Lot | B166: =IF($A160<>0,VLOOKUP($A160,Liste!$A$10:$W$459,16,FALSE),"") -> 0 | C166: =IF($A160<>0,VLOOKUP($A160,Liste!$A$10:$W$459,17,FALSE),"") -> 0 | G166: Arrivé à | H166: après vote de la Résolution N°
A167: =IF($A160<>0,"Lot " & VLOOKUP($A160,Liste!$A$10:$W$459,18,FALSE),"") -> Lot | B167: 0 | C167: =IF($A160<>0,VLOOKUP($A160,Liste!$A$10:$W$459,19,FALSE),"") -> 0 | G167: Départ à | H167: après vote de la Résolution N°
A168: =IF($A160<>0,"Lot " & VLOOKUP($A160,Liste!$A$10:$W$459,21,FALSE),"") -> Lot | B168: =IF($A160<>0,VLOOKUP($A160,Liste!$A$10:$W$459,22,FALSE),"") -> 0 | C168: =IF($A160<>0,VLOOKUP($A160,Liste!$A$10:$W$459,23,FALSE),"") -> 0 | G168: =IF(OR(B161=0,VLOOKUP(A160,Liste!$A$10:'Liste'!$Z$459,26)<>""),"", "Voir autorisation messages électroniques") -> Voir autorisation messages électroniques
A169: =A160+1 -> 18 | G169: Par correspondance reçu le
A170: =IF($A169<>0,VLOOKUP($A169,Liste!$A$10:$W$459,3,FALSE),"") -> Monieur | B170: =IF($A169<>0,VLOOKUP($A169,Liste!$A$10:$W$459,4,FALSE),"") -> DI JORIO Marcel | E170: =IF($A169<>0,VLOOKUP($A169,Liste!$A$10:$W$459,8,FALSE),"") -> 289 | G170: Par visio, audio conférence,,,,
A171: =IF($A169<>0,VLOOKUP($A169,Liste!$A$10:$W$459,5,FALSE),"") -> 10 Rue Dumont | G171: Signature/ Mandataire :
A172: =IF($A169<>0,VLOOKUP($A169,Liste!$A$10:$W$459,6,FALSE),"") -> 57000 | B172: =IF($A169<>0,VLOOKUP($A169,Liste!$A$10:$W$459,7,FALSE),"") -> Metz
A173: =IF($A169<>0, "Lot " & VLOOKUP($A169,Liste!$A$10:$W$459,9,FALSE),"") -> Lot 48 | B173: =IF($A169<>0,VLOOKUP($A169,Liste!$A$10:$W$459,10,FALSE),"") -> Appart, | C173: =IF($A169<>0,VLOOKUP($A169,Liste!$A$10:$W$459,11,FALSE),"") -> 260
A174: =IF($A169<>0,"Lot " & VLOOKUP($A169,Liste!$A$10:$W$459,12,FALSE),"") -> Lot 198 | B174: =IF($A169<>0,VLOOKUP($A169,Liste!$A$10:$W$459,13,FALSE),"") -> Cave | C174: =IF($A169<>0,VLOOKUP($A169,Liste!$A$10:$W$459,14,FALSE),"") -> 29
A175: =IF($A169<>0,"Lot " & VLOOKUP($A169,Liste!$A$10:$W$459,15,FALSE),"") -> Lot | B175: =IF($A169<>0,VLOOKUP($A169,Liste!$A$10:$W$459,16,FALSE),"") -> 0 | C175: =IF($A169<>0,VLOOKUP($A169,Liste!$A$10:$W$459,17,FALSE),"") -> 0 | G175: Arrivé à | H175: après vote de la Résolution N°
A176: =IF($A169<>0,"Lot " & VLOOKUP($A169,Liste!$A$10:$W$459,18,FALSE),"") -> Lot | B176: 0 | C176: =IF($A169<>0,VLOOKUP($A169,Liste!$A$10:$W$459,19,FALSE),"") -> 0 | G176: Départ à | H176: après vote de la Résolution N°
A177: =IF($A169<>0,"Lot " & VLOOKUP($A169,Liste!$A$10:$W$459,21,FALSE),"") -> Lot | B177: =IF($A169<>0,VLOOKUP($A169,Liste!$A$10:$W$459,22,FALSE),"") -> 0 | C177: =IF($A169<>0,VLOOKUP($A169,Liste!$A$10:$W$459,23,FALSE),"") -> 0 | G177: =IF(OR(B170=0,VLOOKUP(A169,Liste!$A$10:'Liste'!$Z$459,26)<>""),"", "Voir autorisation messages électroniques") -> Voir autorisation messages électroniques
A178: =A169+1 -> 19 | G178: Par correspondance reçu le
A179: =IF($A178<>0,VLOOKUP($A178,Liste!$A$10:$W$459,3,FALSE),"") -> Monieur | B179: =IF($A178<>0,VLOOKUP($A178,Liste!$A$10:$W$459,4,FALSE),"") -> DI MEGLIO Laurent | E179: =IF($A178<>0,VLOOKUP($A178,Liste!$A$10:$W$459,8,FALSE),"") -> 237 | G179: Par visio, audio conférence,,,,
A180: =IF($A178<>0,VLOOKUP($A178,Liste!$A$10:$W$459,5,FALSE),"") -> 13 rue de l' espoir | G180: Signature/ Mandataire :
A181: =IF($A178<>0,VLOOKUP($A178,Liste!$A$10:$W$459,6,FALSE),"") -> 75016 | B181: =IF($A178<>0,VLOOKUP($A178,Liste!$A$10:$W$459,7,FALSE),"") -> Paris
A182: =IF($A178<>0, "Lot " & VLOOKUP($A178,Liste!$A$10:$W$459,9,FALSE),"") -> Lot 49 | B182: =IF($A178<>0,VLOOKUP($A178,Liste!$A$10:$W$459,10,FALSE),"") -> Appart, | C182: =IF($A178<>0,VLOOKUP($A178,Liste!$A$10:$W$459,11,FALSE),"") -> 208
A183: =IF($A178<>0,"Lot " & VLOOKUP($A178,Liste!$A$10:$W$459,12,FALSE),"") -> Lot 199 | B183: =IF($A178<>0,VLOOKUP($A178,Liste!$A$10:$W$459,13,FALSE),"") -> Cave | C183: =IF($A178<>0,VLOOKUP($A178,Liste!$A$10:$W$459,14,FALSE),"") -> 29
A184: =IF($A178<>0,"Lot " & VLOOKUP($A178,Liste!$A$10:$W$459,15,FALSE),"") -> Lot | B184: =IF($A178<>0,VLOOKUP($A178,Liste!$A$10:$W$459,16,FALSE),"") -> 0 | C184: =IF($A178<>0,VLOOKUP($A178,Liste!$A$10:$W$459,17,FALSE),"") -> 0 | G184: Arrivé à | H184: après vote de la Résolution N°
A185: =IF($A178<>0,"Lot " & VLOOKUP($A178,Liste!$A$10:$W$459,18,FALSE),"") -> Lot | B185: 0 | C185: =IF($A178<>0,VLOOKUP($A178,Liste!$A$10:$W$459,19,FALSE),"") -> 0 | G185: Départ à | H185: après vote de la Résolution N°
A186: =IF($A178<>0,"Lot " & VLOOKUP($A178,Liste!$A$10:$W$459,21,FALSE),"") -> Lot | B186: =IF($A178<>0,VLOOKUP($A178,Liste!$A$10:$W$459,22,FALSE),"") -> 0 | C186: =IF($A178<>0,VLOOKUP($A178,Liste!$A$10:$W$459,23,FALSE),"") -> 0 | G186: =IF(OR(B179=0,VLOOKUP(A178,Liste!$A$10:'Liste'!$Z$459,26)<>""),"", "Voir autorisation messages électroniques") -> Voir autorisation messages électroniques
A187: =A178+1 -> 20 | G187: Par correspondance reçu le
A188: =IF($A187<>0,VLOOKUP($A187,Liste!$A$10:$W$459,3,FALSE),"") -> Monieur | B188: =IF($A187<>0,VLOOKUP($A187,Liste!$A$10:$W$459,4,FALSE),"") -> DRAGOTTA Michel | E188: =IF($A187<>0,VLOOKUP($A187,Liste!$A$10:$W$459,8,FALSE),"") -> 286 | G188: Par visio, audio conférence,,,,
A189: =IF($A187<>0,VLOOKUP($A187,Liste!$A$10:$W$459,5,FALSE),"") -> 13 rue de l' espoir | G189: Signature/ Mandataire :
A190: =IF($A187<>0,VLOOKUP($A187,Liste!$A$10:$W$459,6,FALSE),"") -> 75016 | B190: =IF($A187<>0,VLOOKUP($A187,Liste!$A$10:$W$459,7,FALSE),"") -> Paris
A191: =IF($A187<>0, "Lot " & VLOOKUP($A187,Liste!$A$10:$W$459,9,FALSE),"") -> Lot 50 | B191: =IF($A187<>0,VLOOKUP($A187,Liste!$A$10:$W$459,10,FALSE),"") -> Appart, | C191: =IF($A187<>0,VLOOKUP($A187,Liste!$A$10:$W$459,11,FALSE),"") -> 257
A192: =IF($A187<>0,"Lot " & VLOOKUP($A187,Liste!$A$10:$W$459,12,FALSE),"") -> Lot 200 | B192: =IF($A187<>0,VLOOKUP($A187,Liste!$A$10:$W$459,13,FALSE),"") -> Cave | C192: =IF($A187<>0,VLOOKUP($A187,Liste!$A$10:$W$459,14,FALSE),"") -> 29
A193: =IF($A187<>0,"Lot " & VLOOKUP($A187,Liste!$A$10:$W$459,15,FALSE),"") -> Lot | B193: =IF($A187<>0,VLOOKUP($A187,Liste!$A$10:$W$459,16,FALSE),"") -> 0 | C193: =IF($A187<>0,VLOOKUP($A187,Liste!$A$10:$W$459,17,FALSE),"") -> 0 | G193: Arrivé à | H193: après vote de la Résolution N°
A194: =IF($A187<>0,"Lot " & VLOOKUP($A187,Liste!$A$10:$W$459,18,FALSE),"") -> Lot | B194: 0 | C194: =IF($A187<>0,VLOOKUP($A187,Liste!$A$10:$W$459,19,FALSE),"") -> 0 | G194: Départ à | H194: après vote de la Résolution N°
A195: =IF($A187<>0,"Lot " & VLOOKUP($A187,Liste!$A$10:$W$459,21,FALSE),"") -> Lot | B195: =IF($A187<>0,VLOOKUP($A187,Liste!$A$10:$W$459,22,FALSE),"") -> 0 | C195: =IF($A187<>0,VLOOKUP($A187,Liste!$A$10:$W$459,23,FALSE),"") -> 0 | G195: =IF(OR(B188=0,VLOOKUP(A187,Liste!$A$10:'Liste'!$Z$459,26)<>""),"", "Voir autorisation messages électroniques") -> Voir autorisation messages électroniques
A196: =A187+1 -> 21 | G196: Par correspondance reçu le
A197: =IF($A196<>0,VLOOKUP($A196,Liste!$A$10:$W$459,3,FALSE),"") -> Monsieur | B197: =IF($A196<>0,VLOOKUP($A196,Liste!$A$10:$W$459,4,FALSE),"") -> DUBOURG Pierre | E197: =IF($A196<>0,VLOOKUP($A196,Liste!$A$10:$W$459,8,FALSE),"") -> 323 | G197: Par visio, audio conférence,,,,
A198: =IF($A196<>0,VLOOKUP($A196,Liste!$A$10:$W$459,5,FALSE),"") -> 14 rue de l' espoir | G198: Signature/ Mandataire :
A199: =IF($A196<>0,VLOOKUP($A196,Liste!$A$10:$W$459,6,FALSE),"") -> 75016 | B199: =IF($A196<>0,VLOOKUP($A196,Liste!$A$10:$W$459,7,FALSE),"") -> Paris
A200: =IF($A196<>0, "Lot " & VLOOKUP($A196,Liste!$A$10:$W$459,9,FALSE),"") -> Lot 51 | B200: =IF($A196<>0,VLOOKUP($A196,Liste!$A$10:$W$459,10,FALSE),"") -> Appart, | C200: =IF($A196<>0,VLOOKUP($A196,Liste!$A$10:$W$459,11,FALSE),"") -> 294
A201: =IF($A196<>0,"Lot " & VLOOKUP($A196,Liste!$A$10:$W$459,12,FALSE),"") -> Lot 201 | B201: =IF($A196<>0,VLOOKUP($A196,Liste!$A$10:$W$459,13,FALSE),"") -> Cave | C201: =IF($A196<>0,VLOOKUP($A196,Liste!$A$10:$W$459,14,FALSE),"") -> 29
A202: =IF($A196<>0,"Lot " & VLOOKUP($A196,Liste!$A$10:$W$459,15,FALSE),"") -> Lot | B202: =IF($A196<>0,VLOOKUP($A196,Liste!$A$10:$W$459,16,FALSE),"") -> 0 | C202: =IF($A196<>0,VLOOKUP($A196,Liste!$A$10:$W$459,17,FALSE),"") -> 0 | G202: Arrivé à | H202: après vote de la Résolution N°
A203: =IF($A196<>0,"Lot " & VLOOKUP($A196,Liste!$A$10:$W$459,18,FALSE),"") -> Lot | B203: 0 | C203: =IF($A196<>0,VLOOKUP($A196,Liste!$A$10:$W$459,19,FALSE),"") -> 0 | G203: Départ à | H203: après vote de la Résolution N°
A204: =IF($A196<>0,"Lot " & VLOOKUP($A196,Liste!$A$10:$W$459,21,FALSE),"") -> Lot | B204: =IF($A196<>0,VLOOKUP($A196,Liste!$A$10:$W$459,22,FALSE),"") -> 0 | C204: =IF($A196<>0,VLOOKUP($A196,Liste!$A$10:$W$459,23,FALSE),"") -> 0 | G204: =IF(OR(B197=0,VLOOKUP(A196,Liste!$A$10:'Liste'!$Z$459,26)<>""),"", "Voir autorisation messages électroniques") -> Voir autorisation messages électroniques
A205: =A196+1 -> 22 | G205: Par correspondance reçu le
A206: =IF($A205<>0,VLOOKUP($A205,Liste!$A$10:$W$459,3,FALSE),"") -> Madame | B206: =IF($A205<>0,VLOOKUP($A205,Liste!$A$10:$W$459,4,FALSE),"") -> FIGUERAS Annie | E206: =IF($A205<>0,VLOOKUP($A205,Liste!$A$10:$W$459,8,FALSE),"") -> 300 | G206: Par visio, audio conférence,,,,
... 1207 more rows

Sheet VPC
L2: VOTES PAR CORRESPONDANCE.
L3: TRI PAR QUESTION
L4: Collage spécial des valeurs dans feuilles de votes
A5: Question | B5: Objet | C5: CLES | D5: N°Copros | E5: NOMS | F5: POUR | G5: CONTRE | H5: ABBST | I5: VERIF
A6: 1 | B6: =IF(A6>0,VLOOKUP(A6,Liste!$B$179 : Liste!$C$189,2),"") -> Charges générales | C6: 1 | D6: 15 | E6: =IF(D6>0,VLOOKUP(D6,Liste!$A$10:$D$163,4),"") -> BESSON Gabriel | H6: 1 | I6: =IF(AND(D6>0,F6+G6+H6=0),"EN ATTENTE",IF(F6+G6+H6>1,"ERREUR","")) -> 
A7: 2 | B7: =IF(A7>0,VLOOKUP(A7,Liste!$B$179 : Liste!$C$189,2),"") -> Charges Bat,A | C7: 2 | D7: 15 | E7: =IF(D7>0,VLOOKUP(D7,Liste!$A$10:$D$163,4),"") -> BESSON Gabriel | H7: 1
A8: 3 | B8: =IF(A8>0,VLOOKUP(A8,Liste!$B$179 : Liste!$C$189,2),"") -> Chardes Bât,B | C8: 3 | D8: 15 | E8: =IF(D8>0,VLOOKUP(D8,Liste!$A$10:$D$163,4),"") -> BESSON Gabriel | H8: 1
A9: 4 | B9: =IF(A9>0,VLOOKUP(A9,Liste!$B$179 : Liste!$C$189,2),"") -> Ch,4 | C9: 1 | D9: 15 | E9: =IF(D9>0,VLOOKUP(D9,Liste!$A$10:$D$163,4),"") -> BESSON Gabriel | H9: 1
A10: 5 | B10: =IF(A10>0,VLOOKUP(A10,Liste!$B$179 : Liste!$C$189,2),"") -> Ch,5 | C10: 1 | D10: 15 | E10: =IF(D10>0,VLOOKUP(D10,Liste!$A$10:$D$163,4),"") -> BESSON Gabriel | H10: 1
A11: 1 | B11: =IF(A11>0,VLOOKUP(A11,Liste!$B$179 : Liste!$C$189,2),"") -> Charges générales | C11: 1 | D11: 14 | E11: =IF(D11>0,VLOOKUP(D11,Liste!$A$10:$D$163,4),"") -> BERLIER David | F11: 1
A12: 2 | B12: =IF(A12>0,VLOOKUP(A12,Liste!$B$179 : Liste!$C$189,2),"") -> Charges Bat,A | C12: 2 | D12: 14 | E12: =IF(D12>0,VLOOKUP(D12,Liste!$A$10:$D$163,4),"") -> BERLIER David | F12: 1
A13: 3 | B13: =IF(A13>0,VLOOKUP(A13,Liste!$B$179 : Liste!$C$189,2),"") -> Chardes Bât,B | C13: 3 | D13: 14 | E13: =IF(D13>0,VLOOKUP(D13,Liste!$A$10:$D$163,4),"") -> BERLIER David | F13: 1
A14: 4 | B14: =IF(A14>0,VLOOKUP(A14,Liste!$B$179 : Liste!$C$189,2),"") -> Ch,4 | C14: 1 | D14: 14 | E14: =IF(D14>0,VLOOKUP(D14,Liste!$A$10:$D$163,4),"") -> BERLIER David | F14: 1
A15: 5 | B15: =IF(A15>0,VLOOKUP(A15,Liste!$B$179 : Liste!$C$189,2),"") -> Ch,5 | C15: 1 | D15: 14 | E15: =IF(D15>0,VLOOKUP(D15,Liste!$A$10:$D$163,4),"") -> BERLIER David | F15: 1
A16: 1 | B16: =IF(A16>0,VLOOKUP(A16,Liste!$B$179 : Liste!$C$189,2),"") -> Charges générales | C16: 1 | D16: 18 | E16: =IF(D16>0,VLOOKUP(D16,Liste!$A$10:$D$163,4),"") -> DI JORIO Marcel | H16: 1
A17: 2 | B17: =IF(A17>0,VLOOKUP(A17,Liste!$B$179 : Liste!$C$189,2),"") -> Charges Bat,A | C17: 2 | D17: 18 | E17: =IF(D17>0,VLOOKUP(D17,Liste!$A$10:$D$163,4),"") -> DI JORIO Marcel | H17: 1
A18: 3 | B18: =IF(A18>0,VLOOKUP(A18,Liste!$B$179 : Liste!$C$189,2),"") -> Chardes Bât,B | C18: 3 | D18: 18 | E18: =IF(D18>0,VLOOKUP(D18,Liste!$A$10:$D$163,4),"") -> DI JORIO Marcel | H18: 1
A19: 4 | B19: =IF(A19>0,VLOOKUP(A19,Liste!$B$179 : Liste!$C$189,2),"") -> Ch,4 | C19: 1 | D19: 18 | E19: =IF(D19>0,VLOOKUP(D19,Liste!$A$10:$D$163,4),"") -> DI JORIO Marcel | H19: 1
A20: 5 | B20: =IF(A20>0,VLOOKUP(A20,Liste!$B$179 : Liste!$C$189,2),"") -> Ch,5 | C20: 1 | D20: 18 | E20: DI JORIO Marcel | H20: 1
A21: 1 | B21: =IF(A21>0,VLOOKUP(A21,Liste!$B$179 : Liste!$C$189,2),"") -> Charges générales | C21: 1 | D21: 26 | E21: =IF(D21>0,VLOOKUP(D21,Liste!$A$10:$D$163,4),"") -> GARCIA Christophe | F21: 1
A22: 2 | B22: =IF(A22>0,VLOOKUP(A22,Liste!$B$179 : Liste!$C$189,2),"") -> Charges Bat,A | C22: 2 | D22: 26 | E22: =IF(D22>0,VLOOKUP(D22,Liste!$A$10:$D$163,4),"") -> GARCIA Christophe | F22: 1
A23: 3 | B23: =IF(A23>0,VLOOKUP(A23,Liste!$B$179 : Liste!$C$189,2),"") -> Chardes Bât,B | C23: 3 | D23: 26 | E23: =IF(D23>0,VLOOKUP(D23,Liste!$A$10:$D$163,4),"") -> GARCIA Christophe | F23: 1
A24: 4 | B24: =IF(A24>0,VLOOKUP(A24,Liste!$B$179 : Liste!$C$189,2),"") -> Ch,4 | C24: 1 | D24: 26 | E24: =IF(D24>0,VLOOKUP(D24,Liste!$A$10:$D$163,4),"") -> GARCIA Christophe | F24: 1
A25: 5 | B25: =IF(A25>0,VLOOKUP(A25,Liste!$B$179 : Liste!$C$189,2),"") -> Ch,5 | C25: 3 | D25: 26 | E25: =IF(D25>0,VLOOKUP(D25,Liste!$A$10:$D$163,4),"") -> GARCIA Christophe | F25: 1
A26: 1 | B26: =IF(A26>0,VLOOKUP(A26,Liste!$B$179 : Liste!$C$189,2),"") -> Charges générales | C26: 1 | D26: 4 | E26: =IF(D26>0,VLOOKUP(D26,Liste!$A$10:$D$163,4),"") -> BANCHET Joseph | G26: 1
A27: 2 | B27: =IF(A27>0,VLOOKUP(A27,Liste!$B$179 : Liste!$C$189,2),"") -> Charges Bat,A | C27: 2 | D27: 4 | E27: =IF(D27>0,VLOOKUP(D27,Liste!$A$10:$D$163,4),"") -> BANCHET Joseph | G27: 1
A28: 3 | B28: =IF(A28>0,VLOOKUP(A28,Liste!$B$179 : Liste!$C$189,2),"") -> Chardes Bât,B | C28: 3 | D28: 4 | E28: =IF(D28>0,VLOOKUP(D28,Liste!$A$10:$D$163,4),"") -> BANCHET Joseph | G28: 1
A29: 4 | B29: =IF(A29>0,VLOOKUP(A29,Liste!$B$179 : Liste!$C$189,2),"") -> Ch,4 | C29: 1 | D29: 4 | E29: =IF(D29>0,VLOOKUP(D29,Liste!$A$10:$D$163,4),"") -> BANCHET Joseph | G29: 1
A30: 5 | B30: =IF(A30>0,VLOOKUP(A30,Liste!$B$179 : Liste!$C$189,2),"") -> Ch,5 | C30: 1 | D30: 4 | E30: =IF(D30>0,VLOOKUP(D30,Liste!$A$10:$D$163,4),"") -> BANCHET Joseph | G30: 1
A31: 1 | B31: =IF(A31>0,VLOOKUP(A31,Liste!$B$179 : Liste!$C$189,2),"") -> Charges générales | C31: 1 | D31: 2 | E31: =IF(D31>0,VLOOKUP(D31,Liste!$A$10:$D$163,4),"") -> ANNINOS Henri | H31: 1
A32: 2 | B32: =IF(A32>0,VLOOKUP(A32,Liste!$B$179 : Liste!$C$189,2),"") -> Charges Bat,A | C32: 2 | D32: 2 | E32: =IF(D32>0,VLOOKUP(D32,Liste!$A$10:$D$163,4),"") -> ANNINOS Henri | H32: 1
A33: 3 | B33: =IF(A33>0,VLOOKUP(A33,Liste!$B$179 : Liste!$C$189,2),"") -> Chardes Bât,B | C33: 3 | D33: 2 | E33: =IF(D33>0,VLOOKUP(D33,Liste!$A$10:$D$163,4),"") -> ANNINOS Henri | H33: 1
A34: 4 | B34: =IF(A34>0,VLOOKUP(A34,Liste!$B$179 : Liste!$C$189,2),"") -> Ch,4 | C34: 1 | D34: 2 | E34: =IF(D34>0,VLOOKUP(D34,Liste!$A$10:$D$163,4),"") -> ANNINOS Henri | H34: 1
A35: 5 | B35: =IF(A35>0,VLOOKUP(A35,Liste!$B$179 : Liste!$C$189,2),"") -> Ch,5 | C35: 1 | D35: 2 | E35: =IF(D35>0,VLOOKUP(D35,Liste!$A$10:$D$163,4),"") -> ANNINOS Henri | H35: 1
A36: 1 | B36: =IF(A36>0,VLOOKUP(A36,Liste!$B$179 : Liste!$C$189,2),"") -> Charges générales | C36: 1 | D36: 3 | E36: =IF(D36>0,VLOOKUP(D36,Liste!$A$10:$D$163,4),"") -> BALDACCHINO Laurence | F36: 1
A37: 2 | B37: =IF(A37>0,VLOOKUP(A37,Liste!$B$179 : Liste!$C$189,2),"") -> Charges Bat,A | C37: 2 | D37: 3 | E37: =IF(D37>0,VLOOKUP(D37,Liste!$A$10:$D$163,4),"") -> BALDACCHINO Laurence | F37: 1
A38: 3 | B38: =IF(A38>0,VLOOKUP(A38,Liste!$B$179 : Liste!$C$189,2),"") -> Chardes Bât,B | C38: 3 | D38: 3 | E38: =IF(D38>0,VLOOKUP(D38,Liste!$A$10:$D$163,4),"") -> BALDACCHINO Laurence | F38: 1
A39: 4 | B39: =IF(A39>0,VLOOKUP(A39,Liste!$B$179 : Liste!$C$189,2),"") -> Ch,4 | C39: 1 | D39: 3 | E39: =IF(D39>0,VLOOKUP(D39,Liste!$A$10:$D$163,4),"") -> BALDACCHINO Laurence | F39: 1
A40: 5 | B40: =IF(A40>0,VLOOKUP(A40,Liste!$B$179 : Liste!$C$189,2),"") -> Ch,5 | C40: 1 | D40: 3 | E40: =IF(D40>0,VLOOKUP(D40,Liste!$A$10:$D$163,4),"") -> BALDACCHINO Laurence | F40: 1
B41: =IF(A41>0,VLOOKUP(A41,Liste!$B$179 : Liste!$C$189,2),"") ->  | E41: =IF(D41>0,VLOOKUP(D41,Liste!$A$10:$D$163,4),"") -> 
B42: =IF(A42>0,VLOOKUP(A42,Liste!$B$179 : Liste!$C$189,2),"") ->  | E42: =IF(D42>0,VLOOKUP(D42,Liste!$A$10:$D$163,4),"") -> 
B43: =IF(A43>0,VLOOKUP(A43,Liste!$B$179 : Liste!$C$189,2),"") ->  | E43: =IF(D43>0,VLOOKUP(D43,Liste!$A$10:$D$163,4),"") -> 
B44: =IF(A44>0,VLOOKUP(A44,Liste!$B$179 : Liste!$C$189,2),"") ->  | E44: =IF(D44>0,VLOOKUP(D44,Liste!$A$10:$D$163,4),"") -> 
B45: =IF(A45>0,VLOOKUP(A45,Liste!$B$179 : Liste!$C$189,2),"") ->  | E45: =IF(D45>0,VLOOKUP(D45,Liste!$A$10:$D$163,4),"") -> 
B46: =IF(A46>0,VLOOKUP(A46,Liste!$B$179 : Liste!$C$189,2),"") ->  | E46: =IF(D46>0,VLOOKUP(D46,Liste!$A$10:$D$163,4),"") -> 
B47: =IF(A47>0,VLOOKUP(A47,Liste!$B$179 : Liste!$C$189,2),"") ->  | E47: =IF(D47>0,VLOOKUP(D47,Liste!$A$10:$D$163,4),"") -> 
B48: =IF(A48>0,VLOOKUP(A48,Liste!$B$179 : Liste!$C$189,2),"") ->  | E48: =IF(D48>0,VLOOKUP(D48,Liste!$A$10:$D$163,4),"") -> 
B49: =IF(A49>0,VLOOKUP(A49,Liste!$B$179 : Liste!$C$189,2),"") ->  | E49: =IF(D49>0,VLOOKUP(D49,Liste!$A$10:$D$163,4),"") -> 
B50: =IF(A50>0,VLOOKUP(A50,Liste!$B$179 : Liste!$C$189,2),"") ->  | E50: =IF(D50>0,VLOOKUP(D50,Liste!$A$10:$D$163,4),"") -> 
B51: =IF(A51>0,VLOOKUP(A51,Liste!$B$179 : Liste!$C$189,2),"") ->  | E51: =IF(D51>0,VLOOKUP(D51,Liste!$A$10:$D$163,4),"") -> 
B52: =IF(A52>0,VLOOKUP(A52,Liste!$B$179 : Liste!$C$189,2),"") ->  | E52: =IF(D52>0,VLOOKUP(D52,Liste!$A$10:$D$163,4),"") -> 
B53: =IF(A53>0,VLOOKUP(A53,Liste!$B$179 : Liste!$C$189,2),"") ->  | E53: =IF(D53>0,VLOOKUP(D53,Liste!$A$10:$D$163,4),"") -> 
B54: =IF(A54>0,VLOOKUP(A54,Liste!$B$179 : Liste!$C$189,2),"") ->  | E54: =IF(D54>0,VLOOKUP(D54,Liste!$A$10:$D$163,4),"") -> 
B55: =IF(A55>0,VLOOKUP(A55,Liste!$B$179 : Liste!$C$189,2),"") ->  | E55: =IF(D55>0,VLOOKUP(D55,Liste!$A$10:$D$163,4),"") -> 
B56: =IF(A56>0,VLOOKUP(A56,Liste!$B$179 : Liste!$C$189,2),"") ->  | E56: =IF(D56>0,VLOOKUP(D56,Liste!$A$10:$D$163,4),"") -> 
B57: =IF(A57>0,VLOOKUP(A57,Liste!$B$179 : Liste!$C$189,2),"") ->  | E57: =IF(D57>0,VLOOKUP(D57,Liste!$A$10:$D$163,4),"") -> 
B58: =IF(A58>0,VLOOKUP(A58,Liste!$B$179 : Liste!$C$189,2),"") ->  | E58: =IF(D58>0,VLOOKUP(D58,Liste!$A$10:$D$163,4),"") -> 
B59: =IF(A59>0,VLOOKUP(A59,Liste!$B$179 : Liste!$C$189,2),"") ->  | E59: =IF(D59>0,VLOOKUP(D59,Liste!$A$10:$D$163,4),"") -> 
B60: =IF(A60>0,VLOOKUP(A60,Liste!$B$179 : Liste!$C$189,2),"") ->  | E60: =IF(D60>0,VLOOKUP(D60,Liste!$A$10:$D$163,4),"") -> 
B61: =IF(A61>0,VLOOKUP(A61,Liste!$B$179 : Liste!$C$189,2),"") ->  | E61: =IF(D61>0,VLOOKUP(D61,Liste!$A$10:$D$163,4),"") -> 
B62: =IF(A62>0,VLOOKUP(A62,Liste!$B$179 : Liste!$C$189,2),"") ->  | E62: =IF(D62>0,VLOOKUP(D62,Liste!$A$10:$D$163,4),"") -> 
B63: =IF(A63>0,VLOOKUP(A63,Liste!$B$179 : Liste!$C$189,2),"") ->  | E63: =IF(D63>0,VLOOKUP(D63,Liste!$A$10:$D$163,4),"") -> 
B64: =IF(A64>0,VLOOKUP(A64,Liste!$B$179 : Liste!$C$189,2),"") ->  | E64: =IF(D64>0,VLOOKUP(D64,Liste!$A$10:$D$163,4),"") -> 
B65: =IF(A65>0,VLOOKUP(A65,Liste!$B$179 : Liste!$C$189,2),"") ->  | E65: =IF(D65>0,VLOOKUP(D65,Liste!$A$10:$D$163,4),"") -> 
B66: =IF(A66>0,VLOOKUP(A66,Liste!$B$179 : Liste!$C$189,2),"") ->  | E66: =IF(D66>0,VLOOKUP(D66,Liste!$A$10:$D$163,4),"") -> 
B67: =IF(A67>0,VLOOKUP(A67,Liste!$B$179 : Liste!$C$189,2),"") ->  | E67: =IF(D67>0,VLOOKUP(D67,Liste!$A$10:$D$163,4),"") -> 
B68: =IF(A68>0,VLOOKUP(A68,Liste!$B$179 : Liste!$C$189,2),"") ->  | E68: =IF(D68>0,VLOOKUP(D68,Liste!$A$10:$D$163,4),"") -> 
B69: =IF(A69>0,VLOOKUP(A69,Liste!$B$179 : Liste!$C$189,2),"") ->  | E69: =IF(D69>0,VLOOKUP(D69,Liste!$A$10:$D$163,4),"") -> 
B70: =IF(A70>0,VLOOKUP(A70,Liste!$B$179 : Liste!$C$189,2),"") ->  | E70: =IF(D70>0,VLOOKUP(D70,Liste!$A$10:$D$163,4),"") ->  | I70: =IF(AND(D70>0,F70+G70+H70=0),"EN ATTENTE",IF(F70+G70+H70>1,"ERREUR","")) -> 
B71: =IF(A71>0,VLOOKUP(A71,Liste!$B$179 : Liste!$C$189,2),"") ->  | E71: =IF(D71>0,VLOOKUP(D71,Liste!$A$10:$D$163,4),"") -> 
B72: =IF(A72>0,VLOOKUP(A72,Liste!$B$179 : Liste!$C$189,2),"") ->  | E72: =IF(D72>0,VLOOKUP(D72,Liste!$A$10:$D$163,4),"") -> 
B73: =IF(A73>0,VLOOKUP(A73,Liste!$B$179 : Liste!$C$189,2),"") ->  | E73: =IF(D73>0,VLOOKUP(D73,Liste!$A$10:$D$163,4),"") -> 
B74: =IF(A74>0,VLOOKUP(A74,Liste!$B$179 : Liste!$C$189,2),"") ->  | E74: =IF(D74>0,VLOOKUP(D74,Liste!$A$10:$D$163,4),"") -> 
B75: =IF(A75>0,VLOOKUP(A75,Liste!$B$179 : Liste!$C$189,2),"") ->  | E75: =IF(D75>0,VLOOKUP(D75,Liste!$A$10:$D$163,4),"") -> 
B76: =IF(A76>0,VLOOKUP(A76,Liste!$B$179 : Liste!$C$189,2),"") ->  | E76: =IF(D76>0,VLOOKUP(D76,Liste!$A$10:$D$163,4),"") -> 
B77: =IF(A77>0,VLOOKUP(A77,Liste!$B$179 : Liste!$C$189,2),"") ->  | E77: =IF(D77>0,VLOOKUP(D77,Liste!$A$10:$D$163,4),"") -> 
B78: =IF(A78>0,VLOOKUP(A78,Liste!$B$179 : Liste!$C$189,2),"") ->  | E78: =IF(D78>0,VLOOKUP(D78,Liste!$A$10:$D$163,4),"") -> 
B79: =IF(A79>0,VLOOKUP(A79,Liste!$B$179 : Liste!$C$189,2),"") ->  | E79: =IF(D79>0,VLOOKUP(D79,Liste!$A$10:$D$163,4),"") -> 
B80: =IF(A80>0,VLOOKUP(A80,Liste!$B$179 : Liste!$C$189,2),"") ->  | E80: =IF(D80>0,VLOOKUP(D80,Liste!$A$10:$D$163,4),"") -> 
B81: =IF(A81>0,VLOOKUP(A81,Liste!$B$179 : Liste!$C$189,2),"") ->  | E81: =IF(D81>0,VLOOKUP(D81,Liste!$A$10:$D$163,4),"") -> 
B82: =IF(A82>0,VLOOKUP(A82,Liste!$B$179 : Liste!$C$189,2),"") ->  | E82: =IF(D82>0,VLOOKUP(D82,Liste!$A$10:$D$163,4),"") -> 
B83: =IF(A83>0,VLOOKUP(A83,Liste!$B$179 : Liste!$C$189,2),"") ->  | E83: =IF(D83>0,VLOOKUP(D83,Liste!$A$10:$D$163,4),"") -> 
B84: =IF(A84>0,VLOOKUP(A84,Liste!$B$179 : Liste!$C$189,2),"") ->  | E84: =IF(D84>0,VLOOKUP(D84,Liste!$A$10:$D$163,4),"") -> 
B85: =IF(A85>0,VLOOKUP(A85,Liste!$B$179 : Liste!$C$189,2),"") ->  | E85: =IF(D85>0,VLOOKUP(D85,Liste!$A$10:$D$163,4),"") -> 
B86: =IF(A86>0,VLOOKUP(A86,Liste!$B$179 : Liste!$C$189,2),"") ->  | E86: =IF(D86>0,VLOOKUP(D86,Liste!$A$10:$D$163,4),"") -> 
B87: =IF(A87>0,VLOOKUP(A87,Liste!$B$179 : Liste!$C$189,2),"") ->  | E87: =IF(D87>0,VLOOKUP(D87,Liste!$A$10:$D$163,4),"") -> 
B88: =IF(A88>0,VLOOKUP(A88,Liste!$B$179 : Liste!$C$189,2),"") ->  | E88: =IF(D88>0,VLOOKUP(D88,Liste!$A$10:$D$163,4),"") -> 
B89: =IF(A89>0,VLOOKUP(A89,Liste!$B$179 : Liste!$C$189,2),"") ->  | E89: =IF(D89>0,VLOOKUP(D89,Liste!$A$10:$D$163,4),"") -> 
B90: =IF(A90>0,VLOOKUP(A90,Liste!$B$179 : Liste!$C$189,2),"") ->  | E90: =IF(D90>0,VLOOKUP(D90,Liste!$A$10:$D$163,4),"") -> 
B91: =IF(A91>0,VLOOKUP(A91,Liste!$B$179 : Liste!$C$189,2),"") ->  | E91: =IF(D91>0,VLOOKUP(D91,Liste!$A$10:$D$163,4),"") -> 
B92: =IF(A92>0,VLOOKUP(A92,Liste!$B$179 : Liste!$C$189,2),"") ->  | E92: =IF(D92>0,VLOOKUP(D92,Liste!$A$10:$D$163,4),"") -> 
B93: =IF(A93>0,VLOOKUP(A93,Liste!$B$179 : Liste!$C$189,2),"") ->  | E93: =IF(D93>0,VLOOKUP(D93,Liste!$A$10:$D$163,4),"") -> 
B94: =IF(A94>0,VLOOKUP(A94,Liste!$B$179 : Liste!$C$189,2),"") ->  | E94: =IF(D94>0,VLOOKUP(D94,Liste!$A$10:$D$163,4),"") -> 
B95: =IF(A95>0,VLOOKUP(A95,Liste!$B$179 : Liste!$C$189,2),"") ->  | E95: =IF(D95>0,VLOOKUP(D95,Liste!$A$10:$D$163,4),"") -> 
B96: =IF(A96>0,VLOOKUP(A96,Liste!$B$179 : Liste!$C$189,2),"") ->  | E96: =IF(D96>0,VLOOKUP(D96,Liste!$A$10:$D$163,4),"") -> 
B97: =IF(A97>0,VLOOKUP(A97,Liste!$B$179 : Liste!$C$189,2),"") ->  | E97: =IF(D97>0,VLOOKUP(D97,Liste!$A$10:$D$163,4),"") -> 
B98: =IF(A98>0,VLOOKUP(A98,Liste!$B$179 : Liste!$C$189,2),"") ->  | E98: =IF(D98>0,VLOOKUP(D98,Liste!$A$10:$D$163,4),"") -> 
B99: =IF(A99>0,VLOOKUP(A99,Liste!$B$179 : Liste!$C$189,2),"") ->  | E99: =IF(D99>0,VLOOKUP(D99,Liste!$A$10:$D$163,4),"") -> 
B100: =IF(A100>0,VLOOKUP(A100,Liste!$B$179 : Liste!$C$189,2),"") ->  | E100: =IF(D100>0,VLOOKUP(D100,Liste!$A$10:$D$163,4),"") -> 
B101: =IF(A101>0,VLOOKUP(A101,Liste!$B$179 : Liste!$C$189,2),"") ->  | E101: =IF(D101>0,VLOOKUP(D101,Liste!$A$10:$D$163,4),"") -> 
B102: =IF(A102>0,VLOOKUP(A102,Liste!$B$179 : Liste!$C$189,2),"") ->  | E102: =IF(D102>0,VLOOKUP(D102,Liste!$A$10:$D$163,4),"") -> 
B103: =IF(A103>0,VLOOKUP(A103,Liste!$B$179 : Liste!$C$189,2),"") ->  | E103: =IF(D103>0,VLOOKUP(D103,Liste!$A$10:$D$163,4),"") -> 
B104: =IF(A104>0,VLOOKUP(A104,Liste!$B$179 : Liste!$C$189,2),"") ->  | E104: =IF(D104>0,VLOOKUP(D104,Liste!$A$10:$D$163,4),"") -> 
B105: =IF(A105>0,VLOOKUP(A105,Liste!$B$179 : Liste!$C$189,2),"") ->  | E105: =IF(D105>0,VLOOKUP(D105,Liste!$A$10:$D$163,4),"") -> 
B106: =IF(A106>0,VLOOKUP(A106,Liste!$B$179 : Liste!$C$189,2),"") ->  | E106: =IF(D106>0,VLOOKUP(D106,Liste!$A$10:$D$163,4),"") -> 
B107: =IF(A107>0,VLOOKUP(A107,Liste!$B$179 : Liste!$C$189,2),"") ->  | E107: =IF(D107>0,VLOOKUP(D107,Liste!$A$10:$D$163,4),"") -> 
B108: =IF(A108>0,VLOOKUP(A108,Liste!$B$179 : Liste!$C$189,2),"") ->  | E108: =IF(D108>0,VLOOKUP(D108,Liste!$A$10:$D$163,4),"") -> 
B109: =IF(A109>0,VLOOKUP(A109,Liste!$B$179 : Liste!$C$189,2),"") ->  | E109: =IF(D109>0,VLOOKUP(D109,Liste!$A$10:$D$163,4),"") -> 
B110: =IF(A110>0,VLOOKUP(A110,Liste!$B$179 : Liste!$C$189,2),"") ->  | E110: =IF(D110>0,VLOOKUP(D110,Liste!$A$10:$D$163,4),"") -> 
B111: =IF(A111>0,VLOOKUP(A111,Liste!$B$179 : Liste!$C$189,2),"") ->  | E111: =IF(D111>0,VLOOKUP(D111,Liste!$A$10:$D$163,4),"") -> 
B112: =IF(A112>0,VLOOKUP(A112,Liste!$B$179 : Liste!$C$189,2),"") ->  | E112: =IF(D112>0,VLOOKUP(D112,Liste!$A$10:$D$163,4),"") -> 
B113: =IF(A113>0,VLOOKUP(A113,Liste!$B$179 : Liste!$C$189,2),"") ->  | E113: =IF(D113>0,VLOOKUP(D113,Liste!$A$10:$D$163,4),"") -> 
B114: =IF(A114>0,VLOOKUP(A114,Liste!$B$179 : Liste!$C$189,2),"") ->  | E114: =IF(D114>0,VLOOKUP(D114,Liste!$A$10:$D$163,4),"") -> 
B115: =IF(A115>0,VLOOKUP(A115,Liste!$B$179 : Liste!$C$189,2),"") ->  | E115: =IF(D115>0,VLOOKUP(D115,Liste!$A$10:$D$163,4),"") -> 
B116: =IF(A116>0,VLOOKUP(A116,Liste!$B$179 : Liste!$C$189,2),"") ->  | E116: =IF(D116>0,VLOOKUP(D116,Liste!$A$10:$D$163,4),"") -> 
B117: =IF(A117>0,VLOOKUP(A117,Liste!$B$179 : Liste!$C$189,2),"") ->  | E117: =IF(D117>0,VLOOKUP(D117,Liste!$A$10:$D$163,4),"") -> 
B118: =IF(A118>0,VLOOKUP(A118,Liste!$B$179 : Liste!$C$189,2),"") ->  | E118: =IF(D118>0,VLOOKUP(D118,Liste!$A$10:$D$163,4),"") -> 
B119: =IF(A119>0,VLOOKUP(A119,Liste!$B$179 : Liste!$C$189,2),"") ->  | E119: =IF(D119>0,VLOOKUP(D119,Liste!$A$10:$D$163,4),"") -> 
B120: =IF(A120>0,VLOOKUP(A120,Liste!$B$179 : Liste!$C$189,2),"") ->  | E120: =IF(D120>0,VLOOKUP(D120,Liste!$A$10:$D$163,4),"") -> 
B121: =IF(A121>0,VLOOKUP(A121,Liste!$B$179 : Liste!$C$189,2),"") ->  | E121: =IF(D121>0,VLOOKUP(D121,Liste!$A$10:$D$163,4),"") -> 
B122: =IF(A122>0,VLOOKUP(A122,Liste!$B$179 : Liste!$C$189,2),"") ->  | E122: =IF(D122>0,VLOOKUP(D122,Liste!$A$10:$D$163,4),"") -> 
B123: =IF(A123>0,VLOOKUP(A123,Liste!$B$179 : Liste!$C$189,2),"") ->  | E123: =IF(D123>0,VLOOKUP(D123,Liste!$A$10:$D$163,4),"") -> 
B124: =IF(A124>0,VLOOKUP(A124,Liste!$B$179 : Liste!$C$189,2),"") ->  | E124: =IF(D124>0,VLOOKUP(D124,Liste!$A$10:$D$163,4),"") -> 
B125: =IF(A125>0,VLOOKUP(A125,Liste!$B$179 : Liste!$C$189,2),"") ->  | E125: =IF(D125>0,VLOOKUP(D125,Liste!$A$10:$D$163,4),"") -> 
B126: =IF(A126>0,VLOOKUP(A126,Liste!$B$179 : Liste!$C$189,2),"") ->  | E126: =IF(D126>0,VLOOKUP(D126,Liste!$A$10:$D$163,4),"") -> 
B127: =IF(A127>0,VLOOKUP(A127,Liste!$B$179 : Liste!$C$189,2),"") ->  | E127: =IF(D127>0,VLOOKUP(D127,Liste!$A$10:$D$163,4),"") -> 
B128: =IF(A128>0,VLOOKUP(A128,Liste!$B$179 : Liste!$C$189,2),"") ->  | E128: =IF(D128>0,VLOOKUP(D128,Liste!$A$10:$D$163,4),"") -> 
B129: =IF(A129>0,VLOOKUP(A129,Liste!$B$179 : Liste!$C$189,2),"") ->  | E129: =IF(D129>0,VLOOKUP(D129,Liste!$A$10:$D$163,4),"") -> 
B130: =IF(A130>0,VLOOKUP(A130,Liste!$B$179 : Liste!$C$189,2),"") ->  | E130: =IF(D130>0,VLOOKUP(D130,Liste!$A$10:$D$163,4),"") -> 
B131: =IF(A131>0,VLOOKUP(A131,Liste!$B$179 : Liste!$C$189,2),"") ->  | E131: =IF(D131>0,VLOOKUP(D131,Liste!$A$10:$D$163,4),"") -> 
B132: =IF(A132>0,VLOOKUP(A132,Liste!$B$179 : Liste!$C$189,2),"") ->  | E132: =IF(D132>0,VLOOKUP(D132,Liste!$A$10:$D$163,4),"") -> 
B133: =IF(A133>0,VLOOKUP(A133,Liste!$B$179 : Liste!$C$189,2),"") ->  | E133: =IF(D133>0,VLOOKUP(D133,Liste!$A$10:$D$163,4),"") -> 
B134: =IF(A134>0,VLOOKUP(A134,Liste!$B$179 : Liste!$C$189,2),"") ->  | E134: =IF(D134>0,VLOOKUP(D134,Liste!$A$10:$D$163,4),"") ->  | I134: =IF(AND(D134>0,F134+G134+H134=0),"EN ATTENTE",IF(F134+G134+H134>1,"ERREUR","")) -> 
B135: =IF(A135>0,VLOOKUP(A135,Liste!$B$179 : Liste!$C$189,2),"") ->  | E135: =IF(D135>0,VLOOKUP(D135,Liste!$A$10:$D$163,4),"") -> 
B136: =IF(A136>0,VLOOKUP(A136,Liste!$B$179 : Liste!$C$189,2),"") ->  | E136: =IF(D136>0,VLOOKUP(D136,Liste!$A$10:$D$163,4),"") -> 
B137: =IF(A137>0,VLOOKUP(A137,Liste!$B$179 : Liste!$C$189,2),"") ->  | E137: =IF(D137>0,VLOOKUP(D137,Liste!$A$10:$D$163,4),"") -> 
B138: =IF(A138>0,VLOOKUP(A138,Liste!$B$179 : Liste!$C$189,2),"") ->  | E138: =IF(D138>0,VLOOKUP(D138,Liste!$A$10:$D$163,4),"") -> 
B139: =IF(A139>0,VLOOKUP(A139,Liste!$B$179 : Liste!$C$189,2),"") ->  | E139: =IF(D139>0,VLOOKUP(D139,Liste!$A$10:$D$163,4),"") -> 
B140: =IF(A140>0,VLOOKUP(A140,Liste!$B$179 : Liste!$C$189,2),"") ->  | E140: =IF(D140>0,VLOOKUP(D140,Liste!$A$10:$D$163,4),"") -> 
B141: =IF(A141>0,VLOOKUP(A141,Liste!$B$179 : Liste!$C$189,2),"") ->  | E141: =IF(D141>0,VLOOKUP(D141,Liste!$A$10:$D$163,4),"") -> 
B142: =IF(A142>0,VLOOKUP(A142,Liste!$B$179 : Liste!$C$189,2),"") ->  | E142: =IF(D142>0,VLOOKUP(D142,Liste!$A$10:$D$163,4),"") -> 
B143: =IF(A143>0,VLOOKUP(A143,Liste!$B$179 : Liste!$C$189,2),"") ->  | E143: =IF(D143>0,VLOOKUP(D143,Liste!$A$10:$D$163,4),"") -> 
B144: =IF(A144>0,VLOOKUP(A144,Liste!$B$179 : Liste!$C$189,2),"") ->  | E144: =IF(D144>0,VLOOKUP(D144,Liste!$A$10:$D$163,4),"") -> 
B145: =IF(A145>0,VLOOKUP(A145,Liste!$B$179 : Liste!$C$189,2),"") ->  | E145: =IF(D145>0,VLOOKUP(D145,Liste!$A$10:$D$163,4),"") -> 
B146: =IF(A146>0,VLOOKUP(A146,Liste!$B$179 : Liste!$C$189,2),"") ->  | E146: =IF(D146>0,VLOOKUP(D146,Liste!$A$10:$D$163,4),"") -> 
B147: =IF(A147>0,VLOOKUP(A147,Liste!$B$179 : Liste!$C$189,2),"") ->  | E147: =IF(D147>0,VLOOKUP(D147,Liste!$A$10:$D$163,4),"") -> 
B148: =IF(A148>0,VLOOKUP(A148,Liste!$B$179 : Liste!$C$189,2),"") ->  | E148: =IF(D148>0,VLOOKUP(D148,Liste!$A$10:$D$163,4),"") -> 
B149: =IF(A149>0,VLOOKUP(A149,Liste!$B$179 : Liste!$C$189,2),"") ->  | E149: =IF(D149>0,VLOOKUP(D149,Liste!$A$10:$D$163,4),"") -> 
B150: =IF(A150>0,VLOOKUP(A150,Liste!$B$179 : Liste!$C$189,2),"") ->  | E150: =IF(D150>0,VLOOKUP(D150,Liste!$A$10:$D$163,4),"") -> 
B151: =IF(A151>0,VLOOKUP(A151,Liste!$B$179 : Liste!$C$189,2),"") ->  | E151: =IF(D151>0,VLOOKUP(D151,Liste!$A$10:$D$163,4),"") -> 
B152: =IF(A152>0,VLOOKUP(A152,Liste!$B$179 : Liste!$C$189,2),"") ->  | E152: =IF(D152>0,VLOOKUP(D152,Liste!$A$10:$D$163,4),"") -> 
B153: =IF(A153>0,VLOOKUP(A153,Liste!$B$179 : Liste!$C$189,2),"") ->  | E153: =IF(D153>0,VLOOKUP(D153,Liste!$A$10:$D$163,4),"") -> 
B154: =IF(A154>0,VLOOKUP(A154,Liste!$B$179 : Liste!$C$189,2),"") ->  | E154: =IF(D154>0,VLOOKUP(D154,Liste!$A$10:$D$163,4),"") -> 
B155: =IF(A155>0,VLOOKUP(A155,Liste!$B$179 : Liste!$C$189,2),"") ->  | E155: =IF(D155>0,VLOOKUP(D155,Liste!$A$10:$D$163,4),"") -> 
B156: =IF(A156>0,VLOOKUP(A156,Liste!$B$179 : Liste!$C$189,2),"") ->  | E156: =IF(D156>0,VLOOKUP(D156,Liste!$A$10:$D$163,4),"") -> 
B157: =IF(A157>0,VLOOKUP(A157,Liste!$B$179 : Liste!$C$189,2),"") ->  | E157: =IF(D157>0,VLOOKUP(D157,Liste!$A$10:$D$163,4),"") -> 
B158: =IF(A158>0,VLOOKUP(A158,Liste!$B$179 : Liste!$C$189,2),"") ->  | E158: =IF(D158>0,VLOOKUP(D158,Liste!$A$10:$D$163,4),"") -> 
B159: =IF(A159>0,VLOOKUP(A159,Liste!$B$179 : Liste!$C$189,2),"") ->  | E159: =IF(D159>0,VLOOKUP(D159,Liste!$A$10:$D$163,4),"") -> 
B160: =IF(A160>0,VLOOKUP(A160,Liste!$B$179 : Liste!$C$189,2),"") ->  | E160: =IF(D160>0,VLOOKUP(D160,Liste!$A$10:$D$163,4),"") -> 
B161: =IF(A161>0,VLOOKUP(A161,Liste!$B$179 : Liste!$C$189,2),"") ->  | E161: =IF(D161>0,VLOOKUP(D161,Liste!$A$10:$D$163,4),"") -> 
B162: =IF(A162>0,VLOOKUP(A162,Liste!$B$179 : Liste!$C$189,2),"") ->  | E162: =IF(D162>0,VLOOKUP(D162,Liste!$A$10:$D$163,4),"") -> 
B163: =IF(A163>0,VLOOKUP(A163,Liste!$B$179 : Liste!$C$189,2),"") ->  | E163: =IF(D163>0,VLOOKUP(D163,Liste!$A$10:$D$163,4),"") -> 
B164: =IF(A164>0,VLOOKUP(A164,Liste!$B$179 : Liste!$C$189,2),"") ->  | E164: =IF(D164>0,VLOOKUP(D164,Liste!$A$10:$D$163,4),"") -> 
B165: =IF(A165>0,VLOOKUP(A165,Liste!$B$179 : Liste!$C$189,2),"") ->  | E165: =IF(D165>0,VLOOKUP(D165,Liste!$A$10:$D$163,4),"") -> 
B166: =IF(A166>0,VLOOKUP(A166,Liste!$B$179 : Liste!$C$189,2),"") ->  | E166: =IF(D166>0,VLOOKUP(D166,Liste!$A$10:$D$163,4),"") -> 
B167: =IF(A167>0,VLOOKUP(A167,Liste!$B$179 : Liste!$C$189,2),"") ->  | E167: =IF(D167>0,VLOOKUP(D167,Liste!$A$10:$D$163,4),"") -> 
B168: =IF(A168>0,VLOOKUP(A168,Liste!$B$179 : Liste!$C$189,2),"") ->  | E168: =IF(D168>0,VLOOKUP(D168,Liste!$A$10:$D$163,4),"") -> 
B169: =IF(A169>0,VLOOKUP(A169,Liste!$B$179 : Liste!$C$189,2),"") ->  | E169: =IF(D169>0,VLOOKUP(D169,Liste!$A$10:$D$163,4),"") -> 
B170: =IF(A170>0,VLOOKUP(A170,Liste!$B$179 : Liste!$C$189,2),"") ->  | E170: =IF(D170>0,VLOOKUP(D170,Liste!$A$10:$D$163,4),"") -> 
B171: =IF(A171>0,VLOOKUP(A171,Liste!$B$179 : Liste!$C$189,2),"") ->  | E171: =IF(D171>0,VLOOKUP(D171,Liste!$A$10:$D$163,4),"") -> 
B172: =IF(A172>0,VLOOKUP(A172,Liste!$B$179 : Liste!$C$189,2),"") ->  | E172: =IF(D172>0,VLOOKUP(D172,Liste!$A$10:$D$163,4),"") -> 
B173: =IF(A173>0,VLOOKUP(A173,Liste!$B$179 : Liste!$C$189,2),"") ->  | E173: =IF(D173>0,VLOOKUP(D173,Liste!$A$10:$D$163,4),"") -> 
B174: =IF(A174>0,VLOOKUP(A174,Liste!$B$179 : Liste!$C$189,2),"") ->  | E174: =IF(D174>0,VLOOKUP(D174,Liste!$A$10:$D$163,4),"") -> 
B175: =IF(A175>0,VLOOKUP(A175,Liste!$B$179 : Liste!$C$189,2),"") ->  | E175: =IF(D175>0,VLOOKUP(D175,Liste!$A$10:$D$163,4),"") -> 
B176: =IF(A176>0,VLOOKUP(A176,Liste!$B$179 : Liste!$C$189,2),"") ->  | E176: =IF(D176>0,VLOOKUP(D176,Liste!$A$10:$D$163,4),"") -> 
B177: =IF(A177>0,VLOOKUP(A177,Liste!$B$179 : Liste!$C$189,2),"") ->  | E177: =IF(D177>0,VLOOKUP(D177,Liste!$A$10:$D$163,4),"") -> 
B178: =IF(A178>0,VLOOKUP(A178,Liste!$B$179 : Liste!$C$189,2),"") ->  | E178: =IF(D178>0,VLOOKUP(D178,Liste!$A$10:$D$163,4),"") -> 
B179: =IF(A179>0,VLOOKUP(A179,Liste!$B$179 : Liste!$C$189,2),"") ->  | E179: =IF(D179>0,VLOOKUP(D179,Liste!$A$10:$D$163,4),"") -> 
B180: =IF(A180>0,VLOOKUP(A180,Liste!$B$179 : Liste!$C$189,2),"") ->  | E180: =IF(D180>0,VLOOKUP(D180,Liste!$A$10:$D$163,4),"") -> 
B181: =IF(A181>0,VLOOKUP(A181,Liste!$B$179 : Liste!$C$189,2),"") ->  | E181: =IF(D181>0,VLOOKUP(D181,Liste!$A$10:$D$163,4),"") -> 
B182: =IF(A182>0,VLOOKUP(A182,Liste!$B$179 : Liste!$C$189,2),"") ->  | E182: =IF(D182>0,VLOOKUP(D182,Liste!$A$10:$D$163,4),"") -> 
B183: =IF(A183>0,VLOOKUP(A183,Liste!$B$179 : Liste!$C$189,2),"") ->  | E183: =IF(D183>0,VLOOKUP(D183,Liste!$A$10:$D$163,4),"") -> 
B184: =IF(A184>0,VLOOKUP(A184,Liste!$B$179 : Liste!$C$189,2),"") ->  | E184: =IF(D184>0,VLOOKUP(D184,Liste!$A$10:$D$163,4),"") -> 
B185: =IF(A185>0,VLOOKUP(A185,Liste!$B$179 : Liste!$C$189,2),"") ->  | E185: =IF(D185>0,VLOOKUP(D185,Liste!$A$10:$D$163,4),"") -> 
B186: =IF(A186>0,VLOOKUP(A186,Liste!$B$179 : Liste!$C$189,2),"") ->  | E186: =IF(D186>0,VLOOKUP(D186,Liste!$A$10:$D$163,4),"") -> 
B187: =IF(A187>0,VLOOKUP(A187,Liste!$B$179 : Liste!$C$189,2),"") ->  | E187: =IF(D187>0,VLOOKUP(D187,Liste!$A$10:$D$163,4),"") -> 
B188: =IF(A188>0,VLOOKUP(A188,Liste!$B$179 : Liste!$C$189,2),"") ->  | E188: =IF(D188>0,VLOOKUP(D188,Liste!$A$10:$D$163,4),"") -> 
B189: =IF(A189>0,VLOOKUP(A189,Liste!$B$179 : Liste!$C$189,2),"") ->  | E189: =IF(D189>0,VLOOKUP(D189,Liste!$A$10:$D$163,4),"") -> 
B190: =IF(A190>0,VLOOKUP(A190,Liste!$B$179 : Liste!$C$189,2),"") ->  | E190: =IF(D190>0,VLOOKUP(D190,Liste!$A$10:$D$163,4),"") -> 
B191: =IF(A191>0,VLOOKUP(A191,Liste!$B$179 : Liste!$C$189,2),"") ->  | E191: =IF(D191>0,VLOOKUP(D191,Liste!$A$10:$D$163,4),"") -> 
B192: =IF(A192>0,VLOOKUP(A192,Liste!$B$179 : Liste!$C$189,2),"") ->  | E192: =IF(D192>0,VLOOKUP(D192,Liste!$A$10:$D$163,4),"") -> 
B193: =IF(A193>0,VLOOKUP(A193,Liste!$B$179 : Liste!$C$189,2),"") ->  | E193: =IF(D193>0,VLOOKUP(D193,Liste!$A$10:$D$163,4),"") -> 
B194: =IF(A194>0,VLOOKUP(A194,Liste!$B$179 : Liste!$C$189,2),"") ->  | E194: =IF(D194>0,VLOOKUP(D194,Liste!$A$10:$D$163,4),"") -> 
B195: =IF(A195>0,VLOOKUP(A195,Liste!$B$179 : Liste!$C$189,2),"") ->  | E195: =IF(D195>0,VLOOKUP(D195,Liste!$A$10:$D$163,4),"") -> 
B196: =IF(A196>0,VLOOKUP(A196,Liste!$B$179 : Liste!$C$189,2),"") ->  | E196: =IF(D196>0,VLOOKUP(D196,Liste!$A$10:$D$163,4),"") -> 
B197: =IF(A197>0,VLOOKUP(A197,Liste!$B$179 : Liste!$C$189,2),"") ->  | E197: =IF(D197>0,VLOOKUP(D197,Liste!$A$10:$D$163,4),"") -> 
B198: =IF(A198>0,VLOOKUP(A198,Liste!$B$179 : Liste!$C$189,2),"") ->  | E198: =IF(D198>0,VLOOKUP(D198,Liste!$A$10:$D$163,4),"") ->  | I198: =IF(AND(D198>0,F198+G198+H198=0),"EN ATTENTE",IF(F198+G198+H198>1,"ERREUR","")) -> 
B199: =IF(A199>0,VLOOKUP(A199,Liste!$B$179 : Liste!$C$189,2),"") ->  | E199: =IF(D199>0,VLOOKUP(D199,Liste!$A$10:$D$163,4),"") -> 
B200: =IF(A200>0,VLOOKUP(A200,Liste!$B$179 : Liste!$C$189,2),"") ->  | E200: =IF(D200>0,VLOOKUP(D200,Liste!$A$10:$D$163,4),"") -> 
B201: =IF(A201>0,VLOOKUP(A201,Liste!$B$179 : Liste!$C$189,2),"") ->  | E201: =IF(D201>0,VLOOKUP(D201,Liste!$A$10:$D$163,4),"") -> 
... 2810 more rows

Sheet VPCQuestions
C3: VPC par QUESTIONS
A5: Question | B5: Objet | C5: CLES | D5: N°Copros | E5: NOMS | F5: POUR | G5: CONTRE | H5: ABBST | I5: VERIF
A6: 1 | B6: =IF(A6>0,VLOOKUP(A6,Liste!$B$179 : Liste!$C$189,2),"") -> Charges générales | C6: 1 | D6: 2 | E6: =IF(D6>0,VLOOKUP(D6,Liste!$A$10:$D$163,4),"") -> ANNINOS Henri | H6: 1 | I6: =IF(AND(D6>0,F6+G6+H6=0),"EN ATTENTE",IF(F6+G6+H6>1,"ERREUR","")) -> 
A7: 1 | B7: =IF(A7>0,VLOOKUP(A7,Liste!$B$179 : Liste!$C$189,2),"") -> Charges générales | C7: 1 | D7: 3 | E7: =IF(D7>0,VLOOKUP(D7,Liste!$A$10:$D$163,4),"") -> BALDACCHINO Laurence | F7: 1
A8: 1 | B8: =IF(A8>0,VLOOKUP(A8,Liste!$B$179 : Liste!$C$189,2),"") -> Charges générales | C8: 1 | D8: 4 | E8: =IF(D8>0,VLOOKUP(D8,Liste!$A$10:$D$163,4),"") -> BANCHET Joseph | G8: 1 | I8: =IF(AND(D8>0,F8+G8+H8=0),"EN ATTENTE",IF(F8+G8+H8>1,"ERREUR","")) -> 
A9: 1 | B9: =IF(A9>0,VLOOKUP(A9,Liste!$B$179 : Liste!$C$189,2),"") -> Charges générales | C9: 1 | D9: 14 | E9: =IF(D9>0,VLOOKUP(D9,Liste!$A$10:$D$163,4),"") -> BERLIER David | F9: 1 | I9: =IF(AND(D9>0,F9+G9+H9=0),"EN ATTENTE",IF(F9+G9+H9>1,"ERREUR","")) -> 
A10: 1 | B10: =IF(A10>0,VLOOKUP(A10,Liste!$B$179 : Liste!$C$189,2),"") -> Charges générales | C10: 1 | D10: 15 | E10: =IF(D10>0,VLOOKUP(D10,Liste!$A$10:$D$163,4),"") -> BESSON Gabriel | H10: 1 | I10: =IF(AND(D10>0,F10+G10+H10=0),"EN ATTENTE",IF(F10+G10+H10>1,"ERREUR","")) -> 
A11: 1 | B11: =IF(A11>0,VLOOKUP(A11,Liste!$B$179 : Liste!$C$189,2),"") -> Charges générales | C11: 1 | D11: 18 | E11: =IF(D11>0,VLOOKUP(D11,Liste!$A$10:$D$163,4),"") -> DI JORIO Marcel | H11: 1 | I11: =IF(AND(D11>0,F11+G11+H11=0),"EN ATTENTE",IF(F11+G11+H11>1,"ERREUR","")) -> 
A12: 1 | B12: =IF(A12>0,VLOOKUP(A12,Liste!$B$179 : Liste!$C$189,2),"") -> Charges générales | C12: 1 | D12: 26 | E12: =IF(D12>0,VLOOKUP(D12,Liste!$A$10:$D$163,4),"") -> GARCIA Christophe | F12: 1 | I12: =IF(AND(D12>0,F12+G12+H12=0),"EN ATTENTE",IF(F12+G12+H12>1,"ERREUR","")) -> 
A13: Total 1 | C13: =SUBTOTAL(9,C6:C12) -> 7
A14: 2 | B14: =IF(A14>0,VLOOKUP(A14,Liste!$B$179 : Liste!$C$189,2),"") -> Charges Bat,A | C14: 2 | D14: 2 | E14: =IF(D14>0,VLOOKUP(D14,Liste!$A$10:$D$163,4),"") -> ANNINOS Henri | H14: 1 | I14: =IF(AND(D14>0,F14+G14+H14=0),"EN ATTENTE",IF(F14+G14+H14>1,"ERREUR","")) -> 
A15: 2 | B15: =IF(A15>0,VLOOKUP(A15,Liste!$B$179 : Liste!$C$189,2),"") -> Charges Bat,A | C15: 2 | D15: 3 | E15: =IF(D15>0,VLOOKUP(D15,Liste!$A$10:$D$163,4),"") -> BALDACCHINO Laurence | F15: 1
A16: 2 | B16: =IF(A16>0,VLOOKUP(A16,Liste!$B$179 : Liste!$C$189,2),"") -> Charges Bat,A | C16: 2 | D16: 4 | E16: =IF(D16>0,VLOOKUP(D16,Liste!$A$10:$D$163,4),"") -> BANCHET Joseph | G16: 1
A17: 2 | B17: =IF(A17>0,VLOOKUP(A17,Liste!$B$179 : Liste!$C$189,2),"") -> Charges Bat,A | C17: 2 | D17: 14 | E17: =IF(D17>0,VLOOKUP(D17,Liste!$A$10:$D$163,4),"") -> BERLIER David | F17: 1
A18: 2 | B18: =IF(A18>0,VLOOKUP(A18,Liste!$B$179 : Liste!$C$189,2),"") -> Charges Bat,A | C18: 2 | D18: 15 | E18: =IF(D18>0,VLOOKUP(D18,Liste!$A$10:$D$163,4),"") -> BESSON Gabriel | H18: 1
A19: 2 | B19: =IF(A19>0,VLOOKUP(A19,Liste!$B$179 : Liste!$C$189,2),"") -> Charges Bat,A | C19: 2 | D19: 18 | E19: =IF(D19>0,VLOOKUP(D19,Liste!$A$10:$D$163,4),"") -> DI JORIO Marcel | H19: 1
A20: 2 | B20: =IF(A20>0,VLOOKUP(A20,Liste!$B$179 : Liste!$C$189,2),"") -> Charges Bat,A | C20: 2 | D20: 26 | E20: =IF(D20>0,VLOOKUP(D20,Liste!$A$10:$D$163,4),"") -> GARCIA Christophe | F20: 1
A21: Total 2 | C21: =SUBTOTAL(9,C14:C20) -> 14
A22: 3 | B22: =IF(A22>0,VLOOKUP(A22,Liste!$B$179 : Liste!$C$189,2),"") -> Chardes Bât,B | C22: 3 | D22: 2 | E22: =IF(D22>0,VLOOKUP(D22,Liste!$A$10:$D$163,4),"") -> ANNINOS Henri | H22: 1 | I22: =IF(AND(D22>0,F22+G22+H22=0),"EN ATTENTE",IF(F22+G22+H22>1,"ERREUR","")) -> 
A23: 3 | B23: =IF(A23>0,VLOOKUP(A23,Liste!$B$179 : Liste!$C$189,2),"") -> Chardes Bât,B | C23: 3 | D23: 3 | E23: =IF(D23>0,VLOOKUP(D23,Liste!$A$10:$D$163,4),"") -> BALDACCHINO Laurence | F23: 1
A24: 3 | B24: =IF(A24>0,VLOOKUP(A24,Liste!$B$179 : Liste!$C$189,2),"") -> Chardes Bât,B | C24: 3 | D24: 4 | E24: =IF(D24>0,VLOOKUP(D24,Liste!$A$10:$D$163,4),"") -> BANCHET Joseph | G24: 1
A25: 3 | B25: =IF(A25>0,VLOOKUP(A25,Liste!$B$179 : Liste!$C$189,2),"") -> Chardes Bât,B | C25: 3 | D25: 14 | E25: =IF(D25>0,VLOOKUP(D25,Liste!$A$10:$D$163,4),"") -> BERLIER David | F25: 1
A26: 3 | B26: =IF(A26>0,VLOOKUP(A26,Liste!$B$179 : Liste!$C$189,2),"") -> Chardes Bât,B | C26: 3 | D26: 15 | E26: =IF(D26>0,VLOOKUP(D26,Liste!$A$10:$D$163,4),"") -> BESSON Gabriel | H26: 1
A27: 3 | B27: =IF(A27>0,VLOOKUP(A27,Liste!$B$179 : Liste!$C$189,2),"") -> Chardes Bât,B | C27: 3 | D27: 18 | E27: =IF(D27>0,VLOOKUP(D27,Liste!$A$10:$D$163,4),"") -> DI JORIO Marcel | H27: 1
A28: 3 | B28: =IF(A28>0,VLOOKUP(A28,Liste!$B$179 : Liste!$C$189,2),"") -> Chardes Bât,B | C28: 3 | D28: 26 | E28: =IF(D28>0,VLOOKUP(D28,Liste!$A$10:$D$163,4),"") -> GARCIA Christophe | F28: 1
A29: Total 3 | C29: =SUBTOTAL(9,C22:C28) -> 21
A30: 4 | B30: =IF(A30>0,VLOOKUP(A30,Liste!$B$179 : Liste!$C$189,2),"") -> Ch,4 | C30: 1 | D30: 2 | E30: =IF(D30>0,VLOOKUP(D30,Liste!$A$10:$D$163,4),"") -> ANNINOS Henri | H30: 1 | I30: =IF(AND(D30>0,F30+G30+H30=0),"EN ATTENTE",IF(F30+G30+H30>1,"ERREUR","")) -> 
A31: 4 | B31: =IF(A31>0,VLOOKUP(A31,Liste!$B$179 : Liste!$C$189,2),"") -> Ch,4 | C31: 1 | D31: 3 | E31: =IF(D31>0,VLOOKUP(D31,Liste!$A$10:$D$163,4),"") -> BALDACCHINO Laurence | F31: 1
A32: 4 | B32: =IF(A32>0,VLOOKUP(A32,Liste!$B$179 : Liste!$C$189,2),"") -> Ch,4 | C32: 1 | D32: 4 | E32: =IF(D32>0,VLOOKUP(D32,Liste!$A$10:$D$163,4),"") -> BANCHET Joseph | G32: 1
A33: 4 | B33: =IF(A33>0,VLOOKUP(A33,Liste!$B$179 : Liste!$C$189,2),"") -> Ch,4 | C33: 1 | D33: 14 | E33: =IF(D33>0,VLOOKUP(D33,Liste!$A$10:$D$163,4),"") -> BERLIER David | F33: 1
A34: 4 | B34: =IF(A34>0,VLOOKUP(A34,Liste!$B$179 : Liste!$C$189,2),"") -> Ch,4 | C34: 1 | D34: 15 | E34: =IF(D34>0,VLOOKUP(D34,Liste!$A$10:$D$163,4),"") -> BESSON Gabriel | H34: 1
A35: 4 | B35: =IF(A35>0,VLOOKUP(A35,Liste!$B$179 : Liste!$C$189,2),"") -> Ch,4 | C35: 1 | D35: 18 | E35: =IF(D35>0,VLOOKUP(D35,Liste!$A$10:$D$163,4),"") -> DI JORIO Marcel | H35: 1
A36: 4 | B36: =IF(A36>0,VLOOKUP(A36,Liste!$B$179 : Liste!$C$189,2),"") -> Ch,4 | C36: 1 | D36: 26 | E36: =IF(D36>0,VLOOKUP(D36,Liste!$A$10:$D$163,4),"") -> GARCIA Christophe | F36: 1
A37: Total 4 | C37: =SUBTOTAL(9,C30:C36) -> 7
A38: 5 | B38: =IF(A38>0,VLOOKUP(A38,Liste!$B$179 : Liste!$C$189,2),"") -> Ch,5 | C38: 1 | D38: 2 | E38: =IF(D38>0,VLOOKUP(D38,Liste!$A$10:$D$163,4),"") -> ANNINOS Henri | H38: 1 | I38: =IF(AND(D38>0,F38+G38+H38=0),"EN ATTENTE",IF(F38+G38+H38>1,"ERREUR","")) -> 
A39: 5 | B39: =IF(A39>0,VLOOKUP(A39,Liste!$B$179 : Liste!$C$189,2),"") -> Ch,5 | C39: 1 | D39: 3 | E39: =IF(D39>0,VLOOKUP(D39,Liste!$A$10:$D$163,4),"") -> BALDACCHINO Laurence | F39: 1
A40: 5 | B40: =IF(A40>0,VLOOKUP(A40,Liste!$B$179 : Liste!$C$189,2),"") -> Ch,5 | C40: 1 | D40: 4 | E40: =IF(D40>0,VLOOKUP(D40,Liste!$A$10:$D$163,4),"") -> BANCHET Joseph | G40: 1
A41: 5 | B41: =IF(A41>0,VLOOKUP(A41,Liste!$B$179 : Liste!$C$189,2),"") -> Ch,5 | C41: 1 | D41: 14 | E41: =IF(D41>0,VLOOKUP(D41,Liste!$A$10:$D$163,4),"") -> BERLIER David | F41: 1
A42: 5 | B42: =IF(A42>0,VLOOKUP(A42,Liste!$B$179 : Liste!$C$189,2),"") -> Ch,5 | C42: 1 | D42: 15 | E42: =IF(D42>0,VLOOKUP(D42,Liste!$A$10:$D$163,4),"") -> BESSON Gabriel | H42: 1
A43: 5 | B43: =IF(A43>0,VLOOKUP(A43,Liste!$B$179 : Liste!$C$189,2),"") -> Ch,5 | C43: 1 | D43: 18 | E43: DI JORIO Marcel | H43: 1
A44: 5 | B44: =IF(A44>0,VLOOKUP(A44,Liste!$B$179 : Liste!$C$189,2),"") -> Ch,5 | C44: 3 | D44: 26 | E44: =IF(D44>0,VLOOKUP(D44,Liste!$A$10:$D$163,4),"") -> GARCIA Christophe | F44: 1
A45: Total 5 | C45: =SUBTOTAL(9,C38:C44) -> 9
B46: =IF(A46>0,VLOOKUP(A46,Liste!$B$179 : Liste!$C$189,2),"") ->  | E46: =IF(D46>0,VLOOKUP(D46,Liste!$A$10:$D$163,4),"") ->  | I46: =IF(AND(D46>0,F46+G46+H46=0),"EN ATTENTE",IF(F46+G46+H46>1,"ERREUR","")) -> 
B47: =IF(A47>0,VLOOKUP(A47,Liste!$B$179 : Liste!$C$189,2),"") ->  | E47: =IF(D47>0,VLOOKUP(D47,Liste!$A$10:$D$163,4),"") -> 
B48: =IF(A48>0,VLOOKUP(A48,Liste!$B$179 : Liste!$C$189,2),"") ->  | E48: =IF(D48>0,VLOOKUP(D48,Liste!$A$10:$D$163,4),"") -> 
B49: =IF(A49>0,VLOOKUP(A49,Liste!$B$179 : Liste!$C$189,2),"") ->  | E49: =IF(D49>0,VLOOKUP(D49,Liste!$A$10:$D$163,4),"") -> 
B50: =IF(A50>0,VLOOKUP(A50,Liste!$B$179 : Liste!$C$189,2),"") ->  | E50: =IF(D50>0,VLOOKUP(D50,Liste!$A$10:$D$163,4),"") -> 
B51: =IF(A51>0,VLOOKUP(A51,Liste!$B$179 : Liste!$C$189,2),"") ->  | E51: =IF(D51>0,VLOOKUP(D51,Liste!$A$10:$D$163,4),"") -> 
B52: =IF(A52>0,VLOOKUP(A52,Liste!$B$179 : Liste!$C$189,2),"") ->  | E52: =IF(D52>0,VLOOKUP(D52,Liste!$A$10:$D$163,4),"") -> 
B53: =IF(A53>0,VLOOKUP(A53,Liste!$B$179 : Liste!$C$189,2),"") ->  | E53: =IF(D53>0,VLOOKUP(D53,Liste!$A$10:$D$163,4),"") -> 
B54: =IF(A54>0,VLOOKUP(A54,Liste!$B$179 : Liste!$C$189,2),"") ->  | E54: =IF(D54>0,VLOOKUP(D54,Liste!$A$10:$D$163,4),"") -> 
B55: =IF(A55>0,VLOOKUP(A55,Liste!$B$179 : Liste!$C$189,2),"") ->  | E55: =IF(D55>0,VLOOKUP(D55,Liste!$A$10:$D$163,4),"") -> 
B56: =IF(A56>0,VLOOKUP(A56,Liste!$B$179 : Liste!$C$189,2),"") ->  | E56: =IF(D56>0,VLOOKUP(D56,Liste!$A$10:$D$163,4),"") -> 
B57: =IF(A57>0,VLOOKUP(A57,Liste!$B$179 : Liste!$C$189,2),"") ->  | E57: =IF(D57>0,VLOOKUP(D57,Liste!$A$10:$D$163,4),"") -> 
B58: =IF(A58>0,VLOOKUP(A58,Liste!$B$179 : Liste!$C$189,2),"") ->  | E58: =IF(D58>0,VLOOKUP(D58,Liste!$A$10:$D$163,4),"") -> 
B59: =IF(A59>0,VLOOKUP(A59,Liste!$B$179 : Liste!$C$189,2),"") ->  | E59: =IF(D59>0,VLOOKUP(D59,Liste!$A$10:$D$163,4),"") -> 
B60: =IF(A60>0,VLOOKUP(A60,Liste!$B$179 : Liste!$C$189,2),"") ->  | E60: =IF(D60>0,VLOOKUP(D60,Liste!$A$10:$D$163,4),"") -> 
B61: =IF(A61>0,VLOOKUP(A61,Liste!$B$179 : Liste!$C$189,2),"") ->  | E61: =IF(D61>0,VLOOKUP(D61,Liste!$A$10:$D$163,4),"") -> 
B62: =IF(A62>0,VLOOKUP(A62,Liste!$B$179 : Liste!$C$189,2),"") ->  | E62: =IF(D62>0,VLOOKUP(D62,Liste!$A$10:$D$163,4),"") -> 
B63: =IF(A63>0,VLOOKUP(A63,Liste!$B$179 : Liste!$C$189,2),"") ->  | E63: =IF(D63>0,VLOOKUP(D63,Liste!$A$10:$D$163,4),"") -> 
B64: =IF(A64>0,VLOOKUP(A64,Liste!$B$179 : Liste!$C$189,2),"") ->  | E64: =IF(D64>0,VLOOKUP(D64,Liste!$A$10:$D$163,4),"") -> 
B65: =IF(A65>0,VLOOKUP(A65,Liste!$B$179 : Liste!$C$189,2),"") ->  | E65: =IF(D65>0,VLOOKUP(D65,Liste!$A$10:$D$163,4),"") -> 
B66: =IF(A66>0,VLOOKUP(A66,Liste!$B$179 : Liste!$C$189,2),"") ->  | E66: =IF(D66>0,VLOOKUP(D66,Liste!$A$10:$D$163,4),"") -> 
B67: =IF(A67>0,VLOOKUP(A67,Liste!$B$179 : Liste!$C$189,2),"") ->  | E67: =IF(D67>0,VLOOKUP(D67,Liste!$A$10:$D$163,4),"") -> 
B68: =IF(A68>0,VLOOKUP(A68,Liste!$B$179 : Liste!$C$189,2),"") ->  | E68: =IF(D68>0,VLOOKUP(D68,Liste!$A$10:$D$163,4),"") -> 
B69: =IF(A69>0,VLOOKUP(A69,Liste!$B$179 : Liste!$C$189,2),"") ->  | E69: =IF(D69>0,VLOOKUP(D69,Liste!$A$10:$D$163,4),"") -> 
B70: =IF(A70>0,VLOOKUP(A70,Liste!$B$179 : Liste!$C$189,2),"") ->  | E70: =IF(D70>0,VLOOKUP(D70,Liste!$A$10:$D$163,4),"") -> 
B71: =IF(A71>0,VLOOKUP(A71,Liste!$B$179 : Liste!$C$189,2),"") ->  | E71: =IF(D71>0,VLOOKUP(D71,Liste!$A$10:$D$163,4),"") -> 
B72: =IF(A72>0,VLOOKUP(A72,Liste!$B$179 : Liste!$C$189,2),"") ->  | E72: =IF(D72>0,VLOOKUP(D72,Liste!$A$10:$D$163,4),"") -> 
B73: =IF(A73>0,VLOOKUP(A73,Liste!$B$179 : Liste!$C$189,2),"") ->  | E73: =IF(D73>0,VLOOKUP(D73,Liste!$A$10:$D$163,4),"") -> 
B74: =IF(A74>0,VLOOKUP(A74,Liste!$B$179 : Liste!$C$189,2),"") ->  | E74: =IF(D74>0,VLOOKUP(D74,Liste!$A$10:$D$163,4),"") -> 
B75: =IF(A75>0,VLOOKUP(A75,Liste!$B$179 : Liste!$C$189,2),"") ->  | E75: =IF(D75>0,VLOOKUP(D75,Liste!$A$10:$D$163,4),"") -> 
B76: =IF(A76>0,VLOOKUP(A76,Liste!$B$179 : Liste!$C$189,2),"") ->  | E76: =IF(D76>0,VLOOKUP(D76,Liste!$A$10:$D$163,4),"") -> 
B77: =IF(A77>0,VLOOKUP(A77,Liste!$B$179 : Liste!$C$189,2),"") ->  | E77: =IF(D77>0,VLOOKUP(D77,Liste!$A$10:$D$163,4),"") -> 
B78: =IF(A78>0,VLOOKUP(A78,Liste!$B$179 : Liste!$C$189,2),"") ->  | E78: =IF(D78>0,VLOOKUP(D78,Liste!$A$10:$D$163,4),"") -> 
B79: =IF(A79>0,VLOOKUP(A79,Liste!$B$179 : Liste!$C$189,2),"") ->  | E79: =IF(D79>0,VLOOKUP(D79,Liste!$A$10:$D$163,4),"") -> 
B80: =IF(A80>0,VLOOKUP(A80,Liste!$B$179 : Liste!$C$189,2),"") ->  | E80: =IF(D80>0,VLOOKUP(D80,Liste!$A$10:$D$163,4),"") -> 
B81: =IF(A81>0,VLOOKUP(A81,Liste!$B$179 : Liste!$C$189,2),"") ->  | E81: =IF(D81>0,VLOOKUP(D81,Liste!$A$10:$D$163,4),"") -> 
B82: =IF(A82>0,VLOOKUP(A82,Liste!$B$179 : Liste!$C$189,2),"") ->  | E82: =IF(D82>0,VLOOKUP(D82,Liste!$A$10:$D$163,4),"") -> 
B83: =IF(A83>0,VLOOKUP(A83,Liste!$B$179 : Liste!$C$189,2),"") ->  | E83: =IF(D83>0,VLOOKUP(D83,Liste!$A$10:$D$163,4),"") -> 
B84: =IF(A84>0,VLOOKUP(A84,Liste!$B$179 : Liste!$C$189,2),"") ->  | E84: =IF(D84>0,VLOOKUP(D84,Liste!$A$10:$D$163,4),"") -> 
B85: =IF(A85>0,VLOOKUP(A85,Liste!$B$179 : Liste!$C$189,2),"") ->  | E85: =IF(D85>0,VLOOKUP(D85,Liste!$A$10:$D$163,4),"") -> 
B86: =IF(A86>0,VLOOKUP(A86,Liste!$B$179 : Liste!$C$189,2),"") ->  | E86: =IF(D86>0,VLOOKUP(D86,Liste!$A$10:$D$163,4),"") -> 
B87: =IF(A87>0,VLOOKUP(A87,Liste!$B$179 : Liste!$C$189,2),"") ->  | E87: =IF(D87>0,VLOOKUP(D87,Liste!$A$10:$D$163,4),"") -> 
B88: =IF(A88>0,VLOOKUP(A88,Liste!$B$179 : Liste!$C$189,2),"") ->  | E88: =IF(D88>0,VLOOKUP(D88,Liste!$A$10:$D$163,4),"") -> 
B89: =IF(A89>0,VLOOKUP(A89,Liste!$B$179 : Liste!$C$189,2),"") ->  | E89: =IF(D89>0,VLOOKUP(D89,Liste!$A$10:$D$163,4),"") -> 
B90: =IF(A90>0,VLOOKUP(A90,Liste!$B$179 : Liste!$C$189,2),"") ->  | E90: =IF(D90>0,VLOOKUP(D90,Liste!$A$10:$D$163,4),"") -> 
B91: =IF(A91>0,VLOOKUP(A91,Liste!$B$179 : Liste!$C$189,2),"") ->  | E91: =IF(D91>0,VLOOKUP(D91,Liste!$A$10:$D$163,4),"") -> 
B92: =IF(A92>0,VLOOKUP(A92,Liste!$B$179 : Liste!$C$189,2),"") ->  | E92: =IF(D92>0,VLOOKUP(D92,Liste!$A$10:$D$163,4),"") -> 
B93: =IF(A93>0,VLOOKUP(A93,Liste!$B$179 : Liste!$C$189,2),"") ->  | E93: =IF(D93>0,VLOOKUP(D93,Liste!$A$10:$D$163,4),"") -> 
B94: =IF(A94>0,VLOOKUP(A94,Liste!$B$179 : Liste!$C$189,2),"") ->  | E94: =IF(D94>0,VLOOKUP(D94,Liste!$A$10:$D$163,4),"") -> 
B95: =IF(A95>0,VLOOKUP(A95,Liste!$B$179 : Liste!$C$189,2),"") ->  | E95: =IF(D95>0,VLOOKUP(D95,Liste!$A$10:$D$163,4),"") -> 
B96: =IF(A96>0,VLOOKUP(A96,Liste!$B$179 : Liste!$C$189,2),"") ->  | E96: =IF(D96>0,VLOOKUP(D96,Liste!$A$10:$D$163,4),"") -> 
B97: =IF(A97>0,VLOOKUP(A97,Liste!$B$179 : Liste!$C$189,2),"") ->  | E97: =IF(D97>0,VLOOKUP(D97,Liste!$A$10:$D$163,4),"") -> 
B98: =IF(A98>0,VLOOKUP(A98,Liste!$B$179 : Liste!$C$189,2),"") ->  | E98: =IF(D98>0,VLOOKUP(D98,Liste!$A$10:$D$163,4),"") -> 
B99: =IF(A99>0,VLOOKUP(A99,Liste!$B$179 : Liste!$C$189,2),"") ->  | E99: =IF(D99>0,VLOOKUP(D99,Liste!$A$10:$D$163,4),"") -> 
B100: =IF(A100>0,VLOOKUP(A100,Liste!$B$179 : Liste!$C$189,2),"") ->  | E100: =IF(D100>0,VLOOKUP(D100,Liste!$A$10:$D$163,4),"") -> 
B101: =IF(A101>0,VLOOKUP(A101,Liste!$B$179 : Liste!$C$189,2),"") ->  | E101: =IF(D101>0,VLOOKUP(D101,Liste!$A$10:$D$163,4),"") -> 
B102: =IF(A102>0,VLOOKUP(A102,Liste!$B$179 : Liste!$C$189,2),"") ->  | E102: =IF(D102>0,VLOOKUP(D102,Liste!$A$10:$D$163,4),"") -> 
B103: =IF(A103>0,VLOOKUP(A103,Liste!$B$179 : Liste!$C$189,2),"") ->  | E103: =IF(D103>0,VLOOKUP(D103,Liste!$A$10:$D$163,4),"") -> 
B104: =IF(A104>0,VLOOKUP(A104,Liste!$B$179 : Liste!$C$189,2),"") ->  | E104: =IF(D104>0,VLOOKUP(D104,Liste!$A$10:$D$163,4),"") -> 
B105: =IF(A105>0,VLOOKUP(A105,Liste!$B$179 : Liste!$C$189,2),"") ->  | E105: =IF(D105>0,VLOOKUP(D105,Liste!$A$10:$D$163,4),"") -> 
B106: =IF(A106>0,VLOOKUP(A106,Liste!$B$179 : Liste!$C$189,2),"") ->  | E106: =IF(D106>0,VLOOKUP(D106,Liste!$A$10:$D$163,4),"") -> 
B107: =IF(A107>0,VLOOKUP(A107,Liste!$B$179 : Liste!$C$189,2),"") ->  | E107: =IF(D107>0,VLOOKUP(D107,Liste!$A$10:$D$163,4),"") -> 
B108: =IF(A108>0,VLOOKUP(A108,Liste!$B$179 : Liste!$C$189,2),"") ->  | E108: =IF(D108>0,VLOOKUP(D108,Liste!$A$10:$D$163,4),"") -> 
B109: =IF(A109>0,VLOOKUP(A109,Liste!$B$179 : Liste!$C$189,2),"") ->  | E109: =IF(D109>0,VLOOKUP(D109,Liste!$A$10:$D$163,4),"") -> 
B110: =IF(A110>0,VLOOKUP(A110,Liste!$B$179 : Liste!$C$189,2),"") ->  | E110: =IF(D110>0,VLOOKUP(D110,Liste!$A$10:$D$163,4),"") ->  | I110: =IF(AND(D110>0,F110+G110+H110=0),"EN ATTENTE",IF(F110+G110+H110>1,"ERREUR","")) -> 
B111: =IF(A111>0,VLOOKUP(A111,Liste!$B$179 : Liste!$C$189,2),"") ->  | E111: =IF(D111>0,VLOOKUP(D111,Liste!$A$10:$D$163,4),"") -> 
B112: =IF(A112>0,VLOOKUP(A112,Liste!$B$179 : Liste!$C$189,2),"") ->  | E112: =IF(D112>0,VLOOKUP(D112,Liste!$A$10:$D$163,4),"") -> 
B113: =IF(A113>0,VLOOKUP(A113,Liste!$B$179 : Liste!$C$189,2),"") ->  | E113: =IF(D113>0,VLOOKUP(D113,Liste!$A$10:$D$163,4),"") -> 
B114: =IF(A114>0,VLOOKUP(A114,Liste!$B$179 : Liste!$C$189,2),"") ->  | E114: =IF(D114>0,VLOOKUP(D114,Liste!$A$10:$D$163,4),"") -> 
B115: =IF(A115>0,VLOOKUP(A115,Liste!$B$179 : Liste!$C$189,2),"") ->  | E115: =IF(D115>0,VLOOKUP(D115,Liste!$A$10:$D$163,4),"") -> 
B116: =IF(A116>0,VLOOKUP(A116,Liste!$B$179 : Liste!$C$189,2),"") ->  | E116: =IF(D116>0,VLOOKUP(D116,Liste!$A$10:$D$163,4),"") -> 
B117: =IF(A117>0,VLOOKUP(A117,Liste!$B$179 : Liste!$C$189,2),"") ->  | E117: =IF(D117>0,VLOOKUP(D117,Liste!$A$10:$D$163,4),"") -> 
B118: =IF(A118>0,VLOOKUP(A118,Liste!$B$179 : Liste!$C$189,2),"") ->  | E118: =IF(D118>0,VLOOKUP(D118,Liste!$A$10:$D$163,4),"") -> 
B119: =IF(A119>0,VLOOKUP(A119,Liste!$B$179 : Liste!$C$189,2),"") ->  | E119: =IF(D119>0,VLOOKUP(D119,Liste!$A$10:$D$163,4),"") -> 
B120: =IF(A120>0,VLOOKUP(A120,Liste!$B$179 : Liste!$C$189,2),"") ->  | E120: =IF(D120>0,VLOOKUP(D120,Liste!$A$10:$D$163,4),"") -> 
B121: =IF(A121>0,VLOOKUP(A121,Liste!$B$179 : Liste!$C$189,2),"") ->  | E121: =IF(D121>0,VLOOKUP(D121,Liste!$A$10:$D$163,4),"") -> 
B122: =IF(A122>0,VLOOKUP(A122,Liste!$B$179 : Liste!$C$189,2),"") ->  | E122: =IF(D122>0,VLOOKUP(D122,Liste!$A$10:$D$163,4),"") -> 
B123: =IF(A123>0,VLOOKUP(A123,Liste!$B$179 : Liste!$C$189,2),"") ->  | E123: =IF(D123>0,VLOOKUP(D123,Liste!$A$10:$D$163,4),"") -> 
B124: =IF(A124>0,VLOOKUP(A124,Liste!$B$179 : Liste!$C$189,2),"") ->  | E124: =IF(D124>0,VLOOKUP(D124,Liste!$A$10:$D$163,4),"") -> 
B125: =IF(A125>0,VLOOKUP(A125,Liste!$B$179 : Liste!$C$189,2),"") ->  | E125: =IF(D125>0,VLOOKUP(D125,Liste!$A$10:$D$163,4),"") -> 
B126: =IF(A126>0,VLOOKUP(A126,Liste!$B$179 : Liste!$C$189,2),"") ->  | E126: =IF(D126>0,VLOOKUP(D126,Liste!$A$10:$D$163,4),"") -> 
B127: =IF(A127>0,VLOOKUP(A127,Liste!$B$179 : Liste!$C$189,2),"") ->  | E127: =IF(D127>0,VLOOKUP(D127,Liste!$A$10:$D$163,4),"") -> 
B128: =IF(A128>0,VLOOKUP(A128,Liste!$B$179 : Liste!$C$189,2),"") ->  | E128: =IF(D128>0,VLOOKUP(D128,Liste!$A$10:$D$163,4),"") -> 
B129: =IF(A129>0,VLOOKUP(A129,Liste!$B$179 : Liste!$C$189,2),"") ->  | E129: =IF(D129>0,VLOOKUP(D129,Liste!$A$10:$D$163,4),"") -> 
B130: =IF(A130>0,VLOOKUP(A130,Liste!$B$179 : Liste!$C$189,2),"") ->  | E130: =IF(D130>0,VLOOKUP(D130,Liste!$A$10:$D$163,4),"") -> 
B131: =IF(A131>0,VLOOKUP(A131,Liste!$B$179 : Liste!$C$189,2),"") ->  | E131: =IF(D131>0,VLOOKUP(D131,Liste!$A$10:$D$163,4),"") -> 
B132: =IF(A132>0,VLOOKUP(A132,Liste!$B$179 : Liste!$C$189,2),"") ->  | E132: =IF(D132>0,VLOOKUP(D132,Liste!$A$10:$D$163,4),"") -> 
B133: =IF(A133>0,VLOOKUP(A133,Liste!$B$179 : Liste!$C$189,2),"") ->  | E133: =IF(D133>0,VLOOKUP(D133,Liste!$A$10:$D$163,4),"") -> 
B134: =IF(A134>0,VLOOKUP(A134,Liste!$B$179 : Liste!$C$189,2),"") ->  | E134: =IF(D134>0,VLOOKUP(D134,Liste!$A$10:$D$163,4),"") -> 
B135: =IF(A135>0,VLOOKUP(A135,Liste!$B$179 : Liste!$C$189,2),"") ->  | E135: =IF(D135>0,VLOOKUP(D135,Liste!$A$10:$D$163,4),"") -> 
B136: =IF(A136>0,VLOOKUP(A136,Liste!$B$179 : Liste!$C$189,2),"") ->  | E136: =IF(D136>0,VLOOKUP(D136,Liste!$A$10:$D$163,4),"") -> 
B137: =IF(A137>0,VLOOKUP(A137,Liste!$B$179 : Liste!$C$189,2),"") ->  | E137: =IF(D137>0,VLOOKUP(D137,Liste!$A$10:$D$163,4),"") -> 
B138: =IF(A138>0,VLOOKUP(A138,Liste!$B$179 : Liste!$C$189,2),"") ->  | E138: =IF(D138>0,VLOOKUP(D138,Liste!$A$10:$D$163,4),"") -> 
B139: =IF(A139>0,VLOOKUP(A139,Liste!$B$179 : Liste!$C$189,2),"") ->  | E139: =IF(D139>0,VLOOKUP(D139,Liste!$A$10:$D$163,4),"") -> 
B140: =IF(A140>0,VLOOKUP(A140,Liste!$B$179 : Liste!$C$189,2),"") ->  | E140: =IF(D140>0,VLOOKUP(D140,Liste!$A$10:$D$163,4),"") -> 
B141: =IF(A141>0,VLOOKUP(A141,Liste!$B$179 : Liste!$C$189,2),"") ->  | E141: =IF(D141>0,VLOOKUP(D141,Liste!$A$10:$D$163,4),"") -> 
B142: =IF(A142>0,VLOOKUP(A142,Liste!$B$179 : Liste!$C$189,2),"") ->  | E142: =IF(D142>0,VLOOKUP(D142,Liste!$A$10:$D$163,4),"") -> 
B143: =IF(A143>0,VLOOKUP(A143,Liste!$B$179 : Liste!$C$189,2),"") ->  | E143: =IF(D143>0,VLOOKUP(D143,Liste!$A$10:$D$163,4),"") -> 
B144: =IF(A144>0,VLOOKUP(A144,Liste!$B$179 : Liste!$C$189,2),"") ->  | E144: =IF(D144>0,VLOOKUP(D144,Liste!$A$10:$D$163,4),"") -> 
B145: =IF(A145>0,VLOOKUP(A145,Liste!$B$179 : Liste!$C$189,2),"") ->  | E145: =IF(D145>0,VLOOKUP(D145,Liste!$A$10:$D$163,4),"") -> 
B146: =IF(A146>0,VLOOKUP(A146,Liste!$B$179 : Liste!$C$189,2),"") ->  | E146: =IF(D146>0,VLOOKUP(D146,Liste!$A$10:$D$163,4),"") -> 
B147: =IF(A147>0,VLOOKUP(A147,Liste!$B$179 : Liste!$C$189,2),"") ->  | E147: =IF(D147>0,VLOOKUP(D147,Liste!$A$10:$D$163,4),"") -> 
B148: =IF(A148>0,VLOOKUP(A148,Liste!$B$179 : Liste!$C$189,2),"") ->  | E148: =IF(D148>0,VLOOKUP(D148,Liste!$A$10:$D$163,4),"") -> 
B149: =IF(A149>0,VLOOKUP(A149,Liste!$B$179 : Liste!$C$189,2),"") ->  | E149: =IF(D149>0,VLOOKUP(D149,Liste!$A$10:$D$163,4),"") -> 
B150: =IF(A150>0,VLOOKUP(A150,Liste!$B$179 : Liste!$C$189,2),"") ->  | E150: =IF(D150>0,VLOOKUP(D150,Liste!$A$10:$D$163,4),"") -> 
B151: =IF(A151>0,VLOOKUP(A151,Liste!$B$179 : Liste!$C$189,2),"") ->  | E151: =IF(D151>0,VLOOKUP(D151,Liste!$A$10:$D$163,4),"") -> 
B152: =IF(A152>0,VLOOKUP(A152,Liste!$B$179 : Liste!$C$189,2),"") ->  | E152: =IF(D152>0,VLOOKUP(D152,Liste!$A$10:$D$163,4),"") -> 
B153: =IF(A153>0,VLOOKUP(A153,Liste!$B$179 : Liste!$C$189,2),"") ->  | E153: =IF(D153>0,VLOOKUP(D153,Liste!$A$10:$D$163,4),"") -> 
B154: =IF(A154>0,VLOOKUP(A154,Liste!$B$179 : Liste!$C$189,2),"") ->  | E154: =IF(D154>0,VLOOKUP(D154,Liste!$A$10:$D$163,4),"") -> 
B155: =IF(A155>0,VLOOKUP(A155,Liste!$B$179 : Liste!$C$189,2),"") ->  | E155: =IF(D155>0,VLOOKUP(D155,Liste!$A$10:$D$163,4),"") -> 
B156: =IF(A156>0,VLOOKUP(A156,Liste!$B$179 : Liste!$C$189,2),"") ->  | E156: =IF(D156>0,VLOOKUP(D156,Liste!$A$10:$D$163,4),"") -> 
B157: =IF(A157>0,VLOOKUP(A157,Liste!$B$179 : Liste!$C$189,2),"") ->  | E157: =IF(D157>0,VLOOKUP(D157,Liste!$A$10:$D$163,4),"") -> 
B158: =IF(A158>0,VLOOKUP(A158,Liste!$B$179 : Liste!$C$189,2),"") ->  | E158: =IF(D158>0,VLOOKUP(D158,Liste!$A$10:$D$163,4),"") -> 
B159: =IF(A159>0,VLOOKUP(A159,Liste!$B$179 : Liste!$C$189,2),"") ->  | E159: =IF(D159>0,VLOOKUP(D159,Liste!$A$10:$D$163,4),"") -> 
B160: =IF(A160>0,VLOOKUP(A160,Liste!$B$179 : Liste!$C$189,2),"") ->  | E160: =IF(D160>0,VLOOKUP(D160,Liste!$A$10:$D$163,4),"") -> 
B161: =IF(A161>0,VLOOKUP(A161,Liste!$B$179 : Liste!$C$189,2),"") ->  | E161: =IF(D161>0,VLOOKUP(D161,Liste!$A$10:$D$163,4),"") -> 
B162: =IF(A162>0,VLOOKUP(A162,Liste!$B$179 : Liste!$C$189,2),"") ->  | E162: =IF(D162>0,VLOOKUP(D162,Liste!$A$10:$D$163,4),"") -> 
B163: =IF(A163>0,VLOOKUP(A163,Liste!$B$179 : Liste!$C$189,2),"") ->  | E163: =IF(D163>0,VLOOKUP(D163,Liste!$A$10:$D$163,4),"") -> 
B164: =IF(A164>0,VLOOKUP(A164,Liste!$B$179 : Liste!$C$189,2),"") ->  | E164: =IF(D164>0,VLOOKUP(D164,Liste!$A$10:$D$163,4),"") -> 
B165: =IF(A165>0,VLOOKUP(A165,Liste!$B$179 : Liste!$C$189,2),"") ->  | E165: =IF(D165>0,VLOOKUP(D165,Liste!$A$10:$D$163,4),"") -> 
B166: =IF(A166>0,VLOOKUP(A166,Liste!$B$179 : Liste!$C$189,2),"") ->  | E166: =IF(D166>0,VLOOKUP(D166,Liste!$A$10:$D$163,4),"") -> 
B167: =IF(A167>0,VLOOKUP(A167,Liste!$B$179 : Liste!$C$189,2),"") ->  | E167: =IF(D167>0,VLOOKUP(D167,Liste!$A$10:$D$163,4),"") -> 
B168: =IF(A168>0,VLOOKUP(A168,Liste!$B$179 : Liste!$C$189,2),"") ->  | E168: =IF(D168>0,VLOOKUP(D168,Liste!$A$10:$D$163,4),"") -> 
B169: =IF(A169>0,VLOOKUP(A169,Liste!$B$179 : Liste!$C$189,2),"") ->  | E169: =IF(D169>0,VLOOKUP(D169,Liste!$A$10:$D$163,4),"") -> 
B170: =IF(A170>0,VLOOKUP(A170,Liste!$B$179 : Liste!$C$189,2),"") ->  | E170: =IF(D170>0,VLOOKUP(D170,Liste!$A$10:$D$163,4),"") -> 
B171: =IF(A171>0,VLOOKUP(A171,Liste!$B$179 : Liste!$C$189,2),"") ->  | E171: =IF(D171>0,VLOOKUP(D171,Liste!$A$10:$D$163,4),"") -> 
B172: =IF(A172>0,VLOOKUP(A172,Liste!$B$179 : Liste!$C$189,2),"") ->  | E172: =IF(D172>0,VLOOKUP(D172,Liste!$A$10:$D$163,4),"") -> 
B173: =IF(A173>0,VLOOKUP(A173,Liste!$B$179 : Liste!$C$189,2),"") ->  | E173: =IF(D173>0,VLOOKUP(D173,Liste!$A$10:$D$163,4),"") -> 
B174: =IF(A174>0,VLOOKUP(A174,Liste!$B$179 : Liste!$C$189,2),"") ->  | E174: =IF(D174>0,VLOOKUP(D174,Liste!$A$10:$D$163,4),"") ->  | I174: =IF(AND(D174>0,F174+G174+H174=0),"EN ATTENTE",IF(F174+G174+H174>1,"ERREUR","")) -> 
B175: =IF(A175>0,VLOOKUP(A175,Liste!$B$179 : Liste!$C$189,2),"") ->  | E175: =IF(D175>0,VLOOKUP(D175,Liste!$A$10:$D$163,4),"") -> 
B176: =IF(A176>0,VLOOKUP(A176,Liste!$B$179 : Liste!$C$189,2),"") ->  | E176: =IF(D176>0,VLOOKUP(D176,Liste!$A$10:$D$163,4),"") -> 
B177: =IF(A177>0,VLOOKUP(A177,Liste!$B$179 : Liste!$C$189,2),"") ->  | E177: =IF(D177>0,VLOOKUP(D177,Liste!$A$10:$D$163,4),"") -> 
B178: =IF(A178>0,VLOOKUP(A178,Liste!$B$179 : Liste!$C$189,2),"") ->  | E178: =IF(D178>0,VLOOKUP(D178,Liste!$A$10:$D$163,4),"") -> 
B179: =IF(A179>0,VLOOKUP(A179,Liste!$B$179 : Liste!$C$189,2),"") ->  | E179: =IF(D179>0,VLOOKUP(D179,Liste!$A$10:$D$163,4),"") -> 
B180: =IF(A180>0,VLOOKUP(A180,Liste!$B$179 : Liste!$C$189,2),"") ->  | E180: =IF(D180>0,VLOOKUP(D180,Liste!$A$10:$D$163,4),"") -> 
B181: =IF(A181>0,VLOOKUP(A181,Liste!$B$179 : Liste!$C$189,2),"") ->  | E181: =IF(D181>0,VLOOKUP(D181,Liste!$A$10:$D$163,4),"") -> 
B182: =IF(A182>0,VLOOKUP(A182,Liste!$B$179 : Liste!$C$189,2),"") ->  | E182: =IF(D182>0,VLOOKUP(D182,Liste!$A$10:$D$163,4),"") -> 
B183: =IF(A183>0,VLOOKUP(A183,Liste!$B$179 : Liste!$C$189,2),"") ->  | E183: =IF(D183>0,VLOOKUP(D183,Liste!$A$10:$D$163,4),"") -> 
B184: =IF(A184>0,VLOOKUP(A184,Liste!$B$179 : Liste!$C$189,2),"") ->  | E184: =IF(D184>0,VLOOKUP(D184,Liste!$A$10:$D$163,4),"") -> 
B185: =IF(A185>0,VLOOKUP(A185,Liste!$B$179 : Liste!$C$189,2),"") ->  | E185: =IF(D185>0,VLOOKUP(D185,Liste!$A$10:$D$163,4),"") -> 
B186: =IF(A186>0,VLOOKUP(A186,Liste!$B$179 : Liste!$C$189,2),"") ->  | E186: =IF(D186>0,VLOOKUP(D186,Liste!$A$10:$D$163,4),"") -> 
B187: =IF(A187>0,VLOOKUP(A187,Liste!$B$179 : Liste!$C$189,2),"") ->  | E187: =IF(D187>0,VLOOKUP(D187,Liste!$A$10:$D$163,4),"") -> 
B188: =IF(A188>0,VLOOKUP(A188,Liste!$B$179 : Liste!$C$189,2),"") ->  | E188: =IF(D188>0,VLOOKUP(D188,Liste!$A$10:$D$163,4),"") -> 
B189: =IF(A189>0,VLOOKUP(A189,Liste!$B$179 : Liste!$C$189,2),"") ->  | E189: =IF(D189>0,VLOOKUP(D189,Liste!$A$10:$D$163,4),"") -> 
B190: =IF(A190>0,VLOOKUP(A190,Liste!$B$179 : Liste!$C$189,2),"") ->  | E190: =IF(D190>0,VLOOKUP(D190,Liste!$A$10:$D$163,4),"") -> 
B191: =IF(A191>0,VLOOKUP(A191,Liste!$B$179 : Liste!$C$189,2),"") ->  | E191: =IF(D191>0,VLOOKUP(D191,Liste!$A$10:$D$163,4),"") -> 
B192: =IF(A192>0,VLOOKUP(A192,Liste!$B$179 : Liste!$C$189,2),"") ->  | E192: =IF(D192>0,VLOOKUP(D192,Liste!$A$10:$D$163,4),"") -> 
B193: =IF(A193>0,VLOOKUP(A193,Liste!$B$179 : Liste!$C$189,2),"") ->  | E193: =IF(D193>0,VLOOKUP(D193,Liste!$A$10:$D$163,4),"") -> 
B194: =IF(A194>0,VLOOKUP(A194,Liste!$B$179 : Liste!$C$189,2),"") ->  | E194: =IF(D194>0,VLOOKUP(D194,Liste!$A$10:$D$163,4),"") -> 
B195: =IF(A195>0,VLOOKUP(A195,Liste!$B$179 : Liste!$C$189,2),"") ->  | E195: =IF(D195>0,VLOOKUP(D195,Liste!$A$10:$D$163,4),"") -> 
B196: =IF(A196>0,VLOOKUP(A196,Liste!$B$179 : Liste!$C$189,2),"") ->  | E196: =IF(D196>0,VLOOKUP(D196,Liste!$A$10:$D$163,4),"") -> 
B197: =IF(A197>0,VLOOKUP(A197,Liste!$B$179 : Liste!$C$189,2),"") ->  | E197: =IF(D197>0,VLOOKUP(D197,Liste!$A$10:$D$163,4),"") -> 
B198: =IF(A198>0,VLOOKUP(A198,Liste!$B$179 : Liste!$C$189,2),"") ->  | E198: =IF(D198>0,VLOOKUP(D198,Liste!$A$10:$D$163,4),"") -> 
B199: =IF(A199>0,VLOOKUP(A199,Liste!$B$179 : Liste!$C$189,2),"") ->  | E199: =IF(D199>0,VLOOKUP(D199,Liste!$A$10:$D$163,4),"") -> 
B200: =IF(A200>0,VLOOKUP(A200,Liste!$B$179 : Liste!$C$189,2),"") ->  | E200: =IF(D200>0,VLOOKUP(D200,Liste!$A$10:$D$163,4),"") -> 
B201: =IF(A201>0,VLOOKUP(A201,Liste!$B$179 : Liste!$C$189,2),"") ->  | E201: =IF(D201>0,VLOOKUP(D201,Liste!$A$10:$D$163,4),"") -> 
B202: =IF(A202>0,VLOOKUP(A202,Liste!$B$179 : Liste!$C$189,2),"") ->  | E202: =IF(D202>0,VLOOKUP(D202,Liste!$A$10:$D$163,4),"") -> 
B203: =IF(A203>0,VLOOKUP(A203,Liste!$B$179 : Liste!$C$189,2),"") ->  | E203: =IF(D203>0,VLOOKUP(D203,Liste!$A$10:$D$163,4),"") -> 
... 127 more rows

Sheet F.MERE
A1: =Liste!C4 -> 00:00:00 | C1: =$AI$10&$AJ$10 ->  | K1: =$AI$10&$AJ$10 ->  | Q1: 1 | R1: 2 | S1: 3 | T1: 4 | AC1: 24 | AD1: 25 | AE1: 25.1 | AF1: 26 | AG1: 26.1
C2: POUR | D2: CONTRE | E2: ABSTENT | F2: Total TANT. | G2: P. R | H2: x | I2: PRES. Votants | J2: Tant. Repré. | K2: POUR | L2: CONTRE | M2: ABSTENT | N2: TOTAL | Q2: 1 | R2: BAT,A | S2: BAT,B | T2: TANT 4 | U2: TANT.5 | V2: TANT.6 | W2: TANT. | X2: TANT. | Y2: TANT. | Z2: TANT. | AA2: TANT. | AC2: =240*(A2=24)*(L3>K3)+241*(A2=24)*(K3>L3) -> 0 | AD2: =250*(A2=25)*(K3<AI7)+251*(A2=25)*(K3>AI7)+2*(A2=25)*(K3>=AK7)*(K3<AI7) -> 0 | AE2: =255*(A2=25.1)*(K3>AK7)+256*(A2=25.1)*(K3<AK7) -> 0 | AF2: =260*(A2=26)*((K3<AJ7)*(K7<AJ8))+261*(A2=26)*((K3>AJ7)*(K3>AJ8))+2*(A2=26)*(K3>=AK7)*(K3<=AJ7) -> 0 | AG2: =262*(A2=26.1)*(K3>=AI7)+260*(A2=26.1)*(K3<AI7) -> 0 | AJ2: =SUM(AC2:AI2) -> 0 | AL2: 2 | AN2: 240 | AO2: =CONCATENATE( "REFUSEE par ",D3," voix CONTRE et ",V3," voix POUR") -> REFUSEE par 0 voix CONTRE et 0 voix POUR
A3: Nom | C3: =SUM($C$14:$C$163) -> 0 | D3: =SUM($D$14:$D$163) -> 0 | E3: =SUM($E$14:$E163) -> 0 | F3: =SUM($F$14:$F$163) -> 4822 | G3: =E11 -> 15 | I3: =SUM($I$14:$I$163) -> 15 | J3: =SUM($J$14:$J$163) -> 4822 | K3: =SUM($C$14:$C$163) -> 0 | L3: =SUM($D$14:$D$163) -> 0 | M3: =SUM($E$14:$E163) -> 0 | N3: =K3+L3+M3 -> 0 | O3: =IF(N3=E10,"","EN ATTENTE") -> EN ATTENTE | Q3: =SUM(Q14:Q163) -> 10340 | R3: =SUM(R14:R163) -> 10000 | S3: =SUM(S14:S163) -> 10000 | T3: =SUM(T14:T163) -> 0 | U3: =SUM(U14:U163) -> 0 | V3: =SUM(V14:V63) -> 0 | W3: =SUM(W14:W163) -> 0 | X3: 0 | Y3: =SUM(Y14:Y163) -> 0 | Z3: 0 | AA3: =SUM(AA14:AA163) -> 0 | AC3: =0*(A3=24)*(L4>K4)+1*(A2=24)*(K2>L3) -> 0 | AD3: =0*(A2=25)*(K3<AI7)+1*(A2=25)*(K3>AI7)+1*(A2=25)*(K3>=AK8)*(K3<AI7) -> 0 | AE3: =1*(A2=25.1)*(K3>AK7)+0*(A3=25.1)*(K3<AK7) -> 0 | AF3: =260*(A3=26)*((K4<AJ8)+(K8<AJ9)*(K4<=AK8))+261*(A3=26)*((K4>AJ8)*(K4>AJ9)) -> 0 | AG3: =262*(A3=26.1)*(K4>=AI8)+260*(A3=26.1)*(K4<AI8) -> 0 | AJ3: =SUM(AC3:AI3) -> 0 | AN3: 241 | AO3: =CONCATENATE( "ADOPTEE par ",C3," voix POUR et ",D3," voix CONTRE.") -> ADOPTEE par 0 voix POUR et 0 voix CONTRE.
A4: Clé | B4: 1 | Q4: =COUNTIF(Q14:Q163,">0") -> 35 | R4: =COUNTIF(R14:R163,">0") -> 16 | S4: =COUNTIF(S14:S163,">0") -> 11 | T4: =COUNTIF(T14:T163,">0") -> 0 | U4: =COUNTIF(U14:U163,">0") -> 0 | V4: =COUNTIF(V13:V14,">0") -> 0 | W4: =COUNTIF(W14:W163,">0") -> 0 | X4: =COUNTIF(X14:X163,">0") -> 0 | Y4: =COUNTIF(Y14:Y163,">0") -> 0 | Z4: =COUNTIF(Z14:Z163,">0") -> 0 | AA4: =COUNTIF(AA14:AA163,">0") -> 0 | AN4: 250 | AO4: =CONCATENATE(" REFUSEE,Pas de possibilité de 2e vote") -> REFUSEE,Pas de possibilité de 2e vote
C5: =VLOOKUP($AJ$2,$AN$2:$AO$13,2,FALSE) ->  | K5: =IF(A2=26, AJ11,"") ->  | AB5: 260 | AC5: =+K37 -> 0 | AI5: 25 Maj; Voix | AJ5: 26 Maj.2/3 Voix | AK5: 26 Maj 1/3 voix | AN5: 251 | AO5: =IF(AJ2=251,CONCATENATE(" ADOPTEE par ",C3," voix POUR et ",D3," voix CONTRE"),"") -> 
J6: NOMBRE : | K6: POUR | L6: CONTRE | M6: ABSTENT | N6: VOTANTS | AB6: 261 | AC6: =261*(A2=26)*((K3>AJ7)*(K7>AJ8)) -> 0 | AI6: Tous Copros | AJ6: Tous Copros | AK6: Tous copros | AN6: 252 | AO6: =CONCATENATE("Possibilité d'un deuxième vote à l'article 25,1, majorité 24, ") -> Possibilité d'un deuxième vote à l'article 25,1, majorité 24,
G7: =IF(SUM($O$14:$O$163)>0,"LIMITES DEPASSEES","") ->  | K7: =SUM($K$14:$K$163) -> 0 | L7: =SUM($L$14:$L$163) -> 0 | M7: =SUM($M$14:$M$163) -> 0 | N7: =K7+L7+M7 -> 0 | O7: =IF(N7=E11,"","EN ATTENTE") -> EN ATTENTE | AB7: 262 | AE7: Voix ¨POUR | AF7: =K3 -> 0 | AI7: =ROUNDDOWN((D10)/2+1,0) -> 5171 | AJ7: =ROUNDDOWN((D10)*2/3+1,0) -> 6894 | AK7: =ROUNDDOWN((D10)*1/3+1,0) -> 3447 | AL7: =ROUNDUP(E10/2,0) -> 2411 | AN7: 260 | AO7: =IF(AJ2=260,CONCATENATE("Rejetée part ",C3," voix POUR, inférieures à ",AJ7,"ou inférieurs à ",AJ8," copropriétaires);""")) -> FALSE
C8: Total | D8: Total | E8: Prés.Repr | AE8: Nbre Copros ¨POUR | AF8: =K7 -> 0 | AJ8: =ROUNDUP(($D$11+0.1)/2,0) -> 18 | AL8: =ROUNDUP(E11/2,0) -> 8 | AN8: 261 | AO8: =IF(AJ2=261,CONCATENATE(" ADOPTEE par ",C3," voix POUR et ",D3," voix CONTRE")) -> FALSE
C9: Syndicat | D9: CLE | E9: Tot.Votants | K9: =VLOOKUP($AJ$2,$AN$2:$AO$13,2,FALSE) ->  | AN9: 262 | AO9: =CONCATENATE("Possibilité d'un deuxième vote à l'article 26,1 ") -> Possibilité d'un deuxième vote à l'article 26,1
C10: =HLOOKUP(1,$Q$1:$AA$4,3,FALSE) -> 10340 | D10: =HLOOKUP($B$4,$Q$1:$AA$4,3,FALSE) -> 10340 | E10: =SUM($F$14:$F$163) -> 4822 | F10: VOIX | AI10: =IF($A$2=25,">= " & $AI$7,"") ->  | AJ10: =IF($A$2=26,">= " & $AJ$7,"") ->  | AK10: =IF($A$2=26.1,">= " & $AK7,"") ->  | AN10: 265 | AO10: REFUSEE
C11: =HLOOKUP(1,$Q$1:$AA$4,4,FALSE) -> 35 | D11: =HLOOKUP($B$4,$Q$1:$AA$4,4,FALSE) -> 35 | E11: =SUM($I$14:$I$163) -> 15 | F11: NOMBRE | AD11: Nombre de dépassemnts | AJ11: =IF($A$2=26,">= " & $AJ$8,"") ->  | AN11: 266 | AO11: ADOPTEE par 3596 voix POUR et 1714 voix CONTRE.
M12: =IF(COUNTIF($N$14:$N$163,"ERREUR")>0,"ERREUR","") ->  | N12: =IF(COUNTIF($N$14:$N$163,"EN ATTENTE")>0,"EN ATTENTE","") -> EN ATTENTE | O12: 0.1 | Q12: 1 | R12: 2 | S12: 3 | T12: 4 | U12: 5 | V12: 6 | W12: 7 | X12: 8 | Y12: 9 | Z12: 10 | AA12: 11
A13: N° Ordre | B13: NOMS | C13: Voix POUR | D13: Voix CONTRE | E13: Voix Abst. | F13: Total TANT. | G13: P. R | H13: Rep.par | I13: PRES. Votants | J13: Tant. Repré. | K13: Votes POUR | L13: Votes CONTRE | M13: Votes ABST, | N13: VERIF | O13: LIMITES | P13: Votes | Q13: TANT.GEN | R13: =R2 -> BAT,A | S13: BAT,B | T13: TANT 4 | U13: TANT.5 | V13: TANT.6 | W13: TANT. | X13: TANT. | Y13: TANT. | Z13: TANT. | AA13: TANT. | AB13: X | AC13: Nombre Représentés | AD13: Total Voix | AE13: XX
A14: 1 | B14: =IF(A14<>0,VLOOKUP(A14,Liste!$A$10:$D$159,4,FALSE),"") -> ALEXANDRINI André | C14: =F14*(K14=1) -> 0 | D14: =F14*(L14=1) -> 0 | E14: =F14*(M14=1) -> 0 | F14: =IF(I14=1,VLOOKUP(A14,$A$14:$AA$163,16+$B$4,0),0) -> 0 | I14: =1*(IF(G14>=1,VLOOKUP(A14,$A$14:$AA$163,16+$B$4,0)>0)) -> 0 | J14: =IF(F14>0,F14,0) -> 0 | K14: =IF(AND($I14=1,$H14>0),VLOOKUP($H14,$A$14:AD$163,11,FALSE),0) -> 0 | L14: =IF(AND($I14=1,$H14>0),VLOOKUP($H14,$A$14:AE$163,12,FALSE),0) -> 0 | M14: =IF(AND($I14=1,$H14>0),VLOOKUP($H14,$A$14:AF$163,13,FALSE),0) -> 0 | N14: =IF(AND(I14>0,K14+L14+M14=0),"EN ATTENTE",IF(K14+L14+M14>1,"ERREUR","")) ->  | O14: =IF(AND(AC14>3,AD14>$D$10*$O$12),1,"") ->  | P14: =IF(I14=1,K14*(K14=1)+L14*2*(L14=1)+M14*3*(M14=1),"") ->  | Q14: 568 | R14: 474 | AB14: =(H14+I14)*(J14>0) -> 0 | AC14: =COUNTIF($H$14:$H$163,A14) -> 0 | AD14: =SUMIF($H$14:$H$163,A14,$J$14:$J$163)+(J14*(AC14>0)) -> 0 | AE14: =IF(H14>0,H14+0.5*(I14=1),A14*(I14=1))+(1000*(I14<1)) -> 1000
A15: 2 | B15: =IF(A15<>0,VLOOKUP(A15,Liste!$A$10:$D$159,4,FALSE),"") -> ANNINOS Henri | C15: 0 | D15: 0 | E15: 0 | F15: =IF(I15=1,VLOOKUP(A15,$A$14:$AA$163,16+$B$4,0),0) -> 290 | G15: 1 | I15: 1 | J15: 290 | K15: =IF(AND($I15=1,$H15>0),VLOOKUP($H15,$A$14:AD$163,11,FALSE),0) -> 0 | L15: =IF(AND($I15=1,$H15>0),VLOOKUP($H15,$A$14:AE$163,12,FALSE),0) -> 0 | M15: =IF(AND($I15=1,$H15>0),VLOOKUP($H15,$A$14:AF$163,13,FALSE),0) -> 0 | N15: EN ATTENTE | P15: 0 | Q15: =IF(A15<>0,VLOOKUP(A15,Liste!$A$10:$K$159,8,FALSE),"") -> 290 | R15: 595 | AB15: =(H15+I15)*(J15>0) -> 1 | AC15: =COUNTIF($H$14:$H$163,A15) -> 0 | AD15: =SUMIF($H$14:$H$163,A15,$J$14:$J$163)+(J15*(AC15>0)) -> 0 | AE15: =IF(H15>0,H15+0.5*(I15=1),A15*(I15=1))+(1000*(I15<1)) -> 2
A16: 3 | B16: =IF(A16<>0,VLOOKUP(A16,Liste!$A$10:$D$159,4,FALSE),"") -> BALDACCHINO Laurence | C16: 0 | D16: 0 | E16: 0 | F16: 319 | G16: 1 | I16: 1 | J16: 319 | K16: =IF(AND($I16=1,$H16>0),VLOOKUP($H16,$A$14:AD$163,11,FALSE),0) -> 0 | L16: =IF(AND($I16=1,$H16>0),VLOOKUP($H16,$A$14:AE$163,12,FALSE),0) -> 0 | M16: =IF(AND($I16=1,$H16>0),VLOOKUP($H16,$A$14:AF$163,13,FALSE),0) -> 0 | N16: EN ATTENTE | P16: 0 | Q16: =IF(A16<>0,VLOOKUP(A16,Liste!$A$10:$K$159,8,FALSE),"") -> 319 | R16: 846 | AB16: 1 | AC16: 0 | AD16: 0 | AE16: 3
A17: 4 | B17: =IF(A17<>0,VLOOKUP(A17,Liste!$A$10:$D$159,4,FALSE),"") -> BANCHET Joseph | C17: 0 | D17: 0 | E17: 0 | F17: 294 | G17: 1 | I17: 1 | J17: 294 | K17: =IF(AND($I17=1,$H17>0),VLOOKUP($H17,$A$14:AD$163,11,FALSE),0) -> 0 | L17: =IF(AND($I17=1,$H17>0),VLOOKUP($H17,$A$14:AE$163,12,FALSE),0) -> 0 | M17: =IF(AND($I17=1,$H17>0),VLOOKUP($H17,$A$14:AF$163,13,FALSE),0) -> 0 | N17: EN ATTENTE | P17: 0 | Q17: =IF(A17<>0,VLOOKUP(A17,Liste!$A$10:$K$159,8,FALSE),"") -> 294 | R17: 508 | AB17: 1 | AC17: 0 | AD17: 0 | AE17: 4
A18: 5 | B18: =IF(A18<>0,VLOOKUP(A18,Liste!$A$10:$D$159,4,FALSE),"") -> BARDIN Andrée | C18: 0 | D18: 0 | E18: 0 | F18: 0 | I18: 0 | J18: 0 | K18: =IF(AND($I18=1,$H18>0),VLOOKUP($H18,$A$14:AD$163,11,FALSE),0) -> 0 | L18: =IF(AND($I18=1,$H18>0),VLOOKUP($H18,$A$14:AE$163,12,FALSE),0) -> 0 | M18: =IF(AND($I18=1,$H18>0),VLOOKUP($H18,$A$14:AF$163,13,FALSE),0) -> 0 | Q18: =IF(A18<>0,VLOOKUP(A18,Liste!$A$10:$K$159,8,FALSE),"") -> 287 | R18: 426 | AB18: 0 | AC18: 0 | AD18: 0 | AE18: 1000
A19: 6 | B19: =IF(A19<>0,VLOOKUP(A19,Liste!$A$10:$D$159,4,FALSE),"") -> BARDIN-BENARD Louis | C19: 0 | D19: 0 | E19: 0 | F19: 0 | I19: 0 | J19: 0 | K19: =IF(AND($I19=1,$H19>0),VLOOKUP($H19,$A$14:AD$163,11,FALSE),0) -> 0 | L19: =IF(AND($I19=1,$H19>0),VLOOKUP($H19,$A$14:AE$163,12,FALSE),0) -> 0 | M19: =IF(AND($I19=1,$H19>0),VLOOKUP($H19,$A$14:AF$163,13,FALSE),0) -> 0 | Q19: =IF(A19<>0,VLOOKUP(A19,Liste!$A$10:$K$159,8,FALSE),"") -> 257 | R19: 380 | AB19: 0 | AC19: 0 | AD19: 0 | AE19: 1000
A20: 7 | B20: =IF(A20<>0,VLOOKUP(A20,Liste!$A$10:$D$159,4,FALSE),"") -> BARDOUILLE Hermine | C20: 0 | D20: 0 | E20: 0 | F20: 371 | G20: 2 | I20: 1 | J20: 371 | K20: =IF(AND($I20=1,$H20>0),VLOOKUP($H20,$A$14:AD$163,11,FALSE),0) -> 0 | L20: =IF(AND($I20=1,$H20>0),VLOOKUP($H20,$A$14:AE$163,12,FALSE),0) -> 0 | M20: =IF(AND($I20=1,$H20>0),VLOOKUP($H20,$A$14:AF$163,13,FALSE),0) -> 0 | N20: EN ATTENTE | P20: 0 | Q20: =IF(A20<>0,VLOOKUP(A20,Liste!$A$10:$K$159,8,FALSE),"") -> 371 | R20: 595 | AB20: 1 | AC20: 0 | AD20: 0 | AE20: 7
A21: 8 | B21: =IF(A21<>0,VLOOKUP(A21,Liste!$A$10:$D$159,4,FALSE),"") -> BARDOUILLE Jean Yves | C21: 0 | D21: 0 | E21: 0 | F21: 0 | I21: 0 | J21: 0 | K21: =IF(AND($I21=1,$H21>0),VLOOKUP($H21,$A$14:AD$163,11,FALSE),0) -> 0 | L21: =IF(AND($I21=1,$H21>0),VLOOKUP($H21,$A$14:AE$163,12,FALSE),0) -> 0 | M21: =IF(AND($I21=1,$H21>0),VLOOKUP($H21,$A$14:AF$163,13,FALSE),0) -> 0 | Q21: =IF(A21<>0,VLOOKUP(A21,Liste!$A$10:$K$159,8,FALSE),"") -> 569 | R21: 846 | AB21: 0 | AC21: 0 | AD21: 0 | AE21: 1000
A22: 9 | B22: =IF(A22<>0,VLOOKUP(A22,Liste!$A$10:$D$159,4,FALSE),"") -> BAUDINO | C22: 0 | D22: 0 | E22: 0 | F22: 431 | G22: 2 | H22: 16 | I22: 1 | J22: 431 | K22: =IF(AND($I22=1,$H22>0),VLOOKUP($H22,$A$14:AD$163,11,FALSE),0) -> 0 | L22: =IF(AND($I22=1,$H22>0),VLOOKUP($H22,$A$14:AE$163,12,FALSE),0) -> 0 | M22: =IF(AND($I22=1,$H22>0),VLOOKUP($H22,$A$14:AF$163,13,FALSE),0) -> 0 | N22: EN ATTENTE | P22: 0 | Q22: =IF(A22<>0,VLOOKUP(A22,Liste!$A$10:$K$159,8,FALSE),"") -> 431 | R22: 715 | AB22: 17 | AC22: 0 | AD22: 0 | AE22: 16.5
A23: 10 | B23: =IF(A23<>0,VLOOKUP(A23,Liste!$A$10:$D$159,4,FALSE),"") -> BAUGUIL André | C23: 0 | D23: 0 | E23: 0 | F23: 0 | I23: 0 | J23: 0 | K23: =IF(AND($I23=1,$H23>0),VLOOKUP($H23,$A$14:AD$163,11,FALSE),0) -> 0 | L23: =IF(AND($I23=1,$H23>0),VLOOKUP($H23,$A$14:AE$163,12,FALSE),0) -> 0 | M23: =IF(AND($I23=1,$H23>0),VLOOKUP($H23,$A$14:AF$163,13,FALSE),0) -> 0 | Q23: =IF(A23<>0,VLOOKUP(A23,Liste!$A$10:$K$159,8,FALSE),"") -> 360 | R23: 534 | AB23: 0 | AC23: 0 | AD23: 0 | AE23: 1000
A24: 11 | B24: =IF(A24<>0,VLOOKUP(A24,Liste!$A$10:$D$159,4,FALSE),"") -> BAUMGARTNER Peter | C24: 0 | D24: 0 | E24: 0 | F24: 0 | I24: 0 | J24: 0 | K24: =IF(AND($I24=1,$H24>0),VLOOKUP($H24,$A$14:AD$163,11,FALSE),0) -> 0 | L24: =IF(AND($I24=1,$H24>0),VLOOKUP($H24,$A$14:AE$163,12,FALSE),0) -> 0 | M24: =IF(AND($I24=1,$H24>0),VLOOKUP($H24,$A$14:AF$163,13,FALSE),0) -> 0 | Q24: =IF(A24<>0,VLOOKUP(A24,Liste!$A$10:$K$159,8,FALSE),"") -> 380 | R24: 595 | AB24: 0 | AC24: 0 | AD24: 0 | AE24: 1000
A25: 12 | B25: =IF(A25<>0,VLOOKUP(A25,Liste!$A$10:$D$159,4,FALSE),"") -> BECH Monique | C25: 0 | D25: 0 | E25: 0 | F25: 519 | G25: 2 | H25: 16 | I25: 1 | J25: 519 | K25: =IF(AND($I25=1,$H25>0),VLOOKUP($H25,$A$14:AD$163,11,FALSE),0) -> 0 | L25: =IF(AND($I25=1,$H25>0),VLOOKUP($H25,$A$14:AE$163,12,FALSE),0) -> 0 | M25: =IF(AND($I25=1,$H25>0),VLOOKUP($H25,$A$14:AF$163,13,FALSE),0) -> 0 | N25: EN ATTENTE | P25: 0 | Q25: =IF(A25<>0,VLOOKUP(A25,Liste!$A$10:$K$159,8,FALSE),"") -> 519 | R25: 846 | AB25: 17 | AC25: 0 | AD25: 0 | AE25: 16.5
A26: 13 | B26: =IF(A26<>0,VLOOKUP(A26,Liste!$A$10:$D$159,4,FALSE),"") -> BERGET Jean François | C26: 0 | D26: 0 | E26: 0 | F26: 0 | I26: 0 | J26: 0 | K26: =IF(AND($I26=1,$H26>0),VLOOKUP($H26,$A$14:AD$163,11,FALSE),0) -> 0 | L26: =IF(AND($I26=1,$H26>0),VLOOKUP($H26,$A$14:AE$163,12,FALSE),0) -> 0 | M26: =IF(AND($I26=1,$H26>0),VLOOKUP($H26,$A$14:AF$163,13,FALSE),0) -> 0 | Q26: =IF(A26<>0,VLOOKUP(A26,Liste!$A$10:$K$159,8,FALSE),"") -> 381 | R26: 595 | AB26: 0 | AC26: 0 | AD26: 0 | AE26: 1000
A27: 14 | B27: =IF(A27<>0,VLOOKUP(A27,Liste!$A$10:$D$159,4,FALSE),"") -> BERLIER David | C27: 0 | D27: 0 | E27: 0 | F27: 391 | G27: 1 | I27: 1 | J27: 391 | K27: =IF(AND($I27=1,$H27>0),VLOOKUP($H27,$A$14:AD$163,11,FALSE),0) -> 0 | L27: =IF(AND($I27=1,$H27>0),VLOOKUP($H27,$A$14:AE$163,12,FALSE),0) -> 0 | M27: =IF(AND($I27=1,$H27>0),VLOOKUP($H27,$A$14:AF$163,13,FALSE),0) -> 0 | N27: EN ATTENTE | P27: 0 | Q27: =IF(A27<>0,VLOOKUP(A27,Liste!$A$10:$K$159,8,FALSE),"") -> 391 | R27: 595 | AB27: 1 | AC27: 0 | AD27: 0 | AE27: 14
A28: 15 | B28: =IF(A28<>0,VLOOKUP(A28,Liste!$A$10:$D$159,4,FALSE),"") -> BESSON Gabriel | C28: 0 | D28: 0 | E28: 0 | F28: 380 | G28: 1 | I28: 1 | J28: 380 | K28: =IF(AND($I28=1,$H28>0),VLOOKUP($H28,$A$14:AD$163,11,FALSE),0) -> 0 | L28: =IF(AND($I28=1,$H28>0),VLOOKUP($H28,$A$14:AE$163,12,FALSE),0) -> 0 | M28: =IF(AND($I28=1,$H28>0),VLOOKUP($H28,$A$14:AF$163,13,FALSE),0) -> 0 | N28: EN ATTENTE | P28: 0 | Q28: =IF(A28<>0,VLOOKUP(A28,Liste!$A$10:$K$159,8,FALSE),"") -> 380 | R28: 772 | AB28: 1 | AC28: 0 | AD28: 0 | AE28: 15
A29: 16 | B29: =IF(A29<>0,VLOOKUP(A29,Liste!$A$10:$D$159,4,FALSE),"") -> DENIS Jacques | C29: 0 | D29: 0 | E29: 0 | F29: 315 | G29: 2 | I29: 1 | J29: 315 | K29: =IF(AND($I29=1,$H29>0),VLOOKUP($H29,$A$14:AD$163,11,FALSE),0) -> 0 | L29: =IF(AND($I29=1,$H29>0),VLOOKUP($H29,$A$14:AE$163,12,FALSE),0) -> 0 | M29: =IF(AND($I29=1,$H29>0),VLOOKUP($H29,$A$14:AF$163,13,FALSE),0) -> 0 | N29: EN ATTENTE | P29: 0 | Q29: =IF(A29<>0,VLOOKUP(A29,Liste!$A$10:$K$159,8,FALSE),"") -> 315 | R29: 678 | AB29: 1 | AC29: 2 | AD29: 1265 | AE29: 16
A30: 17 | B30: =IF(A30<>0,VLOOKUP(A30,Liste!$A$10:$D$159,4,FALSE),"") -> DI JORIO Brigitte | C30: 0 | D30: 0 | E30: 0 | F30: 244 | G30: 2 | I30: 1 | J30: 244 | K30: =IF(AND($I30=1,$H30>0),VLOOKUP($H30,$A$14:AD$163,11,FALSE),0) -> 0 | L30: =IF(AND($I30=1,$H30>0),VLOOKUP($H30,$A$14:AE$163,12,FALSE),0) -> 0 | M30: =IF(AND($I30=1,$H30>0),VLOOKUP($H30,$A$14:AF$163,13,FALSE),0) -> 0 | N30: EN ATTENTE | P30: 0 | Q30: =IF(A30<>0,VLOOKUP(A30,Liste!$A$10:$K$159,8,FALSE),"") -> 244 | S30: 1040 | AB30: 1 | AC30: 0 | AD30: 0 | AE30: 17
A31: 18 | B31: =IF(A31<>0,VLOOKUP(A31,Liste!$A$10:$D$159,4,FALSE),"") -> DI JORIO Marcel | C31: 0 | D31: 0 | E31: 0 | F31: 289 | G31: 1 | I31: 1 | J31: 289 | K31: =IF(AND($I31=1,$H31>0),VLOOKUP($H31,$A$14:AD$163,11,FALSE),0) -> 0 | L31: =IF(AND($I31=1,$H31>0),VLOOKUP($H31,$A$14:AE$163,12,FALSE),0) -> 0 | M31: =IF(AND($I31=1,$H31>0),VLOOKUP($H31,$A$14:AF$163,13,FALSE),0) -> 0 | N31: EN ATTENTE | P31: 0 | Q31: =IF(A31<>0,VLOOKUP(A31,Liste!$A$10:$K$159,8,FALSE),"") -> 289 | S31: 762 | AB31: 1 | AC31: 0 | AD31: 0 | AE31: 18
A32: 19 | B32: =IF(A32<>0,VLOOKUP(A32,Liste!$A$10:$D$159,4,FALSE),"") -> DI MEGLIO Laurent | C32: 0 | D32: 0 | E32: 0 | F32: 0 | I32: 0 | J32: 0 | K32: =IF(AND($I32=1,$H32>0),VLOOKUP($H32,$A$14:AD$163,11,FALSE),0) -> 0 | L32: =IF(AND($I32=1,$H32>0),VLOOKUP($H32,$A$14:AE$163,12,FALSE),0) -> 0 | M32: =IF(AND($I32=1,$H32>0),VLOOKUP($H32,$A$14:AF$163,13,FALSE),0) -> 0 | Q32: =IF(A32<>0,VLOOKUP(A32,Liste!$A$10:$K$159,8,FALSE),"") -> 237 | S32: 1402 | AB32: 0 | AC32: 0 | AD32: 0 | AE32: 1000
A33: 20 | B33: =IF(A33<>0,VLOOKUP(A33,Liste!$A$10:$D$159,4,FALSE),"") -> DRAGOTTA Michel | C33: 0 | D33: 0 | E33: 0 | F33: 0 | I33: 0 | J33: 0 | K33: =IF(AND($I33=1,$H33>0),VLOOKUP($H33,$A$14:AD$163,11,FALSE),0) -> 0 | L33: =IF(AND($I33=1,$H33>0),VLOOKUP($H33,$A$14:AE$163,12,FALSE),0) -> 0 | M33: =IF(AND($I33=1,$H33>0),VLOOKUP($H33,$A$14:AF$163,13,FALSE),0) -> 0 | Q33: =IF(A33<>0,VLOOKUP(A33,Liste!$A$10:$K$159,8,FALSE),"") -> 286 | S33: 1015 | AB33: 0 | AC33: 0 | AD33: 0 | AE33: 1000
A34: 21 | B34: =IF(A34<>0,VLOOKUP(A34,Liste!$A$10:$D$159,4,FALSE),"") -> DUBOURG Pierre | C34: 0 | D34: 0 | E34: 0 | F34: 323 | G34: 2 | I34: 1 | J34: 323 | K34: =IF(AND($I34=1,$H34>0),VLOOKUP($H34,$A$14:AD$163,11,FALSE),0) -> 0 | L34: =IF(AND($I34=1,$H34>0),VLOOKUP($H34,$A$14:AE$163,12,FALSE),0) -> 0 | M34: =IF(AND($I34=1,$H34>0),VLOOKUP($H34,$A$14:AF$163,13,FALSE),0) -> 0 | N34: EN ATTENTE | P34: 0 | Q34: =IF(A34<>0,VLOOKUP(A34,Liste!$A$10:$K$159,8,FALSE),"") -> 323 | S34: 762 | AB34: 1 | AC34: 0 | AD34: 0 | AE34: 21
A35: 22 | B35: =IF(A35<>0,VLOOKUP(A35,Liste!$A$10:$D$159,4,FALSE),"") -> FIGUERAS Annie | C35: 0 | D35: 0 | E35: 0 | F35: 0 | I35: 0 | J35: 0 | K35: =IF(AND($I35=1,$H35>0),VLOOKUP($H35,$A$14:AD$163,11,FALSE),0) -> 0 | L35: =IF(AND($I35=1,$H35>0),VLOOKUP($H35,$A$14:AE$163,12,FALSE),0) -> 0 | M35: =IF(AND($I35=1,$H35>0),VLOOKUP($H35,$A$14:AF$163,13,FALSE),0) -> 0 | Q35: =IF(A35<>0,VLOOKUP(A35,Liste!$A$10:$K$159,8,FALSE),"") -> 300 | S35: 819 | AB35: 0 | AC35: 0 | AD35: 0 | AE35: 1000
A36: 23 | B36: =IF(A36<>0,VLOOKUP(A36,Liste!$A$10:$D$159,4,FALSE),"") -> FONTANA Georges | C36: 0 | D36: 0 | E36: 0 | F36: 0 | I36: 0 | J36: 0 | K36: =IF(AND($I36=1,$H36>0),VLOOKUP($H36,$A$14:AD$163,11,FALSE),0) -> 0 | L36: =IF(AND($I36=1,$H36>0),VLOOKUP($H36,$A$14:AE$163,12,FALSE),0) -> 0 | M36: =IF(AND($I36=1,$H36>0),VLOOKUP($H36,$A$14:AF$163,13,FALSE),0) -> 0 | Q36: =IF(A36<>0,VLOOKUP(A36,Liste!$A$10:$K$159,8,FALSE),"") -> 323 | S36: 873 | AB36: 0 | AC36: 0 | AD36: 0 | AE36: 1000
A37: 24 | B37: =IF(A37<>0,VLOOKUP(A37,Liste!$A$10:$D$159,4,FALSE),"") -> FORGET Valéry | C37: 0 | D37: 0 | E37: 0 | F37: 270 | G37: 2 | I37: 1 | J37: 270 | K37: =IF(AND($I37=1,$H37>0),VLOOKUP($H37,$A$14:AD$163,11,FALSE),0) -> 0 | L37: =IF(AND($I37=1,$H37>0),VLOOKUP($H37,$A$14:AE$163,12,FALSE),0) -> 0 | M37: =IF(AND($I37=1,$H37>0),VLOOKUP($H37,$A$14:AF$163,13,FALSE),0) -> 0 | N37: EN ATTENTE | P37: 0 | Q37: =IF(A37<>0,VLOOKUP(A37,Liste!$A$10:$K$159,8,FALSE),"") -> 270 | S37: 830 | AB37: 1 | AC37: 0 | AD37: 0 | AE37: 24
A38: 25 | B38: =IF(A38<>0,VLOOKUP(A38,Liste!$A$10:$D$159,4,FALSE),"") -> FOURNIER Nicole | C38: 0 | D38: 0 | E38: 0 | F38: 0 | I38: 0 | J38: 0 | K38: =IF(AND($I38=1,$H38>0),VLOOKUP($H38,$A$14:AD$163,11,FALSE),0) -> 0 | L38: =IF(AND($I38=1,$H38>0),VLOOKUP($H38,$A$14:AE$163,12,FALSE),0) -> 0 | M38: =IF(AND($I38=1,$H38>0),VLOOKUP($H38,$A$14:AF$163,13,FALSE),0) -> 0 | Q38: =IF(A38<>0,VLOOKUP(A38,Liste!$A$10:$K$159,8,FALSE),"") -> 290 | S38: 973 | AB38: 0 | AC38: 0 | AD38: 0 | AE38: 1000
A39: 26 | B39: =IF(A39<>0,VLOOKUP(A39,Liste!$A$10:$D$159,4,FALSE),"") -> GARCIA Christophe | C39: 0 | D39: 0 | E39: 0 | F39: 286 | G39: 1 | I39: 1 | J39: 286 | K39: =IF(AND($I39=1,$H39>0),VLOOKUP($H39,$A$14:AD$163,11,FALSE),0) -> 0 | L39: =IF(AND($I39=1,$H39>0),VLOOKUP($H39,$A$14:AE$163,12,FALSE),0) -> 0 | M39: =IF(AND($I39=1,$H39>0),VLOOKUP($H39,$A$14:AF$163,13,FALSE),0) -> 0 | N39: EN ATTENTE | P39: 0 | Q39: =IF(A39<>0,VLOOKUP(A39,Liste!$A$10:$K$159,8,FALSE),"") -> 286 | S39: 694 | AB39: 1 | AC39: 0 | AD39: 0 | AE39: 26
A40: 27 | B40: =IF(A40<>0,VLOOKUP(A40,Liste!$A$10:$D$159,4,FALSE),"") -> GARRELON Jacques | C40: 0 | D40: 0 | E40: 0 | F40: 0 | I40: 0 | J40: 0 | K40: =IF(AND($I40=1,$H40>0),VLOOKUP($H40,$A$14:AD$163,11,FALSE),0) -> 0 | L40: =IF(AND($I40=1,$H40>0),VLOOKUP($H40,$A$14:AE$163,12,FALSE),0) -> 0 | M40: =IF(AND($I40=1,$H40>0),VLOOKUP($H40,$A$14:AF$163,13,FALSE),0) -> 0 | Q40: 110 | S40: 830 | AB40: 0 | AC40: 0 | AD40: 0 | AE40: 1000
A41: 28 | B41: =IF(A41<>0,VLOOKUP(A41,Liste!$A$10:$D$159,4,FALSE),"") -> HENRI Paul | C41: 0 | D41: 0 | E41: 0 | F41: 0 | I41: 0 | J41: 0 | K41: =IF(AND($I41=1,$H41>0),VLOOKUP($H41,$A$14:AD$163,11,FALSE),0) -> 0 | L41: =IF(AND($I41=1,$H41>0),VLOOKUP($H41,$A$14:AE$163,12,FALSE),0) -> 0 | M41: =IF(AND($I41=1,$H41>0),VLOOKUP($H41,$A$14:AF$163,13,FALSE),0) -> 0 | Q41: 210 | AB41: 0 | AC41: 0 | AD41: 0 | AE41: 1000
A42: 29 | B42: =IF(A42<>0,VLOOKUP(A42,Liste!$A$10:$D$159,4,FALSE),"") -> ISIDORE Lucienne | C42: 0 | D42: 0 | E42: 0 | F42: 0 | I42: 0 | J42: 0 | K42: =IF(AND($I42=1,$H42>0),VLOOKUP($H42,$A$14:AD$163,11,FALSE),0) -> 0 | L42: =IF(AND($I42=1,$H42>0),VLOOKUP($H42,$A$14:AE$163,12,FALSE),0) -> 0 | M42: =IF(AND($I42=1,$H42>0),VLOOKUP($H42,$A$14:AF$163,13,FALSE),0) -> 0 | Q42: 110 | AB42: 0 | AC42: 0 | AD42: 0 | AE42: 1000
A43: 30 | B43: =IF(A43<>0,VLOOKUP(A43,Liste!$A$10:$D$159,4,FALSE),"") -> JARGON Emile | C43: 0 | D43: 0 | E43: 0 | F43: 0 | I43: 0 | J43: 0 | K43: =IF(AND($I43=1,$H43>0),VLOOKUP($H43,$A$14:AD$163,11,FALSE),0) -> 0 | L43: =IF(AND($I43=1,$H43>0),VLOOKUP($H43,$A$14:AE$163,12,FALSE),0) -> 0 | M43: =IF(AND($I43=1,$H43>0),VLOOKUP($H43,$A$14:AF$163,13,FALSE),0) -> 0 | Q43: =IF(A43<>0,VLOOKUP(A43,Liste!$A$10:$K$159,8,FALSE),"") -> 130 | AB43: 0 | AC43: 0 | AD43: 0 | AE43: 1000
A44: 31 | B44: =IF(A44<>0,VLOOKUP(A44,Liste!$A$10:$D$159,4,FALSE),"") -> LOUISON Albert | C44: 0 | D44: 0 | E44: 0 | F44: 0 | I44: 0 | J44: 0 | K44: =IF(AND($I44=1,$H44>0),VLOOKUP($H44,$A$14:AD$163,11,FALSE),0) -> 0 | L44: =IF(AND($I44=1,$H44>0),VLOOKUP($H44,$A$14:AE$163,12,FALSE),0) -> 0 | M44: =IF(AND($I44=1,$H44>0),VLOOKUP($H44,$A$14:AF$163,13,FALSE),0) -> 0 | Q44: =IF(A44<>0,VLOOKUP(A44,Liste!$A$10:$K$159,8,FALSE),"") -> 220 | AB44: 0 | AC44: 0 | AD44: 0 | AE44: 1000
A45: 32 | B45: =IF(A45<>0,VLOOKUP(A45,Liste!$A$10:$D$159,4,FALSE),"") -> MARTIN Nicole | C45: 0 | D45: 0 | E45: 0 | F45: 100 | G45: 2 | I45: 1 | J45: 100 | K45: =IF(AND($I45=1,$H45>0),VLOOKUP($H45,$A$14:AD$163,11,FALSE),0) -> 0 | L45: =IF(AND($I45=1,$H45>0),VLOOKUP($H45,$A$14:AE$163,12,FALSE),0) -> 0 | M45: =IF(AND($I45=1,$H45>0),VLOOKUP($H45,$A$14:AF$163,13,FALSE),0) -> 0 | N45: EN ATTENTE | P45: 0 | Q45: =IF(A45<>0,VLOOKUP(A45,Liste!$A$10:$K$159,8,FALSE),"") -> 100 | AB45: 1 | AC45: 0 | AD45: 0 | AE45: 32
A46: 33 | B46: =IF(A46<>0,VLOOKUP(A46,Liste!$A$10:$D$159,4,FALSE),"") -> ANDUN | C46: 0 | D46: 0 | E46: 0 | F46: 0 | I46: 0 | J46: 0 | K46: =IF(AND($I46=1,$H46>0),VLOOKUP($H46,$A$14:AD$163,11,FALSE),0) -> 0 | L46: =IF(AND($I46=1,$H46>0),VLOOKUP($H46,$A$14:AE$163,12,FALSE),0) -> 0 | M46: =IF(AND($I46=1,$H46>0),VLOOKUP($H46,$A$14:AF$163,13,FALSE),0) -> 0 | Q46: =IF(A46<>0,VLOOKUP(A46,Liste!$A$10:$K$159,8,FALSE),"") -> 180 | AB46: 0 | AC46: 0 | AD46: 0 | AE46: 1000
A47: 34 | B47: =IF(A47<>0,VLOOKUP(A47,Liste!$A$10:$D$159,4,FALSE),"") -> AUDIARD | C47: 0 | D47: 0 | E47: 0 | F47: 0 | I47: 0 | J47: 0 | K47: =IF(AND($I47=1,$H47>0),VLOOKUP($H47,$A$14:AD$163,11,FALSE),0) -> 0 | L47: =IF(AND($I47=1,$H47>0),VLOOKUP($H47,$A$14:AE$163,12,FALSE),0) -> 0 | M47: =IF(AND($I47=1,$H47>0),VLOOKUP($H47,$A$14:AF$163,13,FALSE),0) -> 0 | Q47: =IF(A47<>0,VLOOKUP(A47,Liste!$A$10:$K$159,8,FALSE),"") -> 210 | AB47: 0 | AC47: 0 | AD47: 0 | AE47: 1000
A48: 35 | B48: =IF(A48<>0,VLOOKUP(A48,Liste!$A$10:$D$159,4,FALSE),"") -> AVATARD | C48: 0 | D48: 0 | E48: 0 | F48: 0 | I48: 0 | J48: 0 | K48: =IF(AND($I48=1,$H48>0),VLOOKUP($H48,$A$14:AD$163,11,FALSE),0) -> 0 | L48: =IF(AND($I48=1,$H48>0),VLOOKUP($H48,$A$14:AE$163,12,FALSE),0) -> 0 | M48: =IF(AND($I48=1,$H48>0),VLOOKUP($H48,$A$14:AF$163,13,FALSE),0) -> 0 | Q48: =IF(A48<>0,VLOOKUP(A48,Liste!$A$10:$K$159,8,FALSE),"") -> 110 | AB48: 0 | AC48: 0 | AD48: 0 | AE48: 1000
B49: =IF(A49<>0,VLOOKUP(A49,Liste!$A$10:$D$159,4,FALSE),"") ->  | C49: 0 | D49: 0 | E49: 0 | F49: 0 | I49: 0 | J49: 0 | K49: =IF(AND($I49=1,$H49>0),VLOOKUP($H49,$A$14:AD$163,11,FALSE),0) -> 0 | L49: =IF(AND($I49=1,$H49>0),VLOOKUP($H49,$A$14:AE$163,12,FALSE),0) -> 0 | M49: =IF(AND($I49=1,$H49>0),VLOOKUP($H49,$A$14:AF$163,13,FALSE),0) -> 0 | Q49: =IF(A49<>0,VLOOKUP(A49,Liste!$A$10:$K$159,8,FALSE),"") ->  | AB49: 0 | AC49: 0 | AD49: 0 | AE49: 1000
B50: =IF(A50<>0,VLOOKUP(A50,Liste!$A$10:$D$159,4,FALSE),"") ->  | C50: 0 | D50: 0 | E50: 0 | F50: 0 | I50: 0 | J50: 0 | K50: =IF(AND($I50=1,$H50>0),VLOOKUP($H50,$A$14:AD$163,11,FALSE),0) -> 0 | L50: =IF(AND($I50=1,$H50>0),VLOOKUP($H50,$A$14:AE$163,12,FALSE),0) -> 0 | M50: =IF(AND($I50=1,$H50>0),VLOOKUP($H50,$A$14:AF$163,13,FALSE),0) -> 0 | Q50: =IF(A50<>0,VLOOKUP(A50,Liste!$A$10:$K$159,8,FALSE),"") ->  | AB50: 0 | AC50: 0 | AD50: 0 | AE50: 1000
B51: =IF(A51<>0,VLOOKUP(A51,Liste!$A$10:$D$159,4,FALSE),"") ->  | C51: 0 | D51: 0 | E51: 0 | F51: 0 | I51: 0 | J51: 0 | K51: =IF(AND($I51=1,$H51>0),VLOOKUP($H51,$A$14:AD$163,11,FALSE),0) -> 0 | L51: =IF(AND($I51=1,$H51>0),VLOOKUP($H51,$A$14:AE$163,12,FALSE),0) -> 0 | M51: =IF(AND($I51=1,$H51>0),VLOOKUP($H51,$A$14:AF$163,13,FALSE),0) -> 0 | Q51: =IF(A51<>0,VLOOKUP(A51,Liste!$A$10:$K$159,8,FALSE),"") ->  | AB51: 0 | AC51: 0 | AD51: 0 | AE51: 1000
B52: =IF(A52<>0,VLOOKUP(A52,Liste!$A$10:$D$159,4,FALSE),"") ->  | C52: 0 | D52: 0 | E52: 0 | F52: 0 | I52: 0 | J52: 0 | K52: =IF(AND($I52=1,$H52>0),VLOOKUP($H52,$A$14:AD$163,11,FALSE),0) -> 0 | L52: =IF(AND($I52=1,$H52>0),VLOOKUP($H52,$A$14:AE$163,12,FALSE),0) -> 0 | M52: =IF(AND($I52=1,$H52>0),VLOOKUP($H52,$A$14:AF$163,13,FALSE),0) -> 0 | Q52: =IF(A52<>0,VLOOKUP(A52,Liste!$A$10:$K$159,8,FALSE),"") ->  | AB52: 0 | AC52: 0 | AD52: 0 | AE52: 1000
B53: =IF(A53<>0,VLOOKUP(A53,Liste!$A$10:$D$159,4,FALSE),"") ->  | C53: 0 | D53: 0 | E53: 0 | F53: 0 | I53: 0 | J53: 0 | K53: =IF(AND($I53=1,$H53>0),VLOOKUP($H53,$A$14:AD$163,11,FALSE),0) -> 0 | L53: =IF(AND($I53=1,$H53>0),VLOOKUP($H53,$A$14:AE$163,12,FALSE),0) -> 0 | M53: =IF(AND($I53=1,$H53>0),VLOOKUP($H53,$A$14:AF$163,13,FALSE),0) -> 0 | Q53: =IF(A53<>0,VLOOKUP(A53,Liste!$A$10:$K$159,8,FALSE),"") ->  | AB53: 0 | AC53: 0 | AD53: 0 | AE53: 1000
B54: =IF(A54<>0,VLOOKUP(A54,Liste!$A$10:$D$159,4,FALSE),"") ->  | C54: 0 | D54: 0 | E54: 0 | F54: 0 | I54: 0 | J54: 0 | K54: =IF(AND($I54=1,$H54>0),VLOOKUP($H54,$A$14:AD$163,11,FALSE),0) -> 0 | L54: =IF(AND($I54=1,$H54>0),VLOOKUP($H54,$A$14:AE$163,12,FALSE),0) -> 0 | M54: =IF(AND($I54=1,$H54>0),VLOOKUP($H54,$A$14:AF$163,13,FALSE),0) -> 0 | Q54: =IF(A54<>0,VLOOKUP(A54,Liste!$A$10:$K$159,8,FALSE),"") ->  | AB54: 0 | AC54: 0 | AD54: 0 | AE54: 1000
B55: =IF(A55<>0,VLOOKUP(A55,Liste!$A$10:$D$159,4,FALSE),"") ->  | C55: 0 | D55: 0 | E55: 0 | F55: 0 | I55: 0 | J55: 0 | K55: =IF(AND($I55=1,$H55>0),VLOOKUP($H55,$A$14:AD$163,11,FALSE),0) -> 0 | L55: =IF(AND($I55=1,$H55>0),VLOOKUP($H55,$A$14:AE$163,12,FALSE),0) -> 0 | M55: =IF(AND($I55=1,$H55>0),VLOOKUP($H55,$A$14:AF$163,13,FALSE),0) -> 0 | Q55: =IF(A55<>0,VLOOKUP(A55,Liste!$A$10:$K$159,8,FALSE),"") ->  | AB55: 0 | AC55: 0 | AD55: 0 | AE55: 1000
B56: =IF(A56<>0,VLOOKUP(A56,Liste!$A$10:$D$159,4,FALSE),"") ->  | C56: 0 | D56: 0 | E56: 0 | F56: 0 | I56: 0 | J56: 0 | K56: =IF(AND($I56=1,$H56>0),VLOOKUP($H56,$A$14:AD$163,11,FALSE),0) -> 0 | L56: =IF(AND($I56=1,$H56>0),VLOOKUP($H56,$A$14:AE$163,12,FALSE),0) -> 0 | M56: =IF(AND($I56=1,$H56>0),VLOOKUP($H56,$A$14:AF$163,13,FALSE),0) -> 0 | Q56: =IF(A56<>0,VLOOKUP(A56,Liste!$A$10:$K$159,8,FALSE),"") ->  | AB56: 0 | AC56: 0 | AD56: 0 | AE56: 1000
B57: =IF(A57<>0,VLOOKUP(A57,Liste!$A$10:$D$159,4,FALSE),"") ->  | C57: 0 | D57: 0 | E57: 0 | F57: 0 | I57: 0 | J57: 0 | K57: =IF(AND($I57=1,$H57>0),VLOOKUP($H57,$A$14:AD$163,11,FALSE),0) -> 0 | L57: =IF(AND($I57=1,$H57>0),VLOOKUP($H57,$A$14:AE$163,12,FALSE),0) -> 0 | M57: =IF(AND($I57=1,$H57>0),VLOOKUP($H57,$A$14:AF$163,13,FALSE),0) -> 0 | Q57: =IF(A57<>0,VLOOKUP(A57,Liste!$A$10:$K$159,8,FALSE),"") ->  | AB57: 0 | AC57: 0 | AD57: 0 | AE57: 1000
B58: =IF(A58<>0,VLOOKUP(A58,Liste!$A$10:$D$159,4,FALSE),"") ->  | C58: 0 | D58: 0 | E58: 0 | F58: 0 | I58: 0 | J58: 0 | K58: =IF(AND($I58=1,$H58>0),VLOOKUP($H58,$A$14:AD$163,11,FALSE),0) -> 0 | L58: =IF(AND($I58=1,$H58>0),VLOOKUP($H58,$A$14:AE$163,12,FALSE),0) -> 0 | M58: =IF(AND($I58=1,$H58>0),VLOOKUP($H58,$A$14:AF$163,13,FALSE),0) -> 0 | Q58: =IF(A58<>0,VLOOKUP(A58,Liste!$A$10:$K$159,8,FALSE),"") ->  | AB58: 0 | AC58: 0 | AD58: 0 | AE58: 1000
B59: =IF(A59<>0,VLOOKUP(A59,Liste!$A$10:$D$159,4,FALSE),"") ->  | C59: 0 | D59: 0 | E59: 0 | F59: 0 | I59: 0 | J59: 0 | K59: =IF(AND($I59=1,$H59>0),VLOOKUP($H59,$A$14:AD$163,11,FALSE),0) -> 0 | L59: =IF(AND($I59=1,$H59>0),VLOOKUP($H59,$A$14:AE$163,12,FALSE),0) -> 0 | M59: =IF(AND($I59=1,$H59>0),VLOOKUP($H59,$A$14:AF$163,13,FALSE),0) -> 0 | Q59: =IF(A59<>0,VLOOKUP(A59,Liste!$A$10:$K$159,8,FALSE),"") ->  | AB59: 0 | AC59: 0 | AD59: 0 | AE59: 1000
B60: =IF(A60<>0,VLOOKUP(A60,Liste!$A$10:$D$159,4,FALSE),"") ->  | C60: 0 | D60: 0 | E60: 0 | F60: 0 | I60: 0 | J60: 0 | K60: =IF(AND($I60=1,$H60>0),VLOOKUP($H60,$A$14:AD$163,11,FALSE),0) -> 0 | L60: =IF(AND($I60=1,$H60>0),VLOOKUP($H60,$A$14:AE$163,12,FALSE),0) -> 0 | M60: =IF(AND($I60=1,$H60>0),VLOOKUP($H60,$A$14:AF$163,13,FALSE),0) -> 0 | Q60: =IF(A60<>0,VLOOKUP(A60,Liste!$A$10:$K$159,8,FALSE),"") ->  | AB60: 0 | AC60: 0 | AD60: 0 | AE60: 1000
B61: =IF(A61<>0,VLOOKUP(A61,Liste!$A$10:$D$159,4,FALSE),"") ->  | C61: 0 | D61: 0 | E61: 0 | F61: 0 | I61: 0 | J61: 0 | K61: =IF(AND($I61=1,$H61>0),VLOOKUP($H61,$A$14:AD$163,11,FALSE),0) -> 0 | L61: =IF(AND($I61=1,$H61>0),VLOOKUP($H61,$A$14:AE$163,12,FALSE),0) -> 0 | M61: =IF(AND($I61=1,$H61>0),VLOOKUP($H61,$A$14:AF$163,13,FALSE),0) -> 0 | Q61: =IF(A61<>0,VLOOKUP(A61,Liste!$A$10:$K$159,8,FALSE),"") ->  | AB61: 0 | AC61: 0 | AD61: 0 | AE61: 1000
B62: =IF(A62<>0,VLOOKUP(A62,Liste!$A$10:$D$159,4,FALSE),"") ->  | C62: 0 | D62: 0 | E62: 0 | F62: 0 | I62: 0 | J62: 0 | K62: =IF(AND($I62=1,$H62>0),VLOOKUP($H62,$A$14:AD$163,11,FALSE),0) -> 0 | L62: =IF(AND($I62=1,$H62>0),VLOOKUP($H62,$A$14:AE$163,12,FALSE),0) -> 0 | M62: =IF(AND($I62=1,$H62>0),VLOOKUP($H62,$A$14:AF$163,13,FALSE),0) -> 0 | Q62: =IF(A62<>0,VLOOKUP(A62,Liste!$A$10:$K$159,8,FALSE),"") ->  | AB62: 0 | AC62: 0 | AD62: 0 | AE62: 1000
B63: =IF(A63<>0,VLOOKUP(A63,Liste!$A$10:$D$159,4,FALSE),"") ->  | C63: 0 | D63: 0 | E63: 0 | F63: 0 | I63: 0 | J63: 0 | K63: =IF(AND($I63=1,$H63>0),VLOOKUP($H63,$A$14:AD$163,11,FALSE),0) -> 0 | L63: =IF(AND($I63=1,$H63>0),VLOOKUP($H63,$A$14:AE$163,12,FALSE),0) -> 0 | M63: =IF(AND($I63=1,$H63>0),VLOOKUP($H63,$A$14:AF$163,13,FALSE),0) -> 0 | Q63: =IF(A63<>0,VLOOKUP(A63,Liste!$A$10:$K$159,8,FALSE),"") ->  | AB63: 0 | AC63: 0 | AD63: 0 | AE63: 1000
B64: =IF(A64<>0,VLOOKUP(A64,Liste!$A$10:$D$159,4,FALSE),"") ->  | C64: 0 | D64: 0 | E64: 0 | F64: 0 | I64: 0 | J64: 0 | K64: =IF(AND($I64=1,$H64>0),VLOOKUP($H64,$A$14:AD$163,11,FALSE),0) -> 0 | L64: =IF(AND($I64=1,$H64>0),VLOOKUP($H64,$A$14:AE$163,12,FALSE),0) -> 0 | M64: =IF(AND($I64=1,$H64>0),VLOOKUP($H64,$A$14:AF$163,13,FALSE),0) -> 0 | Q64: =IF(A64<>0,VLOOKUP(A64,Liste!$A$10:$K$159,8,FALSE),"") ->  | AB64: =(H64+I64)*(J64>0) -> 0 | AC64: 0 | AD64: 0 | AE64: =IF(H64>0,H64+0.5*(I64=1),A64*(I64=1))+(1000*(I64<1)) -> 1000
B65: =IF(A65<>0,VLOOKUP(A65,Liste!$A$10:$D$159,4,FALSE),"") ->  | C65: 0 | D65: 0 | E65: 0 | F65: 0 | I65: 0 | J65: 0 | K65: =IF(AND($I65=1,$H65>0),VLOOKUP($H65,$A$14:AD$163,11,FALSE),0) -> 0 | L65: =IF(AND($I65=1,$H65>0),VLOOKUP($H65,$A$14:AE$163,12,FALSE),0) -> 0 | M65: =IF(AND($I65=1,$H65>0),VLOOKUP($H65,$A$14:AF$163,13,FALSE),0) -> 0 | Q65: =IF(A65<>0,VLOOKUP(A65,Liste!$A$10:$K$159,8,FALSE),"") ->  | AB65: 0 | AC65: 0 | AD65: 0 | AE65: 1000
B66: =IF(A66<>0,VLOOKUP(A66,Liste!$A$10:$D$159,4,FALSE),"") ->  | C66: 0 | D66: 0 | E66: 0 | F66: 0 | I66: 0 | J66: 0 | K66: =IF(AND($I66=1,$H66>0),VLOOKUP($H66,$A$14:AD$163,11,FALSE),0) -> 0 | L66: =IF(AND($I66=1,$H66>0),VLOOKUP($H66,$A$14:AE$163,12,FALSE),0) -> 0 | M66: =IF(AND($I66=1,$H66>0),VLOOKUP($H66,$A$14:AF$163,13,FALSE),0) -> 0 | Q66: =IF(A66<>0,VLOOKUP(A66,Liste!$A$10:$K$159,8,FALSE),"") ->  | AB66: 0 | AC66: 0 | AD66: 0 | AE66: 1000
B67: =IF(A67<>0,VLOOKUP(A67,Liste!$A$10:$D$159,4,FALSE),"") ->  | C67: 0 | D67: 0 | E67: 0 | F67: 0 | I67: 0 | J67: 0 | K67: =IF(AND($I67=1,$H67>0),VLOOKUP($H67,$A$14:AD$163,11,FALSE),0) -> 0 | L67: =IF(AND($I67=1,$H67>0),VLOOKUP($H67,$A$14:AE$163,12,FALSE),0) -> 0 | M67: =IF(AND($I67=1,$H67>0),VLOOKUP($H67,$A$14:AF$163,13,FALSE),0) -> 0 | Q67: =IF(A67<>0,VLOOKUP(A67,Liste!$A$10:$K$159,8,FALSE),"") ->  | AB67: 0 | AC67: 0 | AD67: 0 | AE67: 1000
B68: =IF(A68<>0,VLOOKUP(A68,Liste!$A$10:$D$159,4,FALSE),"") ->  | C68: 0 | D68: 0 | E68: 0 | F68: 0 | I68: 0 | J68: 0 | K68: =IF(AND($I68=1,$H68>0),VLOOKUP($H68,$A$14:AD$163,11,FALSE),0) -> 0 | L68: =IF(AND($I68=1,$H68>0),VLOOKUP($H68,$A$14:AE$163,12,FALSE),0) -> 0 | M68: =IF(AND($I68=1,$H68>0),VLOOKUP($H68,$A$14:AF$163,13,FALSE),0) -> 0 | Q68: =IF(A68<>0,VLOOKUP(A68,Liste!$A$10:$K$159,8,FALSE),"") ->  | AB68: 0 | AC68: 0 | AD68: 0 | AE68: 1000
B69: =IF(A69<>0,VLOOKUP(A69,Liste!$A$10:$D$159,4,FALSE),"") ->  | C69: 0 | D69: 0 | E69: 0 | F69: 0 | I69: 0 | J69: 0 | K69: =IF(AND($I69=1,$H69>0),VLOOKUP($H69,$A$14:AD$163,11,FALSE),0) -> 0 | L69: =IF(AND($I69=1,$H69>0),VLOOKUP($H69,$A$14:AE$163,12,FALSE),0) -> 0 | M69: =IF(AND($I69=1,$H69>0),VLOOKUP($H69,$A$14:AF$163,13,FALSE),0) -> 0 | Q69: =IF(A69<>0,VLOOKUP(A69,Liste!$A$10:$K$159,8,FALSE),"") ->  | AB69: 0 | AC69: 0 | AD69: 0 | AE69: 1000
B70: =IF(A70<>0,VLOOKUP(A70,Liste!$A$10:$D$159,4,FALSE),"") ->  | C70: 0 | D70: 0 | E70: 0 | F70: 0 | I70: 0 | J70: 0 | K70: =IF(AND($I70=1,$H70>0),VLOOKUP($H70,$A$14:AD$163,11,FALSE),0) -> 0 | L70: =IF(AND($I70=1,$H70>0),VLOOKUP($H70,$A$14:AE$163,12,FALSE),0) -> 0 | M70: =IF(AND($I70=1,$H70>0),VLOOKUP($H70,$A$14:AF$163,13,FALSE),0) -> 0 | Q70: =IF(A70<>0,VLOOKUP(A70,Liste!$A$10:$K$159,8,FALSE),"") ->  | AB70: 0 | AC70: 0 | AD70: 0 | AE70: 1000
B71: =IF(A71<>0,VLOOKUP(A71,Liste!$A$10:$D$159,4,FALSE),"") ->  | C71: 0 | D71: 0 | E71: 0 | F71: 0 | I71: 0 | J71: 0 | K71: =IF(AND($I71=1,$H71>0),VLOOKUP($H71,$A$14:AD$163,11,FALSE),0) -> 0 | L71: =IF(AND($I71=1,$H71>0),VLOOKUP($H71,$A$14:AE$163,12,FALSE),0) -> 0 | M71: =IF(AND($I71=1,$H71>0),VLOOKUP($H71,$A$14:AF$163,13,FALSE),0) -> 0 | Q71: =IF(A71<>0,VLOOKUP(A71,Liste!$A$10:$K$159,8,FALSE),"") ->  | AB71: 0 | AC71: 0 | AD71: 0 | AE71: 1000
B72: =IF(A72<>0,VLOOKUP(A72,Liste!$A$10:$D$159,4,FALSE),"") ->  | C72: 0 | D72: 0 | E72: 0 | F72: 0 | I72: 0 | J72: 0 | K72: =IF(AND($I72=1,$H72>0),VLOOKUP($H72,$A$14:AD$163,11,FALSE),0) -> 0 | L72: =IF(AND($I72=1,$H72>0),VLOOKUP($H72,$A$14:AE$163,12,FALSE),0) -> 0 | M72: =IF(AND($I72=1,$H72>0),VLOOKUP($H72,$A$14:AF$163,13,FALSE),0) -> 0 | Q72: =IF(A72<>0,VLOOKUP(A72,Liste!$A$10:$K$159,8,FALSE),"") ->  | AB72: 0 | AC72: 0 | AD72: 0 | AE72: 1000
B73: =IF(A73<>0,VLOOKUP(A73,Liste!$A$10:$D$159,4,FALSE),"") ->  | C73: 0 | D73: 0 | E73: 0 | F73: 0 | I73: 0 | J73: 0 | K73: =IF(AND($I73=1,$H73>0),VLOOKUP($H73,$A$14:AD$163,11,FALSE),0) -> 0 | L73: =IF(AND($I73=1,$H73>0),VLOOKUP($H73,$A$14:AE$163,12,FALSE),0) -> 0 | M73: =IF(AND($I73=1,$H73>0),VLOOKUP($H73,$A$14:AF$163,13,FALSE),0) -> 0 | Q73: =IF(A73<>0,VLOOKUP(A73,Liste!$A$10:$K$159,8,FALSE),"") ->  | AB73: 0 | AC73: 0 | AD73: 0 | AE73: 1000
B74: =IF(A74<>0,VLOOKUP(A74,Liste!$A$10:$D$159,4,FALSE),"") ->  | C74: 0 | D74: 0 | E74: 0 | F74: 0 | I74: 0 | J74: 0 | K74: =IF(AND($I74=1,$H74>0),VLOOKUP($H74,$A$14:AD$163,11,FALSE),0) -> 0 | L74: =IF(AND($I74=1,$H74>0),VLOOKUP($H74,$A$14:AE$163,12,FALSE),0) -> 0 | M74: =IF(AND($I74=1,$H74>0),VLOOKUP($H74,$A$14:AF$163,13,FALSE),0) -> 0 | Q74: =IF(A74<>0,VLOOKUP(A74,Liste!$A$10:$K$159,8,FALSE),"") ->  | AB74: 0 | AC74: 0 | AD74: 0 | AE74: 1000
B75: =IF(A75<>0,VLOOKUP(A75,Liste!$A$10:$D$159,4,FALSE),"") ->  | C75: 0 | D75: 0 | E75: 0 | F75: 0 | I75: 0 | J75: 0 | K75: =IF(AND($I75=1,$H75>0),VLOOKUP($H75,$A$14:AD$163,11,FALSE),0) -> 0 | L75: =IF(AND($I75=1,$H75>0),VLOOKUP($H75,$A$14:AE$163,12,FALSE),0) -> 0 | M75: =IF(AND($I75=1,$H75>0),VLOOKUP($H75,$A$14:AF$163,13,FALSE),0) -> 0 | Q75: =IF(A75<>0,VLOOKUP(A75,Liste!$A$10:$K$159,8,FALSE),"") ->  | AB75: 0 | AC75: 0 | AD75: 0 | AE75: 1000
B76: =IF(A76<>0,VLOOKUP(A76,Liste!$A$10:$D$159,4,FALSE),"") ->  | C76: 0 | D76: 0 | E76: 0 | F76: 0 | I76: 0 | J76: 0 | K76: =IF(AND($I76=1,$H76>0),VLOOKUP($H76,$A$14:AD$163,11,FALSE),0) -> 0 | L76: =IF(AND($I76=1,$H76>0),VLOOKUP($H76,$A$14:AE$163,12,FALSE),0) -> 0 | M76: =IF(AND($I76=1,$H76>0),VLOOKUP($H76,$A$14:AF$163,13,FALSE),0) -> 0 | Q76: =IF(A76<>0,VLOOKUP(A76,Liste!$A$10:$K$159,8,FALSE),"") ->  | AB76: 0 | AC76: 0 | AD76: 0 | AE76: 1000
B77: =IF(A77<>0,VLOOKUP(A77,Liste!$A$10:$D$159,4,FALSE),"") ->  | C77: 0 | D77: 0 | E77: 0 | F77: 0 | I77: 0 | J77: 0 | K77: =IF(AND($I77=1,$H77>0),VLOOKUP($H77,$A$14:AD$163,11,FALSE),0) -> 0 | L77: =IF(AND($I77=1,$H77>0),VLOOKUP($H77,$A$14:AE$163,12,FALSE),0) -> 0 | M77: =IF(AND($I77=1,$H77>0),VLOOKUP($H77,$A$14:AF$163,13,FALSE),0) -> 0 | Q77: =IF(A77<>0,VLOOKUP(A77,Liste!$A$10:$K$159,8,FALSE),"") ->  | AB77: 0 | AC77: 0 | AD77: 0 | AE77: 1000
B78: =IF(A78<>0,VLOOKUP(A78,Liste!$A$10:$D$159,4,FALSE),"") ->  | C78: =F78*(K78=1) -> 0 | D78: =F78*(L78=1) -> 0 | E78: =F78*(M78=1) -> 0 | F78: 0 | I78: 0 | J78: =IF(F78>0,F78,0) -> 0 | K78: =IF(AND($I78=1,$H78>0),VLOOKUP($H78,$A$14:AD$163,11,FALSE),0) -> 0 | L78: =IF(AND($I78=1,$H78>0),VLOOKUP($H78,$A$14:AE$163,12,FALSE),0) -> 0 | M78: =IF(AND($I78=1,$H78>0),VLOOKUP($H78,$A$14:AF$163,13,FALSE),0) -> 0 | P78: =IF(I78=1,K78*(K78=1)+L78*2*(L78=1)+M78*3*(M78=1),"") ->  | Q78: =IF(A78<>0,VLOOKUP(A78,Liste!$A$10:$K$159,8,FALSE),"") ->  | AB78: 0 | AC78: 0 | AD78: 0 | AE78: 1000
B79: =IF(A79<>0,VLOOKUP(A79,Liste!$A$10:$D$159,4,FALSE),"") ->  | C79: 0 | D79: 0 | E79: 0 | F79: =IF(I79=1,VLOOKUP(A79,$A$14:$AA$163,16+$B$4,0),0) -> 0 | I79: =1*(IF(G79>=1,VLOOKUP(A79,$A$14:$AA$163,16+$B$4,0)>0)) -> 0 | J79: 0 | K79: =IF(AND($I79=1,$H79>0),VLOOKUP($H79,$A$14:AD$163,11,FALSE),0) -> 0 | L79: =IF(AND($I79=1,$H79>0),VLOOKUP($H79,$A$14:AE$163,12,FALSE),0) -> 0 | M79: =IF(AND($I79=1,$H79>0),VLOOKUP($H79,$A$14:AF$163,13,FALSE),0) -> 0 | N79: =IF(AND(I79>0,K79+L79+M79=0),"EN ATTENTE",IF(K79+L79+M79>1,"ERREUR","")) ->  | O79: =IF(AND(AC79>3,AD79>$D$10*$O$12),1,"") ->  | Q79: =IF(A79<>0,VLOOKUP(A79,Liste!$A$10:$K$159,8,FALSE),"") ->  | AB79: 0 | AC79: =COUNTIF($H$14:$H$163,A79) -> 0 | AD79: =SUMIF($H$14:$H$163,A79,$J$14:$J$163)+(J79*(AC79>0)) -> 0 | AE79: 1000
B80: =IF(A80<>0,VLOOKUP(A80,Liste!$A$10:$D$159,4,FALSE),"") ->  | C80: 0 | D80: 0 | E80: 0 | F80: 0 | I80: 0 | J80: 0 | K80: =IF(AND($I80=1,$H80>0),VLOOKUP($H80,$A$14:AD$163,11,FALSE),0) -> 0 | L80: =IF(AND($I80=1,$H80>0),VLOOKUP($H80,$A$14:AE$163,12,FALSE),0) -> 0 | M80: =IF(AND($I80=1,$H80>0),VLOOKUP($H80,$A$14:AF$163,13,FALSE),0) -> 0 | Q80: =IF(A80<>0,VLOOKUP(A80,Liste!$A$10:$K$159,8,FALSE),"") ->  | AB80: 0 | AC80: 0 | AD80: 0 | AE80: 1000
B81: =IF(A81<>0,VLOOKUP(A81,Liste!$A$10:$D$159,4,FALSE),"") ->  | C81: 0 | D81: 0 | E81: 0 | F81: 0 | I81: 0 | J81: 0 | K81: =IF(AND($I81=1,$H81>0),VLOOKUP($H81,$A$14:AD$163,11,FALSE),0) -> 0 | L81: =IF(AND($I81=1,$H81>0),VLOOKUP($H81,$A$14:AE$163,12,FALSE),0) -> 0 | M81: =IF(AND($I81=1,$H81>0),VLOOKUP($H81,$A$14:AF$163,13,FALSE),0) -> 0 | Q81: =IF(A81<>0,VLOOKUP(A81,Liste!$A$10:$K$159,8,FALSE),"") ->  | AB81: 0 | AC81: 0 | AD81: 0 | AE81: 1000
B82: =IF(A82<>0,VLOOKUP(A82,Liste!$A$10:$D$159,4,FALSE),"") ->  | C82: 0 | D82: 0 | E82: 0 | F82: 0 | I82: 0 | J82: 0 | K82: =IF(AND($I82=1,$H82>0),VLOOKUP($H82,$A$14:AD$163,11,FALSE),0) -> 0 | L82: =IF(AND($I82=1,$H82>0),VLOOKUP($H82,$A$14:AE$163,12,FALSE),0) -> 0 | M82: =IF(AND($I82=1,$H82>0),VLOOKUP($H82,$A$14:AF$163,13,FALSE),0) -> 0 | Q82: =IF(A82<>0,VLOOKUP(A82,Liste!$A$10:$K$159,8,FALSE),"") ->  | AB82: 0 | AC82: 0 | AD82: 0 | AE82: 1000
B83: =IF(A83<>0,VLOOKUP(A83,Liste!$A$10:$D$159,4,FALSE),"") ->  | C83: 0 | D83: 0 | E83: 0 | F83: 0 | I83: 0 | J83: 0 | K83: =IF(AND($I83=1,$H83>0),VLOOKUP($H83,$A$14:AD$163,11,FALSE),0) -> 0 | L83: =IF(AND($I83=1,$H83>0),VLOOKUP($H83,$A$14:AE$163,12,FALSE),0) -> 0 | M83: =IF(AND($I83=1,$H83>0),VLOOKUP($H83,$A$14:AF$163,13,FALSE),0) -> 0 | Q83: =IF(A83<>0,VLOOKUP(A83,Liste!$A$10:$K$159,8,FALSE),"") ->  | AB83: 0 | AC83: 0 | AD83: 0 | AE83: 1000
B84: =IF(A84<>0,VLOOKUP(A84,Liste!$A$10:$D$159,4,FALSE),"") ->  | C84: 0 | D84: 0 | E84: 0 | F84: 0 | I84: 0 | J84: 0 | K84: =IF(AND($I84=1,$H84>0),VLOOKUP($H84,$A$14:AD$163,11,FALSE),0) -> 0 | L84: =IF(AND($I84=1,$H84>0),VLOOKUP($H84,$A$14:AE$163,12,FALSE),0) -> 0 | M84: =IF(AND($I84=1,$H84>0),VLOOKUP($H84,$A$14:AF$163,13,FALSE),0) -> 0 | Q84: =IF(A84<>0,VLOOKUP(A84,Liste!$A$10:$K$159,8,FALSE),"") ->  | AB84: 0 | AC84: 0 | AD84: 0 | AE84: 1000
B85: =IF(A85<>0,VLOOKUP(A85,Liste!$A$10:$D$159,4,FALSE),"") ->  | C85: 0 | D85: 0 | E85: 0 | F85: 0 | I85: 0 | J85: 0 | K85: =IF(AND($I85=1,$H85>0),VLOOKUP($H85,$A$14:AD$163,11,FALSE),0) -> 0 | L85: =IF(AND($I85=1,$H85>0),VLOOKUP($H85,$A$14:AE$163,12,FALSE),0) -> 0 | M85: =IF(AND($I85=1,$H85>0),VLOOKUP($H85,$A$14:AF$163,13,FALSE),0) -> 0 | Q85: =IF(A85<>0,VLOOKUP(A85,Liste!$A$10:$K$159,8,FALSE),"") ->  | AB85: 0 | AC85: 0 | AD85: 0 | AE85: 1000
B86: =IF(A86<>0,VLOOKUP(A86,Liste!$A$10:$D$159,4,FALSE),"") ->  | C86: 0 | D86: 0 | E86: 0 | F86: 0 | I86: 0 | J86: 0 | K86: =IF(AND($I86=1,$H86>0),VLOOKUP($H86,$A$14:AD$163,11,FALSE),0) -> 0 | L86: =IF(AND($I86=1,$H86>0),VLOOKUP($H86,$A$14:AE$163,12,FALSE),0) -> 0 | M86: =IF(AND($I86=1,$H86>0),VLOOKUP($H86,$A$14:AF$163,13,FALSE),0) -> 0 | Q86: =IF(A86<>0,VLOOKUP(A86,Liste!$A$10:$K$159,8,FALSE),"") ->  | AB86: 0 | AC86: 0 | AD86: 0 | AE86: 1000
B87: =IF(A87<>0,VLOOKUP(A87,Liste!$A$10:$D$159,4,FALSE),"") ->  | C87: 0 | D87: 0 | E87: 0 | F87: 0 | I87: 0 | J87: 0 | K87: =IF(AND($I87=1,$H87>0),VLOOKUP($H87,$A$14:AD$163,11,FALSE),0) -> 0 | L87: =IF(AND($I87=1,$H87>0),VLOOKUP($H87,$A$14:AE$163,12,FALSE),0) -> 0 | M87: =IF(AND($I87=1,$H87>0),VLOOKUP($H87,$A$14:AF$163,13,FALSE),0) -> 0 | Q87: =IF(A87<>0,VLOOKUP(A87,Liste!$A$10:$K$159,8,FALSE),"") ->  | AB87: 0 | AC87: 0 | AD87: 0 | AE87: 1000
B88: =IF(A88<>0,VLOOKUP(A88,Liste!$A$10:$D$159,4,FALSE),"") ->  | C88: 0 | D88: 0 | E88: 0 | F88: 0 | I88: 0 | J88: 0 | K88: =IF(AND($I88=1,$H88>0),VLOOKUP($H88,$A$14:AD$163,11,FALSE),0) -> 0 | L88: =IF(AND($I88=1,$H88>0),VLOOKUP($H88,$A$14:AE$163,12,FALSE),0) -> 0 | M88: =IF(AND($I88=1,$H88>0),VLOOKUP($H88,$A$14:AF$163,13,FALSE),0) -> 0 | Q88: =IF(A88<>0,VLOOKUP(A88,Liste!$A$10:$K$159,8,FALSE),"") ->  | AB88: 0 | AC88: 0 | AD88: 0 | AE88: 1000
B89: =IF(A89<>0,VLOOKUP(A89,Liste!$A$10:$D$159,4,FALSE),"") ->  | C89: 0 | D89: 0 | E89: 0 | F89: 0 | I89: 0 | J89: 0 | K89: =IF(AND($I89=1,$H89>0),VLOOKUP($H89,$A$14:AD$163,11,FALSE),0) -> 0 | L89: =IF(AND($I89=1,$H89>0),VLOOKUP($H89,$A$14:AE$163,12,FALSE),0) -> 0 | M89: =IF(AND($I89=1,$H89>0),VLOOKUP($H89,$A$14:AF$163,13,FALSE),0) -> 0 | Q89: =IF(A89<>0,VLOOKUP(A89,Liste!$A$10:$K$159,8,FALSE),"") ->  | AB89: 0 | AC89: 0 | AD89: 0 | AE89: 1000
B90: =IF(A90<>0,VLOOKUP(A90,Liste!$A$10:$D$159,4,FALSE),"") ->  | C90: 0 | D90: 0 | E90: 0 | F90: 0 | I90: 0 | J90: 0 | K90: =IF(AND($I90=1,$H90>0),VLOOKUP($H90,$A$14:AD$163,11,FALSE),0) -> 0 | L90: =IF(AND($I90=1,$H90>0),VLOOKUP($H90,$A$14:AE$163,12,FALSE),0) -> 0 | M90: =IF(AND($I90=1,$H90>0),VLOOKUP($H90,$A$14:AF$163,13,FALSE),0) -> 0 | Q90: =IF(A90<>0,VLOOKUP(A90,Liste!$A$10:$K$159,8,FALSE),"") ->  | AB90: 0 | AC90: 0 | AD90: 0 | AE90: 1000
B91: =IF(A91<>0,VLOOKUP(A91,Liste!$A$10:$D$159,4,FALSE),"") ->  | C91: 0 | D91: 0 | E91: 0 | F91: 0 | I91: 0 | J91: 0 | K91: =IF(AND($I91=1,$H91>0),VLOOKUP($H91,$A$14:AD$163,11,FALSE),0) -> 0 | L91: =IF(AND($I91=1,$H91>0),VLOOKUP($H91,$A$14:AE$163,12,FALSE),0) -> 0 | M91: =IF(AND($I91=1,$H91>0),VLOOKUP($H91,$A$14:AF$163,13,FALSE),0) -> 0 | Q91: =IF(A91<>0,VLOOKUP(A91,Liste!$A$10:$K$159,8,FALSE),"") ->  | AB91: 0 | AC91: 0 | AD91: 0 | AE91: 1000
B92: =IF(A92<>0,VLOOKUP(A92,Liste!$A$10:$D$159,4,FALSE),"") ->  | C92: 0 | D92: 0 | E92: 0 | F92: 0 | I92: 0 | J92: 0 | K92: =IF(AND($I92=1,$H92>0),VLOOKUP($H92,$A$14:AD$163,11,FALSE),0) -> 0 | L92: =IF(AND($I92=1,$H92>0),VLOOKUP($H92,$A$14:AE$163,12,FALSE),0) -> 0 | M92: =IF(AND($I92=1,$H92>0),VLOOKUP($H92,$A$14:AF$163,13,FALSE),0) -> 0 | Q92: =IF(A92<>0,VLOOKUP(A92,Liste!$A$10:$K$159,8,FALSE),"") ->  | AB92: 0 | AC92: 0 | AD92: 0 | AE92: 1000
B93: =IF(A93<>0,VLOOKUP(A93,Liste!$A$10:$D$159,4,FALSE),"") ->  | C93: 0 | D93: 0 | E93: 0 | F93: 0 | I93: 0 | J93: 0 | K93: =IF(AND($I93=1,$H93>0),VLOOKUP($H93,$A$14:AD$163,11,FALSE),0) -> 0 | L93: =IF(AND($I93=1,$H93>0),VLOOKUP($H93,$A$14:AE$163,12,FALSE),0) -> 0 | M93: =IF(AND($I93=1,$H93>0),VLOOKUP($H93,$A$14:AF$163,13,FALSE),0) -> 0 | Q93: =IF(A93<>0,VLOOKUP(A93,Liste!$A$10:$K$159,8,FALSE),"") ->  | AB93: 0 | AC93: 0 | AD93: 0 | AE93: 1000
B94: =IF(A94<>0,VLOOKUP(A94,Liste!$A$10:$D$159,4,FALSE),"") ->  | C94: 0 | D94: 0 | E94: 0 | F94: 0 | I94: 0 | J94: 0 | K94: =IF(AND($I94=1,$H94>0),VLOOKUP($H94,$A$14:AD$163,11,FALSE),0) -> 0 | L94: =IF(AND($I94=1,$H94>0),VLOOKUP($H94,$A$14:AE$163,12,FALSE),0) -> 0 | M94: =IF(AND($I94=1,$H94>0),VLOOKUP($H94,$A$14:AF$163,13,FALSE),0) -> 0 | Q94: =IF(A94<>0,VLOOKUP(A94,Liste!$A$10:$K$159,8,FALSE),"") ->  | AB94: 0 | AC94: 0 | AD94: 0 | AE94: 1000
B95: =IF(A95<>0,VLOOKUP(A95,Liste!$A$10:$D$159,4,FALSE),"") ->  | C95: 0 | D95: 0 | E95: 0 | F95: 0 | I95: 0 | J95: 0 | K95: =IF(AND($I95=1,$H95>0),VLOOKUP($H95,$A$14:AD$163,11,FALSE),0) -> 0 | L95: =IF(AND($I95=1,$H95>0),VLOOKUP($H95,$A$14:AE$163,12,FALSE),0) -> 0 | M95: =IF(AND($I95=1,$H95>0),VLOOKUP($H95,$A$14:AF$163,13,FALSE),0) -> 0 | Q95: =IF(A95<>0,VLOOKUP(A95,Liste!$A$10:$K$159,8,FALSE),"") ->  | AB95: 0 | AC95: 0 | AD95: 0 | AE95: 1000
B96: =IF(A96<>0,VLOOKUP(A96,Liste!$A$10:$D$159,4,FALSE),"") ->  | C96: 0 | D96: 0 | E96: 0 | F96: 0 | I96: 0 | J96: 0 | K96: =IF(AND($I96=1,$H96>0),VLOOKUP($H96,$A$14:AD$163,11,FALSE),0) -> 0 | L96: =IF(AND($I96=1,$H96>0),VLOOKUP($H96,$A$14:AE$163,12,FALSE),0) -> 0 | M96: =IF(AND($I96=1,$H96>0),VLOOKUP($H96,$A$14:AF$163,13,FALSE),0) -> 0 | Q96: =IF(A96<>0,VLOOKUP(A96,Liste!$A$10:$K$159,8,FALSE),"") ->  | AB96: 0 | AC96: 0 | AD96: 0 | AE96: 1000
B97: =IF(A97<>0,VLOOKUP(A97,Liste!$A$10:$D$159,4,FALSE),"") ->  | C97: 0 | D97: 0 | E97: 0 | F97: 0 | I97: 0 | J97: 0 | K97: =IF(AND($I97=1,$H97>0),VLOOKUP($H97,$A$14:AD$163,11,FALSE),0) -> 0 | L97: =IF(AND($I97=1,$H97>0),VLOOKUP($H97,$A$14:AE$163,12,FALSE),0) -> 0 | M97: =IF(AND($I97=1,$H97>0),VLOOKUP($H97,$A$14:AF$163,13,FALSE),0) -> 0 | Q97: =IF(A97<>0,VLOOKUP(A97,Liste!$A$10:$K$159,8,FALSE),"") ->  | AB97: 0 | AC97: 0 | AD97: 0 | AE97: 1000
B98: =IF(A98<>0,VLOOKUP(A98,Liste!$A$10:$D$159,4,FALSE),"") ->  | C98: 0 | D98: 0 | E98: 0 | F98: 0 | I98: 0 | J98: 0 | K98: =IF(AND($I98=1,$H98>0),VLOOKUP($H98,$A$14:AD$163,11,FALSE),0) -> 0 | L98: =IF(AND($I98=1,$H98>0),VLOOKUP($H98,$A$14:AE$163,12,FALSE),0) -> 0 | M98: =IF(AND($I98=1,$H98>0),VLOOKUP($H98,$A$14:AF$163,13,FALSE),0) -> 0 | Q98: =IF(A98<>0,VLOOKUP(A98,Liste!$A$10:$K$159,8,FALSE),"") ->  | AB98: 0 | AC98: 0 | AD98: 0 | AE98: 1000
B99: =IF(A99<>0,VLOOKUP(A99,Liste!$A$10:$D$159,4,FALSE),"") ->  | C99: 0 | D99: 0 | E99: 0 | F99: 0 | I99: 0 | J99: 0 | K99: =IF(AND($I99=1,$H99>0),VLOOKUP($H99,$A$14:AD$163,11,FALSE),0) -> 0 | L99: =IF(AND($I99=1,$H99>0),VLOOKUP($H99,$A$14:AE$163,12,FALSE),0) -> 0 | M99: =IF(AND($I99=1,$H99>0),VLOOKUP($H99,$A$14:AF$163,13,FALSE),0) -> 0 | Q99: =IF(A99<>0,VLOOKUP(A99,Liste!$A$10:$K$159,8,FALSE),"") ->  | AB99: 0 | AC99: 0 | AD99: 0 | AE99: 1000
B100: =IF(A100<>0,VLOOKUP(A100,Liste!$A$10:$D$159,4,FALSE),"") ->  | C100: 0 | D100: 0 | E100: 0 | F100: 0 | I100: 0 | J100: 0 | K100: =IF(AND($I100=1,$H100>0),VLOOKUP($H100,$A$14:AD$163,11,FALSE),0) -> 0 | L100: =IF(AND($I100=1,$H100>0),VLOOKUP($H100,$A$14:AE$163,12,FALSE),0) -> 0 | M100: =IF(AND($I100=1,$H100>0),VLOOKUP($H100,$A$14:AF$163,13,FALSE),0) -> 0 | Q100: =IF(A100<>0,VLOOKUP(A100,Liste!$A$10:$K$159,8,FALSE),"") ->  | AB100: 0 | AC100: 0 | AD100: 0 | AE100: 1000
B101: =IF(A101<>0,VLOOKUP(A101,Liste!$A$10:$D$159,4,FALSE),"") ->  | C101: 0 | D101: 0 | E101: 0 | F101: 0 | I101: 0 | J101: 0 | K101: =IF(AND($I101=1,$H101>0),VLOOKUP($H101,$A$14:AD$163,11,FALSE),0) -> 0 | L101: =IF(AND($I101=1,$H101>0),VLOOKUP($H101,$A$14:AE$163,12,FALSE),0) -> 0 | M101: =IF(AND($I101=1,$H101>0),VLOOKUP($H101,$A$14:AF$163,13,FALSE),0) -> 0 | Q101: =IF(A101<>0,VLOOKUP(A101,Liste!$A$10:$K$159,8,FALSE),"") ->  | AB101: 0 | AC101: 0 | AD101: 0 | AE101: 1000
B102: =IF(A102<>0,VLOOKUP(A102,Liste!$A$10:$D$159,4,FALSE),"") ->  | C102: 0 | D102: 0 | E102: 0 | F102: 0 | I102: 0 | J102: 0 | K102: =IF(AND($I102=1,$H102>0),VLOOKUP($H102,$A$14:AD$163,11,FALSE),0) -> 0 | L102: =IF(AND($I102=1,$H102>0),VLOOKUP($H102,$A$14:AE$163,12,FALSE),0) -> 0 | M102: =IF(AND($I102=1,$H102>0),VLOOKUP($H102,$A$14:AF$163,13,FALSE),0) -> 0 | Q102: =IF(A102<>0,VLOOKUP(A102,Liste!$A$10:$K$159,8,FALSE),"") ->  | AB102: 0 | AC102: 0 | AD102: 0 | AE102: 1000
B103: =IF(A103<>0,VLOOKUP(A103,Liste!$A$10:$D$159,4,FALSE),"") ->  | C103: 0 | D103: 0 | E103: 0 | F103: 0 | I103: 0 | J103: 0 | K103: =IF(AND($I103=1,$H103>0),VLOOKUP($H103,$A$14:AD$163,11,FALSE),0) -> 0 | L103: =IF(AND($I103=1,$H103>0),VLOOKUP($H103,$A$14:AE$163,12,FALSE),0) -> 0 | M103: =IF(AND($I103=1,$H103>0),VLOOKUP($H103,$A$14:AF$163,13,FALSE),0) -> 0 | Q103: =IF(A103<>0,VLOOKUP(A103,Liste!$A$10:$K$159,8,FALSE),"") ->  | AB103: 0 | AC103: 0 | AD103: 0 | AE103: 1000
B104: =IF(A104<>0,VLOOKUP(A104,Liste!$A$10:$D$159,4,FALSE),"") ->  | C104: 0 | D104: 0 | E104: 0 | F104: 0 | I104: 0 | J104: 0 | K104: =IF(AND($I104=1,$H104>0),VLOOKUP($H104,$A$14:AD$163,11,FALSE),0) -> 0 | L104: =IF(AND($I104=1,$H104>0),VLOOKUP($H104,$A$14:AE$163,12,FALSE),0) -> 0 | M104: =IF(AND($I104=1,$H104>0),VLOOKUP($H104,$A$14:AF$163,13,FALSE),0) -> 0 | Q104: =IF(A104<>0,VLOOKUP(A104,Liste!$A$10:$K$159,8,FALSE),"") ->  | AB104: 0 | AC104: 0 | AD104: 0 | AE104: 1000
B105: =IF(A105<>0,VLOOKUP(A105,Liste!$A$10:$D$159,4,FALSE),"") ->  | C105: 0 | D105: 0 | E105: 0 | F105: 0 | I105: 0 | J105: 0 | K105: =IF(AND($I105=1,$H105>0),VLOOKUP($H105,$A$14:AD$163,11,FALSE),0) -> 0 | L105: =IF(AND($I105=1,$H105>0),VLOOKUP($H105,$A$14:AE$163,12,FALSE),0) -> 0 | M105: =IF(AND($I105=1,$H105>0),VLOOKUP($H105,$A$14:AF$163,13,FALSE),0) -> 0 | Q105: =IF(A105<>0,VLOOKUP(A105,Liste!$A$10:$K$159,8,FALSE),"") ->  | AB105: 0 | AC105: 0 | AD105: 0 | AE105: 1000
B106: =IF(A106<>0,VLOOKUP(A106,Liste!$A$10:$D$159,4,FALSE),"") ->  | C106: 0 | D106: 0 | E106: 0 | F106: 0 | I106: 0 | J106: 0 | K106: =IF(AND($I106=1,$H106>0),VLOOKUP($H106,$A$14:AD$163,11,FALSE),0) -> 0 | L106: =IF(AND($I106=1,$H106>0),VLOOKUP($H106,$A$14:AE$163,12,FALSE),0) -> 0 | M106: =IF(AND($I106=1,$H106>0),VLOOKUP($H106,$A$14:AF$163,13,FALSE),0) -> 0 | Q106: =IF(A106<>0,VLOOKUP(A106,Liste!$A$10:$K$159,8,FALSE),"") ->  | AB106: 0 | AC106: 0 | AD106: 0 | AE106: 1000
B107: =IF(A107<>0,VLOOKUP(A107,Liste!$A$10:$D$159,4,FALSE),"") ->  | C107: 0 | D107: 0 | E107: 0 | F107: 0 | I107: 0 | J107: 0 | K107: =IF(AND($I107=1,$H107>0),VLOOKUP($H107,$A$14:AD$163,11,FALSE),0) -> 0 | L107: =IF(AND($I107=1,$H107>0),VLOOKUP($H107,$A$14:AE$163,12,FALSE),0) -> 0 | M107: =IF(AND($I107=1,$H107>0),VLOOKUP($H107,$A$14:AF$163,13,FALSE),0) -> 0 | Q107: =IF(A107<>0,VLOOKUP(A107,Liste!$A$10:$K$159,8,FALSE),"") ->  | AB107: 0 | AC107: 0 | AD107: 0 | AE107: 1000
B108: =IF(A108<>0,VLOOKUP(A108,Liste!$A$10:$D$159,4,FALSE),"") ->  | C108: 0 | D108: 0 | E108: 0 | F108: 0 | I108: 0 | J108: 0 | K108: =IF(AND($I108=1,$H108>0),VLOOKUP($H108,$A$14:AD$163,11,FALSE),0) -> 0 | L108: =IF(AND($I108=1,$H108>0),VLOOKUP($H108,$A$14:AE$163,12,FALSE),0) -> 0 | M108: =IF(AND($I108=1,$H108>0),VLOOKUP($H108,$A$14:AF$163,13,FALSE),0) -> 0 | Q108: =IF(A108<>0,VLOOKUP(A108,Liste!$A$10:$K$159,8,FALSE),"") ->  | AB108: 0 | AC108: 0 | AD108: 0 | AE108: 1000
B109: =IF(A109<>0,VLOOKUP(A109,Liste!$A$10:$D$159,4,FALSE),"") ->  | C109: 0 | D109: 0 | E109: 0 | F109: 0 | I109: 0 | J109: 0 | K109: =IF(AND($I109=1,$H109>0),VLOOKUP($H109,$A$14:AD$163,11,FALSE),0) -> 0 | L109: =IF(AND($I109=1,$H109>0),VLOOKUP($H109,$A$14:AE$163,12,FALSE),0) -> 0 | M109: =IF(AND($I109=1,$H109>0),VLOOKUP($H109,$A$14:AF$163,13,FALSE),0) -> 0 | Q109: =IF(A109<>0,VLOOKUP(A109,Liste!$A$10:$K$159,8,FALSE),"") ->  | AB109: 0 | AC109: 0 | AD109: 0 | AE109: 1000
B110: =IF(A110<>0,VLOOKUP(A110,Liste!$A$10:$D$159,4,FALSE),"") ->  | C110: 0 | D110: 0 | E110: 0 | F110: 0 | I110: 0 | J110: 0 | K110: =IF(AND($I110=1,$H110>0),VLOOKUP($H110,$A$14:AD$163,11,FALSE),0) -> 0 | L110: =IF(AND($I110=1,$H110>0),VLOOKUP($H110,$A$14:AE$163,12,FALSE),0) -> 0 | M110: =IF(AND($I110=1,$H110>0),VLOOKUP($H110,$A$14:AF$163,13,FALSE),0) -> 0 | Q110: =IF(A110<>0,VLOOKUP(A110,Liste!$A$10:$K$159,8,FALSE),"") ->  | AB110: 0 | AC110: 0 | AD110: 0 | AE110: 1000
B111: =IF(A111<>0,VLOOKUP(A111,Liste!$A$10:$D$159,4,FALSE),"") ->  | C111: 0 | D111: 0 | E111: 0 | F111: 0 | I111: 0 | J111: 0 | K111: =IF(AND($I111=1,$H111>0),VLOOKUP($H111,$A$14:AD$163,11,FALSE),0) -> 0 | L111: =IF(AND($I111=1,$H111>0),VLOOKUP($H111,$A$14:AE$163,12,FALSE),0) -> 0 | M111: =IF(AND($I111=1,$H111>0),VLOOKUP($H111,$A$14:AF$163,13,FALSE),0) -> 0 | Q111: =IF(A111<>0,VLOOKUP(A111,Liste!$A$10:$K$159,8,FALSE),"") ->  | AB111: 0 | AC111: 0 | AD111: 0 | AE111: 1000
B112: =IF(A112<>0,VLOOKUP(A112,Liste!$A$10:$D$159,4,FALSE),"") ->  | C112: 0 | D112: 0 | E112: 0 | F112: 0 | I112: 0 | J112: 0 | K112: =IF(AND($I112=1,$H112>0),VLOOKUP($H112,$A$14:AD$163,11,FALSE),0) -> 0 | L112: =IF(AND($I112=1,$H112>0),VLOOKUP($H112,$A$14:AE$163,12,FALSE),0) -> 0 | M112: =IF(AND($I112=1,$H112>0),VLOOKUP($H112,$A$14:AF$163,13,FALSE),0) -> 0 | Q112: =IF(A112<>0,VLOOKUP(A112,Liste!$A$10:$K$159,8,FALSE),"") ->  | AB112: 0 | AC112: 0 | AD112: 0 | AE112: 1000
B113: =IF(A113<>0,VLOOKUP(A113,Liste!$A$10:$D$159,4,FALSE),"") ->  | C113: 0 | D113: 0 | E113: 0 | F113: 0 | I113: 0 | J113: 0 | K113: =IF(AND($I113=1,$H113>0),VLOOKUP($H113,$A$14:AD$163,11,FALSE),0) -> 0 | L113: =IF(AND($I113=1,$H113>0),VLOOKUP($H113,$A$14:AE$163,12,FALSE),0) -> 0 | M113: =IF(AND($I113=1,$H113>0),VLOOKUP($H113,$A$14:AF$163,13,FALSE),0) -> 0 | Q113: =IF(A113<>0,VLOOKUP(A113,Liste!$A$10:$K$159,8,FALSE),"") ->  | AB113: 0 | AC113: 0 | AD113: 0 | AE113: 1000
B114: =IF(A114<>0,VLOOKUP(A114,Liste!$A$10:$D$159,4,FALSE),"") ->  | C114: 0 | D114: 0 | E114: 0 | F114: 0 | I114: 0 | J114: 0 | K114: =IF(AND($I114=1,$H114>0),VLOOKUP($H114,$A$14:AD$163,11,FALSE),0) -> 0 | L114: =IF(AND($I114=1,$H114>0),VLOOKUP($H114,$A$14:AE$163,12,FALSE),0) -> 0 | M114: =IF(AND($I114=1,$H114>0),VLOOKUP($H114,$A$14:AF$163,13,FALSE),0) -> 0 | Q114: =IF(A114<>0,VLOOKUP(A114,Liste!$A$10:$K$159,8,FALSE),"") ->  | AB114: 0 | AC114: 0 | AD114: 0 | AE114: 1000
B115: =IF(A115<>0,VLOOKUP(A115,Liste!$A$10:$D$159,4,FALSE),"") ->  | C115: 0 | D115: 0 | E115: 0 | F115: 0 | I115: 0 | J115: 0 | K115: =IF(AND($I115=1,$H115>0),VLOOKUP($H115,$A$14:AD$163,11,FALSE),0) -> 0 | L115: =IF(AND($I115=1,$H115>0),VLOOKUP($H115,$A$14:AE$163,12,FALSE),0) -> 0 | M115: =IF(AND($I115=1,$H115>0),VLOOKUP($H115,$A$14:AF$163,13,FALSE),0) -> 0 | Q115: =IF(A115<>0,VLOOKUP(A115,Liste!$A$10:$K$159,8,FALSE),"") ->  | AB115: 0 | AC115: 0 | AD115: 0 | AE115: 1000
B116: =IF(A116<>0,VLOOKUP(A116,Liste!$A$10:$D$159,4,FALSE),"") ->  | C116: 0 | D116: 0 | E116: 0 | F116: 0 | I116: 0 | J116: 0 | K116: =IF(AND($I116=1,$H116>0),VLOOKUP($H116,$A$14:AD$163,11,FALSE),0) -> 0 | L116: =IF(AND($I116=1,$H116>0),VLOOKUP($H116,$A$14:AE$163,12,FALSE),0) -> 0 | M116: =IF(AND($I116=1,$H116>0),VLOOKUP($H116,$A$14:AF$163,13,FALSE),0) -> 0 | Q116: =IF(A116<>0,VLOOKUP(A116,Liste!$A$10:$K$159,8,FALSE),"") ->  | AB116: 0 | AC116: 0 | AD116: 0 | AE116: 1000
B117: =IF(A117<>0,VLOOKUP(A117,Liste!$A$10:$D$159,4,FALSE),"") ->  | C117: 0 | D117: 0 | E117: 0 | F117: 0 | I117: 0 | J117: 0 | K117: =IF(AND($I117=1,$H117>0),VLOOKUP($H117,$A$14:AD$163,11,FALSE),0) -> 0 | L117: =IF(AND($I117=1,$H117>0),VLOOKUP($H117,$A$14:AE$163,12,FALSE),0) -> 0 | M117: =IF(AND($I117=1,$H117>0),VLOOKUP($H117,$A$14:AF$163,13,FALSE),0) -> 0 | Q117: =IF(A117<>0,VLOOKUP(A117,Liste!$A$10:$K$159,8,FALSE),"") ->  | AB117: 0 | AC117: 0 | AD117: 0 | AE117: 1000
B118: =IF(A118<>0,VLOOKUP(A118,Liste!$A$10:$D$159,4,FALSE),"") ->  | C118: 0 | D118: 0 | E118: 0 | F118: 0 | I118: 0 | J118: 0 | K118: =IF(AND($I118=1,$H118>0),VLOOKUP($H118,$A$14:AD$163,11,FALSE),0) -> 0 | L118: =IF(AND($I118=1,$H118>0),VLOOKUP($H118,$A$14:AE$163,12,FALSE),0) -> 0 | M118: =IF(AND($I118=1,$H118>0),VLOOKUP($H118,$A$14:AF$163,13,FALSE),0) -> 0 | Q118: =IF(A118<>0,VLOOKUP(A118,Liste!$A$10:$K$159,8,FALSE),"") ->  | AB118: 0 | AC118: 0 | AD118: 0 | AE118: 1000
B119: =IF(A119<>0,VLOOKUP(A119,Liste!$A$10:$D$159,4,FALSE),"") ->  | C119: 0 | D119: 0 | E119: 0 | F119: 0 | I119: 0 | J119: 0 | K119: =IF(AND($I119=1,$H119>0),VLOOKUP($H119,$A$14:AD$163,11,FALSE),0) -> 0 | L119: =IF(AND($I119=1,$H119>0),VLOOKUP($H119,$A$14:AE$163,12,FALSE),0) -> 0 | M119: =IF(AND($I119=1,$H119>0),VLOOKUP($H119,$A$14:AF$163,13,FALSE),0) -> 0 | Q119: =IF(A119<>0,VLOOKUP(A119,Liste!$A$10:$K$159,8,FALSE),"") ->  | AB119: 0 | AC119: 0 | AD119: 0 | AE119: 1000
B120: =IF(A120<>0,VLOOKUP(A120,Liste!$A$10:$D$159,4,FALSE),"") ->  | C120: 0 | D120: 0 | E120: 0 | F120: 0 | I120: 0 | J120: 0 | K120: =IF(AND($I120=1,$H120>0),VLOOKUP($H120,$A$14:AD$163,11,FALSE),0) -> 0 | L120: =IF(AND($I120=1,$H120>0),VLOOKUP($H120,$A$14:AE$163,12,FALSE),0) -> 0 | M120: =IF(AND($I120=1,$H120>0),VLOOKUP($H120,$A$14:AF$163,13,FALSE),0) -> 0 | Q120: =IF(A120<>0,VLOOKUP(A120,Liste!$A$10:$K$159,8,FALSE),"") ->  | AB120: 0 | AC120: 0 | AD120: 0 | AE120: 1000
B121: =IF(A121<>0,VLOOKUP(A121,Liste!$A$10:$D$159,4,FALSE),"") ->  | C121: 0 | D121: 0 | E121: 0 | F121: 0 | I121: 0 | J121: 0 | K121: =IF(AND($I121=1,$H121>0),VLOOKUP($H121,$A$14:AD$163,11,FALSE),0) -> 0 | L121: =IF(AND($I121=1,$H121>0),VLOOKUP($H121,$A$14:AE$163,12,FALSE),0) -> 0 | M121: =IF(AND($I121=1,$H121>0),VLOOKUP($H121,$A$14:AF$163,13,FALSE),0) -> 0 | Q121: =IF(A121<>0,VLOOKUP(A121,Liste!$A$10:$K$159,8,FALSE),"") ->  | AB121: 0 | AC121: 0 | AD121: 0 | AE121: 1000
B122: =IF(A122<>0,VLOOKUP(A122,Liste!$A$10:$D$159,4,FALSE),"") ->  | C122: 0 | D122: 0 | E122: 0 | F122: 0 | I122: 0 | J122: 0 | K122: =IF(AND($I122=1,$H122>0),VLOOKUP($H122,$A$14:AD$163,11,FALSE),0) -> 0 | L122: =IF(AND($I122=1,$H122>0),VLOOKUP($H122,$A$14:AE$163,12,FALSE),0) -> 0 | M122: =IF(AND($I122=1,$H122>0),VLOOKUP($H122,$A$14:AF$163,13,FALSE),0) -> 0 | Q122: =IF(A122<>0,VLOOKUP(A122,Liste!$A$10:$K$159,8,FALSE),"") ->  | AB122: 0 | AC122: 0 | AD122: 0 | AE122: 1000
B123: =IF(A123<>0,VLOOKUP(A123,Liste!$A$10:$D$159,4,FALSE),"") ->  | C123: 0 | D123: 0 | E123: 0 | F123: 0 | I123: 0 | J123: 0 | K123: =IF(AND($I123=1,$H123>0),VLOOKUP($H123,$A$14:AD$163,11,FALSE),0) -> 0 | L123: =IF(AND($I123=1,$H123>0),VLOOKUP($H123,$A$14:AE$163,12,FALSE),0) -> 0 | M123: =IF(AND($I123=1,$H123>0),VLOOKUP($H123,$A$14:AF$163,13,FALSE),0) -> 0 | Q123: =IF(A123<>0,VLOOKUP(A123,Liste!$A$10:$K$159,8,FALSE),"") ->  | AB123: 0 | AC123: 0 | AD123: 0 | AE123: 1000
B124: =IF(A124<>0,VLOOKUP(A124,Liste!$A$10:$D$159,4,FALSE),"") ->  | C124: 0 | D124: 0 | E124: 0 | F124: 0 | I124: 0 | J124: 0 | K124: =IF(AND($I124=1,$H124>0),VLOOKUP($H124,$A$14:AD$163,11,FALSE),0) -> 0 | L124: =IF(AND($I124=1,$H124>0),VLOOKUP($H124,$A$14:AE$163,12,FALSE),0) -> 0 | M124: =IF(AND($I124=1,$H124>0),VLOOKUP($H124,$A$14:AF$163,13,FALSE),0) -> 0 | Q124: =IF(A124<>0,VLOOKUP(A124,Liste!$A$10:$K$159,8,FALSE),"") ->  | AB124: 0 | AC124: 0 | AD124: 0 | AE124: 1000
B125: =IF(A125<>0,VLOOKUP(A125,Liste!$A$10:$D$159,4,FALSE),"") ->  | C125: 0 | D125: 0 | E125: 0 | F125: 0 | I125: 0 | J125: 0 | K125: =IF(AND($I125=1,$H125>0),VLOOKUP($H125,$A$14:AD$163,11,FALSE),0) -> 0 | L125: =IF(AND($I125=1,$H125>0),VLOOKUP($H125,$A$14:AE$163,12,FALSE),0) -> 0 | M125: =IF(AND($I125=1,$H125>0),VLOOKUP($H125,$A$14:AF$163,13,FALSE),0) -> 0 | Q125: =IF(A125<>0,VLOOKUP(A125,Liste!$A$10:$K$159,8,FALSE),"") ->  | AB125: 0 | AC125: 0 | AD125: 0 | AE125: 1000
B126: =IF(A126<>0,VLOOKUP(A126,Liste!$A$10:$D$159,4,FALSE),"") ->  | C126: 0 | D126: 0 | E126: 0 | F126: 0 | I126: 0 | J126: 0 | K126: =IF(AND($I126=1,$H126>0),VLOOKUP($H126,$A$14:AD$163,11,FALSE),0) -> 0 | L126: =IF(AND($I126=1,$H126>0),VLOOKUP($H126,$A$14:AE$163,12,FALSE),0) -> 0 | M126: =IF(AND($I126=1,$H126>0),VLOOKUP($H126,$A$14:AF$163,13,FALSE),0) -> 0 | Q126: =IF(A126<>0,VLOOKUP(A126,Liste!$A$10:$K$159,8,FALSE),"") ->  | AB126: 0 | AC126: 0 | AD126: 0 | AE126: 1000
B127: =IF(A127<>0,VLOOKUP(A127,Liste!$A$10:$D$159,4,FALSE),"") ->  | C127: 0 | D127: 0 | E127: 0 | F127: 0 | I127: 0 | J127: 0 | K127: =IF(AND($I127=1,$H127>0),VLOOKUP($H127,$A$14:AD$163,11,FALSE),0) -> 0 | L127: =IF(AND($I127=1,$H127>0),VLOOKUP($H127,$A$14:AE$163,12,FALSE),0) -> 0 | M127: =IF(AND($I127=1,$H127>0),VLOOKUP($H127,$A$14:AF$163,13,FALSE),0) -> 0 | Q127: =IF(A127<>0,VLOOKUP(A127,Liste!$A$10:$K$159,8,FALSE),"") ->  | AB127: 0 | AC127: 0 | AD127: 0 | AE127: 1000
B128: =IF(A128<>0,VLOOKUP(A128,Liste!$A$10:$D$159,4,FALSE),"") ->  | C128: 0 | D128: 0 | E128: 0 | F128: 0 | I128: 0 | J128: 0 | K128: =IF(AND($I128=1,$H128>0),VLOOKUP($H128,$A$14:AD$163,11,FALSE),0) -> 0 | L128: =IF(AND($I128=1,$H128>0),VLOOKUP($H128,$A$14:AE$163,12,FALSE),0) -> 0 | M128: =IF(AND($I128=1,$H128>0),VLOOKUP($H128,$A$14:AF$163,13,FALSE),0) -> 0 | Q128: =IF(A128<>0,VLOOKUP(A128,Liste!$A$10:$K$159,8,FALSE),"") ->  | AB128: =(H128+I128)*(J128>0) -> 0 | AC128: 0 | AD128: 0 | AE128: =IF(H128>0,H128+0.5*(I128=1),A128*(I128=1))+(1000*(I128<1)) -> 1000
B129: =IF(A129<>0,VLOOKUP(A129,Liste!$A$10:$D$159,4,FALSE),"") ->  | C129: 0 | D129: 0 | E129: 0 | F129: 0 | I129: 0 | J129: 0 | K129: =IF(AND($I129=1,$H129>0),VLOOKUP($H129,$A$14:AD$163,11,FALSE),0) -> 0 | L129: =IF(AND($I129=1,$H129>0),VLOOKUP($H129,$A$14:AE$163,12,FALSE),0) -> 0 | M129: =IF(AND($I129=1,$H129>0),VLOOKUP($H129,$A$14:AF$163,13,FALSE),0) -> 0 | Q129: =IF(A129<>0,VLOOKUP(A129,Liste!$A$10:$K$159,8,FALSE),"") ->  | AB129: 0 | AC129: 0 | AD129: 0 | AE129: 1000
B130: =IF(A130<>0,VLOOKUP(A130,Liste!$A$10:$D$159,4,FALSE),"") ->  | C130: 0 | D130: 0 | E130: 0 | F130: 0 | I130: 0 | J130: 0 | K130: =IF(AND($I130=1,$H130>0),VLOOKUP($H130,$A$14:AD$163,11,FALSE),0) -> 0 | L130: =IF(AND($I130=1,$H130>0),VLOOKUP($H130,$A$14:AE$163,12,FALSE),0) -> 0 | M130: =IF(AND($I130=1,$H130>0),VLOOKUP($H130,$A$14:AF$163,13,FALSE),0) -> 0 | Q130: =IF(A130<>0,VLOOKUP(A130,Liste!$A$10:$K$159,8,FALSE),"") ->  | AB130: 0 | AC130: 0 | AD130: 0 | AE130: 1000
B131: =IF(A131<>0,VLOOKUP(A131,Liste!$A$10:$D$159,4,FALSE),"") ->  | C131: 0 | D131: 0 | E131: 0 | F131: 0 | I131: 0 | J131: 0 | K131: =IF(AND($I131=1,$H131>0),VLOOKUP($H131,$A$14:AD$163,11,FALSE),0) -> 0 | L131: =IF(AND($I131=1,$H131>0),VLOOKUP($H131,$A$14:AE$163,12,FALSE),0) -> 0 | M131: =IF(AND($I131=1,$H131>0),VLOOKUP($H131,$A$14:AF$163,13,FALSE),0) -> 0 | Q131: =IF(A131<>0,VLOOKUP(A131,Liste!$A$10:$K$159,8,FALSE),"") ->  | AB131: 0 | AC131: 0 | AD131: 0 | AE131: 1000
B132: =IF(A132<>0,VLOOKUP(A132,Liste!$A$10:$D$159,4,FALSE),"") ->  | C132: 0 | D132: 0 | E132: 0 | F132: 0 | I132: 0 | J132: 0 | K132: =IF(AND($I132=1,$H132>0),VLOOKUP($H132,$A$14:AD$163,11,FALSE),0) -> 0 | L132: =IF(AND($I132=1,$H132>0),VLOOKUP($H132,$A$14:AE$163,12,FALSE),0) -> 0 | M132: =IF(AND($I132=1,$H132>0),VLOOKUP($H132,$A$14:AF$163,13,FALSE),0) -> 0 | Q132: =IF(A132<>0,VLOOKUP(A132,Liste!$A$10:$K$159,8,FALSE),"") ->  | AB132: 0 | AC132: 0 | AD132: 0 | AE132: 1000
B133: =IF(A133<>0,VLOOKUP(A133,Liste!$A$10:$D$159,4,FALSE),"") ->  | C133: 0 | D133: 0 | E133: 0 | F133: 0 | I133: 0 | J133: 0 | K133: =IF(AND($I133=1,$H133>0),VLOOKUP($H133,$A$14:AD$163,11,FALSE),0) -> 0 | L133: =IF(AND($I133=1,$H133>0),VLOOKUP($H133,$A$14:AE$163,12,FALSE),0) -> 0 | M133: =IF(AND($I133=1,$H133>0),VLOOKUP($H133,$A$14:AF$163,13,FALSE),0) -> 0 | Q133: =IF(A133<>0,VLOOKUP(A133,Liste!$A$10:$K$159,8,FALSE),"") ->  | AB133: 0 | AC133: 0 | AD133: 0 | AE133: 1000
B134: =IF(A134<>0,VLOOKUP(A134,Liste!$A$10:$D$159,4,FALSE),"") ->  | C134: 0 | D134: 0 | E134: 0 | F134: 0 | I134: 0 | J134: 0 | K134: =IF(AND($I134=1,$H134>0),VLOOKUP($H134,$A$14:AD$163,11,FALSE),0) -> 0 | L134: =IF(AND($I134=1,$H134>0),VLOOKUP($H134,$A$14:AE$163,12,FALSE),0) -> 0 | M134: =IF(AND($I134=1,$H134>0),VLOOKUP($H134,$A$14:AF$163,13,FALSE),0) -> 0 | Q134: =IF(A134<>0,VLOOKUP(A134,Liste!$A$10:$K$159,8,FALSE),"") ->  | AB134: 0 | AC134: 0 | AD134: 0 | AE134: 1000
B135: =IF(A135<>0,VLOOKUP(A135,Liste!$A$10:$D$159,4,FALSE),"") ->  | C135: 0 | D135: 0 | E135: 0 | F135: 0 | I135: 0 | J135: 0 | K135: =IF(AND($I135=1,$H135>0),VLOOKUP($H135,$A$14:AD$163,11,FALSE),0) -> 0 | L135: =IF(AND($I135=1,$H135>0),VLOOKUP($H135,$A$14:AE$163,12,FALSE),0) -> 0 | M135: =IF(AND($I135=1,$H135>0),VLOOKUP($H135,$A$14:AF$163,13,FALSE),0) -> 0 | Q135: =IF(A135<>0,VLOOKUP(A135,Liste!$A$10:$K$159,8,FALSE),"") ->  | AB135: 0 | AC135: 0 | AD135: 0 | AE135: 1000
B136: =IF(A136<>0,VLOOKUP(A136,Liste!$A$10:$D$159,4,FALSE),"") ->  | C136: 0 | D136: 0 | E136: 0 | F136: 0 | I136: 0 | J136: 0 | K136: =IF(AND($I136=1,$H136>0),VLOOKUP($H136,$A$14:AD$163,11,FALSE),0) -> 0 | L136: =IF(AND($I136=1,$H136>0),VLOOKUP($H136,$A$14:AE$163,12,FALSE),0) -> 0 | M136: =IF(AND($I136=1,$H136>0),VLOOKUP($H136,$A$14:AF$163,13,FALSE),0) -> 0 | Q136: =IF(A136<>0,VLOOKUP(A136,Liste!$A$10:$K$159,8,FALSE),"") ->  | AB136: 0 | AC136: 0 | AD136: 0 | AE136: 1000
B137: =IF(A137<>0,VLOOKUP(A137,Liste!$A$10:$D$159,4,FALSE),"") ->  | C137: 0 | D137: 0 | E137: 0 | F137: 0 | I137: 0 | J137: 0 | K137: =IF(AND($I137=1,$H137>0),VLOOKUP($H137,$A$14:AD$163,11,FALSE),0) -> 0 | L137: =IF(AND($I137=1,$H137>0),VLOOKUP($H137,$A$14:AE$163,12,FALSE),0) -> 0 | M137: =IF(AND($I137=1,$H137>0),VLOOKUP($H137,$A$14:AF$163,13,FALSE),0) -> 0 | Q137: =IF(A137<>0,VLOOKUP(A137,Liste!$A$10:$K$159,8,FALSE),"") ->  | AB137: 0 | AC137: 0 | AD137: 0 | AE137: 1000
B138: =IF(A138<>0,VLOOKUP(A138,Liste!$A$10:$D$159,4,FALSE),"") ->  | C138: 0 | D138: 0 | E138: 0 | F138: 0 | I138: 0 | J138: 0 | K138: =IF(AND($I138=1,$H138>0),VLOOKUP($H138,$A$14:AD$163,11,FALSE),0) -> 0 | L138: =IF(AND($I138=1,$H138>0),VLOOKUP($H138,$A$14:AE$163,12,FALSE),0) -> 0 | M138: =IF(AND($I138=1,$H138>0),VLOOKUP($H138,$A$14:AF$163,13,FALSE),0) -> 0 | Q138: =IF(A138<>0,VLOOKUP(A138,Liste!$A$10:$K$159,8,FALSE),"") ->  | AB138: 0 | AC138: 0 | AD138: 0 | AE138: 1000
B139: =IF(A139<>0,VLOOKUP(A139,Liste!$A$10:$D$159,4,FALSE),"") ->  | C139: 0 | D139: 0 | E139: 0 | F139: 0 | I139: 0 | J139: 0 | K139: =IF(AND($I139=1,$H139>0),VLOOKUP($H139,$A$14:AD$163,11,FALSE),0) -> 0 | L139: =IF(AND($I139=1,$H139>0),VLOOKUP($H139,$A$14:AE$163,12,FALSE),0) -> 0 | M139: =IF(AND($I139=1,$H139>0),VLOOKUP($H139,$A$14:AF$163,13,FALSE),0) -> 0 | Q139: =IF(A139<>0,VLOOKUP(A139,Liste!$A$10:$K$159,8,FALSE),"") ->  | AB139: 0 | AC139: 0 | AD139: 0 | AE139: 1000
B140: =IF(A140<>0,VLOOKUP(A140,Liste!$A$10:$D$159,4,FALSE),"") ->  | C140: 0 | D140: 0 | E140: 0 | F140: 0 | I140: 0 | J140: 0 | K140: =IF(AND($I140=1,$H140>0),VLOOKUP($H140,$A$14:AD$163,11,FALSE),0) -> 0 | L140: =IF(AND($I140=1,$H140>0),VLOOKUP($H140,$A$14:AE$163,12,FALSE),0) -> 0 | M140: =IF(AND($I140=1,$H140>0),VLOOKUP($H140,$A$14:AF$163,13,FALSE),0) -> 0 | Q140: =IF(A140<>0,VLOOKUP(A140,Liste!$A$10:$K$159,8,FALSE),"") ->  | AB140: 0 | AC140: 0 | AD140: 0 | AE140: 1000
B141: =IF(A141<>0,VLOOKUP(A141,Liste!$A$10:$D$159,4,FALSE),"") ->  | C141: 0 | D141: 0 | E141: 0 | F141: 0 | I141: 0 | J141: 0 | K141: =IF(AND($I141=1,$H141>0),VLOOKUP($H141,$A$14:AD$163,11,FALSE),0) -> 0 | L141: =IF(AND($I141=1,$H141>0),VLOOKUP($H141,$A$14:AE$163,12,FALSE),0) -> 0 | M141: =IF(AND($I141=1,$H141>0),VLOOKUP($H141,$A$14:AF$163,13,FALSE),0) -> 0 | Q141: =IF(A141<>0,VLOOKUP(A141,Liste!$A$10:$K$159,8,FALSE),"") ->  | AB141: 0 | AC141: 0 | AD141: 0 | AE141: 1000
B142: =IF(A142<>0,VLOOKUP(A142,Liste!$A$10:$D$159,4,FALSE),"") ->  | C142: =F142*(K142=1) -> 0 | D142: =F142*(L142=1) -> 0 | E142: =F142*(M142=1) -> 0 | F142: 0 | I142: 0 | J142: =IF(F142>0,F142,0) -> 0 | K142: =IF(AND($I142=1,$H142>0),VLOOKUP($H142,$A$14:AD$163,11,FALSE),0) -> 0 | L142: =IF(AND($I142=1,$H142>0),VLOOKUP($H142,$A$14:AE$163,12,FALSE),0) -> 0 | M142: =IF(AND($I142=1,$H142>0),VLOOKUP($H142,$A$14:AF$163,13,FALSE),0) -> 0 | P142: =IF(I142=1,K142*(K142=1)+L142*2*(L142=1)+M142*3*(M142=1),"") ->  | Q142: =IF(A142<>0,VLOOKUP(A142,Liste!$A$10:$K$159,8,FALSE),"") ->  | AB142: 0 | AC142: 0 | AD142: 0 | AE142: 1000
B143: =IF(A143<>0,VLOOKUP(A143,Liste!$A$10:$D$159,4,FALSE),"") ->  | C143: 0 | D143: 0 | E143: 0 | F143: =IF(I143=1,VLOOKUP(A143,$A$14:$AA$163,16+$B$4,0),0) -> 0 | I143: =1*(IF(G143>=1,VLOOKUP(A143,$A$14:$AA$163,16+$B$4,0)>0)) -> 0 | J143: 0 | K143: =IF(AND($I143=1,$H143>0),VLOOKUP($H143,$A$14:AD$163,11,FALSE),0) -> 0 | L143: =IF(AND($I143=1,$H143>0),VLOOKUP($H143,$A$14:AE$163,12,FALSE),0) -> 0 | M143: =IF(AND($I143=1,$H143>0),VLOOKUP($H143,$A$14:AF$163,13,FALSE),0) -> 0 | N143: =IF(AND(I143>0,K143+L143+M143=0),"EN ATTENTE",IF(K143+L143+M143>1,"ERREUR","")) ->  | O143: =IF(AND(AC143>3,AD143>$D$10*$O$12),1,"") ->  | Q143: =IF(A143<>0,VLOOKUP(A143,Liste!$A$10:$K$159,8,FALSE),"") ->  | AB143: 0 | AC143: =COUNTIF($H$14:$H$163,A143) -> 0 | AD143: =SUMIF($H$14:$H$163,A143,$J$14:$J$163)+(J143*(AC143>0)) -> 0 | AE143: 1000
B144: =IF(A144<>0,VLOOKUP(A144,Liste!$A$10:$D$159,4,FALSE),"") ->  | C144: 0 | D144: 0 | E144: 0 | F144: 0 | I144: 0 | J144: 0 | K144: =IF(AND($I144=1,$H144>0),VLOOKUP($H144,$A$14:AD$163,11,FALSE),0) -> 0 | L144: =IF(AND($I144=1,$H144>0),VLOOKUP($H144,$A$14:AE$163,12,FALSE),0) -> 0 | M144: =IF(AND($I144=1,$H144>0),VLOOKUP($H144,$A$14:AF$163,13,FALSE),0) -> 0 | Q144: =IF(A144<>0,VLOOKUP(A144,Liste!$A$10:$K$159,8,FALSE),"") ->  | AB144: 0 | AC144: 0 | AD144: 0 | AE144: 1000
B145: =IF(A145<>0,VLOOKUP(A145,Liste!$A$10:$D$159,4,FALSE),"") ->  | C145: 0 | D145: 0 | E145: 0 | F145: 0 | I145: 0 | J145: 0 | K145: =IF(AND($I145=1,$H145>0),VLOOKUP($H145,$A$14:AD$163,11,FALSE),0) -> 0 | L145: =IF(AND($I145=1,$H145>0),VLOOKUP($H145,$A$14:AE$163,12,FALSE),0) -> 0 | M145: =IF(AND($I145=1,$H145>0),VLOOKUP($H145,$A$14:AF$163,13,FALSE),0) -> 0 | Q145: =IF(A145<>0,VLOOKUP(A145,Liste!$A$10:$K$159,8,FALSE),"") ->  | AB145: 0 | AC145: 0 | AD145: 0 | AE145: 1000
B146: =IF(A146<>0,VLOOKUP(A146,Liste!$A$10:$D$159,4,FALSE),"") ->  | C146: 0 | D146: 0 | E146: 0 | F146: 0 | I146: 0 | J146: 0 | K146: =IF(AND($I146=1,$H146>0),VLOOKUP($H146,$A$14:AD$163,11,FALSE),0) -> 0 | L146: =IF(AND($I146=1,$H146>0),VLOOKUP($H146,$A$14:AE$163,12,FALSE),0) -> 0 | M146: =IF(AND($I146=1,$H146>0),VLOOKUP($H146,$A$14:AF$163,13,FALSE),0) -> 0 | Q146: =IF(A146<>0,VLOOKUP(A146,Liste!$A$10:$K$159,8,FALSE),"") ->  | AB146: 0 | AC146: 0 | AD146: 0 | AE146: 1000
B147: =IF(A147<>0,VLOOKUP(A147,Liste!$A$10:$D$159,4,FALSE),"") ->  | C147: 0 | D147: 0 | E147: 0 | F147: 0 | I147: 0 | J147: 0 | K147: =IF(AND($I147=1,$H147>0),VLOOKUP($H147,$A$14:AD$163,11,FALSE),0) -> 0 | L147: =IF(AND($I147=1,$H147>0),VLOOKUP($H147,$A$14:AE$163,12,FALSE),0) -> 0 | M147: =IF(AND($I147=1,$H147>0),VLOOKUP($H147,$A$14:AF$163,13,FALSE),0) -> 0 | Q147: =IF(A147<>0,VLOOKUP(A147,Liste!$A$10:$K$159,8,FALSE),"") ->  | AB147: 0 | AC147: 0 | AD147: 0 | AE147: 1000
B148: =IF(A148<>0,VLOOKUP(A148,Liste!$A$10:$D$159,4,FALSE),"") ->  | C148: 0 | D148: 0 | E148: 0 | F148: 0 | I148: 0 | J148: 0 | K148: =IF(AND($I148=1,$H148>0),VLOOKUP($H148,$A$14:AD$163,11,FALSE),0) -> 0 | L148: =IF(AND($I148=1,$H148>0),VLOOKUP($H148,$A$14:AE$163,12,FALSE),0) -> 0 | M148: =IF(AND($I148=1,$H148>0),VLOOKUP($H148,$A$14:AF$163,13,FALSE),0) -> 0 | Q148: =IF(A148<>0,VLOOKUP(A148,Liste!$A$10:$K$159,8,FALSE),"") ->  | AB148: 0 | AC148: 0 | AD148: 0 | AE148: 1000
C149: 0 | D149: 0 | E149: 0 | F149: 0 | I149: 0 | J149: 0 | K149: =IF(AND($I149=1,$H149>0),VLOOKUP($H149,$A$14:AD$163,11,FALSE),0) -> 0 | L149: =IF(AND($I149=1,$H149>0),VLOOKUP($H149,$A$14:AE$163,12,FALSE),0) -> 0 | M149: =IF(AND($I149=1,$H149>0),VLOOKUP($H149,$A$14:AF$163,13,FALSE),0) -> 0 | Q149: =IF(A149<>0,VLOOKUP(A149,Liste!$A$10:$K$159,8,FALSE),"") ->  | AB149: 0 | AC149: 0 | AD149: 0 | AE149: 1000
B150: =IF(A150<>0,VLOOKUP(A150,Liste!$A$10:$D$159,4,FALSE),"") ->  | C150: 0 | D150: 0 | E150: 0 | F150: 0 | I150: 0 | J150: 0 | K150: =IF(AND($I150=1,$H150>0),VLOOKUP($H150,$A$14:AD$163,11,FALSE),0) -> 0 | L150: =IF(AND($I150=1,$H150>0),VLOOKUP($H150,$A$14:AE$163,12,FALSE),0) -> 0 | M150: =IF(AND($I150=1,$H150>0),VLOOKUP($H150,$A$14:AF$163,13,FALSE),0) -> 0 | Q150: =IF(A150<>0,VLOOKUP(A150,Liste!$A$10:$K$159,8,FALSE),"") ->  | AB150: 0 | AC150: 0 | AD150: 0 | AE150: 1000
B151: =IF(A151<>0,VLOOKUP(A151,Liste!$A$10:$D$159,4,FALSE),"") ->  | C151: 0 | D151: 0 | E151: 0 | F151: 0 | I151: 0 | J151: 0 | K151: =IF(AND($I151=1,$H151>0),VLOOKUP($H151,$A$14:AD$163,11,FALSE),0) -> 0 | L151: =IF(AND($I151=1,$H151>0),VLOOKUP($H151,$A$14:AE$163,12,FALSE),0) -> 0 | M151: =IF(AND($I151=1,$H151>0),VLOOKUP($H151,$A$14:AF$163,13,FALSE),0) -> 0 | Q151: =IF(A151<>0,VLOOKUP(A151,Liste!$A$10:$K$159,8,FALSE),"") ->  | AB151: 0 | AC151: 0 | AD151: 0 | AE151: 1000
B152: =IF(A152<>0,VLOOKUP(A152,Liste!$A$10:$D$159,4,FALSE),"") ->  | C152: 0 | D152: 0 | E152: 0 | F152: 0 | I152: 0 | J152: 0 | K152: =IF(AND($I152=1,$H152>0),VLOOKUP($H152,$A$14:AD$163,11,FALSE),0) -> 0 | L152: =IF(AND($I152=1,$H152>0),VLOOKUP($H152,$A$14:AE$163,12,FALSE),0) -> 0 | M152: =IF(AND($I152=1,$H152>0),VLOOKUP($H152,$A$14:AF$163,13,FALSE),0) -> 0 | Q152: =IF(A152<>0,VLOOKUP(A152,Liste!$A$10:$K$159,8,FALSE),"") ->  | AB152: 0 | AC152: 0 | AD152: 0 | AE152: 1000
B153: =IF(A153<>0,VLOOKUP(A153,Liste!$A$10:$D$159,4,FALSE),"") ->  | C153: 0 | D153: 0 | E153: 0 | F153: 0 | I153: 0 | J153: 0 | K153: =IF(AND($I153=1,$H153>0),VLOOKUP($H153,$A$14:AD$163,11,FALSE),0) -> 0 | L153: =IF(AND($I153=1,$H153>0),VLOOKUP($H153,$A$14:AE$163,12,FALSE),0) -> 0 | M153: =IF(AND($I153=1,$H153>0),VLOOKUP($H153,$A$14:AF$163,13,FALSE),0) -> 0 | Q153: =IF(A153<>0,VLOOKUP(A153,Liste!$A$10:$K$159,8,FALSE),"") ->  | AB153: 0 | AC153: 0 | AD153: 0 | AE153: 1000
B154: =IF(A154<>0,VLOOKUP(A154,Liste!$A$10:$D$159,4,FALSE),"") ->  | C154: 0 | D154: 0 | E154: 0 | F154: 0 | I154: 0 | J154: 0 | K154: =IF(AND($I154=1,$H154>0),VLOOKUP($H154,$A$14:AD$163,11,FALSE),0) -> 0 | L154: =IF(AND($I154=1,$H154>0),VLOOKUP($H154,$A$14:AE$163,12,FALSE),0) -> 0 | M154: =IF(AND($I154=1,$H154>0),VLOOKUP($H154,$A$14:AF$163,13,FALSE),0) -> 0 | Q154: =IF(A154<>0,VLOOKUP(A154,Liste!$A$10:$K$159,8,FALSE),"") ->  | AB154: 0 | AC154: 0 | AD154: 0 | AE154: 1000
B155: =IF(A155<>0,VLOOKUP(A155,Liste!$A$10:$D$159,4,FALSE),"") ->  | C155: 0 | D155: 0 | E155: 0 | F155: 0 | I155: 0 | J155: 0 | K155: =IF(AND($I155=1,$H155>0),VLOOKUP($H155,$A$14:AD$163,11,FALSE),0) -> 0 | L155: =IF(AND($I155=1,$H155>0),VLOOKUP($H155,$A$14:AE$163,12,FALSE),0) -> 0 | M155: =IF(AND($I155=1,$H155>0),VLOOKUP($H155,$A$14:AF$163,13,FALSE),0) -> 0 | Q155: =IF(A155<>0,VLOOKUP(A155,Liste!$A$10:$K$159,8,FALSE),"") ->  | AB155: 0 | AC155: 0 | AD155: 0 | AE155: 1000
B156: =IF(A156<>0,VLOOKUP(A156,Liste!$A$10:$D$159,4,FALSE),"") ->  | C156: 0 | D156: 0 | E156: 0 | F156: 0 | I156: 0 | J156: 0 | K156: =IF(AND($I156=1,$H156>0),VLOOKUP($H156,$A$14:AD$163,11,FALSE),0) -> 0 | L156: =IF(AND($I156=1,$H156>0),VLOOKUP($H156,$A$14:AE$163,12,FALSE),0) -> 0 | M156: =IF(AND($I156=1,$H156>0),VLOOKUP($H156,$A$14:AF$163,13,FALSE),0) -> 0 | Q156: =IF(A156<>0,VLOOKUP(A156,Liste!$A$10:$K$159,8,FALSE),"") ->  | AB156: 0 | AC156: 0 | AD156: 0 | AE156: 1000
B157: =IF(A157<>0,VLOOKUP(A157,Liste!$A$10:$D$159,4,FALSE),"") ->  | C157: 0 | D157: 0 | E157: 0 | F157: 0 | I157: 0 | J157: 0 | K157: =IF(AND($I157=1,$H157>0),VLOOKUP($H157,$A$14:AD$163,11,FALSE),0) -> 0 | L157: =IF(AND($I157=1,$H157>0),VLOOKUP($H157,$A$14:AE$163,12,FALSE),0) -> 0 | M157: =IF(AND($I157=1,$H157>0),VLOOKUP($H157,$A$14:AF$163,13,FALSE),0) -> 0 | Q157: =IF(A157<>0,VLOOKUP(A157,Liste!$A$10:$K$159,8,FALSE),"") ->  | AB157: 0 | AC157: 0 | AD157: 0 | AE157: 1000
B158: =IF(A158<>0,VLOOKUP(A158,Liste!$A$10:$D$159,4,FALSE),"") ->  | C158: 0 | D158: 0 | E158: 0 | F158: 0 | I158: 0 | J158: 0 | K158: =IF(AND($I158=1,$H158>0),VLOOKUP($H158,$A$14:AD$163,11,FALSE),0) -> 0 | L158: =IF(AND($I158=1,$H158>0),VLOOKUP($H158,$A$14:AE$163,12,FALSE),0) -> 0 | M158: =IF(AND($I158=1,$H158>0),VLOOKUP($H158,$A$14:AF$163,13,FALSE),0) -> 0 | Q158: =IF(A158<>0,VLOOKUP(A158,Liste!$A$10:$K$159,8,FALSE),"") ->  | AB158: 0 | AC158: 0 | AD158: 0 | AE158: 1000
B159: =IF(A159<>0,VLOOKUP(A159,Liste!$A$10:$D$159,4,FALSE),"") ->  | C159: 0 | D159: 0 | E159: 0 | F159: 0 | I159: 0 | J159: 0 | K159: =IF(AND($I159=1,$H159>0),VLOOKUP($H159,$A$14:AD$163,11,FALSE),0) -> 0 | L159: =IF(AND($I159=1,$H159>0),VLOOKUP($H159,$A$14:AE$163,12,FALSE),0) -> 0 | M159: =IF(AND($I159=1,$H159>0),VLOOKUP($H159,$A$14:AF$163,13,FALSE),0) -> 0 | Q159: =IF(A159<>0,VLOOKUP(A159,Liste!$A$10:$K$159,8,FALSE),"") ->  | AB159: 0 | AC159: 0 | AD159: 0 | AE159: 1000
B160: =IF(A160<>0,VLOOKUP(A160,Liste!$A$10:$D$159,4,FALSE),"") ->  | C160: 0 | D160: 0 | E160: 0 | F160: 0 | I160: 0 | J160: 0 | K160: =IF(AND($I160=1,$H160>0),VLOOKUP($H160,$A$14:AD$163,11,FALSE),0) -> 0 | L160: =IF(AND($I160=1,$H160>0),VLOOKUP($H160,$A$14:AE$163,12,FALSE),0) -> 0 | M160: =IF(AND($I160=1,$H160>0),VLOOKUP($H160,$A$14:AF$163,13,FALSE),0) -> 0 | Q160: =IF(A160<>0,VLOOKUP(A160,Liste!$A$10:$K$159,8,FALSE),"") ->  | AB160: 0 | AC160: 0 | AD160: 0 | AE160: 1000
B161: =IF(A161<>0,VLOOKUP(A161,Liste!$A$10:$D$159,4,FALSE),"") ->  | C161: 0 | D161: 0 | E161: 0 | F161: 0 | I161: 0 | J161: 0 | K161: =IF(AND($I161=1,$H161>0),VLOOKUP($H161,$A$14:AD$163,11,FALSE),0) -> 0 | L161: =IF(AND($I161=1,$H161>0),VLOOKUP($H161,$A$14:AE$163,12,FALSE),0) -> 0 | M161: =IF(AND($I161=1,$H161>0),VLOOKUP($H161,$A$14:AF$163,13,FALSE),0) -> 0 | Q161: =IF(A161<>0,VLOOKUP(A161,Liste!$A$10:$K$159,8,FALSE),"") ->  | AB161: 0 | AC161: 0 | AD161: 0 | AE161: 1000
B162: =IF(A162<>0,VLOOKUP(A162,Liste!$A$10:$D$159,4,FALSE),"") ->  | C162: 0 | D162: 0 | E162: 0 | F162: 0 | I162: 0 | J162: 0 | K162: =IF(AND($I162=1,$H162>0),VLOOKUP($H162,$A$14:AD$163,11,FALSE),0) -> 0 | L162: =IF(AND($I162=1,$H162>0),VLOOKUP($H162,$A$14:AE$163,12,FALSE),0) -> 0 | M162: =IF(AND($I162=1,$H162>0),VLOOKUP($H162,$A$14:AF$163,13,FALSE),0) -> 0 | Q162: =IF(A162<>0,VLOOKUP(A162,Liste!$A$10:$K$159,8,FALSE),"") ->  | AB162: 0 | AC162: 0 | AD162: 0 | AE162: 1000
B163: =IF(A163<>0,VLOOKUP(A163,Liste!$A$10:$D$159,4,FALSE),"") ->  | C163: 0 | D163: 0 | E163: 0 | F163: 0 | I163: 0 | J163: =IF(F163>0,F163,0) -> 0 | K163: =IF(AND($I163=1,$H163>0),VLOOKUP($H163,$A$14:AD$163,11,FALSE),0) -> 0 | L163: =IF(AND($I163=1,$H163>0),VLOOKUP($H163,$A$14:AE$163,12,FALSE),0) -> 0 | M163: =IF(AND($I163=1,$H163>0),VLOOKUP($H163,$A$14:AF$163,13,FALSE),0) -> 0 | Q163: =IF(A163<>0,VLOOKUP(A163,Liste!$A$10:$K$159,8,FALSE),"") ->  | AB163: 0 | AC163: 0 | AD163: 0 | AE163: 1000

Sheet R.1.PRES
A1: =Liste!C4 -> 00:00:00 | B1: 1 | C1: =$AI$10&$AJ$10 ->  | K1: =$AI$10&$AJ$10 ->  | Q1: 1 | R1: 2 | S1: 3 | T1: 4 | AC1: 24 | AD1: 25 | AE1: 25.1 | AF1: 26 | AG1: 26.1
A2: 24 | B2: PRES | C2: POUR | D2: CONTRE | E2: ABSTENT | F2: Total TANT. | G2: P. R | H2: x | I2: PRES. Votants | J2: Tant. Repré. | K2: POUR | L2: CONTRE | M2: ABSTENT | N2: TOTAL | Q2: 1 | R2: BAT,A | S2: BAT,B | T2: TANT 4 | U2: TANT.5 | V2: TANT.6 | W2: TANT. | X2: TANT. | Y2: TANT. | Z2: TANT. | AA2: TANT. | AC2: =240*(A2=24)*(L3>K3)+241*(A2=24)*(K3>L3) -> 241 | AD2: =250*(A2=25)*(K3<AI7)+251*(A2=25)*(K3>AI7)+2*(A2=25)*(K3>=AK7)*(K3<AI7) -> 0 | AE2: =255*(A2=25.1)*(K3>AK7)+256*(A2=25.1)*(K3<AK7) -> 0 | AF2: =260*(A2=26)*((K3<AJ7)*(K7<AJ8))+261*(A2=26)*((K3>AJ7)*(K3>AJ8))+2*(A2=26)*(K3>=AK7)*(K3<=AJ7) -> 0 | AG2: =262*(A2=26.1)*(K3>=AI7)+260*(A2=26.1)*(K3<AI7) -> 0 | AJ2: =SUM(AC2:AI2) -> 241 | AL2: 3 | AN2: 240 | AO2: =CONCATENATE( "REFUSEE par ",D3," voix CONTRE et ",V3," voix POUR") -> REFUSEE par 1930 voix CONTRE et 0 voix POUR
A3: Nom | B3: XXX | C3: =SUM($C$14:$C$163) -> 1933 | D3: =SUM($D$14:$D$163) -> 1930 | E3: =SUM($E$14:$E163) -> 959 | F3: =SUM($F$14:$F$163) -> 4822 | G3: =E11 -> 15 | I3: =SUM($I$14:$I$163) -> 15 | J3: =SUM($J$14:$J$163) -> 4822 | K3: =SUM($C$14:$C$163) -> 1933 | L3: =SUM($D$14:$D$163) -> 1930 | M3: =SUM($E$14:$E163) -> 959 | N3: =K3+L3+M3 -> 4822 | O3: =IF(N3=E10,"","EN ATTENTE") ->  | Q3: =SUM(Q14:Q163) -> 10340 | R3: =SUM(R14:R163) -> 10000 | S3: =SUM(S14:S163) -> 10000 | T3: =SUM(T14:T163) -> 0 | U3: =SUM(U14:U163) -> 0 | V3: =SUM(V14:V63) -> 0 | W3: =SUM(W14:W163) -> 0 | X3: 0 | Y3: =SUM(Y14:Y163) -> 0 | Z3: 0 | AA3: =SUM(AA14:AA163) -> 0 | AC3: =0*(A3=24)*(L4>K4)+1*(A2=24)*(K2>L3) -> 1 | AD3: =0*(A2=25)*(K3<AI7)+1*(A2=25)*(K3>AI7)+1*(A2=25)*(K3>=AK8)*(K3<AI7) -> 0 | AE3: =1*(A2=25.1)*(K3>AK7)+0*(A3=25.1)*(K3<AK7) -> 0 | AF3: =260*(A3=26)*((K4<AJ8)+(K8<AJ9)*(K4<=AK8))+261*(A3=26)*((K4>AJ8)*(K4>AJ9)) -> 0 | AG3: =262*(A3=26.1)*(K4>=AI8)+260*(A3=26.1)*(K4<AI8) -> 0 | AJ3: =SUM(AC3:AI3) -> 1 | AN3: 241 | AO3: =CONCATENATE( "ADOPTEE par ",C3," voix POUR et ",D3," voix CONTRE.") -> ADOPTEE par 1933 voix POUR et 1930 voix CONTRE.
A4: Clé | B4: 1 | Q4: =COUNTIF(Q14:Q163,">0") -> 35 | R4: =COUNTIF(R14:R163,">0") -> 16 | S4: =COUNTIF(S14:S163,">0") -> 11 | T4: =COUNTIF(T14:T163,">0") -> 0 | U4: =COUNTIF(U14:U163,">0") -> 0 | V4: =COUNTIF(V13:V14,">0") -> 0 | W4: =COUNTIF(W14:W163,">0") -> 0 | X4: =COUNTIF(X14:X163,">0") -> 0 | Y4: =COUNTIF(Y14:Y163,">0") -> 0 | Z4: =COUNTIF(Z14:Z163,">0") -> 0 | AA4: =COUNTIF(AA14:AA163,">0") -> 0 | AN4: 250 | AO4: =CONCATENATE(" REFUSEE,Pas de possibilité de 2e vote") -> REFUSEE,Pas de possibilité de 2e vote
C5: =VLOOKUP($AJ$2,$AN$2:$AO$13,2,FALSE) -> ADOPTEE par 1933 voix POUR et 1930 voix CONTRE. | K5: =IF(A2=26, AJ11,"") ->  | AB5: 260 | AC5: =+K37 -> 0 | AI5: 25 Maj; Voix | AJ5: 26 Maj.2/3 Voix | AK5: 26 Maj 1/3 voix | AN5: 251 | AO5: =IF(AJ2=251,CONCATENATE(" ADOPTEE par ",C3," voix POUR et ",D3," voix CONTRE"),"") -> 
J6: NOMBRE : | K6: POUR | L6: CONTRE | M6: ABSTENT | N6: VOTANTS | AB6: 261 | AC6: =261*(A2=26)*((K3>AJ7)*(K7>AJ8)) -> 0 | AI6: Tous Copros | AJ6: Tous Copros | AK6: Tous copros | AN6: 252 | AO6: =CONCATENATE("Possibilité d'un deuxième vote à l'article 25,1, majorité 24, ") -> Possibilité d'un deuxième vote à l'article 25,1, majorité 24,
G7: =IF(SUM($O$14:$O$163)>0,"LIMITES DEPASSEES","") ->  | K7: =SUM($K$14:$K$163) -> 7 | L7: =SUM($L$14:$L$163) -> 5 | M7: =SUM($M$14:$M$163) -> 3 | N7: =K7+L7+M7 -> 15 | O7: =IF(N7=E11,"","EN ATTENTE") ->  | AB7: 262 | AE7: Voix ¨POUR | AF7: =K3 -> 1933 | AI7: =ROUNDDOWN((D10)/2+1,0) -> 5171 | AJ7: =ROUNDDOWN((D10)*2/3+1,0) -> 6894 | AK7: =ROUNDDOWN((D10)*1/3+1,0) -> 3447 | AL7: =ROUNDUP(E10/2,0) -> 2411 | AN7: 260 | AO7: =IF(AJ2=260,CONCATENATE("Rejetée part ",C3," voix POUR, inférieures à ",AJ7,"ou inférieurs à ",AJ8," copropriétaires);""")) -> FALSE
C8: Total | D8: Total | E8: Prés.Repr | AE8: Nbre Copros ¨POUR | AF8: =K7 -> 7 | AJ8: =ROUNDUP(($D$11+0.1)/2,0) -> 18 | AL8: =ROUNDUP(E11/2,0) -> 8 | AN8: 261 | AO8: =IF(AJ2=261,CONCATENATE(" ADOPTEE par ",C3," voix POUR et ",D3," voix CONTRE")) -> FALSE
C9: Syndicat | D9: CLE | E9: Tot.Votants | K9: =VLOOKUP($AJ$2,$AN$2:$AO$13,2,FALSE) -> ADOPTEE par 1933 voix POUR et 1930 voix CONTRE. | AN9: 262 | AO9: =CONCATENATE("Possibilité d'un deuxième vote à l'article 26,1 ") -> Possibilité d'un deuxième vote à l'article 26,1
C10: =HLOOKUP(1,$Q$1:$AA$4,3,FALSE) -> 10340 | D10: =HLOOKUP($B$4,$Q$1:$AA$4,3,FALSE) -> 10340 | E10: =SUM($F$14:$F$163) -> 4822 | F10: VOIX | AI10: =IF($A$2=25,">= " & $AI$7,"") ->  | AJ10: =IF($A$2=26,">= " & $AJ$7,"") ->  | AK10: =IF($A$2=26.1,">= " & $AK7,"") ->  | AN10: 265 | AO10: REFUSEE
C11: =HLOOKUP(1,$Q$1:$AA$4,4,FALSE) -> 35 | D11: =HLOOKUP($B$4,$Q$1:$AA$4,4,FALSE) -> 35 | E11: =SUM($I$14:$I$163) -> 15 | F11: NOMBRE | AD11: Nombre de dépassemnts | AJ11: =IF($A$2=26,">= " & $AJ$8,"") ->  | AN11: 266 | AO11: ADOPTEE par 3596 voix POUR et 1714 voix CONTRE.
M12: =IF(COUNTIF($N$14:$N$163,"ERREUR")>0,"ERREUR","") ->  | N12: =IF(COUNTIF($N$14:$N$163,"EN ATTENTE")>0,"EN ATTENTE","") ->  | O12: 0.1 | Q12: 1 | R12: 2 | S12: 3 | T12: 4 | U12: 5 | V12: 6 | W12: 7 | X12: 8 | Y12: 9 | Z12: 10 | AA12: 11
A13: N° Ordre | B13: NOMS | C13: Voix POUR | D13: Voix CONTRE | E13: Voix Abst. | F13: Total TANT. | G13: P. R | H13: Rep.par | I13: PRES. Votants | J13: Tant. Repré. | K13: Votes POUR | L13: Votes CONTRE | M13: Votes ABST, | N13: VERIF | O13: LIMITES | P13: Votes | Q13: TANT.GEN | R13: =R2 -> BAT,A | S13: BAT,B | T13: TANT 4 | U13: TANT.5 | V13: TANT.6 | W13: TANT. | X13: TANT. | Y13: TANT. | Z13: TANT. | AA13: TANT. | AB13: X | AC13: Nombre Représentés | AD13: Total Voix | AE13: XX
A14: 2 | B14: =IF(A14<>0,VLOOKUP(A14,Liste!$A$10:$D$159,4,FALSE),"") -> ANNINOS Henri | C14: =F14*(K14=1) -> 0 | D14: =F14*(L14=1) -> 0 | E14: =F14*(M14=1) -> 290 | F14: =IF(I14=1,VLOOKUP(A14,$A$14:$AA$163,16+$B$4,0),0) -> 290 | G14: 1 | I14: =1*(IF(G14>=1,VLOOKUP(A14,$A$14:$AA$163,16+$B$4,0)>0)) -> 1 | J14: =IF(F14>0,F14,0) -> 290 | M14: 1 | N14: =IF(AND(I14>0,K14+L14+M14=0),"EN ATTENTE",IF(K14+L14+M14>1,"ERREUR","")) ->  | O14: =IF(AND(AC14>3,AD14>$D$10*$O$12),1,"") ->  | P14: =IF(I14=1,K14*(K14=1)+L14*2*(L14=1)+M14*3*(M14=1),"") -> 3 | Q14: =IF(A14<>0,VLOOKUP(A14,Liste!$A$10:$K$159,8,FALSE),"") -> 290 | R14: 595 | AB14: =(H14+I14)*(J14>0) -> 1 | AC14: =COUNTIF($H$14:$H$163,A14) -> 0 | AD14: =SUMIF($H$14:$H$163,A14,$J$14:$J$163)+(J14*(AC14>0)) -> 0 | AE14: =IF(H14>0,H14+0.5*(I14=1),A14*(I14=1))+(1000*(I14<1)) -> 2
A15: 3 | B15: =IF(A15<>0,VLOOKUP(A15,Liste!$A$10:$D$159,4,FALSE),"") -> BALDACCHINO Laurence | C15: 319 | D15: 0 | E15: 0 | F15: 319 | G15: 1 | I15: 1 | J15: 319 | K15: 1 | P15: 1 | Q15: =IF(A15<>0,VLOOKUP(A15,Liste!$A$10:$K$159,8,FALSE),"") -> 319 | R15: 846 | AB15: 1 | AC15: 0 | AD15: 0 | AE15: 3
A16: 4 | B16: =IF(A16<>0,VLOOKUP(A16,Liste!$A$10:$D$159,4,FALSE),"") -> BANCHET Joseph | C16: 0 | D16: 294 | E16: 0 | F16: 294 | G16: 1 | I16: 1 | J16: 294 | L16: 1 | P16: 2 | Q16: =IF(A16<>0,VLOOKUP(A16,Liste!$A$10:$K$159,8,FALSE),"") -> 294 | R16: 508 | AB16: 1 | AC16: 0 | AD16: 0 | AE16: 4
A17: 14 | B17: =IF(A17<>0,VLOOKUP(A17,Liste!$A$10:$D$159,4,FALSE),"") -> BERLIER David | C17: 391 | D17: 0 | E17: 0 | F17: 391 | G17: 1 | I17: 1 | J17: 391 | K17: 1 | P17: 1 | Q17: =IF(A17<>0,VLOOKUP(A17,Liste!$A$10:$K$159,8,FALSE),"") -> 391 | R17: 595 | AB17: 1 | AC17: 0 | AD17: 0 | AE17: 14
A18: 15 | B18: =IF(A18<>0,VLOOKUP(A18,Liste!$A$10:$D$159,4,FALSE),"") -> BESSON Gabriel | C18: 0 | D18: 0 | E18: 380 | F18: 380 | G18: 1 | I18: 1 | J18: 380 | M18: 1 | P18: 3 | Q18: =IF(A18<>0,VLOOKUP(A18,Liste!$A$10:$K$159,8,FALSE),"") -> 380 | R18: 772 | AB18: 1 | AC18: 0 | AD18: 0 | AE18: 15
A19: 18 | B19: =IF(A19<>0,VLOOKUP(A19,Liste!$A$10:$D$159,4,FALSE),"") -> DI JORIO Marcel | C19: 0 | D19: 0 | E19: 289 | F19: 289 | G19: 1 | I19: 1 | J19: 289 | M19: 1 | P19: 3 | Q19: =IF(A19<>0,VLOOKUP(A19,Liste!$A$10:$K$159,8,FALSE),"") -> 289 | S19: 762 | AB19: 1 | AC19: 0 | AD19: 0 | AE19: 18
A20: 26 | B20: =IF(A20<>0,VLOOKUP(A20,Liste!$A$10:$D$159,4,FALSE),"") -> GARCIA Christophe | C20: 286 | D20: 0 | E20: 0 | F20: 286 | G20: 1 | I20: 1 | J20: 286 | K20: 1 | P20: 1 | Q20: =IF(A20<>0,VLOOKUP(A20,Liste!$A$10:$K$159,8,FALSE),"") -> 286 | S20: 694 | AB20: 1 | AC20: 0 | AD20: 0 | AE20: 26
A21: 7 | B21: =IF(A21<>0,VLOOKUP(A21,Liste!$A$10:$D$159,4,FALSE),"") -> BARDOUILLE Hermine | C21: 0 | D21: 371 | E21: 0 | F21: 371 | G21: 2 | I21: 1 | J21: 371 | K21: =IF(AND($I21=1,$H21>0),VLOOKUP($H21,$A$14:AD$163,11,FALSE),0) -> 0 | L21: 1 | M21: =IF(AND($I21=1,$H21>0),VLOOKUP($H21,$A$14:AF$163,13,FALSE),0) -> 0 | P21: 2 | Q21: =IF(A21<>0,VLOOKUP(A21,Liste!$A$10:$K$159,8,FALSE),"") -> 371 | R21: 595 | AB21: 1 | AC21: 0 | AD21: 0 | AE21: 7
A22: 16 | B22: =IF(A22<>0,VLOOKUP(A22,Liste!$A$10:$D$159,4,FALSE),"") -> DENIS Jacques | C22: 0 | D22: 315 | E22: 0 | F22: 315 | G22: 2 | I22: 1 | J22: 315 | K22: =IF(AND($I22=1,$H22>0),VLOOKUP($H22,$A$14:AD$163,11,FALSE),0) -> 0 | L22: 1 | M22: =IF(AND($I22=1,$H22>0),VLOOKUP($H22,$A$14:AF$163,13,FALSE),0) -> 0 | P22: 2 | Q22: =IF(A22<>0,VLOOKUP(A22,Liste!$A$10:$K$159,8,FALSE),"") -> 315 | R22: 678 | AB22: 1 | AC22: 2 | AD22: 1265 | AE22: 16
A23: 9 | B23: =IF(A23<>0,VLOOKUP(A23,Liste!$A$10:$D$159,4,FALSE),"") -> BAUDINO | C23: 0 | D23: 431 | E23: 0 | F23: 431 | G23: 2 | H23: 16 | I23: 1 | J23: 431 | K23: =IF(AND($I23=1,$H23>0),VLOOKUP($H23,$A$14:AD$163,11,FALSE),0) -> 0 | L23: =IF(AND($I23=1,$H23>0),VLOOKUP($H23,$A$14:AE$163,12,FALSE),0) -> 1 | M23: =IF(AND($I23=1,$H23>0),VLOOKUP($H23,$A$14:AF$163,13,FALSE),0) -> 0 | P23: 2 | Q23: =IF(A23<>0,VLOOKUP(A23,Liste!$A$10:$K$159,8,FALSE),"") -> 431 | R23: 715 | AB23: 17 | AC23: 0 | AD23: 0 | AE23: 16.5
A24: 12 | B24: =IF(A24<>0,VLOOKUP(A24,Liste!$A$10:$D$159,4,FALSE),"") -> BECH Monique | C24: 0 | D24: 519 | E24: 0 | F24: 519 | G24: 2 | H24: 16 | I24: 1 | J24: 519 | K24: =IF(AND($I24=1,$H24>0),VLOOKUP($H24,$A$14:AD$163,11,FALSE),0) -> 0 | L24: =IF(AND($I24=1,$H24>0),VLOOKUP($H24,$A$14:AE$163,12,FALSE),0) -> 1 | M24: =IF(AND($I24=1,$H24>0),VLOOKUP($H24,$A$14:AF$163,13,FALSE),0) -> 0 | P24: 2 | Q24: =IF(A24<>0,VLOOKUP(A24,Liste!$A$10:$K$159,8,FALSE),"") -> 519 | R24: 846 | AB24: 17 | AC24: 0 | AD24: 0 | AE24: 16.5
A25: 17 | B25: =IF(A25<>0,VLOOKUP(A25,Liste!$A$10:$D$159,4,FALSE),"") -> DI JORIO Brigitte | C25: 244 | D25: 0 | E25: 0 | F25: 244 | G25: 2 | I25: 1 | J25: 244 | K25: 1 | L25: =IF(AND($I25=1,$H25>0),VLOOKUP($H25,$A$14:AE$163,12,FALSE),0) -> 0 | M25: =IF(AND($I25=1,$H25>0),VLOOKUP($H25,$A$14:AF$163,13,FALSE),0) -> 0 | P25: 1 | Q25: =IF(A25<>0,VLOOKUP(A25,Liste!$A$10:$K$159,8,FALSE),"") -> 244 | S25: 1040 | AB25: 1 | AC25: 0 | AD25: 0 | AE25: 17
A26: 21 | B26: =IF(A26<>0,VLOOKUP(A26,Liste!$A$10:$D$159,4,FALSE),"") -> DUBOURG Pierre | C26: 323 | D26: 0 | E26: 0 | F26: 323 | G26: 2 | I26: 1 | J26: 323 | K26: 1 | L26: =IF(AND($I26=1,$H26>0),VLOOKUP($H26,$A$14:AE$163,12,FALSE),0) -> 0 | M26: =IF(AND($I26=1,$H26>0),VLOOKUP($H26,$A$14:AF$163,13,FALSE),0) -> 0 | P26: 1 | Q26: =IF(A26<>0,VLOOKUP(A26,Liste!$A$10:$K$159,8,FALSE),"") -> 323 | S26: 762 | AB26: 1 | AC26: 0 | AD26: 0 | AE26: 21
A27: 24 | B27: =IF(A27<>0,VLOOKUP(A27,Liste!$A$10:$D$159,4,FALSE),"") -> FORGET Valéry | C27: 270 | D27: 0 | E27: 0 | F27: 270 | G27: 2 | I27: 1 | J27: 270 | K27: 1 | L27: =IF(AND($I27=1,$H27>0),VLOOKUP($H27,$A$14:AE$163,12,FALSE),0) -> 0 | M27: =IF(AND($I27=1,$H27>0),VLOOKUP($H27,$A$14:AF$163,13,FALSE),0) -> 0 | P27: 1 | Q27: =IF(A27<>0,VLOOKUP(A27,Liste!$A$10:$K$159,8,FALSE),"") -> 270 | S27: 830 | AB27: 1 | AC27: 0 | AD27: 0 | AE27: 24
A28: 32 | B28: =IF(A28<>0,VLOOKUP(A28,Liste!$A$10:$D$159,4,FALSE),"") -> MARTIN Nicole | C28: 100 | D28: 0 | E28: 0 | F28: 100 | G28: 2 | I28: 1 | J28: 100 | K28: 1 | L28: =IF(AND($I28=1,$H28>0),VLOOKUP($H28,$A$14:AE$163,12,FALSE),0) -> 0 | M28: =IF(AND($I28=1,$H28>0),VLOOKUP($H28,$A$14:AF$163,13,FALSE),0) -> 0 | P28: 1 | Q28: =IF(A28<>0,VLOOKUP(A28,Liste!$A$10:$K$159,8,FALSE),"") -> 100 | AB28: 1 | AC28: 0 | AD28: 0 | AE28: 32
A29: 1 | B29: =IF(A29<>0,VLOOKUP(A29,Liste!$A$10:$D$159,4,FALSE),"") -> ALEXANDRINI André | C29: 0 | D29: 0 | E29: 0 | F29: 0 | I29: 0 | J29: 0 | K29: =IF(AND($I29=1,$H29>0),VLOOKUP($H29,$A$14:AD$163,11,FALSE),0) -> 0 | L29: =IF(AND($I29=1,$H29>0),VLOOKUP($H29,$A$14:AE$163,12,FALSE),0) -> 0 | M29: =IF(AND($I29=1,$H29>0),VLOOKUP($H29,$A$14:AF$163,13,FALSE),0) -> 0 | Q29: 568 | R29: 474 | AB29: 0 | AC29: 0 | AD29: 0 | AE29: 1000
A30: 5 | B30: =IF(A30<>0,VLOOKUP(A30,Liste!$A$10:$D$159,4,FALSE),"") -> BARDIN Andrée | C30: 0 | D30: 0 | E30: 0 | F30: 0 | I30: 0 | J30: 0 | K30: =IF(AND($I30=1,$H30>0),VLOOKUP($H30,$A$14:AD$163,11,FALSE),0) -> 0 | L30: =IF(AND($I30=1,$H30>0),VLOOKUP($H30,$A$14:AE$163,12,FALSE),0) -> 0 | M30: =IF(AND($I30=1,$H30>0),VLOOKUP($H30,$A$14:AF$163,13,FALSE),0) -> 0 | Q30: =IF(A30<>0,VLOOKUP(A30,Liste!$A$10:$K$159,8,FALSE),"") -> 287 | R30: 426 | AB30: 0 | AC30: 0 | AD30: 0 | AE30: 1000
A31: 6 | B31: =IF(A31<>0,VLOOKUP(A31,Liste!$A$10:$D$159,4,FALSE),"") -> BARDIN-BENARD Louis | C31: 0 | D31: 0 | E31: 0 | F31: 0 | I31: 0 | J31: 0 | K31: =IF(AND($I31=1,$H31>0),VLOOKUP($H31,$A$14:AD$163,11,FALSE),0) -> 0 | L31: =IF(AND($I31=1,$H31>0),VLOOKUP($H31,$A$14:AE$163,12,FALSE),0) -> 0 | M31: =IF(AND($I31=1,$H31>0),VLOOKUP($H31,$A$14:AF$163,13,FALSE),0) -> 0 | Q31: =IF(A31<>0,VLOOKUP(A31,Liste!$A$10:$K$159,8,FALSE),"") -> 257 | R31: 380 | AB31: 0 | AC31: 0 | AD31: 0 | AE31: 1000
A32: 8 | B32: =IF(A32<>0,VLOOKUP(A32,Liste!$A$10:$D$159,4,FALSE),"") -> BARDOUILLE Jean Yves | C32: 0 | D32: 0 | E32: 0 | F32: 0 | I32: 0 | J32: 0 | K32: =IF(AND($I32=1,$H32>0),VLOOKUP($H32,$A$14:AD$163,11,FALSE),0) -> 0 | L32: =IF(AND($I32=1,$H32>0),VLOOKUP($H32,$A$14:AE$163,12,FALSE),0) -> 0 | M32: =IF(AND($I32=1,$H32>0),VLOOKUP($H32,$A$14:AF$163,13,FALSE),0) -> 0 | Q32: =IF(A32<>0,VLOOKUP(A32,Liste!$A$10:$K$159,8,FALSE),"") -> 569 | R32: 846 | AB32: 0 | AC32: 0 | AD32: 0 | AE32: 1000
A33: 10 | B33: =IF(A33<>0,VLOOKUP(A33,Liste!$A$10:$D$159,4,FALSE),"") -> BAUGUIL André | C33: 0 | D33: 0 | E33: 0 | F33: 0 | I33: 0 | J33: 0 | K33: =IF(AND($I33=1,$H33>0),VLOOKUP($H33,$A$14:AD$163,11,FALSE),0) -> 0 | L33: =IF(AND($I33=1,$H33>0),VLOOKUP($H33,$A$14:AE$163,12,FALSE),0) -> 0 | M33: =IF(AND($I33=1,$H33>0),VLOOKUP($H33,$A$14:AF$163,13,FALSE),0) -> 0 | Q33: =IF(A33<>0,VLOOKUP(A33,Liste!$A$10:$K$159,8,FALSE),"") -> 360 | R33: 534 | AB33: 0 | AC33: 0 | AD33: 0 | AE33: 1000
A34: 11 | B34: =IF(A34<>0,VLOOKUP(A34,Liste!$A$10:$D$159,4,FALSE),"") -> BAUMGARTNER Peter | C34: 0 | D34: 0 | E34: 0 | F34: 0 | I34: 0 | J34: 0 | K34: =IF(AND($I34=1,$H34>0),VLOOKUP($H34,$A$14:AD$163,11,FALSE),0) -> 0 | L34: =IF(AND($I34=1,$H34>0),VLOOKUP($H34,$A$14:AE$163,12,FALSE),0) -> 0 | M34: =IF(AND($I34=1,$H34>0),VLOOKUP($H34,$A$14:AF$163,13,FALSE),0) -> 0 | Q34: =IF(A34<>0,VLOOKUP(A34,Liste!$A$10:$K$159,8,FALSE),"") -> 380 | R34: 595 | AB34: 0 | AC34: 0 | AD34: 0 | AE34: 1000
A35: 13 | B35: =IF(A35<>0,VLOOKUP(A35,Liste!$A$10:$D$159,4,FALSE),"") -> BERGET Jean François | C35: 0 | D35: 0 | E35: 0 | F35: 0 | I35: 0 | J35: 0 | K35: =IF(AND($I35=1,$H35>0),VLOOKUP($H35,$A$14:AD$163,11,FALSE),0) -> 0 | L35: =IF(AND($I35=1,$H35>0),VLOOKUP($H35,$A$14:AE$163,12,FALSE),0) -> 0 | M35: =IF(AND($I35=1,$H35>0),VLOOKUP($H35,$A$14:AF$163,13,FALSE),0) -> 0 | Q35: =IF(A35<>0,VLOOKUP(A35,Liste!$A$10:$K$159,8,FALSE),"") -> 381 | R35: 595 | AB35: 0 | AC35: 0 | AD35: 0 | AE35: 1000
A36: 19 | B36: =IF(A36<>0,VLOOKUP(A36,Liste!$A$10:$D$159,4,FALSE),"") -> DI MEGLIO Laurent | C36: 0 | D36: 0 | E36: 0 | F36: 0 | I36: 0 | J36: 0 | K36: =IF(AND($I36=1,$H36>0),VLOOKUP($H36,$A$14:AD$163,11,FALSE),0) -> 0 | L36: =IF(AND($I36=1,$H36>0),VLOOKUP($H36,$A$14:AE$163,12,FALSE),0) -> 0 | M36: =IF(AND($I36=1,$H36>0),VLOOKUP($H36,$A$14:AF$163,13,FALSE),0) -> 0 | Q36: =IF(A36<>0,VLOOKUP(A36,Liste!$A$10:$K$159,8,FALSE),"") -> 237 | S36: 1402 | AB36: 0 | AC36: 0 | AD36: 0 | AE36: 1000
A37: 20 | B37: =IF(A37<>0,VLOOKUP(A37,Liste!$A$10:$D$159,4,FALSE),"") -> DRAGOTTA Michel | C37: 0 | D37: 0 | E37: 0 | F37: 0 | I37: 0 | J37: 0 | K37: =IF(AND($I37=1,$H37>0),VLOOKUP($H37,$A$14:AD$163,11,FALSE),0) -> 0 | L37: =IF(AND($I37=1,$H37>0),VLOOKUP($H37,$A$14:AE$163,12,FALSE),0) -> 0 | M37: =IF(AND($I37=1,$H37>0),VLOOKUP($H37,$A$14:AF$163,13,FALSE),0) -> 0 | Q37: =IF(A37<>0,VLOOKUP(A37,Liste!$A$10:$K$159,8,FALSE),"") -> 286 | S37: 1015 | AB37: 0 | AC37: 0 | AD37: 0 | AE37: 1000
A38: 22 | B38: =IF(A38<>0,VLOOKUP(A38,Liste!$A$10:$D$159,4,FALSE),"") -> FIGUERAS Annie | C38: 0 | D38: 0 | E38: 0 | F38: 0 | I38: 0 | J38: 0 | K38: =IF(AND($I38=1,$H38>0),VLOOKUP($H38,$A$14:AD$163,11,FALSE),0) -> 0 | L38: =IF(AND($I38=1,$H38>0),VLOOKUP($H38,$A$14:AE$163,12,FALSE),0) -> 0 | M38: =IF(AND($I38=1,$H38>0),VLOOKUP($H38,$A$14:AF$163,13,FALSE),0) -> 0 | Q38: =IF(A38<>0,VLOOKUP(A38,Liste!$A$10:$K$159,8,FALSE),"") -> 300 | S38: 819 | AB38: 0 | AC38: 0 | AD38: 0 | AE38: 1000
A39: 23 | B39: =IF(A39<>0,VLOOKUP(A39,Liste!$A$10:$D$159,4,FALSE),"") -> FONTANA Georges | C39: 0 | D39: 0 | E39: 0 | F39: 0 | I39: 0 | J39: 0 | K39: =IF(AND($I39=1,$H39>0),VLOOKUP($H39,$A$14:AD$163,11,FALSE),0) -> 0 | L39: =IF(AND($I39=1,$H39>0),VLOOKUP($H39,$A$14:AE$163,12,FALSE),0) -> 0 | M39: =IF(AND($I39=1,$H39>0),VLOOKUP($H39,$A$14:AF$163,13,FALSE),0) -> 0 | Q39: =IF(A39<>0,VLOOKUP(A39,Liste!$A$10:$K$159,8,FALSE),"") -> 323 | S39: 873 | AB39: 0 | AC39: 0 | AD39: 0 | AE39: 1000
A40: 25 | B40: =IF(A40<>0,VLOOKUP(A40,Liste!$A$10:$D$159,4,FALSE),"") -> FOURNIER Nicole | C40: 0 | D40: 0 | E40: 0 | F40: 0 | I40: 0 | J40: 0 | K40: =IF(AND($I40=1,$H40>0),VLOOKUP($H40,$A$14:AD$163,11,FALSE),0) -> 0 | L40: =IF(AND($I40=1,$H40>0),VLOOKUP($H40,$A$14:AE$163,12,FALSE),0) -> 0 | M40: =IF(AND($I40=1,$H40>0),VLOOKUP($H40,$A$14:AF$163,13,FALSE),0) -> 0 | Q40: =IF(A40<>0,VLOOKUP(A40,Liste!$A$10:$K$159,8,FALSE),"") -> 290 | S40: 973 | AB40: 0 | AC40: 0 | AD40: 0 | AE40: 1000
A41: 27 | B41: =IF(A41<>0,VLOOKUP(A41,Liste!$A$10:$D$159,4,FALSE),"") -> GARRELON Jacques | C41: 0 | D41: 0 | E41: 0 | F41: 0 | I41: 0 | J41: 0 | K41: =IF(AND($I41=1,$H41>0),VLOOKUP($H41,$A$14:AD$163,11,FALSE),0) -> 0 | L41: =IF(AND($I41=1,$H41>0),VLOOKUP($H41,$A$14:AE$163,12,FALSE),0) -> 0 | M41: =IF(AND($I41=1,$H41>0),VLOOKUP($H41,$A$14:AF$163,13,FALSE),0) -> 0 | Q41: 110 | S41: 830 | AB41: 0 | AC41: 0 | AD41: 0 | AE41: 1000
A42: 28 | B42: =IF(A42<>0,VLOOKUP(A42,Liste!$A$10:$D$159,4,FALSE),"") -> HENRI Paul | C42: 0 | D42: 0 | E42: 0 | F42: 0 | I42: 0 | J42: 0 | K42: =IF(AND($I42=1,$H42>0),VLOOKUP($H42,$A$14:AD$163,11,FALSE),0) -> 0 | L42: =IF(AND($I42=1,$H42>0),VLOOKUP($H42,$A$14:AE$163,12,FALSE),0) -> 0 | M42: =IF(AND($I42=1,$H42>0),VLOOKUP($H42,$A$14:AF$163,13,FALSE),0) -> 0 | Q42: 210 | AB42: 0 | AC42: 0 | AD42: 0 | AE42: 1000
A43: 29 | B43: =IF(A43<>0,VLOOKUP(A43,Liste!$A$10:$D$159,4,FALSE),"") -> ISIDORE Lucienne | C43: 0 | D43: 0 | E43: 0 | F43: 0 | I43: 0 | J43: 0 | K43: =IF(AND($I43=1,$H43>0),VLOOKUP($H43,$A$14:AD$163,11,FALSE),0) -> 0 | L43: =IF(AND($I43=1,$H43>0),VLOOKUP($H43,$A$14:AE$163,12,FALSE),0) -> 0 | M43: =IF(AND($I43=1,$H43>0),VLOOKUP($H43,$A$14:AF$163,13,FALSE),0) -> 0 | Q43: 110 | AB43: 0 | AC43: 0 | AD43: 0 | AE43: 1000
A44: 30 | B44: =IF(A44<>0,VLOOKUP(A44,Liste!$A$10:$D$159,4,FALSE),"") -> JARGON Emile | C44: 0 | D44: 0 | E44: 0 | F44: 0 | I44: 0 | J44: 0 | K44: =IF(AND($I44=1,$H44>0),VLOOKUP($H44,$A$14:AD$163,11,FALSE),0) -> 0 | L44: =IF(AND($I44=1,$H44>0),VLOOKUP($H44,$A$14:AE$163,12,FALSE),0) -> 0 | M44: =IF(AND($I44=1,$H44>0),VLOOKUP($H44,$A$14:AF$163,13,FALSE),0) -> 0 | Q44: =IF(A44<>0,VLOOKUP(A44,Liste!$A$10:$K$159,8,FALSE),"") -> 130 | AB44: 0 | AC44: 0 | AD44: 0 | AE44: 1000
A45: 31 | B45: =IF(A45<>0,VLOOKUP(A45,Liste!$A$10:$D$159,4,FALSE),"") -> LOUISON Albert | C45: 0 | D45: 0 | E45: 0 | F45: 0 | I45: 0 | J45: 0 | K45: =IF(AND($I45=1,$H45>0),VLOOKUP($H45,$A$14:AD$163,11,FALSE),0) -> 0 | L45: =IF(AND($I45=1,$H45>0),VLOOKUP($H45,$A$14:AE$163,12,FALSE),0) -> 0 | M45: =IF(AND($I45=1,$H45>0),VLOOKUP($H45,$A$14:AF$163,13,FALSE),0) -> 0 | Q45: =IF(A45<>0,VLOOKUP(A45,Liste!$A$10:$K$159,8,FALSE),"") -> 220 | AB45: 0 | AC45: 0 | AD45: 0 | AE45: 1000
A46: 33 | B46: =IF(A46<>0,VLOOKUP(A46,Liste!$A$10:$D$159,4,FALSE),"") -> ANDUN | C46: =F46*(K46=1) -> 0 | D46: =F46*(L46=1) -> 0 | E46: =F46*(M46=1) -> 0 | F46: =IF(I46=1,VLOOKUP(A46,$A$14:$AA$163,16+$B$4,0),0) -> 0 | I46: =1*(IF(G46>=1,VLOOKUP(A46,$A$14:$AA$163,16+$B$4,0)>0)) -> 0 | J46: =IF(F46>0,F46,0) -> 0 | K46: =IF(AND($I46=1,$H46>0),VLOOKUP($H46,$A$14:AD$163,11,FALSE),0) -> 0 | L46: =IF(AND($I46=1,$H46>0),VLOOKUP($H46,$A$14:AE$163,12,FALSE),0) -> 0 | M46: =IF(AND($I46=1,$H46>0),VLOOKUP($H46,$A$14:AF$163,13,FALSE),0) -> 0 | N46: =IF(AND(I46>0,K46+L46+M46=0),"EN ATTENTE",IF(K46+L46+M46>1,"ERREUR","")) ->  | O46: =IF(AND(AC46>3,AD46>$D$10*$O$12),1,"") ->  | P46: =IF(I46=1,K46*(K46=1)+L46*2*(L46=1)+M46*3*(M46=1),"") ->  | Q46: =IF(A46<>0,VLOOKUP(A46,Liste!$A$10:$K$159,8,FALSE),"") -> 180 | AB46: =(H46+I46)*(J46>0) -> 0 | AC46: =COUNTIF($H$14:$H$163,A46) -> 0 | AD46: =SUMIF($H$14:$H$163,A46,$J$14:$J$163)+(J46*(AC46>0)) -> 0 | AE46: =IF(H46>0,H46+0.5*(I46=1),A46*(I46=1))+(1000*(I46<1)) -> 1000
A47: 34 | B47: =IF(A47<>0,VLOOKUP(A47,Liste!$A$10:$D$159,4,FALSE),"") -> AUDIARD | C47: 0 | D47: 0 | E47: 0 | F47: 0 | I47: 0 | J47: 0 | K47: =IF(AND($I47=1,$H47>0),VLOOKUP($H47,$A$14:AD$163,11,FALSE),0) -> 0 | L47: =IF(AND($I47=1,$H47>0),VLOOKUP($H47,$A$14:AE$163,12,FALSE),0) -> 0 | M47: =IF(AND($I47=1,$H47>0),VLOOKUP($H47,$A$14:AF$163,13,FALSE),0) -> 0 | Q47: =IF(A47<>0,VLOOKUP(A47,Liste!$A$10:$K$159,8,FALSE),"") -> 210 | AB47: 0 | AC47: 0 | AD47: 0 | AE47: 1000
A48: 35 | B48: =IF(A48<>0,VLOOKUP(A48,Liste!$A$10:$D$159,4,FALSE),"") -> AVATARD | C48: 0 | D48: 0 | E48: 0 | F48: 0 | I48: 0 | J48: 0 | K48: =IF(AND($I48=1,$H48>0),VLOOKUP($H48,$A$14:AD$163,11,FALSE),0) -> 0 | L48: =IF(AND($I48=1,$H48>0),VLOOKUP($H48,$A$14:AE$163,12,FALSE),0) -> 0 | M48: =IF(AND($I48=1,$H48>0),VLOOKUP($H48,$A$14:AF$163,13,FALSE),0) -> 0 | Q48: =IF(A48<>0,VLOOKUP(A48,Liste!$A$10:$K$159,8,FALSE),"") -> 110 | AB48: 0 | AC48: 0 | AD48: 0 | AE48: 1000
B49: =IF(A49<>0,VLOOKUP(A49,Liste!$A$10:$D$159,4,FALSE),"") ->  | C49: 0 | D49: 0 | E49: 0 | F49: 0 | I49: 0 | J49: 0 | K49: =IF(AND($I49=1,$H49>0),VLOOKUP($H49,$A$14:AD$163,11,FALSE),0) -> 0 | L49: =IF(AND($I49=1,$H49>0),VLOOKUP($H49,$A$14:AE$163,12,FALSE),0) -> 0 | M49: =IF(AND($I49=1,$H49>0),VLOOKUP($H49,$A$14:AF$163,13,FALSE),0) -> 0 | Q49: =IF(A49<>0,VLOOKUP(A49,Liste!$A$10:$K$159,8,FALSE),"") ->  | AB49: 0 | AC49: 0 | AD49: 0 | AE49: 1000
B50: =IF(A50<>0,VLOOKUP(A50,Liste!$A$10:$D$159,4,FALSE),"") ->  | C50: 0 | D50: 0 | E50: 0 | F50: 0 | I50: 0 | J50: 0 | K50: =IF(AND($I50=1,$H50>0),VLOOKUP($H50,$A$14:AD$163,11,FALSE),0) -> 0 | L50: =IF(AND($I50=1,$H50>0),VLOOKUP($H50,$A$14:AE$163,12,FALSE),0) -> 0 | M50: =IF(AND($I50=1,$H50>0),VLOOKUP($H50,$A$14:AF$163,13,FALSE),0) -> 0 | Q50: =IF(A50<>0,VLOOKUP(A50,Liste!$A$10:$K$159,8,FALSE),"") ->  | AB50: 0 | AC50: 0 | AD50: 0 | AE50: 1000
B51: =IF(A51<>0,VLOOKUP(A51,Liste!$A$10:$D$159,4,FALSE),"") ->  | C51: 0 | D51: 0 | E51: 0 | F51: 0 | I51: 0 | J51: 0 | K51: =IF(AND($I51=1,$H51>0),VLOOKUP($H51,$A$14:AD$163,11,FALSE),0) -> 0 | L51: =IF(AND($I51=1,$H51>0),VLOOKUP($H51,$A$14:AE$163,12,FALSE),0) -> 0 | M51: =IF(AND($I51=1,$H51>0),VLOOKUP($H51,$A$14:AF$163,13,FALSE),0) -> 0 | Q51: =IF(A51<>0,VLOOKUP(A51,Liste!$A$10:$K$159,8,FALSE),"") ->  | AB51: 0 | AC51: 0 | AD51: 0 | AE51: 1000
B52: =IF(A52<>0,VLOOKUP(A52,Liste!$A$10:$D$159,4,FALSE),"") ->  | C52: 0 | D52: 0 | E52: 0 | F52: 0 | I52: 0 | J52: 0 | K52: =IF(AND($I52=1,$H52>0),VLOOKUP($H52,$A$14:AD$163,11,FALSE),0) -> 0 | L52: =IF(AND($I52=1,$H52>0),VLOOKUP($H52,$A$14:AE$163,12,FALSE),0) -> 0 | M52: =IF(AND($I52=1,$H52>0),VLOOKUP($H52,$A$14:AF$163,13,FALSE),0) -> 0 | Q52: =IF(A52<>0,VLOOKUP(A52,Liste!$A$10:$K$159,8,FALSE),"") ->  | AB52: 0 | AC52: 0 | AD52: 0 | AE52: 1000
B53: =IF(A53<>0,VLOOKUP(A53,Liste!$A$10:$D$159,4,FALSE),"") ->  | C53: 0 | D53: 0 | E53: 0 | F53: 0 | I53: 0 | J53: 0 | K53: =IF(AND($I53=1,$H53>0),VLOOKUP($H53,$A$14:AD$163,11,FALSE),0) -> 0 | L53: =IF(AND($I53=1,$H53>0),VLOOKUP($H53,$A$14:AE$163,12,FALSE),0) -> 0 | M53: =IF(AND($I53=1,$H53>0),VLOOKUP($H53,$A$14:AF$163,13,FALSE),0) -> 0 | Q53: =IF(A53<>0,VLOOKUP(A53,Liste!$A$10:$K$159,8,FALSE),"") ->  | AB53: 0 | AC53: 0 | AD53: 0 | AE53: 1000
B54: =IF(A54<>0,VLOOKUP(A54,Liste!$A$10:$D$159,4,FALSE),"") ->  | C54: 0 | D54: 0 | E54: 0 | F54: 0 | I54: 0 | J54: 0 | K54: =IF(AND($I54=1,$H54>0),VLOOKUP($H54,$A$14:AD$163,11,FALSE),0) -> 0 | L54: =IF(AND($I54=1,$H54>0),VLOOKUP($H54,$A$14:AE$163,12,FALSE),0) -> 0 | M54: =IF(AND($I54=1,$H54>0),VLOOKUP($H54,$A$14:AF$163,13,FALSE),0) -> 0 | Q54: =IF(A54<>0,VLOOKUP(A54,Liste!$A$10:$K$159,8,FALSE),"") ->  | AB54: 0 | AC54: 0 | AD54: 0 | AE54: 1000
B55: =IF(A55<>0,VLOOKUP(A55,Liste!$A$10:$D$159,4,FALSE),"") ->  | C55: 0 | D55: 0 | E55: 0 | F55: 0 | I55: 0 | J55: 0 | K55: =IF(AND($I55=1,$H55>0),VLOOKUP($H55,$A$14:AD$163,11,FALSE),0) -> 0 | L55: =IF(AND($I55=1,$H55>0),VLOOKUP($H55,$A$14:AE$163,12,FALSE),0) -> 0 | M55: =IF(AND($I55=1,$H55>0),VLOOKUP($H55,$A$14:AF$163,13,FALSE),0) -> 0 | Q55: =IF(A55<>0,VLOOKUP(A55,Liste!$A$10:$K$159,8,FALSE),"") ->  | AB55: 0 | AC55: 0 | AD55: 0 | AE55: 1000
B56: =IF(A56<>0,VLOOKUP(A56,Liste!$A$10:$D$159,4,FALSE),"") ->  | C56: 0 | D56: 0 | E56: 0 | F56: 0 | I56: 0 | J56: 0 | K56: =IF(AND($I56=1,$H56>0),VLOOKUP($H56,$A$14:AD$163,11,FALSE),0) -> 0 | L56: =IF(AND($I56=1,$H56>0),VLOOKUP($H56,$A$14:AE$163,12,FALSE),0) -> 0 | M56: =IF(AND($I56=1,$H56>0),VLOOKUP($H56,$A$14:AF$163,13,FALSE),0) -> 0 | Q56: =IF(A56<>0,VLOOKUP(A56,Liste!$A$10:$K$159,8,FALSE),"") ->  | AB56: 0 | AC56: 0 | AD56: 0 | AE56: 1000
B57: =IF(A57<>0,VLOOKUP(A57,Liste!$A$10:$D$159,4,FALSE),"") ->  | C57: 0 | D57: 0 | E57: 0 | F57: 0 | I57: 0 | J57: 0 | K57: =IF(AND($I57=1,$H57>0),VLOOKUP($H57,$A$14:AD$163,11,FALSE),0) -> 0 | L57: =IF(AND($I57=1,$H57>0),VLOOKUP($H57,$A$14:AE$163,12,FALSE),0) -> 0 | M57: =IF(AND($I57=1,$H57>0),VLOOKUP($H57,$A$14:AF$163,13,FALSE),0) -> 0 | Q57: =IF(A57<>0,VLOOKUP(A57,Liste!$A$10:$K$159,8,FALSE),"") ->  | AB57: 0 | AC57: 0 | AD57: 0 | AE57: 1000
B58: =IF(A58<>0,VLOOKUP(A58,Liste!$A$10:$D$159,4,FALSE),"") ->  | C58: 0 | D58: 0 | E58: 0 | F58: 0 | I58: 0 | J58: 0 | K58: =IF(AND($I58=1,$H58>0),VLOOKUP($H58,$A$14:AD$163,11,FALSE),0) -> 0 | L58: =IF(AND($I58=1,$H58>0),VLOOKUP($H58,$A$14:AE$163,12,FALSE),0) -> 0 | M58: =IF(AND($I58=1,$H58>0),VLOOKUP($H58,$A$14:AF$163,13,FALSE),0) -> 0 | Q58: =IF(A58<>0,VLOOKUP(A58,Liste!$A$10:$K$159,8,FALSE),"") ->  | AB58: 0 | AC58: 0 | AD58: 0 | AE58: 1000
B59: =IF(A59<>0,VLOOKUP(A59,Liste!$A$10:$D$159,4,FALSE),"") ->  | C59: 0 | D59: 0 | E59: 0 | F59: 0 | I59: 0 | J59: 0 | K59: =IF(AND($I59=1,$H59>0),VLOOKUP($H59,$A$14:AD$163,11,FALSE),0) -> 0 | L59: =IF(AND($I59=1,$H59>0),VLOOKUP($H59,$A$14:AE$163,12,FALSE),0) -> 0 | M59: =IF(AND($I59=1,$H59>0),VLOOKUP($H59,$A$14:AF$163,13,FALSE),0) -> 0 | Q59: =IF(A59<>0,VLOOKUP(A59,Liste!$A$10:$K$159,8,FALSE),"") ->  | AB59: 0 | AC59: 0 | AD59: 0 | AE59: 1000
B60: =IF(A60<>0,VLOOKUP(A60,Liste!$A$10:$D$159,4,FALSE),"") ->  | C60: 0 | D60: 0 | E60: 0 | F60: 0 | I60: 0 | J60: 0 | K60: =IF(AND($I60=1,$H60>0),VLOOKUP($H60,$A$14:AD$163,11,FALSE),0) -> 0 | L60: =IF(AND($I60=1,$H60>0),VLOOKUP($H60,$A$14:AE$163,12,FALSE),0) -> 0 | M60: =IF(AND($I60=1,$H60>0),VLOOKUP($H60,$A$14:AF$163,13,FALSE),0) -> 0 | Q60: =IF(A60<>0,VLOOKUP(A60,Liste!$A$10:$K$159,8,FALSE),"") ->  | AB60: 0 | AC60: 0 | AD60: 0 | AE60: 1000
B61: =IF(A61<>0,VLOOKUP(A61,Liste!$A$10:$D$159,4,FALSE),"") ->  | C61: 0 | D61: 0 | E61: 0 | F61: 0 | I61: 0 | J61: 0 | K61: =IF(AND($I61=1,$H61>0),VLOOKUP($H61,$A$14:AD$163,11,FALSE),0) -> 0 | L61: =IF(AND($I61=1,$H61>0),VLOOKUP($H61,$A$14:AE$163,12,FALSE),0) -> 0 | M61: =IF(AND($I61=1,$H61>0),VLOOKUP($H61,$A$14:AF$163,13,FALSE),0) -> 0 | Q61: =IF(A61<>0,VLOOKUP(A61,Liste!$A$10:$K$159,8,FALSE),"") ->  | AB61: 0 | AC61: 0 | AD61: 0 | AE61: 1000
B62: =IF(A62<>0,VLOOKUP(A62,Liste!$A$10:$D$159,4,FALSE),"") ->  | C62: 0 | D62: 0 | E62: 0 | F62: 0 | I62: 0 | J62: 0 | K62: =IF(AND($I62=1,$H62>0),VLOOKUP($H62,$A$14:AD$163,11,FALSE),0) -> 0 | L62: =IF(AND($I62=1,$H62>0),VLOOKUP($H62,$A$14:AE$163,12,FALSE),0) -> 0 | M62: =IF(AND($I62=1,$H62>0),VLOOKUP($H62,$A$14:AF$163,13,FALSE),0) -> 0 | Q62: =IF(A62<>0,VLOOKUP(A62,Liste!$A$10:$K$159,8,FALSE),"") ->  | AB62: 0 | AC62: 0 | AD62: 0 | AE62: 1000
B63: =IF(A63<>0,VLOOKUP(A63,Liste!$A$10:$D$159,4,FALSE),"") ->  | C63: 0 | D63: 0 | E63: 0 | F63: 0 | I63: 0 | J63: 0 | K63: =IF(AND($I63=1,$H63>0),VLOOKUP($H63,$A$14:AD$163,11,FALSE),0) -> 0 | L63: =IF(AND($I63=1,$H63>0),VLOOKUP($H63,$A$14:AE$163,12,FALSE),0) -> 0 | M63: =IF(AND($I63=1,$H63>0),VLOOKUP($H63,$A$14:AF$163,13,FALSE),0) -> 0 | Q63: =IF(A63<>0,VLOOKUP(A63,Liste!$A$10:$K$159,8,FALSE),"") ->  | AB63: 0 | AC63: 0 | AD63: 0 | AE63: 1000
B64: =IF(A64<>0,VLOOKUP(A64,Liste!$A$10:$D$159,4,FALSE),"") ->  | C64: 0 | D64: 0 | E64: 0 | F64: 0 | I64: 0 | J64: 0 | K64: =IF(AND($I64=1,$H64>0),VLOOKUP($H64,$A$14:AD$163,11,FALSE),0) -> 0 | L64: =IF(AND($I64=1,$H64>0),VLOOKUP($H64,$A$14:AE$163,12,FALSE),0) -> 0 | M64: =IF(AND($I64=1,$H64>0),VLOOKUP($H64,$A$14:AF$163,13,FALSE),0) -> 0 | Q64: =IF(A64<>0,VLOOKUP(A64,Liste!$A$10:$K$159,8,FALSE),"") ->  | AB64: 0 | AC64: 0 | AD64: 0 | AE64: 1000
B65: =IF(A65<>0,VLOOKUP(A65,Liste!$A$10:$D$159,4,FALSE),"") ->  | C65: 0 | D65: 0 | E65: 0 | F65: 0 | I65: 0 | J65: 0 | K65: =IF(AND($I65=1,$H65>0),VLOOKUP($H65,$A$14:AD$163,11,FALSE),0) -> 0 | L65: =IF(AND($I65=1,$H65>0),VLOOKUP($H65,$A$14:AE$163,12,FALSE),0) -> 0 | M65: =IF(AND($I65=1,$H65>0),VLOOKUP($H65,$A$14:AF$163,13,FALSE),0) -> 0 | Q65: =IF(A65<>0,VLOOKUP(A65,Liste!$A$10:$K$159,8,FALSE),"") ->  | AB65: 0 | AC65: 0 | AD65: 0 | AE65: 1000
B66: =IF(A66<>0,VLOOKUP(A66,Liste!$A$10:$D$159,4,FALSE),"") ->  | C66: 0 | D66: 0 | E66: 0 | F66: 0 | I66: 0 | J66: 0 | K66: =IF(AND($I66=1,$H66>0),VLOOKUP($H66,$A$14:AD$163,11,FALSE),0) -> 0 | L66: =IF(AND($I66=1,$H66>0),VLOOKUP($H66,$A$14:AE$163,12,FALSE),0) -> 0 | M66: =IF(AND($I66=1,$H66>0),VLOOKUP($H66,$A$14:AF$163,13,FALSE),0) -> 0 | Q66: =IF(A66<>0,VLOOKUP(A66,Liste!$A$10:$K$159,8,FALSE),"") ->  | AB66: 0 | AC66: 0 | AD66: 0 | AE66: 1000
B67: =IF(A67<>0,VLOOKUP(A67,Liste!$A$10:$D$159,4,FALSE),"") ->  | C67: 0 | D67: 0 | E67: 0 | F67: 0 | I67: 0 | J67: 0 | K67: =IF(AND($I67=1,$H67>0),VLOOKUP($H67,$A$14:AD$163,11,FALSE),0) -> 0 | L67: =IF(AND($I67=1,$H67>0),VLOOKUP($H67,$A$14:AE$163,12,FALSE),0) -> 0 | M67: =IF(AND($I67=1,$H67>0),VLOOKUP($H67,$A$14:AF$163,13,FALSE),0) -> 0 | Q67: =IF(A67<>0,VLOOKUP(A67,Liste!$A$10:$K$159,8,FALSE),"") ->  | AB67: 0 | AC67: 0 | AD67: 0 | AE67: 1000
B68: =IF(A68<>0,VLOOKUP(A68,Liste!$A$10:$D$159,4,FALSE),"") ->  | C68: 0 | D68: 0 | E68: 0 | F68: 0 | I68: 0 | J68: 0 | K68: =IF(AND($I68=1,$H68>0),VLOOKUP($H68,$A$14:AD$163,11,FALSE),0) -> 0 | L68: =IF(AND($I68=1,$H68>0),VLOOKUP($H68,$A$14:AE$163,12,FALSE),0) -> 0 | M68: =IF(AND($I68=1,$H68>0),VLOOKUP($H68,$A$14:AF$163,13,FALSE),0) -> 0 | Q68: =IF(A68<>0,VLOOKUP(A68,Liste!$A$10:$K$159,8,FALSE),"") ->  | AB68: 0 | AC68: 0 | AD68: 0 | AE68: 1000
B69: =IF(A69<>0,VLOOKUP(A69,Liste!$A$10:$D$159,4,FALSE),"") ->  | C69: 0 | D69: 0 | E69: 0 | F69: 0 | I69: 0 | J69: 0 | K69: =IF(AND($I69=1,$H69>0),VLOOKUP($H69,$A$14:AD$163,11,FALSE),0) -> 0 | L69: =IF(AND($I69=1,$H69>0),VLOOKUP($H69,$A$14:AE$163,12,FALSE),0) -> 0 | M69: =IF(AND($I69=1,$H69>0),VLOOKUP($H69,$A$14:AF$163,13,FALSE),0) -> 0 | Q69: =IF(A69<>0,VLOOKUP(A69,Liste!$A$10:$K$159,8,FALSE),"") ->  | AB69: 0 | AC69: 0 | AD69: 0 | AE69: 1000
B70: =IF(A70<>0,VLOOKUP(A70,Liste!$A$10:$D$159,4,FALSE),"") ->  | C70: 0 | D70: 0 | E70: 0 | F70: 0 | I70: 0 | J70: 0 | K70: =IF(AND($I70=1,$H70>0),VLOOKUP($H70,$A$14:AD$163,11,FALSE),0) -> 0 | L70: =IF(AND($I70=1,$H70>0),VLOOKUP($H70,$A$14:AE$163,12,FALSE),0) -> 0 | M70: =IF(AND($I70=1,$H70>0),VLOOKUP($H70,$A$14:AF$163,13,FALSE),0) -> 0 | Q70: =IF(A70<>0,VLOOKUP(A70,Liste!$A$10:$K$159,8,FALSE),"") ->  | AB70: 0 | AC70: 0 | AD70: 0 | AE70: 1000
B71: =IF(A71<>0,VLOOKUP(A71,Liste!$A$10:$D$159,4,FALSE),"") ->  | C71: 0 | D71: 0 | E71: 0 | F71: 0 | I71: 0 | J71: 0 | K71: =IF(AND($I71=1,$H71>0),VLOOKUP($H71,$A$14:AD$163,11,FALSE),0) -> 0 | L71: =IF(AND($I71=1,$H71>0),VLOOKUP($H71,$A$14:AE$163,12,FALSE),0) -> 0 | M71: =IF(AND($I71=1,$H71>0),VLOOKUP($H71,$A$14:AF$163,13,FALSE),0) -> 0 | Q71: =IF(A71<>0,VLOOKUP(A71,Liste!$A$10:$K$159,8,FALSE),"") ->  | AB71: 0 | AC71: 0 | AD71: 0 | AE71: 1000
B72: =IF(A72<>0,VLOOKUP(A72,Liste!$A$10:$D$159,4,FALSE),"") ->  | C72: 0 | D72: 0 | E72: 0 | F72: 0 | I72: 0 | J72: 0 | K72: =IF(AND($I72=1,$H72>0),VLOOKUP($H72,$A$14:AD$163,11,FALSE),0) -> 0 | L72: =IF(AND($I72=1,$H72>0),VLOOKUP($H72,$A$14:AE$163,12,FALSE),0) -> 0 | M72: =IF(AND($I72=1,$H72>0),VLOOKUP($H72,$A$14:AF$163,13,FALSE),0) -> 0 | Q72: =IF(A72<>0,VLOOKUP(A72,Liste!$A$10:$K$159,8,FALSE),"") ->  | AB72: 0 | AC72: 0 | AD72: 0 | AE72: 1000
B73: =IF(A73<>0,VLOOKUP(A73,Liste!$A$10:$D$159,4,FALSE),"") ->  | C73: 0 | D73: 0 | E73: 0 | F73: 0 | I73: 0 | J73: 0 | K73: =IF(AND($I73=1,$H73>0),VLOOKUP($H73,$A$14:AD$163,11,FALSE),0) -> 0 | L73: =IF(AND($I73=1,$H73>0),VLOOKUP($H73,$A$14:AE$163,12,FALSE),0) -> 0 | M73: =IF(AND($I73=1,$H73>0),VLOOKUP($H73,$A$14:AF$163,13,FALSE),0) -> 0 | Q73: =IF(A73<>0,VLOOKUP(A73,Liste!$A$10:$K$159,8,FALSE),"") ->  | AB73: 0 | AC73: 0 | AD73: 0 | AE73: 1000
B74: =IF(A74<>0,VLOOKUP(A74,Liste!$A$10:$D$159,4,FALSE),"") ->  | C74: 0 | D74: 0 | E74: 0 | F74: 0 | I74: 0 | J74: 0 | K74: =IF(AND($I74=1,$H74>0),VLOOKUP($H74,$A$14:AD$163,11,FALSE),0) -> 0 | L74: =IF(AND($I74=1,$H74>0),VLOOKUP($H74,$A$14:AE$163,12,FALSE),0) -> 0 | M74: =IF(AND($I74=1,$H74>0),VLOOKUP($H74,$A$14:AF$163,13,FALSE),0) -> 0 | Q74: =IF(A74<>0,VLOOKUP(A74,Liste!$A$10:$K$159,8,FALSE),"") ->  | AB74: 0 | AC74: 0 | AD74: 0 | AE74: 1000
B75: =IF(A75<>0,VLOOKUP(A75,Liste!$A$10:$D$159,4,FALSE),"") ->  | C75: 0 | D75: 0 | E75: 0 | F75: 0 | I75: 0 | J75: 0 | K75: =IF(AND($I75=1,$H75>0),VLOOKUP($H75,$A$14:AD$163,11,FALSE),0) -> 0 | L75: =IF(AND($I75=1,$H75>0),VLOOKUP($H75,$A$14:AE$163,12,FALSE),0) -> 0 | M75: =IF(AND($I75=1,$H75>0),VLOOKUP($H75,$A$14:AF$163,13,FALSE),0) -> 0 | Q75: =IF(A75<>0,VLOOKUP(A75,Liste!$A$10:$K$159,8,FALSE),"") ->  | AB75: 0 | AC75: 0 | AD75: 0 | AE75: 1000
B76: =IF(A76<>0,VLOOKUP(A76,Liste!$A$10:$D$159,4,FALSE),"") ->  | C76: 0 | D76: 0 | E76: 0 | F76: 0 | I76: 0 | J76: 0 | K76: =IF(AND($I76=1,$H76>0),VLOOKUP($H76,$A$14:AD$163,11,FALSE),0) -> 0 | L76: =IF(AND($I76=1,$H76>0),VLOOKUP($H76,$A$14:AE$163,12,FALSE),0) -> 0 | M76: =IF(AND($I76=1,$H76>0),VLOOKUP($H76,$A$14:AF$163,13,FALSE),0) -> 0 | Q76: =IF(A76<>0,VLOOKUP(A76,Liste!$A$10:$K$159,8,FALSE),"") ->  | AB76: 0 | AC76: 0 | AD76: 0 | AE76: 1000
B77: =IF(A77<>0,VLOOKUP(A77,Liste!$A$10:$D$159,4,FALSE),"") ->  | C77: 0 | D77: 0 | E77: 0 | F77: 0 | I77: 0 | J77: 0 | K77: =IF(AND($I77=1,$H77>0),VLOOKUP($H77,$A$14:AD$163,11,FALSE),0) -> 0 | L77: =IF(AND($I77=1,$H77>0),VLOOKUP($H77,$A$14:AE$163,12,FALSE),0) -> 0 | M77: =IF(AND($I77=1,$H77>0),VLOOKUP($H77,$A$14:AF$163,13,FALSE),0) -> 0 | Q77: =IF(A77<>0,VLOOKUP(A77,Liste!$A$10:$K$159,8,FALSE),"") ->  | AB77: 0 | AC77: 0 | AD77: 0 | AE77: 1000
B78: =IF(A78<>0,VLOOKUP(A78,Liste!$A$10:$D$159,4,FALSE),"") ->  | C78: =F78*(K78=1) -> 0 | D78: =F78*(L78=1) -> 0 | E78: =F78*(M78=1) -> 0 | F78: =IF(I78=1,VLOOKUP(A78,$A$14:$AA$163,16+$B$4,0),0) -> 0 | I78: =1*(IF(G78>=1,VLOOKUP(A78,$A$14:$AA$163,16+$B$4,0)>0)) -> 0 | J78: =IF(F78>0,F78,0) -> 0 | K78: =IF(AND($I78=1,$H78>0),VLOOKUP($H78,$A$14:AD$163,11,FALSE),0) -> 0 | L78: =IF(AND($I78=1,$H78>0),VLOOKUP($H78,$A$14:AE$163,12,FALSE),0) -> 0 | M78: =IF(AND($I78=1,$H78>0),VLOOKUP($H78,$A$14:AF$163,13,FALSE),0) -> 0 | N78: =IF(AND(I78>0,K78+L78+M78=0),"EN ATTENTE",IF(K78+L78+M78>1,"ERREUR","")) ->  | O78: =IF(AND(AC78>3,AD78>$D$10*$O$12),1,"") ->  | P78: =IF(I78=1,K78*(K78=1)+L78*2*(L78=1)+M78*3*(M78=1),"") ->  | Q78: =IF(A78<>0,VLOOKUP(A78,Liste!$A$10:$K$159,8,FALSE),"") ->  | AB78: =(H78+I78)*(J78>0) -> 0 | AC78: =COUNTIF($H$14:$H$163,A78) -> 0 | AD78: =SUMIF($H$14:$H$163,A78,$J$14:$J$163)+(J78*(AC78>0)) -> 0 | AE78: =IF(H78>0,H78+0.5*(I78=1),A78*(I78=1))+(1000*(I78<1)) -> 1000
B79: =IF(A79<>0,VLOOKUP(A79,Liste!$A$10:$D$159,4,FALSE),"") ->  | C79: 0 | D79: 0 | E79: 0 | F79: 0 | I79: 0 | J79: 0 | K79: =IF(AND($I79=1,$H79>0),VLOOKUP($H79,$A$14:AD$163,11,FALSE),0) -> 0 | L79: =IF(AND($I79=1,$H79>0),VLOOKUP($H79,$A$14:AE$163,12,FALSE),0) -> 0 | M79: =IF(AND($I79=1,$H79>0),VLOOKUP($H79,$A$14:AF$163,13,FALSE),0) -> 0 | Q79: =IF(A79<>0,VLOOKUP(A79,Liste!$A$10:$K$159,8,FALSE),"") ->  | AB79: 0 | AC79: 0 | AD79: 0 | AE79: 1000
B80: =IF(A80<>0,VLOOKUP(A80,Liste!$A$10:$D$159,4,FALSE),"") ->  | C80: 0 | D80: 0 | E80: 0 | F80: 0 | I80: 0 | J80: 0 | K80: =IF(AND($I80=1,$H80>0),VLOOKUP($H80,$A$14:AD$163,11,FALSE),0) -> 0 | L80: =IF(AND($I80=1,$H80>0),VLOOKUP($H80,$A$14:AE$163,12,FALSE),0) -> 0 | M80: =IF(AND($I80=1,$H80>0),VLOOKUP($H80,$A$14:AF$163,13,FALSE),0) -> 0 | Q80: =IF(A80<>0,VLOOKUP(A80,Liste!$A$10:$K$159,8,FALSE),"") ->  | AB80: 0 | AC80: 0 | AD80: 0 | AE80: 1000
B81: =IF(A81<>0,VLOOKUP(A81,Liste!$A$10:$D$159,4,FALSE),"") ->  | C81: 0 | D81: 0 | E81: 0 | F81: 0 | I81: 0 | J81: 0 | K81: =IF(AND($I81=1,$H81>0),VLOOKUP($H81,$A$14:AD$163,11,FALSE),0) -> 0 | L81: =IF(AND($I81=1,$H81>0),VLOOKUP($H81,$A$14:AE$163,12,FALSE),0) -> 0 | M81: =IF(AND($I81=1,$H81>0),VLOOKUP($H81,$A$14:AF$163,13,FALSE),0) -> 0 | Q81: =IF(A81<>0,VLOOKUP(A81,Liste!$A$10:$K$159,8,FALSE),"") ->  | AB81: 0 | AC81: 0 | AD81: 0 | AE81: 1000
B82: =IF(A82<>0,VLOOKUP(A82,Liste!$A$10:$D$159,4,FALSE),"") ->  | C82: 0 | D82: 0 | E82: 0 | F82: 0 | I82: 0 | J82: 0 | K82: =IF(AND($I82=1,$H82>0),VLOOKUP($H82,$A$14:AD$163,11,FALSE),0) -> 0 | L82: =IF(AND($I82=1,$H82>0),VLOOKUP($H82,$A$14:AE$163,12,FALSE),0) -> 0 | M82: =IF(AND($I82=1,$H82>0),VLOOKUP($H82,$A$14:AF$163,13,FALSE),0) -> 0 | Q82: =IF(A82<>0,VLOOKUP(A82,Liste!$A$10:$K$159,8,FALSE),"") ->  | AB82: 0 | AC82: 0 | AD82: 0 | AE82: 1000
B83: =IF(A83<>0,VLOOKUP(A83,Liste!$A$10:$D$159,4,FALSE),"") ->  | C83: 0 | D83: 0 | E83: 0 | F83: 0 | I83: 0 | J83: 0 | K83: =IF(AND($I83=1,$H83>0),VLOOKUP($H83,$A$14:AD$163,11,FALSE),0) -> 0 | L83: =IF(AND($I83=1,$H83>0),VLOOKUP($H83,$A$14:AE$163,12,FALSE),0) -> 0 | M83: =IF(AND($I83=1,$H83>0),VLOOKUP($H83,$A$14:AF$163,13,FALSE),0) -> 0 | Q83: =IF(A83<>0,VLOOKUP(A83,Liste!$A$10:$K$159,8,FALSE),"") ->  | AB83: 0 | AC83: 0 | AD83: 0 | AE83: 1000
B84: =IF(A84<>0,VLOOKUP(A84,Liste!$A$10:$D$159,4,FALSE),"") ->  | C84: 0 | D84: 0 | E84: 0 | F84: 0 | I84: 0 | J84: 0 | K84: =IF(AND($I84=1,$H84>0),VLOOKUP($H84,$A$14:AD$163,11,FALSE),0) -> 0 | L84: =IF(AND($I84=1,$H84>0),VLOOKUP($H84,$A$14:AE$163,12,FALSE),0) -> 0 | M84: =IF(AND($I84=1,$H84>0),VLOOKUP($H84,$A$14:AF$163,13,FALSE),0) -> 0 | Q84: =IF(A84<>0,VLOOKUP(A84,Liste!$A$10:$K$159,8,FALSE),"") ->  | AB84: 0 | AC84: 0 | AD84: 0 | AE84: 1000
B85: =IF(A85<>0,VLOOKUP(A85,Liste!$A$10:$D$159,4,FALSE),"") ->  | C85: 0 | D85: 0 | E85: 0 | F85: 0 | I85: 0 | J85: 0 | K85: =IF(AND($I85=1,$H85>0),VLOOKUP($H85,$A$14:AD$163,11,FALSE),0) -> 0 | L85: =IF(AND($I85=1,$H85>0),VLOOKUP($H85,$A$14:AE$163,12,FALSE),0) -> 0 | M85: =IF(AND($I85=1,$H85>0),VLOOKUP($H85,$A$14:AF$163,13,FALSE),0) -> 0 | Q85: =IF(A85<>0,VLOOKUP(A85,Liste!$A$10:$K$159,8,FALSE),"") ->  | AB85: 0 | AC85: 0 | AD85: 0 | AE85: 1000
B86: =IF(A86<>0,VLOOKUP(A86,Liste!$A$10:$D$159,4,FALSE),"") ->  | C86: 0 | D86: 0 | E86: 0 | F86: 0 | I86: 0 | J86: 0 | K86: =IF(AND($I86=1,$H86>0),VLOOKUP($H86,$A$14:AD$163,11,FALSE),0) -> 0 | L86: =IF(AND($I86=1,$H86>0),VLOOKUP($H86,$A$14:AE$163,12,FALSE),0) -> 0 | M86: =IF(AND($I86=1,$H86>0),VLOOKUP($H86,$A$14:AF$163,13,FALSE),0) -> 0 | Q86: =IF(A86<>0,VLOOKUP(A86,Liste!$A$10:$K$159,8,FALSE),"") ->  | AB86: 0 | AC86: 0 | AD86: 0 | AE86: 1000
B87: =IF(A87<>0,VLOOKUP(A87,Liste!$A$10:$D$159,4,FALSE),"") ->  | C87: 0 | D87: 0 | E87: 0 | F87: 0 | I87: 0 | J87: 0 | K87: =IF(AND($I87=1,$H87>0),VLOOKUP($H87,$A$14:AD$163,11,FALSE),0) -> 0 | L87: =IF(AND($I87=1,$H87>0),VLOOKUP($H87,$A$14:AE$163,12,FALSE),0) -> 0 | M87: =IF(AND($I87=1,$H87>0),VLOOKUP($H87,$A$14:AF$163,13,FALSE),0) -> 0 | Q87: =IF(A87<>0,VLOOKUP(A87,Liste!$A$10:$K$159,8,FALSE),"") ->  | AB87: 0 | AC87: 0 | AD87: 0 | AE87: 1000
B88: =IF(A88<>0,VLOOKUP(A88,Liste!$A$10:$D$159,4,FALSE),"") ->  | C88: 0 | D88: 0 | E88: 0 | F88: 0 | I88: 0 | J88: 0 | K88: =IF(AND($I88=1,$H88>0),VLOOKUP($H88,$A$14:AD$163,11,FALSE),0) -> 0 | L88: =IF(AND($I88=1,$H88>0),VLOOKUP($H88,$A$14:AE$163,12,FALSE),0) -> 0 | M88: =IF(AND($I88=1,$H88>0),VLOOKUP($H88,$A$14:AF$163,13,FALSE),0) -> 0 | Q88: =IF(A88<>0,VLOOKUP(A88,Liste!$A$10:$K$159,8,FALSE),"") ->  | AB88: 0 | AC88: 0 | AD88: 0 | AE88: 1000
B89: =IF(A89<>0,VLOOKUP(A89,Liste!$A$10:$D$159,4,FALSE),"") ->  | C89: 0 | D89: 0 | E89: 0 | F89: 0 | I89: 0 | J89: 0 | K89: =IF(AND($I89=1,$H89>0),VLOOKUP($H89,$A$14:AD$163,11,FALSE),0) -> 0 | L89: =IF(AND($I89=1,$H89>0),VLOOKUP($H89,$A$14:AE$163,12,FALSE),0) -> 0 | M89: =IF(AND($I89=1,$H89>0),VLOOKUP($H89,$A$14:AF$163,13,FALSE),0) -> 0 | Q89: =IF(A89<>0,VLOOKUP(A89,Liste!$A$10:$K$159,8,FALSE),"") ->  | AB89: 0 | AC89: 0 | AD89: 0 | AE89: 1000
B90: =IF(A90<>0,VLOOKUP(A90,Liste!$A$10:$D$159,4,FALSE),"") ->  | C90: 0 | D90: 0 | E90: 0 | F90: 0 | I90: 0 | J90: 0 | K90: =IF(AND($I90=1,$H90>0),VLOOKUP($H90,$A$14:AD$163,11,FALSE),0) -> 0 | L90: =IF(AND($I90=1,$H90>0),VLOOKUP($H90,$A$14:AE$163,12,FALSE),0) -> 0 | M90: =IF(AND($I90=1,$H90>0),VLOOKUP($H90,$A$14:AF$163,13,FALSE),0) -> 0 | Q90: =IF(A90<>0,VLOOKUP(A90,Liste!$A$10:$K$159,8,FALSE),"") ->  | AB90: 0 | AC90: 0 | AD90: 0 | AE90: 1000
B91: =IF(A91<>0,VLOOKUP(A91,Liste!$A$10:$D$159,4,FALSE),"") ->  | C91: 0 | D91: 0 | E91: 0 | F91: 0 | I91: 0 | J91: 0 | K91: =IF(AND($I91=1,$H91>0),VLOOKUP($H91,$A$14:AD$163,11,FALSE),0) -> 0 | L91: =IF(AND($I91=1,$H91>0),VLOOKUP($H91,$A$14:AE$163,12,FALSE),0) -> 0 | M91: =IF(AND($I91=1,$H91>0),VLOOKUP($H91,$A$14:AF$163,13,FALSE),0) -> 0 | Q91: =IF(A91<>0,VLOOKUP(A91,Liste!$A$10:$K$159,8,FALSE),"") ->  | AB91: 0 | AC91: 0 | AD91: 0 | AE91: 1000
B92: =IF(A92<>0,VLOOKUP(A92,Liste!$A$10:$D$159,4,FALSE),"") ->  | C92: 0 | D92: 0 | E92: 0 | F92: 0 | I92: 0 | J92: 0 | K92: =IF(AND($I92=1,$H92>0),VLOOKUP($H92,$A$14:AD$163,11,FALSE),0) -> 0 | L92: =IF(AND($I92=1,$H92>0),VLOOKUP($H92,$A$14:AE$163,12,FALSE),0) -> 0 | M92: =IF(AND($I92=1,$H92>0),VLOOKUP($H92,$A$14:AF$163,13,FALSE),0) -> 0 | Q92: =IF(A92<>0,VLOOKUP(A92,Liste!$A$10:$K$159,8,FALSE),"") ->  | AB92: 0 | AC92: 0 | AD92: 0 | AE92: 1000
B93: =IF(A93<>0,VLOOKUP(A93,Liste!$A$10:$D$159,4,FALSE),"") ->  | C93: 0 | D93: 0 | E93: 0 | F93: 0 | I93: 0 | J93: 0 | K93: =IF(AND($I93=1,$H93>0),VLOOKUP($H93,$A$14:AD$163,11,FALSE),0) -> 0 | L93: =IF(AND($I93=1,$H93>0),VLOOKUP($H93,$A$14:AE$163,12,FALSE),0) -> 0 | M93: =IF(AND($I93=1,$H93>0),VLOOKUP($H93,$A$14:AF$163,13,FALSE),0) -> 0 | Q93: =IF(A93<>0,VLOOKUP(A93,Liste!$A$10:$K$159,8,FALSE),"") ->  | AB93: 0 | AC93: 0 | AD93: 0 | AE93: 1000
B94: =IF(A94<>0,VLOOKUP(A94,Liste!$A$10:$D$159,4,FALSE),"") ->  | C94: 0 | D94: 0 | E94: 0 | F94: 0 | I94: 0 | J94: 0 | K94: =IF(AND($I94=1,$H94>0),VLOOKUP($H94,$A$14:AD$163,11,FALSE),0) -> 0 | L94: =IF(AND($I94=1,$H94>0),VLOOKUP($H94,$A$14:AE$163,12,FALSE),0) -> 0 | M94: =IF(AND($I94=1,$H94>0),VLOOKUP($H94,$A$14:AF$163,13,FALSE),0) -> 0 | Q94: =IF(A94<>0,VLOOKUP(A94,Liste!$A$10:$K$159,8,FALSE),"") ->  | AB94: 0 | AC94: 0 | AD94: 0 | AE94: 1000
B95: =IF(A95<>0,VLOOKUP(A95,Liste!$A$10:$D$159,4,FALSE),"") ->  | C95: 0 | D95: 0 | E95: 0 | F95: 0 | I95: 0 | J95: 0 | K95: =IF(AND($I95=1,$H95>0),VLOOKUP($H95,$A$14:AD$163,11,FALSE),0) -> 0 | L95: =IF(AND($I95=1,$H95>0),VLOOKUP($H95,$A$14:AE$163,12,FALSE),0) -> 0 | M95: =IF(AND($I95=1,$H95>0),VLOOKUP($H95,$A$14:AF$163,13,FALSE),0) -> 0 | Q95: =IF(A95<>0,VLOOKUP(A95,Liste!$A$10:$K$159,8,FALSE),"") ->  | AB95: 0 | AC95: 0 | AD95: 0 | AE95: 1000
B96: =IF(A96<>0,VLOOKUP(A96,Liste!$A$10:$D$159,4,FALSE),"") ->  | C96: 0 | D96: 0 | E96: 0 | F96: 0 | I96: 0 | J96: 0 | K96: =IF(AND($I96=1,$H96>0),VLOOKUP($H96,$A$14:AD$163,11,FALSE),0) -> 0 | L96: =IF(AND($I96=1,$H96>0),VLOOKUP($H96,$A$14:AE$163,12,FALSE),0) -> 0 | M96: =IF(AND($I96=1,$H96>0),VLOOKUP($H96,$A$14:AF$163,13,FALSE),0) -> 0 | Q96: =IF(A96<>0,VLOOKUP(A96,Liste!$A$10:$K$159,8,FALSE),"") ->  | AB96: 0 | AC96: 0 | AD96: 0 | AE96: 1000
B97: =IF(A97<>0,VLOOKUP(A97,Liste!$A$10:$D$159,4,FALSE),"") ->  | C97: 0 | D97: 0 | E97: 0 | F97: 0 | I97: 0 | J97: 0 | K97: =IF(AND($I97=1,$H97>0),VLOOKUP($H97,$A$14:AD$163,11,FALSE),0) -> 0 | L97: =IF(AND($I97=1,$H97>0),VLOOKUP($H97,$A$14:AE$163,12,FALSE),0) -> 0 | M97: =IF(AND($I97=1,$H97>0),VLOOKUP($H97,$A$14:AF$163,13,FALSE),0) -> 0 | Q97: =IF(A97<>0,VLOOKUP(A97,Liste!$A$10:$K$159,8,FALSE),"") ->  | AB97: 0 | AC97: 0 | AD97: 0 | AE97: 1000
B98: =IF(A98<>0,VLOOKUP(A98,Liste!$A$10:$D$159,4,FALSE),"") ->  | C98: 0 | D98: 0 | E98: 0 | F98: 0 | I98: 0 | J98: 0 | K98: =IF(AND($I98=1,$H98>0),VLOOKUP($H98,$A$14:AD$163,11,FALSE),0) -> 0 | L98: =IF(AND($I98=1,$H98>0),VLOOKUP($H98,$A$14:AE$163,12,FALSE),0) -> 0 | M98: =IF(AND($I98=1,$H98>0),VLOOKUP($H98,$A$14:AF$163,13,FALSE),0) -> 0 | Q98: =IF(A98<>0,VLOOKUP(A98,Liste!$A$10:$K$159,8,FALSE),"") ->  | AB98: 0 | AC98: 0 | AD98: 0 | AE98: 1000
B99: =IF(A99<>0,VLOOKUP(A99,Liste!$A$10:$D$159,4,FALSE),"") ->  | C99: 0 | D99: 0 | E99: 0 | F99: 0 | I99: 0 | J99: 0 | K99: =IF(AND($I99=1,$H99>0),VLOOKUP($H99,$A$14:AD$163,11,FALSE),0) -> 0 | L99: =IF(AND($I99=1,$H99>0),VLOOKUP($H99,$A$14:AE$163,12,FALSE),0) -> 0 | M99: =IF(AND($I99=1,$H99>0),VLOOKUP($H99,$A$14:AF$163,13,FALSE),0) -> 0 | Q99: =IF(A99<>0,VLOOKUP(A99,Liste!$A$10:$K$159,8,FALSE),"") ->  | AB99: 0 | AC99: 0 | AD99: 0 | AE99: 1000
B100: =IF(A100<>0,VLOOKUP(A100,Liste!$A$10:$D$159,4,FALSE),"") ->  | C100: 0 | D100: 0 | E100: 0 | F100: 0 | I100: 0 | J100: 0 | K100: =IF(AND($I100=1,$H100>0),VLOOKUP($H100,$A$14:AD$163,11,FALSE),0) -> 0 | L100: =IF(AND($I100=1,$H100>0),VLOOKUP($H100,$A$14:AE$163,12,FALSE),0) -> 0 | M100: =IF(AND($I100=1,$H100>0),VLOOKUP($H100,$A$14:AF$163,13,FALSE),0) -> 0 | Q100: =IF(A100<>0,VLOOKUP(A100,Liste!$A$10:$K$159,8,FALSE),"") ->  | AB100: 0 | AC100: 0 | AD100: 0 | AE100: 1000
B101: =IF(A101<>0,VLOOKUP(A101,Liste!$A$10:$D$159,4,FALSE),"") ->  | C101: 0 | D101: 0 | E101: 0 | F101: 0 | I101: 0 | J101: 0 | K101: =IF(AND($I101=1,$H101>0),VLOOKUP($H101,$A$14:AD$163,11,FALSE),0) -> 0 | L101: =IF(AND($I101=1,$H101>0),VLOOKUP($H101,$A$14:AE$163,12,FALSE),0) -> 0 | M101: =IF(AND($I101=1,$H101>0),VLOOKUP($H101,$A$14:AF$163,13,FALSE),0) -> 0 | Q101: =IF(A101<>0,VLOOKUP(A101,Liste!$A$10:$K$159,8,FALSE),"") ->  | AB101: 0 | AC101: 0 | AD101: 0 | AE101: 1000
B102: =IF(A102<>0,VLOOKUP(A102,Liste!$A$10:$D$159,4,FALSE),"") ->  | C102: 0 | D102: 0 | E102: 0 | F102: 0 | I102: 0 | J102: 0 | K102: =IF(AND($I102=1,$H102>0),VLOOKUP($H102,$A$14:AD$163,11,FALSE),0) -> 0 | L102: =IF(AND($I102=1,$H102>0),VLOOKUP($H102,$A$14:AE$163,12,FALSE),0) -> 0 | M102: =IF(AND($I102=1,$H102>0),VLOOKUP($H102,$A$14:AF$163,13,FALSE),0) -> 0 | Q102: =IF(A102<>0,VLOOKUP(A102,Liste!$A$10:$K$159,8,FALSE),"") ->  | AB102: 0 | AC102: 0 | AD102: 0 | AE102: 1000
B103: =IF(A103<>0,VLOOKUP(A103,Liste!$A$10:$D$159,4,FALSE),"") ->  | C103: 0 | D103: 0 | E103: 0 | F103: 0 | I103: 0 | J103: 0 | K103: =IF(AND($I103=1,$H103>0),VLOOKUP($H103,$A$14:AD$163,11,FALSE),0) -> 0 | L103: =IF(AND($I103=1,$H103>0),VLOOKUP($H103,$A$14:AE$163,12,FALSE),0) -> 0 | M103: =IF(AND($I103=1,$H103>0),VLOOKUP($H103,$A$14:AF$163,13,FALSE),0) -> 0 | Q103: =IF(A103<>0,VLOOKUP(A103,Liste!$A$10:$K$159,8,FALSE),"") ->  | AB103: 0 | AC103: 0 | AD103: 0 | AE103: 1000
B104: =IF(A104<>0,VLOOKUP(A104,Liste!$A$10:$D$159,4,FALSE),"") ->  | C104: 0 | D104: 0 | E104: 0 | F104: 0 | I104: 0 | J104: 0 | K104: =IF(AND($I104=1,$H104>0),VLOOKUP($H104,$A$14:AD$163,11,FALSE),0) -> 0 | L104: =IF(AND($I104=1,$H104>0),VLOOKUP($H104,$A$14:AE$163,12,FALSE),0) -> 0 | M104: =IF(AND($I104=1,$H104>0),VLOOKUP($H104,$A$14:AF$163,13,FALSE),0) -> 0 | Q104: =IF(A104<>0,VLOOKUP(A104,Liste!$A$10:$K$159,8,FALSE),"") ->  | AB104: 0 | AC104: 0 | AD104: 0 | AE104: 1000
B105: =IF(A105<>0,VLOOKUP(A105,Liste!$A$10:$D$159,4,FALSE),"") ->  | C105: 0 | D105: 0 | E105: 0 | F105: 0 | I105: 0 | J105: 0 | K105: =IF(AND($I105=1,$H105>0),VLOOKUP($H105,$A$14:AD$163,11,FALSE),0) -> 0 | L105: =IF(AND($I105=1,$H105>0),VLOOKUP($H105,$A$14:AE$163,12,FALSE),0) -> 0 | M105: =IF(AND($I105=1,$H105>0),VLOOKUP($H105,$A$14:AF$163,13,FALSE),0) -> 0 | Q105: =IF(A105<>0,VLOOKUP(A105,Liste!$A$10:$K$159,8,FALSE),"") ->  | AB105: 0 | AC105: 0 | AD105: 0 | AE105: 1000
B106: =IF(A106<>0,VLOOKUP(A106,Liste!$A$10:$D$159,4,FALSE),"") ->  | C106: 0 | D106: 0 | E106: 0 | F106: 0 | I106: 0 | J106: 0 | K106: =IF(AND($I106=1,$H106>0),VLOOKUP($H106,$A$14:AD$163,11,FALSE),0) -> 0 | L106: =IF(AND($I106=1,$H106>0),VLOOKUP($H106,$A$14:AE$163,12,FALSE),0) -> 0 | M106: =IF(AND($I106=1,$H106>0),VLOOKUP($H106,$A$14:AF$163,13,FALSE),0) -> 0 | Q106: =IF(A106<>0,VLOOKUP(A106,Liste!$A$10:$K$159,8,FALSE),"") ->  | AB106: 0 | AC106: 0 | AD106: 0 | AE106: 1000
B107: =IF(A107<>0,VLOOKUP(A107,Liste!$A$10:$D$159,4,FALSE),"") ->  | C107: 0 | D107: 0 | E107: 0 | F107: 0 | I107: 0 | J107: 0 | K107: =IF(AND($I107=1,$H107>0),VLOOKUP($H107,$A$14:AD$163,11,FALSE),0) -> 0 | L107: =IF(AND($I107=1,$H107>0),VLOOKUP($H107,$A$14:AE$163,12,FALSE),0) -> 0 | M107: =IF(AND($I107=1,$H107>0),VLOOKUP($H107,$A$14:AF$163,13,FALSE),0) -> 0 | Q107: =IF(A107<>0,VLOOKUP(A107,Liste!$A$10:$K$159,8,FALSE),"") ->  | AB107: 0 | AC107: 0 | AD107: 0 | AE107: 1000
B108: =IF(A108<>0,VLOOKUP(A108,Liste!$A$10:$D$159,4,FALSE),"") ->  | C108: 0 | D108: 0 | E108: 0 | F108: 0 | I108: 0 | J108: 0 | K108: =IF(AND($I108=1,$H108>0),VLOOKUP($H108,$A$14:AD$163,11,FALSE),0) -> 0 | L108: =IF(AND($I108=1,$H108>0),VLOOKUP($H108,$A$14:AE$163,12,FALSE),0) -> 0 | M108: =IF(AND($I108=1,$H108>0),VLOOKUP($H108,$A$14:AF$163,13,FALSE),0) -> 0 | Q108: =IF(A108<>0,VLOOKUP(A108,Liste!$A$10:$K$159,8,FALSE),"") ->  | AB108: 0 | AC108: 0 | AD108: 0 | AE108: 1000
B109: =IF(A109<>0,VLOOKUP(A109,Liste!$A$10:$D$159,4,FALSE),"") ->  | C109: 0 | D109: 0 | E109: 0 | F109: 0 | I109: 0 | J109: 0 | K109: =IF(AND($I109=1,$H109>0),VLOOKUP($H109,$A$14:AD$163,11,FALSE),0) -> 0 | L109: =IF(AND($I109=1,$H109>0),VLOOKUP($H109,$A$14:AE$163,12,FALSE),0) -> 0 | M109: =IF(AND($I109=1,$H109>0),VLOOKUP($H109,$A$14:AF$163,13,FALSE),0) -> 0 | Q109: =IF(A109<>0,VLOOKUP(A109,Liste!$A$10:$K$159,8,FALSE),"") ->  | AB109: 0 | AC109: 0 | AD109: 0 | AE109: 1000
B110: =IF(A110<>0,VLOOKUP(A110,Liste!$A$10:$D$159,4,FALSE),"") ->  | C110: =F110*(K110=1) -> 0 | D110: =F110*(L110=1) -> 0 | E110: =F110*(M110=1) -> 0 | F110: =IF(I110=1,VLOOKUP(A110,$A$14:$AA$163,16+$B$4,0),0) -> 0 | I110: =1*(IF(G110>=1,VLOOKUP(A110,$A$14:$AA$163,16+$B$4,0)>0)) -> 0 | J110: =IF(F110>0,F110,0) -> 0 | K110: =IF(AND($I110=1,$H110>0),VLOOKUP($H110,$A$14:AD$163,11,FALSE),0) -> 0 | L110: =IF(AND($I110=1,$H110>0),VLOOKUP($H110,$A$14:AE$163,12,FALSE),0) -> 0 | M110: =IF(AND($I110=1,$H110>0),VLOOKUP($H110,$A$14:AF$163,13,FALSE),0) -> 0 | N110: =IF(AND(I110>0,K110+L110+M110=0),"EN ATTENTE",IF(K110+L110+M110>1,"ERREUR","")) ->  | O110: =IF(AND(AC110>3,AD110>$D$10*$O$12),1,"") ->  | P110: =IF(I110=1,K110*(K110=1)+L110*2*(L110=1)+M110*3*(M110=1),"") ->  | Q110: =IF(A110<>0,VLOOKUP(A110,Liste!$A$10:$K$159,8,FALSE),"") ->  | AB110: =(H110+I110)*(J110>0) -> 0 | AC110: =COUNTIF($H$14:$H$163,A110) -> 0 | AD110: =SUMIF($H$14:$H$163,A110,$J$14:$J$163)+(J110*(AC110>0)) -> 0 | AE110: =IF(H110>0,H110+0.5*(I110=1),A110*(I110=1))+(1000*(I110<1)) -> 1000
B111: =IF(A111<>0,VLOOKUP(A111,Liste!$A$10:$D$159,4,FALSE),"") ->  | C111: 0 | D111: 0 | E111: 0 | F111: 0 | I111: 0 | J111: 0 | K111: =IF(AND($I111=1,$H111>0),VLOOKUP($H111,$A$14:AD$163,11,FALSE),0) -> 0 | L111: =IF(AND($I111=1,$H111>0),VLOOKUP($H111,$A$14:AE$163,12,FALSE),0) -> 0 | M111: =IF(AND($I111=1,$H111>0),VLOOKUP($H111,$A$14:AF$163,13,FALSE),0) -> 0 | Q111: =IF(A111<>0,VLOOKUP(A111,Liste!$A$10:$K$159,8,FALSE),"") ->  | AB111: 0 | AC111: 0 | AD111: 0 | AE111: 1000
B112: =IF(A112<>0,VLOOKUP(A112,Liste!$A$10:$D$159,4,FALSE),"") ->  | C112: 0 | D112: 0 | E112: 0 | F112: 0 | I112: 0 | J112: 0 | K112: =IF(AND($I112=1,$H112>0),VLOOKUP($H112,$A$14:AD$163,11,FALSE),0) -> 0 | L112: =IF(AND($I112=1,$H112>0),VLOOKUP($H112,$A$14:AE$163,12,FALSE),0) -> 0 | M112: =IF(AND($I112=1,$H112>0),VLOOKUP($H112,$A$14:AF$163,13,FALSE),0) -> 0 | Q112: =IF(A112<>0,VLOOKUP(A112,Liste!$A$10:$K$159,8,FALSE),"") ->  | AB112: 0 | AC112: 0 | AD112: 0 | AE112: 1000
B113: =IF(A113<>0,VLOOKUP(A113,Liste!$A$10:$D$159,4,FALSE),"") ->  | C113: 0 | D113: 0 | E113: 0 | F113: 0 | I113: 0 | J113: 0 | K113: =IF(AND($I113=1,$H113>0),VLOOKUP($H113,$A$14:AD$163,11,FALSE),0) -> 0 | L113: =IF(AND($I113=1,$H113>0),VLOOKUP($H113,$A$14:AE$163,12,FALSE),0) -> 0 | M113: =IF(AND($I113=1,$H113>0),VLOOKUP($H113,$A$14:AF$163,13,FALSE),0) -> 0 | Q113: =IF(A113<>0,VLOOKUP(A113,Liste!$A$10:$K$159,8,FALSE),"") ->  | AB113: 0 | AC113: 0 | AD113: 0 | AE113: 1000
B114: =IF(A114<>0,VLOOKUP(A114,Liste!$A$10:$D$159,4,FALSE),"") ->  | C114: 0 | D114: 0 | E114: 0 | F114: 0 | I114: 0 | J114: 0 | K114: =IF(AND($I114=1,$H114>0),VLOOKUP($H114,$A$14:AD$163,11,FALSE),0) -> 0 | L114: =IF(AND($I114=1,$H114>0),VLOOKUP($H114,$A$14:AE$163,12,FALSE),0) -> 0 | M114: =IF(AND($I114=1,$H114>0),VLOOKUP($H114,$A$14:AF$163,13,FALSE),0) -> 0 | Q114: =IF(A114<>0,VLOOKUP(A114,Liste!$A$10:$K$159,8,FALSE),"") ->  | AB114: 0 | AC114: 0 | AD114: 0 | AE114: 1000
B115: =IF(A115<>0,VLOOKUP(A115,Liste!$A$10:$D$159,4,FALSE),"") ->  | C115: 0 | D115: 0 | E115: 0 | F115: 0 | I115: 0 | J115: 0 | K115: =IF(AND($I115=1,$H115>0),VLOOKUP($H115,$A$14:AD$163,11,FALSE),0) -> 0 | L115: =IF(AND($I115=1,$H115>0),VLOOKUP($H115,$A$14:AE$163,12,FALSE),0) -> 0 | M115: =IF(AND($I115=1,$H115>0),VLOOKUP($H115,$A$14:AF$163,13,FALSE),0) -> 0 | Q115: =IF(A115<>0,VLOOKUP(A115,Liste!$A$10:$K$159,8,FALSE),"") ->  | AB115: 0 | AC115: 0 | AD115: 0 | AE115: 1000
B116: =IF(A116<>0,VLOOKUP(A116,Liste!$A$10:$D$159,4,FALSE),"") ->  | C116: 0 | D116: 0 | E116: 0 | F116: 0 | I116: 0 | J116: 0 | K116: =IF(AND($I116=1,$H116>0),VLOOKUP($H116,$A$14:AD$163,11,FALSE),0) -> 0 | L116: =IF(AND($I116=1,$H116>0),VLOOKUP($H116,$A$14:AE$163,12,FALSE),0) -> 0 | M116: =IF(AND($I116=1,$H116>0),VLOOKUP($H116,$A$14:AF$163,13,FALSE),0) -> 0 | Q116: =IF(A116<>0,VLOOKUP(A116,Liste!$A$10:$K$159,8,FALSE),"") ->  | AB116: 0 | AC116: 0 | AD116: 0 | AE116: 1000
B117: =IF(A117<>0,VLOOKUP(A117,Liste!$A$10:$D$159,4,FALSE),"") ->  | C117: 0 | D117: 0 | E117: 0 | F117: 0 | I117: 0 | J117: 0 | K117: =IF(AND($I117=1,$H117>0),VLOOKUP($H117,$A$14:AD$163,11,FALSE),0) -> 0 | L117: =IF(AND($I117=1,$H117>0),VLOOKUP($H117,$A$14:AE$163,12,FALSE),0) -> 0 | M117: =IF(AND($I117=1,$H117>0),VLOOKUP($H117,$A$14:AF$163,13,FALSE),0) -> 0 | Q117: =IF(A117<>0,VLOOKUP(A117,Liste!$A$10:$K$159,8,FALSE),"") ->  | AB117: 0 | AC117: 0 | AD117: 0 | AE117: 1000
B118: =IF(A118<>0,VLOOKUP(A118,Liste!$A$10:$D$159,4,FALSE),"") ->  | C118: 0 | D118: 0 | E118: 0 | F118: 0 | I118: 0 | J118: 0 | K118: =IF(AND($I118=1,$H118>0),VLOOKUP($H118,$A$14:AD$163,11,FALSE),0) -> 0 | L118: =IF(AND($I118=1,$H118>0),VLOOKUP($H118,$A$14:AE$163,12,FALSE),0) -> 0 | M118: =IF(AND($I118=1,$H118>0),VLOOKUP($H118,$A$14:AF$163,13,FALSE),0) -> 0 | Q118: =IF(A118<>0,VLOOKUP(A118,Liste!$A$10:$K$159,8,FALSE),"") ->  | AB118: 0 | AC118: 0 | AD118: 0 | AE118: 1000
B119: =IF(A119<>0,VLOOKUP(A119,Liste!$A$10:$D$159,4,FALSE),"") ->  | C119: 0 | D119: 0 | E119: 0 | F119: 0 | I119: 0 | J119: 0 | K119: =IF(AND($I119=1,$H119>0),VLOOKUP($H119,$A$14:AD$163,11,FALSE),0) -> 0 | L119: =IF(AND($I119=1,$H119>0),VLOOKUP($H119,$A$14:AE$163,12,FALSE),0) -> 0 | M119: =IF(AND($I119=1,$H119>0),VLOOKUP($H119,$A$14:AF$163,13,FALSE),0) -> 0 | Q119: =IF(A119<>0,VLOOKUP(A119,Liste!$A$10:$K$159,8,FALSE),"") ->  | AB119: 0 | AC119: 0 | AD119: 0 | AE119: 1000
B120: =IF(A120<>0,VLOOKUP(A120,Liste!$A$10:$D$159,4,FALSE),"") ->  | C120: 0 | D120: 0 | E120: 0 | F120: 0 | I120: 0 | J120: 0 | K120: =IF(AND($I120=1,$H120>0),VLOOKUP($H120,$A$14:AD$163,11,FALSE),0) -> 0 | L120: =IF(AND($I120=1,$H120>0),VLOOKUP($H120,$A$14:AE$163,12,FALSE),0) -> 0 | M120: =IF(AND($I120=1,$H120>0),VLOOKUP($H120,$A$14:AF$163,13,FALSE),0) -> 0 | Q120: =IF(A120<>0,VLOOKUP(A120,Liste!$A$10:$K$159,8,FALSE),"") ->  | AB120: 0 | AC120: 0 | AD120: 0 | AE120: 1000
B121: =IF(A121<>0,VLOOKUP(A121,Liste!$A$10:$D$159,4,FALSE),"") ->  | C121: 0 | D121: 0 | E121: 0 | F121: 0 | I121: 0 | J121: 0 | K121: =IF(AND($I121=1,$H121>0),VLOOKUP($H121,$A$14:AD$163,11,FALSE),0) -> 0 | L121: =IF(AND($I121=1,$H121>0),VLOOKUP($H121,$A$14:AE$163,12,FALSE),0) -> 0 | M121: =IF(AND($I121=1,$H121>0),VLOOKUP($H121,$A$14:AF$163,13,FALSE),0) -> 0 | Q121: =IF(A121<>0,VLOOKUP(A121,Liste!$A$10:$K$159,8,FALSE),"") ->  | AB121: 0 | AC121: 0 | AD121: 0 | AE121: 1000
B122: =IF(A122<>0,VLOOKUP(A122,Liste!$A$10:$D$159,4,FALSE),"") ->  | C122: 0 | D122: 0 | E122: 0 | F122: 0 | I122: 0 | J122: 0 | K122: =IF(AND($I122=1,$H122>0),VLOOKUP($H122,$A$14:AD$163,11,FALSE),0) -> 0 | L122: =IF(AND($I122=1,$H122>0),VLOOKUP($H122,$A$14:AE$163,12,FALSE),0) -> 0 | M122: =IF(AND($I122=1,$H122>0),VLOOKUP($H122,$A$14:AF$163,13,FALSE),0) -> 0 | Q122: =IF(A122<>0,VLOOKUP(A122,Liste!$A$10:$K$159,8,FALSE),"") ->  | AB122: 0 | AC122: 0 | AD122: 0 | AE122: 1000
B123: =IF(A123<>0,VLOOKUP(A123,Liste!$A$10:$D$159,4,FALSE),"") ->  | C123: 0 | D123: 0 | E123: 0 | F123: 0 | I123: 0 | J123: 0 | K123: =IF(AND($I123=1,$H123>0),VLOOKUP($H123,$A$14:AD$163,11,FALSE),0) -> 0 | L123: =IF(AND($I123=1,$H123>0),VLOOKUP($H123,$A$14:AE$163,12,FALSE),0) -> 0 | M123: =IF(AND($I123=1,$H123>0),VLOOKUP($H123,$A$14:AF$163,13,FALSE),0) -> 0 | Q123: =IF(A123<>0,VLOOKUP(A123,Liste!$A$10:$K$159,8,FALSE),"") ->  | AB123: 0 | AC123: 0 | AD123: 0 | AE123: 1000
B124: =IF(A124<>0,VLOOKUP(A124,Liste!$A$10:$D$159,4,FALSE),"") ->  | C124: 0 | D124: 0 | E124: 0 | F124: 0 | I124: 0 | J124: 0 | K124: =IF(AND($I124=1,$H124>0),VLOOKUP($H124,$A$14:AD$163,11,FALSE),0) -> 0 | L124: =IF(AND($I124=1,$H124>0),VLOOKUP($H124,$A$14:AE$163,12,FALSE),0) -> 0 | M124: =IF(AND($I124=1,$H124>0),VLOOKUP($H124,$A$14:AF$163,13,FALSE),0) -> 0 | Q124: =IF(A124<>0,VLOOKUP(A124,Liste!$A$10:$K$159,8,FALSE),"") ->  | AB124: 0 | AC124: 0 | AD124: 0 | AE124: 1000
B125: =IF(A125<>0,VLOOKUP(A125,Liste!$A$10:$D$159,4,FALSE),"") ->  | C125: 0 | D125: 0 | E125: 0 | F125: 0 | I125: 0 | J125: 0 | K125: =IF(AND($I125=1,$H125>0),VLOOKUP($H125,$A$14:AD$163,11,FALSE),0) -> 0 | L125: =IF(AND($I125=1,$H125>0),VLOOKUP($H125,$A$14:AE$163,12,FALSE),0) -> 0 | M125: =IF(AND($I125=1,$H125>0),VLOOKUP($H125,$A$14:AF$163,13,FALSE),0) -> 0 | Q125: =IF(A125<>0,VLOOKUP(A125,Liste!$A$10:$K$159,8,FALSE),"") ->  | AB125: 0 | AC125: 0 | AD125: 0 | AE125: 1000
B126: =IF(A126<>0,VLOOKUP(A126,Liste!$A$10:$D$159,4,FALSE),"") ->  | C126: 0 | D126: 0 | E126: 0 | F126: 0 | I126: 0 | J126: 0 | K126: =IF(AND($I126=1,$H126>0),VLOOKUP($H126,$A$14:AD$163,11,FALSE),0) -> 0 | L126: =IF(AND($I126=1,$H126>0),VLOOKUP($H126,$A$14:AE$163,12,FALSE),0) -> 0 | M126: =IF(AND($I126=1,$H126>0),VLOOKUP($H126,$A$14:AF$163,13,FALSE),0) -> 0 | Q126: =IF(A126<>0,VLOOKUP(A126,Liste!$A$10:$K$159,8,FALSE),"") ->  | AB126: 0 | AC126: 0 | AD126: 0 | AE126: 1000
B127: =IF(A127<>0,VLOOKUP(A127,Liste!$A$10:$D$159,4,FALSE),"") ->  | C127: 0 | D127: 0 | E127: 0 | F127: 0 | I127: 0 | J127: 0 | K127: =IF(AND($I127=1,$H127>0),VLOOKUP($H127,$A$14:AD$163,11,FALSE),0) -> 0 | L127: =IF(AND($I127=1,$H127>0),VLOOKUP($H127,$A$14:AE$163,12,FALSE),0) -> 0 | M127: =IF(AND($I127=1,$H127>0),VLOOKUP($H127,$A$14:AF$163,13,FALSE),0) -> 0 | Q127: =IF(A127<>0,VLOOKUP(A127,Liste!$A$10:$K$159,8,FALSE),"") ->  | AB127: 0 | AC127: 0 | AD127: 0 | AE127: 1000
B128: =IF(A128<>0,VLOOKUP(A128,Liste!$A$10:$D$159,4,FALSE),"") ->  | C128: 0 | D128: 0 | E128: 0 | F128: 0 | I128: 0 | J128: 0 | K128: =IF(AND($I128=1,$H128>0),VLOOKUP($H128,$A$14:AD$163,11,FALSE),0) -> 0 | L128: =IF(AND($I128=1,$H128>0),VLOOKUP($H128,$A$14:AE$163,12,FALSE),0) -> 0 | M128: =IF(AND($I128=1,$H128>0),VLOOKUP($H128,$A$14:AF$163,13,FALSE),0) -> 0 | Q128: =IF(A128<>0,VLOOKUP(A128,Liste!$A$10:$K$159,8,FALSE),"") ->  | AB128: 0 | AC128: 0 | AD128: 0 | AE128: 1000
B129: =IF(A129<>0,VLOOKUP(A129,Liste!$A$10:$D$159,4,FALSE),"") ->  | C129: 0 | D129: 0 | E129: 0 | F129: 0 | I129: 0 | J129: 0 | K129: =IF(AND($I129=1,$H129>0),VLOOKUP($H129,$A$14:AD$163,11,FALSE),0) -> 0 | L129: =IF(AND($I129=1,$H129>0),VLOOKUP($H129,$A$14:AE$163,12,FALSE),0) -> 0 | M129: =IF(AND($I129=1,$H129>0),VLOOKUP($H129,$A$14:AF$163,13,FALSE),0) -> 0 | Q129: =IF(A129<>0,VLOOKUP(A129,Liste!$A$10:$K$159,8,FALSE),"") ->  | AB129: 0 | AC129: 0 | AD129: 0 | AE129: 1000
B130: =IF(A130<>0,VLOOKUP(A130,Liste!$A$10:$D$159,4,FALSE),"") ->  | C130: 0 | D130: 0 | E130: 0 | F130: 0 | I130: 0 | J130: 0 | K130: =IF(AND($I130=1,$H130>0),VLOOKUP($H130,$A$14:AD$163,11,FALSE),0) -> 0 | L130: =IF(AND($I130=1,$H130>0),VLOOKUP($H130,$A$14:AE$163,12,FALSE),0) -> 0 | M130: =IF(AND($I130=1,$H130>0),VLOOKUP($H130,$A$14:AF$163,13,FALSE),0) -> 0 | Q130: =IF(A130<>0,VLOOKUP(A130,Liste!$A$10:$K$159,8,FALSE),"") ->  | AB130: 0 | AC130: 0 | AD130: 0 | AE130: 1000
B131: =IF(A131<>0,VLOOKUP(A131,Liste!$A$10:$D$159,4,FALSE),"") ->  | C131: 0 | D131: 0 | E131: 0 | F131: 0 | I131: 0 | J131: 0 | K131: =IF(AND($I131=1,$H131>0),VLOOKUP($H131,$A$14:AD$163,11,FALSE),0) -> 0 | L131: =IF(AND($I131=1,$H131>0),VLOOKUP($H131,$A$14:AE$163,12,FALSE),0) -> 0 | M131: =IF(AND($I131=1,$H131>0),VLOOKUP($H131,$A$14:AF$163,13,FALSE),0) -> 0 | Q131: =IF(A131<>0,VLOOKUP(A131,Liste!$A$10:$K$159,8,FALSE),"") ->  | AB131: 0 | AC131: 0 | AD131: 0 | AE131: 1000
B132: =IF(A132<>0,VLOOKUP(A132,Liste!$A$10:$D$159,4,FALSE),"") ->  | C132: 0 | D132: 0 | E132: 0 | F132: 0 | I132: 0 | J132: 0 | K132: =IF(AND($I132=1,$H132>0),VLOOKUP($H132,$A$14:AD$163,11,FALSE),0) -> 0 | L132: =IF(AND($I132=1,$H132>0),VLOOKUP($H132,$A$14:AE$163,12,FALSE),0) -> 0 | M132: =IF(AND($I132=1,$H132>0),VLOOKUP($H132,$A$14:AF$163,13,FALSE),0) -> 0 | Q132: =IF(A132<>0,VLOOKUP(A132,Liste!$A$10:$K$159,8,FALSE),"") ->  | AB132: 0 | AC132: 0 | AD132: 0 | AE132: 1000
B133: =IF(A133<>0,VLOOKUP(A133,Liste!$A$10:$D$159,4,FALSE),"") ->  | C133: 0 | D133: 0 | E133: 0 | F133: 0 | I133: 0 | J133: 0 | K133: =IF(AND($I133=1,$H133>0),VLOOKUP($H133,$A$14:AD$163,11,FALSE),0) -> 0 | L133: =IF(AND($I133=1,$H133>0),VLOOKUP($H133,$A$14:AE$163,12,FALSE),0) -> 0 | M133: =IF(AND($I133=1,$H133>0),VLOOKUP($H133,$A$14:AF$163,13,FALSE),0) -> 0 | Q133: =IF(A133<>0,VLOOKUP(A133,Liste!$A$10:$K$159,8,FALSE),"") ->  | AB133: 0 | AC133: 0 | AD133: 0 | AE133: 1000
B134: =IF(A134<>0,VLOOKUP(A134,Liste!$A$10:$D$159,4,FALSE),"") ->  | C134: 0 | D134: 0 | E134: 0 | F134: 0 | I134: 0 | J134: 0 | K134: =IF(AND($I134=1,$H134>0),VLOOKUP($H134,$A$14:AD$163,11,FALSE),0) -> 0 | L134: =IF(AND($I134=1,$H134>0),VLOOKUP($H134,$A$14:AE$163,12,FALSE),0) -> 0 | M134: =IF(AND($I134=1,$H134>0),VLOOKUP($H134,$A$14:AF$163,13,FALSE),0) -> 0 | Q134: =IF(A134<>0,VLOOKUP(A134,Liste!$A$10:$K$159,8,FALSE),"") ->  | AB134: 0 | AC134: 0 | AD134: 0 | AE134: 1000
B135: =IF(A135<>0,VLOOKUP(A135,Liste!$A$10:$D$159,4,FALSE),"") ->  | C135: 0 | D135: 0 | E135: 0 | F135: 0 | I135: 0 | J135: 0 | K135: =IF(AND($I135=1,$H135>0),VLOOKUP($H135,$A$14:AD$163,11,FALSE),0) -> 0 | L135: =IF(AND($I135=1,$H135>0),VLOOKUP($H135,$A$14:AE$163,12,FALSE),0) -> 0 | M135: =IF(AND($I135=1,$H135>0),VLOOKUP($H135,$A$14:AF$163,13,FALSE),0) -> 0 | Q135: =IF(A135<>0,VLOOKUP(A135,Liste!$A$10:$K$159,8,FALSE),"") ->  | AB135: 0 | AC135: 0 | AD135: 0 | AE135: 1000
B136: =IF(A136<>0,VLOOKUP(A136,Liste!$A$10:$D$159,4,FALSE),"") ->  | C136: 0 | D136: 0 | E136: 0 | F136: 0 | I136: 0 | J136: 0 | K136: =IF(AND($I136=1,$H136>0),VLOOKUP($H136,$A$14:AD$163,11,FALSE),0) -> 0 | L136: =IF(AND($I136=1,$H136>0),VLOOKUP($H136,$A$14:AE$163,12,FALSE),0) -> 0 | M136: =IF(AND($I136=1,$H136>0),VLOOKUP($H136,$A$14:AF$163,13,FALSE),0) -> 0 | Q136: =IF(A136<>0,VLOOKUP(A136,Liste!$A$10:$K$159,8,FALSE),"") ->  | AB136: 0 | AC136: 0 | AD136: 0 | AE136: 1000
B137: =IF(A137<>0,VLOOKUP(A137,Liste!$A$10:$D$159,4,FALSE),"") ->  | C137: 0 | D137: 0 | E137: 0 | F137: 0 | I137: 0 | J137: 0 | K137: =IF(AND($I137=1,$H137>0),VLOOKUP($H137,$A$14:AD$163,11,FALSE),0) -> 0 | L137: =IF(AND($I137=1,$H137>0),VLOOKUP($H137,$A$14:AE$163,12,FALSE),0) -> 0 | M137: =IF(AND($I137=1,$H137>0),VLOOKUP($H137,$A$14:AF$163,13,FALSE),0) -> 0 | Q137: =IF(A137<>0,VLOOKUP(A137,Liste!$A$10:$K$159,8,FALSE),"") ->  | AB137: 0 | AC137: 0 | AD137: 0 | AE137: 1000
B138: =IF(A138<>0,VLOOKUP(A138,Liste!$A$10:$D$159,4,FALSE),"") ->  | C138: 0 | D138: 0 | E138: 0 | F138: 0 | I138: 0 | J138: 0 | K138: =IF(AND($I138=1,$H138>0),VLOOKUP($H138,$A$14:AD$163,11,FALSE),0) -> 0 | L138: =IF(AND($I138=1,$H138>0),VLOOKUP($H138,$A$14:AE$163,12,FALSE),0) -> 0 | M138: =IF(AND($I138=1,$H138>0),VLOOKUP($H138,$A$14:AF$163,13,FALSE),0) -> 0 | Q138: =IF(A138<>0,VLOOKUP(A138,Liste!$A$10:$K$159,8,FALSE),"") ->  | AB138: 0 | AC138: 0 | AD138: 0 | AE138: 1000
B139: =IF(A139<>0,VLOOKUP(A139,Liste!$A$10:$D$159,4,FALSE),"") ->  | C139: 0 | D139: 0 | E139: 0 | F139: 0 | I139: 0 | J139: 0 | K139: =IF(AND($I139=1,$H139>0),VLOOKUP($H139,$A$14:AD$163,11,FALSE),0) -> 0 | L139: =IF(AND($I139=1,$H139>0),VLOOKUP($H139,$A$14:AE$163,12,FALSE),0) -> 0 | M139: =IF(AND($I139=1,$H139>0),VLOOKUP($H139,$A$14:AF$163,13,FALSE),0) -> 0 | Q139: =IF(A139<>0,VLOOKUP(A139,Liste!$A$10:$K$159,8,FALSE),"") ->  | AB139: 0 | AC139: 0 | AD139: 0 | AE139: 1000
B140: =IF(A140<>0,VLOOKUP(A140,Liste!$A$10:$D$159,4,FALSE),"") ->  | C140: 0 | D140: 0 | E140: 0 | F140: 0 | I140: 0 | J140: 0 | K140: =IF(AND($I140=1,$H140>0),VLOOKUP($H140,$A$14:AD$163,11,FALSE),0) -> 0 | L140: =IF(AND($I140=1,$H140>0),VLOOKUP($H140,$A$14:AE$163,12,FALSE),0) -> 0 | M140: =IF(AND($I140=1,$H140>0),VLOOKUP($H140,$A$14:AF$163,13,FALSE),0) -> 0 | Q140: =IF(A140<>0,VLOOKUP(A140,Liste!$A$10:$K$159,8,FALSE),"") ->  | AB140: 0 | AC140: 0 | AD140: 0 | AE140: 1000
B141: =IF(A141<>0,VLOOKUP(A141,Liste!$A$10:$D$159,4,FALSE),"") ->  | C141: 0 | D141: 0 | E141: 0 | F141: 0 | I141: 0 | J141: 0 | K141: =IF(AND($I141=1,$H141>0),VLOOKUP($H141,$A$14:AD$163,11,FALSE),0) -> 0 | L141: =IF(AND($I141=1,$H141>0),VLOOKUP($H141,$A$14:AE$163,12,FALSE),0) -> 0 | M141: =IF(AND($I141=1,$H141>0),VLOOKUP($H141,$A$14:AF$163,13,FALSE),0) -> 0 | Q141: =IF(A141<>0,VLOOKUP(A141,Liste!$A$10:$K$159,8,FALSE),"") ->  | AB141: 0 | AC141: 0 | AD141: 0 | AE141: 1000
B142: =IF(A142<>0,VLOOKUP(A142,Liste!$A$10:$D$159,4,FALSE),"") ->  | C142: =F142*(K142=1) -> 0 | D142: =F142*(L142=1) -> 0 | E142: =F142*(M142=1) -> 0 | F142: =IF(I142=1,VLOOKUP(A142,$A$14:$AA$163,16+$B$4,0),0) -> 0 | I142: =1*(IF(G142>=1,VLOOKUP(A142,$A$14:$AA$163,16+$B$4,0)>0)) -> 0 | J142: =IF(F142>0,F142,0) -> 0 | K142: =IF(AND($I142=1,$H142>0),VLOOKUP($H142,$A$14:AD$163,11,FALSE),0) -> 0 | L142: =IF(AND($I142=1,$H142>0),VLOOKUP($H142,$A$14:AE$163,12,FALSE),0) -> 0 | M142: =IF(AND($I142=1,$H142>0),VLOOKUP($H142,$A$14:AF$163,13,FALSE),0) -> 0 | N142: =IF(AND(I142>0,K142+L142+M142=0),"EN ATTENTE",IF(K142+L142+M142>1,"ERREUR","")) ->  | O142: =IF(AND(AC142>3,AD142>$D$10*$O$12),1,"") ->  | P142: =IF(I142=1,K142*(K142=1)+L142*2*(L142=1)+M142*3*(M142=1),"") ->  | Q142: =IF(A142<>0,VLOOKUP(A142,Liste!$A$10:$K$159,8,FALSE),"") ->  | AB142: =(H142+I142)*(J142>0) -> 0 | AC142: =COUNTIF($H$14:$H$163,A142) -> 0 | AD142: =SUMIF($H$14:$H$163,A142,$J$14:$J$163)+(J142*(AC142>0)) -> 0 | AE142: =IF(H142>0,H142+0.5*(I142=1),A142*(I142=1))+(1000*(I142<1)) -> 1000
B143: =IF(A143<>0,VLOOKUP(A143,Liste!$A$10:$D$159,4,FALSE),"") ->  | C143: 0 | D143: 0 | E143: 0 | F143: 0 | I143: 0 | J143: 0 | K143: =IF(AND($I143=1,$H143>0),VLOOKUP($H143,$A$14:AD$163,11,FALSE),0) -> 0 | L143: =IF(AND($I143=1,$H143>0),VLOOKUP($H143,$A$14:AE$163,12,FALSE),0) -> 0 | M143: =IF(AND($I143=1,$H143>0),VLOOKUP($H143,$A$14:AF$163,13,FALSE),0) -> 0 | Q143: =IF(A143<>0,VLOOKUP(A143,Liste!$A$10:$K$159,8,FALSE),"") ->  | AB143: 0 | AC143: 0 | AD143: 0 | AE143: 1000
B144: =IF(A144<>0,VLOOKUP(A144,Liste!$A$10:$D$159,4,FALSE),"") ->  | C144: 0 | D144: 0 | E144: 0 | F144: 0 | I144: 0 | J144: 0 | K144: =IF(AND($I144=1,$H144>0),VLOOKUP($H144,$A$14:AD$163,11,FALSE),0) -> 0 | L144: =IF(AND($I144=1,$H144>0),VLOOKUP($H144,$A$14:AE$163,12,FALSE),0) -> 0 | M144: =IF(AND($I144=1,$H144>0),VLOOKUP($H144,$A$14:AF$163,13,FALSE),0) -> 0 | Q144: =IF(A144<>0,VLOOKUP(A144,Liste!$A$10:$K$159,8,FALSE),"") ->  | AB144: 0 | AC144: 0 | AD144: 0 | AE144: 1000
B145: =IF(A145<>0,VLOOKUP(A145,Liste!$A$10:$D$159,4,FALSE),"") ->  | C145: 0 | D145: 0 | E145: 0 | F145: 0 | I145: 0 | J145: 0 | K145: =IF(AND($I145=1,$H145>0),VLOOKUP($H145,$A$14:AD$163,11,FALSE),0) -> 0 | L145: =IF(AND($I145=1,$H145>0),VLOOKUP($H145,$A$14:AE$163,12,FALSE),0) -> 0 | M145: =IF(AND($I145=1,$H145>0),VLOOKUP($H145,$A$14:AF$163,13,FALSE),0) -> 0 | Q145: =IF(A145<>0,VLOOKUP(A145,Liste!$A$10:$K$159,8,FALSE),"") ->  | AB145: 0 | AC145: 0 | AD145: 0 | AE145: 1000
B146: =IF(A146<>0,VLOOKUP(A146,Liste!$A$10:$D$159,4,FALSE),"") ->  | C146: 0 | D146: 0 | E146: 0 | F146: 0 | I146: 0 | J146: 0 | K146: =IF(AND($I146=1,$H146>0),VLOOKUP($H146,$A$14:AD$163,11,FALSE),0) -> 0 | L146: =IF(AND($I146=1,$H146>0),VLOOKUP($H146,$A$14:AE$163,12,FALSE),0) -> 0 | M146: =IF(AND($I146=1,$H146>0),VLOOKUP($H146,$A$14:AF$163,13,FALSE),0) -> 0 | Q146: =IF(A146<>0,VLOOKUP(A146,Liste!$A$10:$K$159,8,FALSE),"") ->  | AB146: 0 | AC146: 0 | AD146: 0 | AE146: 1000
B147: =IF(A147<>0,VLOOKUP(A147,Liste!$A$10:$D$159,4,FALSE),"") ->  | C147: 0 | D147: 0 | E147: 0 | F147: 0 | I147: 0 | J147: 0 | K147: =IF(AND($I147=1,$H147>0),VLOOKUP($H147,$A$14:AD$163,11,FALSE),0) -> 0 | L147: =IF(AND($I147=1,$H147>0),VLOOKUP($H147,$A$14:AE$163,12,FALSE),0) -> 0 | M147: =IF(AND($I147=1,$H147>0),VLOOKUP($H147,$A$14:AF$163,13,FALSE),0) -> 0 | Q147: =IF(A147<>0,VLOOKUP(A147,Liste!$A$10:$K$159,8,FALSE),"") ->  | AB147: 0 | AC147: 0 | AD147: 0 | AE147: 1000
B148: =IF(A148<>0,VLOOKUP(A148,Liste!$A$10:$D$159,4,FALSE),"") ->  | C148: 0 | D148: 0 | E148: 0 | F148: 0 | I148: 0 | J148: 0 | K148: =IF(AND($I148=1,$H148>0),VLOOKUP($H148,$A$14:AD$163,11,FALSE),0) -> 0 | L148: =IF(AND($I148=1,$H148>0),VLOOKUP($H148,$A$14:AE$163,12,FALSE),0) -> 0 | M148: =IF(AND($I148=1,$H148>0),VLOOKUP($H148,$A$14:AF$163,13,FALSE),0) -> 0 | Q148: =IF(A148<>0,VLOOKUP(A148,Liste!$A$10:$K$159,8,FALSE),"") ->  | AB148: 0 | AC148: 0 | AD148: 0 | AE148: 1000
C149: 0 | D149: 0 | E149: 0 | F149: 0 | I149: 0 | J149: 0 | K149: =IF(AND($I149=1,$H149>0),VLOOKUP($H149,$A$14:AD$163,11,FALSE),0) -> 0 | L149: =IF(AND($I149=1,$H149>0),VLOOKUP($H149,$A$14:AE$163,12,FALSE),0) -> 0 | M149: =IF(AND($I149=1,$H149>0),VLOOKUP($H149,$A$14:AF$163,13,FALSE),0) -> 0 | Q149: =IF(A149<>0,VLOOKUP(A149,Liste!$A$10:$K$159,8,FALSE),"") ->  | AB149: 0 | AC149: 0 | AD149: 0 | AE149: 1000
B150: =IF(A150<>0,VLOOKUP(A150,Liste!$A$10:$D$159,4,FALSE),"") ->  | C150: 0 | D150: 0 | E150: 0 | F150: 0 | I150: 0 | J150: 0 | K150: =IF(AND($I150=1,$H150>0),VLOOKUP($H150,$A$14:AD$163,11,FALSE),0) -> 0 | L150: =IF(AND($I150=1,$H150>0),VLOOKUP($H150,$A$14:AE$163,12,FALSE),0) -> 0 | M150: =IF(AND($I150=1,$H150>0),VLOOKUP($H150,$A$14:AF$163,13,FALSE),0) -> 0 | Q150: =IF(A150<>0,VLOOKUP(A150,Liste!$A$10:$K$159,8,FALSE),"") ->  | AB150: 0 | AC150: 0 | AD150: 0 | AE150: 1000
B151: =IF(A151<>0,VLOOKUP(A151,Liste!$A$10:$D$159,4,FALSE),"") ->  | C151: 0 | D151: 0 | E151: 0 | F151: 0 | I151: 0 | J151: 0 | K151: =IF(AND($I151=1,$H151>0),VLOOKUP($H151,$A$14:AD$163,11,FALSE),0) -> 0 | L151: =IF(AND($I151=1,$H151>0),VLOOKUP($H151,$A$14:AE$163,12,FALSE),0) -> 0 | M151: =IF(AND($I151=1,$H151>0),VLOOKUP($H151,$A$14:AF$163,13,FALSE),0) -> 0 | Q151: =IF(A151<>0,VLOOKUP(A151,Liste!$A$10:$K$159,8,FALSE),"") ->  | AB151: 0 | AC151: 0 | AD151: 0 | AE151: 1000
B152: =IF(A152<>0,VLOOKUP(A152,Liste!$A$10:$D$159,4,FALSE),"") ->  | C152: 0 | D152: 0 | E152: 0 | F152: 0 | I152: 0 | J152: 0 | K152: =IF(AND($I152=1,$H152>0),VLOOKUP($H152,$A$14:AD$163,11,FALSE),0) -> 0 | L152: =IF(AND($I152=1,$H152>0),VLOOKUP($H152,$A$14:AE$163,12,FALSE),0) -> 0 | M152: =IF(AND($I152=1,$H152>0),VLOOKUP($H152,$A$14:AF$163,13,FALSE),0) -> 0 | Q152: =IF(A152<>0,VLOOKUP(A152,Liste!$A$10:$K$159,8,FALSE),"") ->  | AB152: 0 | AC152: 0 | AD152: 0 | AE152: 1000
B153: =IF(A153<>0,VLOOKUP(A153,Liste!$A$10:$D$159,4,FALSE),"") ->  | C153: 0 | D153: 0 | E153: 0 | F153: 0 | I153: 0 | J153: 0 | K153: =IF(AND($I153=1,$H153>0),VLOOKUP($H153,$A$14:AD$163,11,FALSE),0) -> 0 | L153: =IF(AND($I153=1,$H153>0),VLOOKUP($H153,$A$14:AE$163,12,FALSE),0) -> 0 | M153: =IF(AND($I153=1,$H153>0),VLOOKUP($H153,$A$14:AF$163,13,FALSE),0) -> 0 | Q153: =IF(A153<>0,VLOOKUP(A153,Liste!$A$10:$K$159,8,FALSE),"") ->  | AB153: 0 | AC153: 0 | AD153: 0 | AE153: 1000
B154: =IF(A154<>0,VLOOKUP(A154,Liste!$A$10:$D$159,4,FALSE),"") ->  | C154: 0 | D154: 0 | E154: 0 | F154: 0 | I154: 0 | J154: 0 | K154: =IF(AND($I154=1,$H154>0),VLOOKUP($H154,$A$14:AD$163,11,FALSE),0) -> 0 | L154: =IF(AND($I154=1,$H154>0),VLOOKUP($H154,$A$14:AE$163,12,FALSE),0) -> 0 | M154: =IF(AND($I154=1,$H154>0),VLOOKUP($H154,$A$14:AF$163,13,FALSE),0) -> 0 | Q154: =IF(A154<>0,VLOOKUP(A154,Liste!$A$10:$K$159,8,FALSE),"") ->  | AB154: 0 | AC154: 0 | AD154: 0 | AE154: 1000
B155: =IF(A155<>0,VLOOKUP(A155,Liste!$A$10:$D$159,4,FALSE),"") ->  | C155: 0 | D155: 0 | E155: 0 | F155: 0 | I155: 0 | J155: 0 | K155: =IF(AND($I155=1,$H155>0),VLOOKUP($H155,$A$14:AD$163,11,FALSE),0) -> 0 | L155: =IF(AND($I155=1,$H155>0),VLOOKUP($H155,$A$14:AE$163,12,FALSE),0) -> 0 | M155: =IF(AND($I155=1,$H155>0),VLOOKUP($H155,$A$14:AF$163,13,FALSE),0) -> 0 | Q155: =IF(A155<>0,VLOOKUP(A155,Liste!$A$10:$K$159,8,FALSE),"") ->  | AB155: 0 | AC155: 0 | AD155: 0 | AE155: 1000
B156: =IF(A156<>0,VLOOKUP(A156,Liste!$A$10:$D$159,4,FALSE),"") ->  | C156: 0 | D156: 0 | E156: 0 | F156: 0 | I156: 0 | J156: 0 | K156: =IF(AND($I156=1,$H156>0),VLOOKUP($H156,$A$14:AD$163,11,FALSE),0) -> 0 | L156: =IF(AND($I156=1,$H156>0),VLOOKUP($H156,$A$14:AE$163,12,FALSE),0) -> 0 | M156: =IF(AND($I156=1,$H156>0),VLOOKUP($H156,$A$14:AF$163,13,FALSE),0) -> 0 | Q156: =IF(A156<>0,VLOOKUP(A156,Liste!$A$10:$K$159,8,FALSE),"") ->  | AB156: 0 | AC156: 0 | AD156: 0 | AE156: 1000
B157: =IF(A157<>0,VLOOKUP(A157,Liste!$A$10:$D$159,4,FALSE),"") ->  | C157: 0 | D157: 0 | E157: 0 | F157: 0 | I157: 0 | J157: 0 | K157: =IF(AND($I157=1,$H157>0),VLOOKUP($H157,$A$14:AD$163,11,FALSE),0) -> 0 | L157: =IF(AND($I157=1,$H157>0),VLOOKUP($H157,$A$14:AE$163,12,FALSE),0) -> 0 | M157: =IF(AND($I157=1,$H157>0),VLOOKUP($H157,$A$14:AF$163,13,FALSE),0) -> 0 | Q157: =IF(A157<>0,VLOOKUP(A157,Liste!$A$10:$K$159,8,FALSE),"") ->  | AB157: 0 | AC157: 0 | AD157: 0 | AE157: 1000
B158: =IF(A158<>0,VLOOKUP(A158,Liste!$A$10:$D$159,4,FALSE),"") ->  | C158: 0 | D158: 0 | E158: 0 | F158: 0 | I158: 0 | J158: 0 | K158: =IF(AND($I158=1,$H158>0),VLOOKUP($H158,$A$14:AD$163,11,FALSE),0) -> 0 | L158: =IF(AND($I158=1,$H158>0),VLOOKUP($H158,$A$14:AE$163,12,FALSE),0) -> 0 | M158: =IF(AND($I158=1,$H158>0),VLOOKUP($H158,$A$14:AF$163,13,FALSE),0) -> 0 | Q158: =IF(A158<>0,VLOOKUP(A158,Liste!$A$10:$K$159,8,FALSE),"") ->  | AB158: 0 | AC158: 0 | AD158: 0 | AE158: 1000
B159: =IF(A159<>0,VLOOKUP(A159,Liste!$A$10:$D$159,4,FALSE),"") ->  | C159: 0 | D159: 0 | E159: 0 | F159: 0 | I159: 0 | J159: 0 | K159: =IF(AND($I159=1,$H159>0),VLOOKUP($H159,$A$14:AD$163,11,FALSE),0) -> 0 | L159: =IF(AND($I159=1,$H159>0),VLOOKUP($H159,$A$14:AE$163,12,FALSE),0) -> 0 | M159: =IF(AND($I159=1,$H159>0),VLOOKUP($H159,$A$14:AF$163,13,FALSE),0) -> 0 | N159: =IF(AND(I159>0,K159+L159+M159=0),"EN ATTENTE",IF(K159+L159+M159>1,"ERREUR","")) ->  | Q159: =IF(A159<>0,VLOOKUP(A159,Liste!$A$10:$K$159,8,FALSE),"") ->  | AB159: 0 | AC159: 0 | AD159: 0 | AE159: 1000
B160: =IF(A160<>0,VLOOKUP(A160,Liste!$A$10:$D$159,4,FALSE),"") ->  | C160: 0 | D160: 0 | E160: 0 | F160: 0 | I160: 0 | J160: 0 | K160: =IF(AND($I160=1,$H160>0),VLOOKUP($H160,$A$14:AD$163,11,FALSE),0) -> 0 | L160: =IF(AND($I160=1,$H160>0),VLOOKUP($H160,$A$14:AE$163,12,FALSE),0) -> 0 | M160: =IF(AND($I160=1,$H160>0),VLOOKUP($H160,$A$14:AF$163,13,FALSE),0) -> 0 | N160: =IF(AND(I160>0,K160+L160+M160=0),"EN ATTENTE",IF(K160+L160+M160>1,"ERREUR","")) ->  | Q160: =IF(A160<>0,VLOOKUP(A160,Liste!$A$10:$K$159,8,FALSE),"") ->  | AB160: 0 | AC160: 0 | AD160: 0 | AE160: 1000
B161: =IF(A161<>0,VLOOKUP(A161,Liste!$A$10:$D$159,4,FALSE),"") ->  | C161: 0 | D161: 0 | E161: 0 | F161: 0 | I161: 0 | J161: 0 | K161: =IF(AND($I161=1,$H161>0),VLOOKUP($H161,$A$14:AD$163,11,FALSE),0) -> 0 | L161: =IF(AND($I161=1,$H161>0),VLOOKUP($H161,$A$14:AE$163,12,FALSE),0) -> 0 | M161: =IF(AND($I161=1,$H161>0),VLOOKUP($H161,$A$14:AF$163,13,FALSE),0) -> 0 | N161: =IF(AND(I161>0,K161+L161+M161=0),"EN ATTENTE",IF(K161+L161+M161>1,"ERREUR","")) ->  | Q161: =IF(A161<>0,VLOOKUP(A161,Liste!$A$10:$K$159,8,FALSE),"") ->  | AB161: 0 | AC161: 0 | AD161: 0 | AE161: 1000
B162: =IF(A162<>0,VLOOKUP(A162,Liste!$A$10:$D$159,4,FALSE),"") ->  | C162: 0 | D162: 0 | E162: 0 | F162: 0 | I162: 0 | J162: 0 | K162: =IF(AND($I162=1,$H162>0),VLOOKUP($H162,$A$14:AD$163,11,FALSE),0) -> 0 | L162: =IF(AND($I162=1,$H162>0),VLOOKUP($H162,$A$14:AE$163,12,FALSE),0) -> 0 | M162: =IF(AND($I162=1,$H162>0),VLOOKUP($H162,$A$14:AF$163,13,FALSE),0) -> 0 | N162: =IF(AND(I162>0,K162+L162+M162=0),"EN ATTENTE",IF(K162+L162+M162>1,"ERREUR","")) ->  | Q162: =IF(A162<>0,VLOOKUP(A162,Liste!$A$10:$K$159,8,FALSE),"") ->  | AB162: 0 | AC162: 0 | AD162: 0 | AE162: 1000
B163: =IF(A163<>0,VLOOKUP(A163,Liste!$A$10:$D$159,4,FALSE),"") ->  | C163: 0 | D163: 0 | E163: 0 | F163: 0 | I163: 0 | J163: 0 | K163: =IF(AND($I163=1,$H163>0),VLOOKUP($H163,$A$14:AD$163,11,FALSE),0) -> 0 | L163: =IF(AND($I163=1,$H163>0),VLOOKUP($H163,$A$14:AE$163,12,FALSE),0) -> 0 | M163: =IF(AND($I163=1,$H163>0),VLOOKUP($H163,$A$14:AF$163,13,FALSE),0) -> 0 | N163: =IF(AND(I163>0,K163+L163+M163=0),"EN ATTENTE",IF(K163+L163+M163>1,"ERREUR","")) ->  | Q163: =IF(A163<>0,VLOOKUP(A163,Liste!$A$10:$K$159,8,FALSE),"") ->  | AB163: 0 | AC163: 0 | AD163: 0 | AE163: 1000

Sheet Lisez-moi
A3: G E S T I O N D E S V O T E S
A5: La gestion des Votes en A.G. de copropriété, sur Excel, repose sur l' utilisation d'une feuille "MERE" qui est la copie
A6: de la feuille de présence;
A7: A partir de cette feuille on crée une feuille de vote pour chaque question à l' ordre du jour de l' A.G.
A10: Feuille "Liste"
A11: Comporte le numéro d' ordre, les noms et adresses, les numéros de lots et leur désignation et tantièmes généraux.
A12: Cette feuille sert à l' établissement automatique de la feuille de présence (F.P.)
A14: Feuille F.P., fveuille de présence.
A15: Cette feuille doit être imprimée pour servir à l' émargement.
A17: La feuille "MERE" peut être créé dés que la convocation de l' A.G. est faite.
A18: Elle comporte la liste de tous les copropriétaires avec leurs tantièmes dans les différentes clés.
A19: Cliquez sur le boutron "Nouveau dossier" pour ouvrir un dossier pour la nouvelle A.G.
A20: Le logiciel renomme le nouveau dossier automatiquement avec référence à la date de la nouvelle A.G.
A21: Le numéro d' ordre attribué à un copropriétaire ne sert qu' à faire le lien entre les mandants et le mandataire
A22: Dans la feuille "Liste" faire les modifications éventuelles suite à des mutations et cliquez sur "Mise à jour", la liste
A23: des copropriétaires est alors trier par ordre,
A24: aphabétique et numérotée,
A25: Le numéro d' ordre attribué à un copropriétaire ne sert qu' à faire le lien entre les mandants et le mandataire
A26: il ne faut pas trier la feuille "MERE" en cours d' A.G.
A27: Un bouton "Réduire/Afficher" permet de basculer d' un affichage à un autre,
A28: Vous pouvez maintenant, à partir de la feuille de présence papier émargée par les copropriétaires, enregistrer
A29: les votes par corresspondences ( code 1) et les votes des présents et représentés (Code 2 ) | B29: nts p
A30: Pour les représentés mettre en colonne "H" le numéro du mandataire.
A31: Le logiciel vérifie pour chaque copropriétaire les limites, nombre de pouvoirs et nombre de voix:
A32: Colonne "AC" - Nombre de représentés.
A33: Colonne "AD" - Total des voix disponibles pour le mandataire.
A34: Colonne "O" - Avertissement en cas de dépassement : "1" en rouge.
A35: Cellule G7, Cadre rouge clair :avertissement si nombre de représentés et nombre de voix dépassées
A37: Vous pouvez maintenant cliquer sur le bouton "Feuille de Votes"
A38: Le logiciel refusera cet accès si les limites sont dépassées.
A40: Vous alllez entrer les informations demandées par le programme: Référence de la résolution, Objet de la résolution,
A41: Numéro de majorité nécessaire (24 ,25, 25,1, 26 ), numéro ,de clé applicable.
A42: Les colonnes "D" à "F" sont masqués pour faciliter la saisie des votes.
A43: Pour les afficher à nouveau il suffit de cliquer sur le bouton bleu "Afficher tout".
A45: Vous pouvez maintenant enregistrer les votes.
A47: Les votes des mandants sont, sauf expression particulière, celui du mandataire.
A48: Il faut donc faire attention en cas de départ d'un mandataire en cours d' A.G.
A49: De même un mandataire peut ne pas être "votant" dans une clé particulière, il faut alors exprimer le vote manuellement.
A50: Il ne faut jamais trier une feuille de vote en cours d' A.G.sauf l' opération facultative "Trier Valider" en fin de votes
A53: Explication sur les couleurs de fonds :
A54: Colonne A couleur "BLEU" : Mandataires
A55: Lignes de couleur "JAUNE" : Présents
A56: Lignes de couleur "GRISE" : Absents,
A58: Bouton " TRIER VALIDER"
A59: La validation n' est pas obligatoire, l' opération est irréversible.
A60: La validation trie les copropriétaires suivant les votes exprimés, cela permet de faire un "copier" des votes des opposants
A61: à la résolution et de faire un "coller" dans le P.V. d' A.G.
A62: Le logiciel indique quels sont les "Opposants à la décision prise".
A64: Les boutons "DEB" ; "+6", +12", +24",……"Fin" servent à la navigation dans la feuille de votes.
A65: Les boutons "DEB" ; "+6", +12", +24",……"Fin" servent à la navigation dans la feuille de votes.
A67: NOUVELLE ASSEMBLEE GENERALE
A68: Le bouton rouge "Nouveau dossier" permet de créer un dossier pour une nouvelle A.G.
A69: Le dossier de l' A.G. précédente est conservé.
A70: Il faut mettre à jour la feuille "Liste" des mutations et changements d' adresse intervenus depuis l' A.G. précédente,
A71: ensuite cliquer sur le bouton "Mise à jour",
A73: NOUVELLE COPROPRIETE
A74: Dans la feuille "Liste" cliquer sur le bouton "NOUVELLE COPROPRIETE,
A75: Dans la feuille "Lste" enregistrer tous les noms et adreses des copropriétaires ainsi que leurs lots et tantièmes,
A76: Enregistrer tous les noms adresses , lots et tantièmes de tous les copropriétaires.
A77: Dans la feuille "F.MERE" supprimer les tantièmes spécifiques (Colonnes R à AA, et les remplacer par ceux
A78: du nouveau syndicat,
A79: La "feuille de présence" esr créé automatiquement,
A81: VOTES PAR CORRESPONDANCE;
A82: Une procédure, facultative, perme d' enregistrer avant la tenue de l' A.G.les votes exprimés par les copropriétaires ayant
A83: retourné dans les délais leur formulaire de votes par correspondance.
A84: Dans le feuille "F.MERE" enregistrer les votants par correspondance, code 3,
A86: Feuille V.P.C.
A87: Dans cette feuille enregistrer les votes de chaque copropriétirzs pour chacune des questions à l' ordre du Jour
A89: Feuille V.P.C.Question
A90: Dans la feuille VPC cliquer sur le bouton "Tri par Question"
A91: Vous pouvez maintenant sélectionner les votes par correqsopondance pour la question en cours
A92: Colonnes F ,G, H et les coller dans la cellule K 14 de la question en cours,
A94: Vous pouvez maintenant enregistrer les votes des présents et en vidéos
A96: Formulaire de votes par correspondance.
A97: Ce formulaire est établi à partir des données de la "feuille liste"
A98: Le logiciel mentionne les copropriétaires qui ne participent pas à une question, Copropriétaires bât B pour des travaux Bât A,
A100: ETATS ET MATRICES,
A101: Deux modéles de feuilles à joindre à la convocation d’ A.G., Un "POUVOIR"
A102: et un "Formulaire de vote par correspondance",
A103: Une matrice "Convocation d' A.G"., à complèter
A104: Une matrice "Procès-verbal de l' A.G.", à compléter
A106: Mise à jour le 16 janvier 2023
A107: Jean Braconnier
A108: braconnier,jean@free,fr

Sheet Conv,AG
A1: RECOMMANDEE A,R, | F1: =+Liste!A1 -> Résid.LA JOIE
F2: =+Liste!A2 -> 120 rue de l' Espérance
F3: =+Liste!A3 -> 75016 | G3: =+Liste!B3 -> PARIS
B5: Convocation à l' Aasemblée générale ordinaire
A7: Madame, Monsieur,
A9: Nous vous prions de bien vouloir participer à l' Assemblée Générale des Copropriétaires qui se tiendra le
C11: Lundi 5 Juillet 2021 à 17 Heures 30
D13: Cabinet DUDULE
D14: 7 rue de l' Avenir
D15: 75016 | E15: PARIS
A17: à l' effet de délivbérer sur l' ordre du jour suivant
A19: 1, ELECTION DU PRESIDENT DE SCEANCE -Majorité article 24
B20: M,,,,,,,,,,,,,,,,,,,,,,,,,,,,,,,,,,,,,, | D20: est élu(e) président(e) de séance
A22: 2, ELECTION DU SCRUTATEUR -Majorité article 24
B23: M,,,,,,,,,,,,,,,,,,,,,,,,,,,,,,,,,,,,,,
A25: 3, ELECTION D' UN SECRETAIRE, Majorité article 24
B26: M,,,,,,,,,,,,,,,,,,,,,,,,,,,,,,,,,,,,,, | D26: représentant le
D27: est élu(e) secrétaire
A28: 4, COMPTE RENDU DU CONSEIL SYNDICAL SUR SES MISSIONS ET AVIS
B29: RENDUS AU COURS DE L'EXERCICE ECOULE, sans vote,
A31: 5, APPROBATION DES COMPTES DE L'EXERCICE DU
B32: Majorité article 24
B33: Les comptes peuvent être vérifiés par tout copropriétaire, les six jours qui prfcédent l' AG
B34: ou sur rendez vous au bureau du syndic
B35: Projet de résolution,
B36: L' asselblée générale approuve les comptes de charges de l' exercice qui s' élèvent à
A38: 6_ DESIGNATION DU SYNDIC, Majorité article 25 (possibilité 2e vote à l' article 25-1 majorité 24 )
B39: Projet de résolution,
B40: L' assemblée générale désigne M en qualité de syndic, selon contrart joint à la cinvocation,
B41: L' assemblée générale mandate le Président de séance pour signer le contrrart de syndic,
A43: 7, DESIGNATION DES MEMBRES DU CONSEIL SYNDICAL
B44: Majorité article 25 (possibilité 2e vote à l' article 25-1 majorité 24 )
B45: Projet de Résolution:
B46: Monsieur est élu membre du conseil syndicdal
B47: Monsieur est élu membre du conseil syndicdal
A49: 8, MODALITES DE CONSULTATION DU CONSEIL SYNDICAL, majorité 25,
B50: Majorité article 25 (possibilité 2e vote à l' article 25-1 majorité 24 )
B51: Projet de résolution,
B52: L' Assemblé Générale fixe à euros TTC le montant des marchés et contrats
B53: à partir duquel le Conseil Syndcal est consulté,
A55: 9, MISE EN CONCURRENCE DES MARCHES ET CONTRATS, Majorité 25
B56: Projet de résolution,
B57: L' Assemblée Générale fixe à,,,,,,,,euros le montant à partir duquel la mise en concurrence
B58: des marchés et contrats est rendue obligatoire,
A60: 10,VOTE DU BUDGET PREVISIONNELDE L' EXERCICE N+2 majorité 24
B61: Projet de résolution,
B62: L' Assemblée Générale fixe le budget de l' exercice N+2 à la somme de ,,,,,,,,,,,,,,,, euros
B63: Elle autorise le syndic à procéder aux appels provisionnels à proportion de 1/4 du budget voté,
B64: le 1er jour de chaque trimestre,
A66: 11,REALISATION DE TRAVAUX Majorité
B67: Conditions essentielles des marchés,
B68: Devis
B69: Devis
B70: Projet de résolution,
B71: L'Assemblée Générale décide l' éxécution des travaux et confie la réalisation de ces travaux
B72: à l' entreprise,,,,,,,,,,,,,,pour pour un montant de,,,,,,,,,euros TTC
B73: auquel s' ajoute l' Assurance Dommage Ouvrages obligatoire d' un monant de,,,,,euros
B75: L' assemblée Générale autorise le syndic à procéder, selon la clé de répartition,,,,,
B76: aux appels de provisions exigibles comme suit
B77: ,,,,,, | C77: % le
B78: ,,,,,,, | C78: % le
B79: ,,,,,,, | C79: % le
B80: L' Assemblée Générale décide de financer les travaux par le " Fonds travaux" à hauteur de,,,, %
B81: de la participation aux travaux et dans la limite de ce que dispose chaque lot dans le "Fonds travaux",
A83: 12, HONORAIRES SUR TRAVAUX Majorité,,,,,
B84: Projet de résolution,
B85: Dans le cadre des travaux l' Assemblée Générale décide de fixer le montant des honoraires comme suit, à
B86: % HT du montant HT des travaux, soit un montant de,,,,,,,,,,,,TTC,

Sheet P.V.A.G.
F1: =+Liste!A1 -> Résid.LA JOIE
F2: =+Liste!A2 -> 120 rue de l' Espérance
F3: =+Liste!A3 -> 75016 | G3: PARIS
B5: Proces-Verbal de l' Assemblée générale ordinaire
C6: Du | D6: 2021-06-25
A8: Les copropriétaitres de l' immmeuble sis
D10: ,,,,,,
D11: ,,,,,,
D12: ,,,,,,
A14: Se sont réunis
D15: ,,,,,
D16: ,,,,,
D17: ,,,,,
A19: Sur convocation régulière qui leur a été adressée par le syndic
A21: Il est constaté, à l' examen de la feuille de présence, dûment émargée par chaque copropriétaire
A22: en entrant en séance, que,,,,,,,copropriétaires représentant,,,,,,voix sur ,,,,,,,constituant le
A23: Syndicat des copropriétaires, sont présents ou représentés,
A25: N' ont pas participé aux votes des résolutions prévues à l' ordre du jour, les absents non représentés
A26: Soit un total de,,,,,,voix, et dont les noms suivant :
A27: ,,,,
A28: ,,,,
A29: ,,,,
A30: 1, ELECTION DU PRESIDENT DE SEANCE Majorité 24
B32: Monsieur est élu président de séance
B34: POUR :
B35: CONTRE
B36: ABSTENTIONS
B37: Ce sont opposés à la décision prise
B38: ,,,,,,,
B39: Ce sont abstenus
B40: ,,,,,,,
B41: CETTE RESOLUTION EST ADOPRTEE A L'UNANIMITE DES PRESENTS ET REPRESENTES
A43: 2, ELECTION DU SCRUTATEUR Majoité article 24
B45: Monsieur est élu scrutateur
B47: POUR :
B48: CONTRE
B49: ABSTENTIONS
B50: Ce sont opposés à la décision prise
B51: ,,,,,,,
B52: Ce sont abstenus
B53: ,,,,,,,
B54: CETTE RESOLUTION EST ADOPRTEE A L'UNANIMITE DES PRESENTS ET REPRESENTES
A59: 3, ELECTION D' UN SECRETAIRE Majorité article 24
B61: Monsieur est élu secrétaire
B63: POUR :
B64: CONTRE
B65: ABSTENTIONS
B66: Ce sont opposés à la décision prise
B67: ,,,,,,,
B68: Ce sont abstenus
B69: ,,,,,,,
B70: CETTE RESOLUTION EST ADOPRTEE A L'UNANIMITE DES PRESENTS ET REPRESENTES
A72: 5,APPROBATION DES COMPTES DE L'EXERCICE DU,,,,,,,AU,,,,
B73: Majorité article 24
B74: L' assemblée Générale approuve les comptes de charges de l' exercice s' élevant à
B76: POUR :
B77: CONTRE
B78: ABSTENTIONS
B79: Ce sont opposés à la décision prise
B80: ,,,,,,,
B81: Ce sont abstenus
B82: ,,,,,,,
B83: CETTE RESOLUTION EST ADOPTEE A L'UNANIMITE DES PRESENTS ET REPRESENTES
A85: 6_ DESIGNATION DU SYNDIC, Majorité article 25 (possibilité 2e vote à l' article 25-1 majorité 24 )
B86: L' Assemblée Générale désigne,,,,,,,,,,,, en qualite=e de syndic, selon contrat joint
B87: pour la période du,,,,,,,,,,,,au,,,,,,,
B88: Mandate le Président de séance pour signer le conrtrat de Syndic,
B90: POUR :
B91: CONTRE
B92: ABSTENTIONS
B93: Ce sont opposés à la décision prise
B94: ,,,,,,,
B95: Ce sont abstenus
B96: ,,,,,,,
B97: CETTE RESOLUTION EST ADOPTEE A L'UNANIMITE DES PRESENTS ET REPRESENTES
A99: 7, DESIGNATION DES MEMBRES DU CONSEIL SYNDICAL
B100: Majorité article 25 (possibilité 2e vote à l' article 25-1 majorité 24 )
A101: 7.1 | B101: Monsieur est élu membre du Conseil syndical
B102: POUR :
B103: CONTRE
B104: ABSTENTIONS
B105: Ce sont opposés à la décision prise
B106: ,,,,,,,
B107: Ce sont abstenus
B108: ,,,,,,,
B109: CETTE RESOLUTION EST ADOPTEE A L'UNANIMITE DES PRESENTS ET REPRESENTES
A111: 7.2 | B111: Monsieur est élu membre du Conseil syndical
B112: POUR :
B113: CONTRE
B114: ABSTENTIONS
B115: Ce sont opposés à la décision prise
B116: ,,,,,,,
B117: Ce sont abstenus
B118: ,,,,,,,
B119: CETTE RESOLUTION EST ADOPTEE A L'UNANIMITE DES PRESENTS ET REPRESENTES
A121: 8, MODALITES DE CONSULTATION DU CONSEIL SYNDICAL, majorité 25,
B122: L' Assemblé Générale fixe à euros TTC le montant des marchés et contrats
B123: à partir duquel le Conseil Syndcal est consulté,
B124: POUR
B125: CONTRE
B126: ABSTENTIONS
B127: Ce sont opposés à la décision prise
B128: ,,,,,,,
B129: Ce sont abstenus
B130: ,,,,,,,
B131: CETTE RESOLUTION EST ADOPTEE A L'UNANIMITE DES PRESENTS ET REPRESENTES
A133: 9, MISE EN CONCURRENCE DES MARCHES ET CONTRATS, Majorité 25
B134: L' Assemblée Générale fixe à,,,,,,,,euros le montant à partir duquel la mise en concurrence
B135: des marchés et contrats est rendue obligatoire,
B136: POUR
B137: CONTRE
B138: ABSTENTIONS
B139: Ce sont opposés à la décision prise
B140: ,,,,,,,
B141: Ce sont abstenus
B142: ,,,,,,,
B143: CETTE RESOLUTION EST ADOPTEE A L'UNANIMITE DES PRESENTS ET REPRESENTES
A145: 10,VOTE DU BUDGET PREVISIONNELDE L' EXERCICE N+2 majorité 24
B146: L' Assemblée Générale fixe le budget de l' exercice N+2 à la somme de ,,,,,,,,,,,,,,,, euros
B147: Elle autorise le syndic à procéder aux appels provisionnels à proportion de 1/4 du budget voté,
B148: le 1er jour de chaque trimestre,
B149: POUR
B150: CONTRE
B151: ABSTENTIONS
B152: Ce sont opposés à la décision prise
B153: ,,,,,,,
B154: Ce sont abstenus
B155: ,,,,,,,
B156: CETTE RESOLUTION EST ADOPTEE A L'UNANIMITE DES PRESENTS ET REPRESENTES
A158: 11,REALISATION DE TRAVAUX Majorité
B159: L'Assemblée Générale décide l' éxécution des travaux et confie la réalisation de ces travaux
B160: à l' entreprise,,,,,,,,,,,,,,pour pour un montant de,,,,,,,,,euros TTC
B161: auquel s' ajoute l' Assurance Dommage Ouvrages obligatoire d' un monant de,,,,,euros
B163: L' assemblée Générale autorise le syndic )àprocéder, selon la clé de répartition,,,,,
B164: et aux appels de provisions exigibles comme suit
B165: ,,,,,,
B166: ,,,,,,,
B167: ,,,,,,,
B168: L' Assemblée Générale décide de financer les travaux par le " Fonds travaux" à hauteur de,,,, %
B169: de la participation aux travaux et dans la limite de ce que dispose chaque lot dans le "Fonds travaux",
B170: POUR
B171: CONTRE
B172: ABSTENTIONS
B173: Ce sont opposés à la décision prise
B174: ,,,,,,,
B175: Ce sont abstenus
B176: ,,,,,,,
B177: CETTE RESOLUTION EST ADOPTEE A L'UNANIMITE DES PRESENTS ET REPRESENTES
A180: 12, HONORAIRES SUR TRAVAUX Majorité,,,,,
B181: Dans le cadre des travaux l' Assemblée Générale décide de fixer le montant des honoraires
B182: commze suit, à % HT du montant HT des travaux, soit un montant de,,,,,,,,,,,,TTC,
B183: POUR
B184: CONTRE
B185: ABSTENTIONS
B186: Ce sont opposés à la décision prise
B187: ,,,,,,,
B188: Ce sont abstenus
B189: ,,,,,,,
B190: CETTE RESOLUTION EST ADOPTEE A L'UNANIMITE DES PRESENTS ET REPRESENTES
A194: L' ordre du jour étant épuisé et personne ne demandant la parole, le président, aprçs émargement de la feuille
A195: de présence par les membres du bureau, lève la séance à,,,,,
B197: Le scrutateur | D197: Le secrétaire | F197: Le Prsident
A202: Extrait de l' article 42 de la loi du 10 juillet 1965
A203: Les actions qui ont pour objet de contester les décisions d' Assembléen Générale doivent, à peine de déchéance, être
A204: introduites par les copropiétaires opposants ou défaillants, dans un délai de deux mois à compter de la notification desdites
A205: décisions qui leur est faite à la diligence du syndic (loi n° 85-1470 du 31 décembre 1985), dans un délai de deux mois
A206: à compter de la tenue de l' Assemblée Générale,
A207: Sauf en cas d' urgence, l' éxecution par le syndic des travaux décidés par l' Assemblée Générale en application des articles
A208: 25 et 26 est suspendue jusqu' à l'expiration du délai mentionné à la première phrase du présent alinéa,"

Sheet POUV
C10: P O U V O I R
A12: Je soussigné,,,,,,,,,,,,,,,,,,,,,,,,,,,,,,,,,,,,,,,,,,,,,,,,,,,,,,,,,,,,,,,,,,,,,,,,,,,,,,,,,,,,,,,,,,,,,,,,,,,,,,,,
A14: Copropriétaire et titulaire de lot(s) de copropriété au sein de l' immzuble
B16: =Liste!A1 &" " &Liste!A2 &" " &Liste!A3&" " &Liste!B3 -> Résid.LA JOIE 120 rue de l' Espérance 75016 PARIS
A18: Donne par la présente, pouvoir, avec la faculté de le subdéléguer à la personne de son choix,
A19: à,,,,,,,,,,,,,,,,,,,,,,,,,,,,,,,,,,,,,,,,,,,,,,,,,,,,,,,,,,,,,,,,,,,,,,,,,,,,,,,,,,,,,,,,,,,,,,,,,,,,,,,,,,,,,,,,,,,,,,,,,,
A20: de, pour moi et en mon nom, se présenter à l' Assemblée générale du syndicat des copropriétaires
A21: de l'immeuble ci-dessus visé, le ;
C22: =Liste!E3 -> 2022-11-05 | D22: ="à "&Liste!E4 -> à 10 Heures
A25: de, en mon nom, délibérer, prendre toutes résolutions nécessaires, émettre tous votes, donner
A26: tous avis, et de me représenter à toutes Assemblées qui seraient convoquées ultérieuremnt,
A27: avec le même ordre du jour, en cas de défaut de majorité pour la première Assemblée
A30: A défaut d' avoir porté le nom d' un mandataire, j' autorise expréssément la remise de ce pouvoir
A31: à tout participanr à l' assemblée générale,
A32: Fait à,,,,,,,,,,,,,,,,,,,,,,,,,,,,,,,,,,,,,,,,,,,,,,,,,,,,,,,,,,,,,,,,,,,,,,,,,,,,,le,,,,,,,,,,,,,,,,,,,,,,,,,,,,,,,,,,,,,,,,,,,,,,,,,,,,,,
A34: BON POUR POUVOIR (mention manuscrite ) | D34: Signature

Sheet FormVPC
A1: =Liste!$A$1 -> Résid.LA JOIE | I1: FORMULAIRE DE VOTE PAR CORRESPONDANCE
A2: =Liste!$A$2 -> 120 rue de l' Espérance | B2: =Liste!$A$2 -> 120 rue de l' Espérance | J2: Page 1
A3: =Liste!$A$3 -> 75016 | B3: =Liste!$A$3 & " " &Liste!$B$3 -> 75016 PARIS
H4: Assemblée Générale Ordinaire du | I4: =Liste!$E$3 -> 2022-11-05
A5: Date et lieu | B5: =Liste!$E$3 -> 2022-11-05 | D5: à | E5: =Liste!$E$4 -> 10 Heures | F5: =Liste!E2 -> 15 rue du Bois d'Amour 75016 PARIS
G7: Ce formulaire doit être adressé à | I7: =Liste!$G$3 -> Cabinet LEBON
I8: =Liste!$G$4 -> 120 rue du Devoir
I9: =Liste!$G$5 -> 75016 Paris
F10: Avant la date limite de réxception le | G10: =Liste!$E$5 -> 1 Novemvbre 2022
A12: Je soussigné('e): | B12: =Liste!$C$10&" "&Liste!$D$10 -> Monsieur ALEXANDRINI André | D12: N° | E12: =Liste!A10 -> 1
A13: domicilié(e) au | B13: =Liste!$E$10&" "&Liste!F$10&" "&Liste!G$10 -> 15 rue du Trou Perdu 33700 Mérignac
A15: après avoir pris connaissance de l' ordre du jour et des documents annexés à la conocation ou
A16: mis à disposition sur le site en ligne sécurisé de la copropriété,
A17: souhaite émettre sur chacune des questions soumises à la délibération de l' assemblée générale
A18: des copropriétaires convoquée le
A19: Signature du Copropriétaire de l' associé ou du mandataire commun
G20: Fait à le
A22: 1.01 | B22: Election Président de séance | C22: Mr Banchet | F22: 1 | G22: =VLOOKUP(F22,Liste!$B$179:$C$189,2) -> Charges générales | I22: Majorité Article 24 | L22: =E12 -> 1 | M22: =VLOOKUP(L22,F.MERE!$A$14:$AA$163,16+F22) -> 568
B24: =IF($M22>0,"","NE PARTICIPE PAS XXXXXXXXXXXXX") ->  | E24: POUR | G24: CONTRE | I24: ABSTENTION | M24: =VLOOKUP($E$12,F.MERE!$A$14:$AA$163,16+F23) -> 
A26: 2.01 | B26: Election dfu Secrétaire | C26: Mr Lafolie | F26: 1 | G26: =VLOOKUP(F26,Liste!$B$179:$C$189,2) -> Charges générales | I26: Majorité Article 24 | L26: =E12 -> 1 | M26: =VLOOKUP(L26,F.MERE!$A$14:$AA$163,16+F22) -> 568
B28: =IF($M26>0,"","NE PARTICIPE PAS XXXXXXXXXXXXX") ->  | E28: POUR | G28: CONTRE | I28: ABSTENTION
A30: 3.01 | B30: Election Scrutateur | C30: Mr Berlier | F30: 1 | G30: =VLOOKUP(F30,Liste!$B$179:$C$189,2) -> Charges générales | I30: Majorité Article 24 | L30: =E12 -> 1 | M30: =VLOOKUP(L30,F.MERE!$A$14:$AA$163,16+F30) -> 568
B32: =IF($M30>0,"","NE PARTICIPE PAS XXXXXXXXXXXXX") ->  | E32: POUR | G32: CONTRE | I32: ABSTENTION
A34: 4.01 | B34: Conseiller Syndical | C34: Mme Fournier | F34: 1 | G34: =VLOOKUP(F34,Liste!$B$179:$C$189,2) -> Charges générales | I34: Majorité Article 24 | L34: =E12 -> 1 | M34: =VLOOKUP(L34,F.MERE!$A$14:$AA$163,16+F34) -> 568
B36: =IF($M34>0,"","NE PARTICIPE PAS XXXXXXXXXXXXX") ->  | E36: POUR | G36: CONTRE | I36: ABSTENTION
A38: 5.01 | B38: Election Syndic | C38: Cab;DUDULE | F38: 1 | G38: =VLOOKUP(F38,Liste!$B$179:$C$189,2) -> Charges générales | I38: Majorité Article 25 | L38: =E12 -> 1 | M38: =VLOOKUP(L38,F.MERE!$A$14:$AA$163,16+F38) -> 568
B40: =IF($M38>0,"","NE PARTICIPE PAS XXXXXXXXXXXXX") ->  | E40: POUR | G40: CONTRE | I40: ABSTENTION
A42: 5.02 | B42: Election Syndic,2e vote | C42: Cab,DUDULE | F42: 1 | G42: =VLOOKUP(F42,Liste!$B$179:$C$189,2) -> Charges générales | I42: Majorité Article 24 | L42: =E12 -> 1 | M42: =VLOOKUP(L42,F.MERE!$A$14:$AA$163,16+F42) -> 568
B44: =IF($M42>0,"","NE PARTICIPE PAS XXXXXXXXXXXXX") ->  | E44: POUR | G44: CONTRE | I44: ABSTENTION
A46: 6.01 | B46: Travaux BÄT B | C46: Devis ABC | F46: 3 | G46: =VLOOKUP(F46,Liste!$B$179:$C$189,2) -> Chardes Bât,B | I46: Majorité Article 26 | L46: =E12 -> 1 | M46: =VLOOKUP(L46,F.MERE!$A$14:$AA$163,16+F46) -> 0
B48: =IF($M46>0,"","NE PARTICIPE PAS XXXXXXXXXXXXX") -> NE PARTICIPE PAS XXXXXXXXXXXXX | E48: POUR | G48: CONTRE | I48: ABSTENTION
F50: 1 | G50: =VLOOKUP(F50,Liste!$B$179:$C$189,2) -> Charges générales | I50: Majorité Article 24 | L50: =E12 -> 1 | M50: =VLOOKUP(L50,F.MERE!$A$14:$AA$163,16+F50) -> 568
B52: =IF($M50>0,"","NE PARTICIPE PAS XXXXXXXXXXXXX") ->  | E52: POUR | G52: CONTRE | I52: ABSTENTION
F54: 1 | G54: =VLOOKUP(F54,Liste!$B$179:$C$189,2) -> Charges générales | I54: Majorité Article 24 | L54: =E12 -> 1 | M54: =VLOOKUP(L54,F.MERE!$A$14:$AA$163,16+F54) -> 568
B56: =IF($M54>0,"","NE PARTICIPE PAS XXXXXXXXXXXXX") ->  | E56: POUR | G56: CONTRE | I56: ABSTENTION | M56: =VLOOKUP($E$12,F.MERE!$A$14:$AA$163,16+F55) -> 
A58: x
A59: =Liste!$A$1 -> Résid.LA JOIE | I59: FORMULAIRE DE VOTE PAR CORRESPONDANCE
A60: =Liste!$A$2 -> 120 rue de l' Espérance | B60: =Liste!$A$2 -> 120 rue de l' Espérance
A61: =Liste!$A$3 -> 75016 | B61: =Liste!$A$3 & " " &Liste!$B$3 -> 75016 PARIS | J61: Page 1
A62: =Liste!A62 -> 0 | B62: =Liste!B62 -> 0
H63: Assemblée Générale Ordinaire du | I63: =Liste!$E$3 -> 2022-11-05
A64: Date et lieu | B64: =Liste!$E$3 -> 2022-11-05 | D64: à | E64: =Liste!$E$4 -> 10 Heures | F64: =Liste!$E$2 -> 15 rue du Bois d'Amour 75016 PARIS
G66: Ce formulaire doit être adressé à | I66: =Liste!$G$3 -> Cabinet LEBON
I67: =Liste!$G$4 -> 120 rue du Devoir
I68: =Liste!$G$5 -> 75016 Paris
F69: Avant la date limite de réxception le | G69: =Liste!$E$5 -> 1 Novemvbre 2022
A71: Je soussigné('e): | B71: =Liste!$C$10&" "&Liste!$D$11 -> Monsieur ANNINOS Henri | E71: =Liste!A11 -> 2
A72: domicilié(e) au | B72: =Liste!$E$11&" "&Liste!F$11&" "&Liste!G$11 -> 5 rue de la Tour 75016 Paris
A74: après avoir pris connaissance de l' ordre du jour et des documents annexés à la conocation ou
A75: mis à disposition sur le site en ligne sécurisé de la copropriété,
A76: souhaite émettre sur chacune des questions soumises à la délibération de l' assemblée générale
A77: des copropriétaires convoquée le | E77: =Liste!$E$3 -> 2022-11-05 | F77: à | G77: =E64&" "&F64 -> 10 Heures 15 rue du Bois d'Amour 75016 PARIS
A78: Signature du Copropriétaire de l' associé ou du mandataire commun
G79: Fait à le
A81: 1.01 | B81: Election Président de séance | C81: Mr Banchet | F81: 1 | G81: =VLOOKUP(F81,Liste!$B$179:$C$189,2) -> Charges générales | I81: Majorité Article 24 | L81: =E71 -> 2 | M81: =VLOOKUP(L81,F.MERE!$A$14:$AA$163,16+F81) -> 290
B83: =IF($M81>0,"","NE PARTICIPE PAS XXXXXXXXXXXXX") ->  | E83: POUR | G83: CONTRE | I83: ABSTENTION | M83: =VLOOKUP($E$12,F.MERE!$A$14:$AA$163,16+F82) -> 
A85: 2.01 | B85: Election dfu Secrétaire | C85: Mr Lafolie | F85: 1 | G85: =VLOOKUP(F85,Liste!$B$179:$C$189,2) -> Charges générales | I85: Majorité Article 24 | L85: =E71 -> 2 | M85: =VLOOKUP(L85,F.MERE!$A$14:$AA$163,16+F85) -> 290
B87: =IF($M85>0,"","NE PARTICIPE PAS XXXXXXXXXXXXX") ->  | E87: POUR | G87: CONTRE | I87: ABSTENTION
A89: 3.01 | B89: Election Scrutateur | C89: Mr Berlier | F89: 1 | G89: =VLOOKUP(F89,Liste!$B$179:$C$189,2) -> Charges générales | I89: Majorité Article 24 | L89: =E71 -> 2 | M89: =VLOOKUP(L89,F.MERE!$A$14:$AA$163,16+F89) -> 290
B91: =IF($M89>0,"","NE PARTICIPE PAS XXXXXXXXXXXXX") ->  | E91: POUR | G91: CONTRE | I91: ABSTENTION
A93: 4.01 | B93: Conseiller Syndical | C93: Mme Fournier | F93: 1 | G93: =VLOOKUP(F93,Liste!$B$179:$C$189,2) -> Charges générales | I93: Majorité Article 24 | L93: =E71 -> 2 | M93: =VLOOKUP(L93,F.MERE!$A$14:$AA$163,16+F93) -> 290
B95: =IF($M93>0,"","NE PARTICIPE PAS XXXXXXXXXXXXX") ->  | E95: POUR | G95: CONTRE | I95: ABSTENTION
A97: 5.01 | B97: Election Syndic | C97: Cab;DUDULE | F97: 1 | G97: =VLOOKUP(F97,Liste!$B$179:$C$189,2) -> Charges générales | I97: Majorité Article 25 | L97: =E71 -> 2 | M97: =VLOOKUP(L97,F.MERE!$A$14:$AA$163,16+F97) -> 290
B99: =IF($M97>0,"","NE PARTICIPE PAS XXXXXXXXXXXXX") ->  | E99: POUR | G99: CONTRE | I99: ABSTENTION
A101: 5.02 | B101: Election Syndic,2e vote | C101: Cab,DUDULE | F101: 1 | G101: =VLOOKUP(F101,Liste!$B$179:$C$189,2) -> Charges générales | I101: Majorité Article 24 | L101: =E71 -> 2 | M101: =VLOOKUP(L101,F.MERE!$A$14:$AA$163,16+F101) -> 290
B103: =IF($M101>0,"","NE PARTICIPE PAS XXXXXXXXXXXXX") ->  | E103: POUR | G103: CONTRE | I103: ABSTENTION
A105: 6.01 | B105: Travaux BÄT B | C105: Devis ABC | F105: 3 | G105: =VLOOKUP(F105,Liste!$B$179:$C$189,2) -> Chardes Bât,B | I105: Majorité Article 26 | L105: =E71 -> 2 | M105: =VLOOKUP(L105,F.MERE!$A$14:$AA$163,16+F105) -> 0
B107: =IF($M105>0,"","NE PARTICIPE PAS XXXXXXXXXXXXX") -> NE PARTICIPE PAS XXXXXXXXXXXXX | E107: POUR | G107: CONTRE | I107: ABSTENTION
F109: 1 | G109: =VLOOKUP(F109,Liste!$B$179:$C$189,2) -> Charges générales | I109: Majorité Article 24 | L109: =E71 -> 2 | M109: =VLOOKUP(L109,F.MERE!$A$14:$AA$163,16+F109) -> 290
B111: =IF($M109>0,"","NE PARTICIPE PAS XXXXXXXXXXXXX") ->  | E111: POUR | G111: CONTRE | I111: ABSTENTION
F113: 1 | G113: =VLOOKUP(F113,Liste!$B$179:$C$189,2) -> Charges générales | I113: Majorité Article 24 | L113: =E71 -> 2 | M113: =VLOOKUP(L113,F.MERE!$A$14:$AA$163,16+F113) -> 290
B115: =IF($M113>0,"","NE PARTICIPE PAS XXXXXXXXXXXXX") ->  | E115: POUR | G115: CONTRE | I115: ABSTENTION | M115: =VLOOKUP($E$12,F.MERE!$A$14:$AA$163,16+F114) -> 
A117: x
A118: =Liste!$A$1 -> Résid.LA JOIE | I118: FORMULAIRE DE VOTE PAR CORRESPONDANCE
A119: =Liste!$A$2 -> 120 rue de l' Espérance | B119: =Liste!$A$2 -> 120 rue de l' Espérance | J119: Page 1
A120: =Liste!$A$3 -> 75016 | B120: =Liste!$A$3 & " " &Liste!$B$3 -> 75016 PARIS
H121: Assemblée Générale Ordinaire du | I121: =Liste!$E$3 -> 2022-11-05
A122: Date et lieu | B122: =Liste!$E$3 -> 2022-11-05 | D122: à | E122: =Liste!$E$4 -> 10 Heures | F122: =Liste!$E$2 -> 15 rue du Bois d'Amour 75016 PARIS
G124: Ce formulaire doit être adressé à | I124: =Liste!$G$3 -> Cabinet LEBON
I125: =Liste!$G$4 -> 120 rue du Devoir
I126: =Liste!$G$5 -> 75016 Paris
F127: Avant la date limite de réxception le | G127: =Liste!$E$5 -> 1 Novemvbre 2022
A129: Je soussigné('e): | B129: =Liste!$C$12&" "&Liste!$D$12 -> Mr et Mme BALDACCHINO Laurence | E129: =Liste!A12 -> 3
A130: domicilié(e) au | B130: =Liste!$E$12&" "&Liste!$F$12&" "&Liste!$G$12 -> 13 rue de l' espoir 75016 Paris
A132: après avoir pris connaissance de l' ordre du jour et des documents annexés à la conocation ou
A133: mis à disposition sur le site en ligne sécurisé de la copropriété,
A134: souhaite émettre sur chacune des questions soumises à la délibération de l' assemblée générale
A135: des copropriétaires convoquée le | E135: =Liste!$E$3 -> 2022-11-05 | F135: à | G135: =E122&" "&F122 -> 10 Heures 15 rue du Bois d'Amour 75016 PARIS
A136: Signature du Copropriétaire de l' associé ou du mandataire commun
G137: Fait à le
A139: 1.01 | B139: Election Président de séance | C139: Mr Banchet | F139: 1 | G139: =VLOOKUP(F139,Liste!$B$179:$C$189,2) -> Charges générales | I139: Majorité Article 24 | L139: =E129 -> 3 | M139: =VLOOKUP(L139,F.MERE!$A$14:$AA$163,16+F139) -> 319
B141: =IF($M139>0,"","NE PARTICIPE PAS XXXXXXXXXXXXX") ->  | E141: POUR | G141: CONTRE | I141: ABSTENTION | M141: =VLOOKUP($E$12,F.MERE!$A$14:$AA$163,16+F140) -> 
A143: 2.01 | B143: Election dfu Secrétaire | C143: Mr Lafolie | F143: 1 | G143: =VLOOKUP(F143,Liste!$B$179:$C$189,2) -> Charges générales | I143: Majorité Article 24 | L143: =E129 -> 3 | M143: =VLOOKUP(L143,F.MERE!$A$14:$AA$163,16+F139) -> 319
B145: =IF($M143>0,"","NE PARTICIPE PAS XXXXXXXXXXXXX") ->  | E145: POUR | G145: CONTRE | I145: ABSTENTION
A147: 3.01 | B147: Election Scrutateur | C147: Mr Berlier | F147: 1 | G147: =VLOOKUP(F147,Liste!$B$179:$C$189,2) -> Charges générales | I147: Majorité Article 24 | L147: =E129 -> 3 | M147: =VLOOKUP(L147,F.MERE!$A$14:$AA$163,16+F147) -> 319
B149: =IF($M147>0,"","NE PARTICIPE PAS XXXXXXXXXXXXX") ->  | E149: POUR | G149: CONTRE | I149: ABSTENTION
A151: 4.01 | B151: Conseiller Syndical | C151: Mme Fournier | F151: 1 | G151: =VLOOKUP(F151,Liste!$B$179:$C$189,2) -> Charges générales | I151: Majorité Article 24 | L151: =E129 -> 3 | M151: =VLOOKUP(L151,F.MERE!$A$14:$AA$163,16+F151) -> 319
B153: =IF($M151>0,"","NE PARTICIPE PAS XXXXXXXXXXXXX") ->  | E153: POUR | G153: CONTRE | I153: ABSTENTION
A155: 5.01 | B155: Election Syndic | C155: Cab;DUDULE | F155: 1 | G155: =VLOOKUP(F155,Liste!$B$179:$C$189,2) -> Charges générales | I155: Majorité Article 25 | L155: =E129 -> 3 | M155: =VLOOKUP(L155,F.MERE!$A$14:$AA$163,16+F155) -> 319
B157: =IF($M155>0,"","NE PARTICIPE PAS XXXXXXXXXXXXX") ->  | E157: POUR | G157: CONTRE | I157: ABSTENTION
A159: 5.02 | B159: Election Syndic,2e vote | C159: Cab,DUDULE | F159: 1 | G159: =VLOOKUP(F159,Liste!$B$179:$C$189,2) -> Charges générales | I159: Majorité Article 24 | L159: =E129 -> 3 | M159: =VLOOKUP(L159,F.MERE!$A$14:$AA$163,16+F159) -> 319
B161: =IF($M159>0,"","NE PARTICIPE PAS XXXXXXXXXXXXX") ->  | E161: POUR | G161: CONTRE | I161: ABSTENTION
A163: 6.01 | B163: Travaux BÄT B | C163: Devis ABC | F163: 3 | G163: =VLOOKUP(F163,Liste!$B$179:$C$189,2) -> Chardes Bât,B | I163: Majorité Article 26 | L163: =E129 -> 3 | M163: =VLOOKUP(L163,F.MERE!$A$14:$AA$163,16+F163) -> 0
B165: =IF($M163>0,"","NE PARTICIPE PAS XXXXXXXXXXXXX") -> NE PARTICIPE PAS XXXXXXXXXXXXX | E165: POUR | G165: CONTRE | I165: ABSTENTION
F167: 1 | G167: =VLOOKUP(F167,Liste!$B$179:$C$189,2) -> Charges générales | I167: Majorité Article 24 | L167: =E129 -> 3 | M167: =VLOOKUP(L167,F.MERE!$A$14:$AA$163,16+F167) -> 319
B169: =IF($M167>0,"","NE PARTICIPE PAS XXXXXXXXXXXXX") ->  | E169: POUR | G169: CONTRE | I169: ABSTENTION
F171: 1 | G171: =VLOOKUP(F171,Liste!$B$179:$C$189,2) -> Charges générales | I171: Majorité Article 24 | L171: =E129 -> 3 | M171: =VLOOKUP(L171,F.MERE!$A$14:$AA$163,16+F171) -> 319
B173: =IF($M171>0,"","NE PARTICIPE PAS XXXXXXXXXXXXX") ->  | E173: POUR | G173: CONTRE | I173: ABSTENTION | M173: =VLOOKUP($E$12,F.MERE!$A$14:$AA$163,16+F172) -> 
A175: x
A176: =Liste!$A$1 -> Résid.LA JOIE | I176: FORMULAIRE DE VOTE PAR CORRESPONDANCE
A177: =Liste!$A$2 -> 120 rue de l' Espérance | B177: =Liste!$A$2 -> 120 rue de l' Espérance | J177: Page 1
A178: =Liste!$A$3 -> 75016 | B178: =Liste!$A$3 & " " &Liste!$B$3 -> 75016 PARIS
H179: Assemblée Générale Ordinaire du | I179: =Liste!$E$3 -> 2022-11-05
A180: Date et lieu | B180: =Liste!$E$3 -> 2022-11-05 | D180: à | E180: =Liste!$E$4 -> 10 Heures | F180: 33 rue de l' Abreuvoir 75016 PARIS
G182: Ce formulaire doit être adressé à | I182: =Liste!$G$3 -> Cabinet LEBON
I183: =Liste!$G$4 -> 120 rue du Devoir
I184: =Liste!$G$5 -> 75016 Paris
F185: Avant la date limite de réxception le | G185: =Liste!$E$5 -> 1 Novemvbre 2022
A187: Je soussigné('e): | B187: =Liste!$C$13&" "&Liste!$D$13 -> Monsieur BANCHET Joseph | E187: =Liste!A13 -> 4
A188: domicilié(e) au | B188: =Liste!$E$30&" "&Liste!$F$13&" "&Liste!$G$13 -> 14 rue de l' espoir 75016 Paris
A190: après avoir pris connaissance de l' ordre du jour et des documents annexés à la conocation ou
A191: mis à disposition sur le site en ligne sécurisé de la copropriété,
A192: souhaite émettre sur chacune des questions soumises à la délibération de l' assemblée générale
A193: des copropriétaires convoquée le | E193: =Liste!$E$3 -> 2022-11-05 | F193: à | G193: =E180&" "&F180 -> 10 Heures 33 rue de l' Abreuvoir 75016 PARIS
A194: Signature du Copropriétaire de l' associé ou du mandataire commun
G195: Fait à le
A197: 1.01 | B197: Election Président de séance | C197: Mr Banchet | F197: 1 | G197: =VLOOKUP(F197,Liste!$B$179:$C$189,2) -> Charges générales | I197: Majorité Article 24 | L197: =E187 -> 4 | M197: =VLOOKUP(L197,F.MERE!$A$14:$AA$163,16+F197) -> 294
B199: =IF($M197>0,"","NE PARTICIPE PAS XXXXXXXXXXXXX") ->  | E199: POUR | G199: CONTRE | I199: ABSTENTION | M199: =VLOOKUP($E$12,F.MERE!$A$14:$AA$163,16+F198) -> 
A201: 2.01 | B201: Election dfu Secrétaire | C201: Mr Lafolie | F201: 1 | G201: =VLOOKUP(F201,Liste!$B$179:$C$189,2) -> Charges générales | I201: Majorité Article 24 | L201: =E187 -> 4 | M201: =VLOOKUP(L201,F.MERE!$A$14:$AA$163,16+F197) -> 294
E203: POUR | G203: CONTRE | I203: ABSTENTION
A205: 3.01 | B205: Election Scrutateur | C205: Mr Berlier | F205: 1 | G205: =VLOOKUP(F205,Liste!$B$179:$C$189,2) -> Charges générales | I205: Majorité Article 24 | L205: =E187 -> 4 | M205: =VLOOKUP(L205,F.MERE!$A$14:$AA$163,16+F205) -> 294
E207: POUR | G207: CONTRE | I207: ABSTENTION
A209: 4.01 | B209: Conseiller Syndical | C209: Mme Fournier | F209: 1 | G209: =VLOOKUP(F209,Liste!$B$179:$C$189,2) -> Charges générales | I209: Majorité Article 24 | L209: =E187 -> 4 | M209: =VLOOKUP(L209,F.MERE!$A$14:$AA$163,16+F209) -> 294
B211: =IF($M209>0,"","NE PARTICIPE PAS XXXXXXXXXXXXX") ->  | E211: POUR | G211: CONTRE | I211: ABSTENTION
A213: 5.01 | B213: Election Syndic | C213: Cab;DUDULE | F213: 1 | G213: =VLOOKUP(F213,Liste!$B$179:$C$189,2) -> Charges générales | I213: Majorité Article 25 | L213: =E187 -> 4 | M213: =VLOOKUP(L213,F.MERE!$A$14:$AA$163,16+F213) -> 294
B215: =IF($M213>0,"","NE PARTICIPE PAS XXXXXXXXXXXXX") ->  | E215: POUR | G215: CONTRE | I215: ABSTENTION
A217: 5.02 | B217: Election Syndic,2e vote | C217: Cab,DUDULE | F217: 1 | G217: =VLOOKUP(F217,Liste!$B$179:$C$189,2) -> Charges générales | I217: Majorité Article 24 | L217: =E187 -> 4 | M217: =VLOOKUP(L217,F.MERE!$A$14:$AA$163,16+F217) -> 294
B219: =IF($M217>0,"","NE PARTICIPE PAS XXXXXXXXXXXXX") ->  | E219: POUR | G219: CONTRE | I219: ABSTENTION
A221: 6.01 | B221: Travaux BÄT B | C221: Devis ABC | F221: 3 | G221: =VLOOKUP(F221,Liste!$B$179:$C$189,2) -> Chardes Bât,B | I221: Majorité Article 26 | L221: =E187 -> 4 | M221: =VLOOKUP(L221,F.MERE!$A$14:$AA$163,16+F221) -> 0
B223: =IF($M221>0,"","NE PARTICIPE PAS XXXXXXXXXXXXX") -> NE PARTICIPE PAS XXXXXXXXXXXXX | E223: POUR | G223: CONTRE | I223: ABSTENTION
F225: 1 | G225: =VLOOKUP(F225,Liste!$B$179:$C$189,2) -> Charges générales | I225: Majorité Article 24 | L225: =E187 -> 4 | M225: =VLOOKUP(L225,F.MERE!$A$14:$AA$163,16+F225) -> 294
B227: =IF($M225>0,"","NE PARTICIPE PAS XXXXXXXXXXXXX") ->  | E227: POUR | G227: CONTRE | I227: ABSTENTION
F229: 1 | G229: =VLOOKUP(F229,Liste!$B$179:$C$189,2) -> Charges générales | I229: Majorité Article 24 | L229: =E187 -> 4 | M229: =VLOOKUP(L229,F.MERE!$A$14:$AA$163,16+F229) -> 294
B231: =IF($M229>0,"","NE PARTICIPE PAS XXXXXXXXXXXXX") ->  | E231: POUR | G231: CONTRE | I231: ABSTENTION | M231: =VLOOKUP($E$12,F.MERE!$A$14:$AA$163,16+F230) -> 
A233: x
A234: =Liste!$A$1 -> Résid.LA JOIE | I234: FORMULAIRE DE VOTE PAR CORRESPONDANCE
A235: =Liste!$A$2 -> 120 rue de l' Espérance | B235: =Liste!$A$2 -> 120 rue de l' Espérance | J235: Page 1
